Workbook

Sheet Disclaimer
L2: Copyright © 2025 Society of Actuaries Research Institute
B3: A Tool for Examining Mortality Trends in the U.S. General Population
B4: The workbook is released in tandem with Quarterly Mortality Monitoring Report (QMMR). The SOA Research Institute updates the workbook every three months with fresh data.
B5: This version uses death count data that was downloaded on Feb 6, 2025, and is effectively complete through July 2024. The workbook contains monthly data from Jan 2001 through Dec 2024.
B7: Disclaimer
B9: This workbook is made available free of charge with the understanding that neither the author nor the Society of Actuaries Research Institute
B10: accepts any liability for its use. It may be used for any personal, research or commercial use provided that the user does not represent it as
B11: his or her own work and does not distribute it to others for a fee. The workbook and the results it produces are for informational purposes only,
B12: and should not be construed as professional or financial advice. The Society of Actuaries Research Institute does not recommend or endorse any
B13: particular use of the information provided by this workbook. The Society of Actuaries Research Institute makes no warranty, express or implied,
B14: and assums no liability in connection with the use of this workbook.

Sheet Contents
B2: A Tool for Examining Mortality Trends in the U.S. General Population
B4: Tab | C4: Description | J4: Workbook Settings
J5: Yes | K5: Enable automatic alert if incomplete data is used for a data query
B6: 1 | C6: Outputs: a time series of death rates or death counts for user-specified ages or age groups | J6: No | K6: Hide Excel ribbon to create larger viewing window
B7: 2 | C7: Outputs: a time series of period life expectancies for user-specified ages or age groups | J7: 100 | K7: Select the zoom % that you wish to apply across all worksheets
B8: 3 | C8: Outputs: a time series of deaths and/or exposure counts for user-specified ages or age groups
B9: 4 | C9: Outputs: death rates across a series of ages, for user-specified years | J9: VBA Macros
B10: 5 | C10: Outputs: regression analysis to estimate rates of improvement by age and sex | J10: This tool uses VBA macros. Your operating system may automatically deactivate these macros.
B11: 6 | C11: Outputs: a dynamic graph that shows changes in population counts across time | J11: To activate them, first copy the file to your local hard-drive, and then, in Windows Explorer,
B12: 7 | C12: Data: exposure counts | J12: right-click on the file name, and then click "Properties". Lastly, check the "unblock" box.
B13: 8 | C13: Data: death counts from CDC WONDER, by year, sex, age, and category of death
B14: 9 | C14: Data: the MP-2021 mortality improvement rate scale | J14: Reporting Lag
B15: 10 | C15: Data: information about each source of data | J15: The death count data in this tool was downloaded on Feb 6, 2025. The SOA estimates that the
B16: 11 | C16: An example that illustrates the importance of age-standardization | J16: data is 99.9% complete through July 2024. More recent data has a lower level of completeness.
B17: 12 | C17: User guide | J17: Data for deaths in December 2024, for example, is roughly 99% complete. The level of completeness
J18: varries by cause of death. For deaths caused by accidents, assaults, and suicides, the reporting lag
B19: The tool disaggregates death counts into the following mutually-exclusive categories: | J19: is longer than for other causes of death.
B21: # | C21: Category | D21: Abbreviation | F21: ICD Codes | J21: This tool places no restrictions on using data that is incomplete. For example, if you wish, you may
J22: analyze data that is only one month old (relative to the date of download). However, this can lead
B23: 0 | C23: Total | D23: Total | F23: All codes | J23: to misleading results. If you wish, this tool will automatically alert you if you use incomplete data.
B24: 1 | C24: Alzheimer's/Dementia | D24: Alz/Dem | F24: G30 | J24: To enable automatic alerts, set cell B5 of this worksheet to "Yes".
B25: 2 | C25: Cancer | D25: Cancer | F25: C00-C97
B26: 3 | C26: COVID | D26: COVID | F26: U071
B27: 4 | C27: Diabetes | D27: Diabetes | F27: E10-E14
B28: 5 | C28: Flu/Pneumonia | D28: Flu/Pneum | F28: J09-J18
B29: 6 | C29: Heart Disease | D29: Heart | F29: I00-I09, I11, I13, I20-I51
B30: 7 | C30: Hypertension | D30: Hyperten | F30: I10, I12, I15
B31: 8 | C31: Chronic Liver Disease and Cirrhosis | D31: Liver | F31: K70, K73-K74
B32: 9 | C32: Pulmonary | D32: =C32 -> Pulmonary | F32: J40-J47
B33: 10 | C33: Stroke | D33: Stroke | F33: I60-I69
B34: 11 | C34: Accidents | D34: Accidents | F34: V01-X59, Y85-Y86
B35: 12 | C35: Assault | D35: Assault | F35: U01-U02, X85-Y09, Y87.1
B36: 13 | C36: Suicide | D36: Suicide | F36: U03, X60-X84, Y87.0
B37: 14 | C37: Other | D37: Other | F37: Contains all other ICD codes not listed above

Sheet 1 Time Series - Death Rates
B2: Time Series of Death Rates for User-Specified Ages or Age Groups
B3: You may specify up to 100 different age-sex groups in the table of parameters that begins on row 21. You may leave rows blank if you wish. For example, if you only wish to run a single case, then use row 21, and leave all subsequent rows blank.
B7: Specify the Time Period Across Which to Produce Output | L7: List of Available Metrics
B8: 2018 | C8: 1 | D8: First year/month to output | L8: Actual | N8: actual death rate
B9: 2024 | C9: 12 | D9: Last year/month to output | L9: Expected | N9: expected death rate, using data from specified base year
C10: 1 | D10: Across this date range, produce output every N months | L10: A / E | N10: actual divided by expected death rate
L11: % of Total | N11: actual death rate as % of actual death rate for all causes
K14: Trailing
E15: Parameters for | K15: Period | L15: Parameters for
E16: Age-Standardization | K16: (Months) | L16: Expected Death Rates
E17: Use | K17: Used to | L17: Base | M17: Base
C18: Age | D18: Age | E18: Standardized | F18: Standard | H18: Causes of | I18: Exposure | J18: Mortality | K18: Calculate | L18: Period | M18: Period | N18: Mort | O18: Show on | P18: Graph
B19: Case | C19: Min | D19: Max | E19: Population | F19: Year | G19: Sex | H19: Death | I19: Source | J19: Metric | K19: the Metric | L19: First Yr | M19: Last Yr | N19: Improve | O19: Graph? | P19: Label | Q19: 2018-01-16 | R19: 2018-02-16 | S19: 2018-03-16 | T19: 2018-04-16 | U19: 2018-05-16 | V19: 2018-06-16 | W19: 2018-07-16 | X19: 2018-08-16 | Y19: 2018-09-16 | Z19: 2018-10-16 | AA19: 2018-11-16 | AB19: 2018-12-16 | AC19: 2019-01-16 | AD19: 2019-02-16 | AE19: 2019-03-16 | AF19: 2019-04-16 | AG19: 2019-05-16 | AH19: 2019-06-16 | AI19: 2019-07-16 | AJ19: 2019-08-16 | AK19: 2019-09-16 | AL19: 2019-10-16 | AM19: 2019-11-16 | AN19: 2019-12-16 | AO19: 2020-01-16 | AP19: 2020-02-16 | AQ19: 2020-03-16 | AR19: 2020-04-16 | AS19: 2020-05-16 | AT19: 2020-06-16 | AU19: 2020-07-16 | AV19: 2020-08-16 | AW19: 2020-09-16 | AX19: 2020-10-16 | AY19: 2020-11-16 | AZ19: 2020-12-16 | BA19: 2021-01-16 | BB19: 2021-02-16 | BC19: 2021-03-16 | BD19: 2021-04-16 | BE19: 2021-05-16 | BF19: 2021-06-16 | BG19: 2021-07-16 | BH19: 2021-08-16 | BI19: 2021-09-16 | BJ19: 2021-10-16 | BK19: 2021-11-16 | BL19: 2021-12-16 | BM19: 2022-01-16 | BN19: 2022-02-16 | BO19: 2022-03-16 | BP19: 2022-04-16 | BQ19: 2022-05-16 | BR19: 2022-06-16 | BS19: 2022-07-16 | BT19: 2022-08-16 | BU19: 2022-09-16 | BV19: 2022-10-16 | BW19: 2022-11-16 | BX19: 2022-12-16 | BY19: 2023-01-16 | BZ19: 2023-02-16 | CA19: 2023-03-16 | CB19: 2023-04-16 | CC19: 2023-05-16 | CD19: 2023-06-16 | CE19: 2023-07-16 | CF19: 2023-08-16 | CG19: 2023-09-16 | CH19: 2023-10-16 | CI19: 2023-11-16 | CJ19: 2023-12-16 | CK19: 2024-01-16 | CL19: 2024-02-16 | CM19: 2024-03-16 | CN19: 2024-04-16 | CO19: 2024-05-16 | CP19: 2024-06-16 | CQ19: 2024-07-16 | CR19: 2024-08-16 | CS19: 2024-09-16 | CT19: 2024-10-16 | CU19: 2024-11-16 | CV19: 2024-12-16
B21: 1 | C21: 65 | D21: 99 | E21: Y | F21: 2019 | G21: T | H21: Total | I21: HMD | J21: A / E | K21: 12 | L21: 2019 | M21: 2019 | N21: None | O21: Y | P21: 65+ | Q21: 1.038926005 | R21: 1.038214803 | S21: 1.034923434 | T21: 1.033935547 | U21: 1.031741738 | V21: 1.030286193 | W21: 1.029507041 | X21: 1.028416038 | Y21: 1.02600193 | Z21: 1.025322676 | AA21: 1.024595976 | AB21: 1.019115567 | AC21: 1.00516665 | AD21: 1.00118947 | AE21: 1.001549125 | AF21: 1.000085235 | AG21: 1.001296639 | AH21: 1.001608372 | AI21: 1.001253128 | AJ21: 1.000679851 | AK21: 1.000279903 | AL21: 0.9998932481 | AM21: 0.9997968674 | AN21: 1 | AO21: 1.000131488 | AP21: 1.001903176 | AQ21: 1.004776597 | AR21: 1.03486681 | AS21: 1.04712677 | AT21: 1.051922321 | AU21: 1.065439701 | AV21: 1.07966423 | AW21: 1.089000344 | AX21: 1.099214792 | AY21: 1.120918393 | AZ21: 1.160698771 | BA21: 1.198491573 | BB21: 1.209506631 | BC21: 1.20621264 | BD21: 1.177589178 | BE21: 1.166639924 | BF21: 1.162995458 | BG21: 1.154289722 | BH21: 1.15810585 | BI21: 1.170124769 | BJ21: 1.174086928 | BK21: 1.164621115 | BL21: 1.141504407 | BM21: 1.136727333 | BN21: 1.138851047 | BO21: 1.137827039 | BP21: 1.134827733 | BQ21: 1.134194374 | BR21: 1.135546803 | BS21: 1.136629105 | BT21: 1.125325322 | BU21: 1.109210253 | BV21: 1.099852324 | BW21: 1.093025923 | BX21: 1.088078499 | BY21: 1.060511589 | BZ21: 1.044973969 | CA21: 1.044623137 | CB21: 1.045337439 | CC21: 1.043120861 | CD21: 1.039341092 | CE21: 1.032819986 | CF21: 1.027823329 | CG21: 1.024653435 | CH21: 1.021351337 | CI21: 1.017215252 | CJ21: 1.01053524 | CK21: 1.011707544 | CL21: 1.012696862 | CM21: 1.0097543 | CN21: 1.008098841 | CO21: 1.006643772 | CP21: 1.006160259 | CQ21: 1.006427884 | CR21: 1.006215215 | CS21: 1.004387856 | CT21: 1.001853824 | CU21: 0.9962198138 | CV21: 0.989122808
B22: 2 | C22: 0 | D22: 99 | E22: Y | F22: 2019 | G22: T | H22: Total | I22: HMD | J22: A / E | K22: 12 | L22: 2019 | M22: 2019 | N22: None | O22: Y | P22: Total | Q22: 1.034835339 | R22: 1.034208536 | S22: 1.031387448 | T22: 1.030076981 | U22: 1.027976513 | V22: 1.02657032 | W22: 1.025902748 | X22: 1.024953842 | Y22: 1.022611976 | Z22: 1.021824002 | AA22: 1.020948529 | AB22: 1.015815616 | AC22: 1.003668547 | AD22: 1.000432372 | AE22: 1.000806212 | AF22: 0.9997861981 | AG22: 1.000840425 | AH22: 1.000897884 | AI22: 1.000512004 | AJ22: 0.9998198748 | AK22: 0.9994419217 | AL22: 0.999039948 | AM22: 0.9993317127 | AN22: 1 | AO22: 1.000625372 | AP22: 1.00304687 | AQ22: 1.006455898 | AR22: 1.034867764 | AS22: 1.048241615 | AT22: 1.055288553 | AU22: 1.070830464 | AV22: 1.086464047 | AW22: 1.096812367 | AX22: 1.107821822 | AY22: 1.128230453 | AZ22: 1.164989352 | BA22: 1.201306462 | BB22: 1.213164926 | BC22: 1.212644458 | BD22: 1.189482808 | BE22: 1.181093693 | BF22: 1.17840004 | BG22: 1.170462966 | BH22: 1.178829312 | BI22: 1.196950555 | BJ22: 1.204996228 | BK22: 1.199386358 | BL22: 1.182328463 | BM22: 1.179962516 | BN22: 1.181576848 | BO22: 1.17953527 | BP22: 1.174630404 | BQ22: 1.171977878 | BR22: 1.171696186 | BS22: 1.171125889 | BT22: 1.154506803 | BU22: 1.13226378 | BV22: 1.118990779 | BW22: 1.110539556 | BX22: 1.10257864 | BY22: 1.074039221 | BZ22: 1.058569789 | CA22: 1.057184219 | CB22: 1.057592154 | CC22: 1.055309296 | CD22: 1.051281929 | CE22: 1.045121312 | CF22: 1.04047966 | CG22: 1.036685109 | CH22: 1.032721162 | CI22: 1.027544737 | CJ22: 1.020242691 | CK22: 1.020292878 | CL22: 1.020592451 | CM22: 1.016853809 | CN22: 1.013980627 | CO22: 1.011296868 | CP22: 1.009719014 | CQ22: 1.008062482 | CR22: 1.006070137 | CS22: 1.003017306 | CT22: 0.9994592667 | CU22: 0.9931097031 | CV22: 0.9842373133
B23: 3
B24: 4
B25: 5
B26: 6
B27: 7
B28: 8
B29: 9
B30: 10
B31: 11
B32: 12
B33: 13
B34: 14
B35: 15
B36: 16
B37: 17
B38: 18
B39: 19
B40: 20
B41: 21
B42: 22
B43: 23
B44: 24
B45: 25
B46: 26
B47: 27
B48: 28
B49: 29
B50: 30
B51: 31
B52: 32
B53: 33
B54: 34
B55: 35
B56: 36
B57: 37
B58: 38
B59: 39
B60: 40
B61: 41
B62: 42
B63: 43
B64: 44
B65: 45
B66: 46
B67: 47
B68: 48
B69: 49
B70: 50
B71: 51
B72: 52
B73: 53
B74: 54
B75: 55
B76: 56
B77: 57
B78: 58
B79: 59
B80: 60
B81: 61
B82: 62
B83: 63
B84: 64
B85: 65
B86: 66
B87: 67
B88: 68
B89: 69
B90: 70
B91: 71
B92: 72
B93: 73
B94: 74
B95: 75
B96: 76
B97: 77
B98: 78
B99: 79
B100: 80
B101: 81
B102: 82
B103: 83
B104: 84
B105: 85
B106: 86
B107: 87
B108: 88
B109: 89
B110: 90
B111: 91
B112: 92
B113: 93
B114: 94
B115: 95
B116: 96
B117: 97
B118: 98
B119: 99
B120: 100
AB123: Manually Set Range of Y-Axis
Q124: This graph is redrawn each time you press the RUN button | AB124: 0.9 | AC124: Min | AD124: Leave one or both of these cells blank if you want
AC125: Max | AD125: Excel to automatically set the Y-axis range.
Q146: 2018-01-16 | R146: 2018-02-16 | S146: 2018-03-16 | T146: 2018-04-16 | U146: 2018-05-16 | V146: 2018-06-16 | W146: 2018-07-16 | X146: 2018-08-16 | Y146: 2018-09-16 | Z146: 2018-10-16 | AA146: 2018-11-16 | AB146: 2018-12-16 | AC146: 2019-01-16 | AD146: 2019-02-16 | AE146: 2019-03-16 | AF146: 2019-04-16 | AG146: 2019-05-16 | AH146: 2019-06-16 | AI146: 2019-07-16 | AJ146: 2019-08-16 | AK146: 2019-09-16 | AL146: 2019-10-16 | AM146: 2019-11-16 | AN146: 2019-12-16 | AO146: 2020-01-16 | AP146: 2020-02-16 | AQ146: 2020-03-16 | AR146: 2020-04-16 | AS146: 2020-05-16 | AT146: 2020-06-16 | AU146: 2020-07-16 | AV146: 2020-08-16 | AW146: 2020-09-16 | AX146: 2020-10-16 | AY146: 2020-11-16 | AZ146: 2020-12-16 | BA146: 2021-01-16 | BB146: 2021-02-16 | BC146: 2021-03-16 | BD146: 2021-04-16 | BE146: 2021-05-16 | BF146: 2021-06-16 | BG146: 2021-07-16 | BH146: 2021-08-16 | BI146: 2021-09-16 | BJ146: 2021-10-16 | BK146: 2021-11-16 | BL146: 2021-12-16 | BM146: 2022-01-16 | BN146: 2022-02-16 | BO146: 2022-03-16 | BP146: 2022-04-16 | BQ146: 2022-05-16 | BR146: 2022-06-16 | BS146: 2022-07-16 | BT146: 2022-08-16 | BU146: 2022-09-16 | BV146: 2022-10-16 | BW146: 2022-11-16 | BX146: 2022-12-16 | BY146: 2023-01-16 | BZ146: 2023-02-16 | CA146: 2023-03-16 | CB146: 2023-04-16 | CC146: 2023-05-16 | CD146: 2023-06-16 | CE146: 2023-07-16 | CF146: 2023-08-16 | CG146: 2023-09-16 | CH146: 2023-10-16 | CI146: 2023-11-16 | CJ146: 2023-12-16 | CK146: 2024-01-16 | CL146: 2024-02-16 | CM146: 2024-03-16 | CN146: 2024-04-16 | CO146: 2024-05-16 | CP146: 2024-06-16 | CQ146: 2024-07-16 | CR146: 2024-08-16 | CS146: 2024-09-16 | CT146: 2024-10-16 | CU146: 2024-11-16 | CV146: 2024-12-16
P147: 65+ | Q147: 1.038926005 | R147: 1.038214803 | S147: 1.034923434 | T147: 1.033935547 | U147: 1.031741738 | V147: 1.030286193 | W147: 1.029507041 | X147: 1.028416038 | Y147: 1.02600193 | Z147: 1.025322676 | AA147: 1.024595976 | AB147: 1.019115567 | AC147: 1.00516665 | AD147: 1.00118947 | AE147: 1.001549125 | AF147: 1.000085235 | AG147: 1.001296639 | AH147: 1.001608372 | AI147: 1.001253128 | AJ147: 1.000679851 | AK147: 1.000279903 | AL147: 0.9998932481 | AM147: 0.9997968674 | AN147: 1 | AO147: 1.000131488 | AP147: 1.001903176 | AQ147: 1.004776597 | AR147: 1.03486681 | AS147: 1.04712677 | AT147: 1.051922321 | AU147: 1.065439701 | AV147: 1.07966423 | AW147: 1.089000344 | AX147: 1.099214792 | AY147: 1.120918393 | AZ147: 1.160698771 | BA147: 1.198491573 | BB147: 1.209506631 | BC147: 1.20621264 | BD147: 1.177589178 | BE147: 1.166639924 | BF147: 1.162995458 | BG147: 1.154289722 | BH147: 1.15810585 | BI147: 1.170124769 | BJ147: 1.174086928 | BK147: 1.164621115 | BL147: 1.141504407 | BM147: 1.136727333 | BN147: 1.138851047 | BO147: 1.137827039 | BP147: 1.134827733 | BQ147: 1.134194374 | BR147: 1.135546803 | BS147: 1.136629105 | BT147: 1.125325322 | BU147: 1.109210253 | BV147: 1.099852324 | BW147: 1.093025923 | BX147: 1.088078499 | BY147: 1.060511589 | BZ147: 1.044973969 | CA147: 1.044623137 | CB147: 1.045337439 | CC147: 1.043120861 | CD147: 1.039341092 | CE147: 1.032819986 | CF147: 1.027823329 | CG147: 1.024653435 | CH147: 1.021351337 | CI147: 1.017215252 | CJ147: 1.01053524 | CK147: 1.011707544 | CL147: 1.012696862 | CM147: 1.0097543 | CN147: 1.008098841 | CO147: 1.006643772 | CP147: 1.006160259 | CQ147: 1.006427884 | CR147: 1.006215215 | CS147: 1.004387856 | CT147: 1.001853824 | CU147: 0.9962198138 | CV147: 0.989122808
P148: Total | Q148: 1.034835339 | R148: 1.034208536 | S148: 1.031387448 | T148: 1.030076981 | U148: 1.027976513 | V148: 1.02657032 | W148: 1.025902748 | X148: 1.024953842 | Y148: 1.022611976 | Z148: 1.021824002 | AA148: 1.020948529 | AB148: 1.015815616 | AC148: 1.003668547 | AD148: 1.000432372 | AE148: 1.000806212 | AF148: 0.9997861981 | AG148: 1.000840425 | AH148: 1.000897884 | AI148: 1.000512004 | AJ148: 0.9998198748 | AK148: 0.9994419217 | AL148: 0.999039948 | AM148: 0.9993317127 | AN148: 1 | AO148: 1.000625372 | AP148: 1.00304687 | AQ148: 1.006455898 | AR148: 1.034867764 | AS148: 1.048241615 | AT148: 1.055288553 | AU148: 1.070830464 | AV148: 1.086464047 | AW148: 1.096812367 | AX148: 1.107821822 | AY148: 1.128230453 | AZ148: 1.164989352 | BA148: 1.201306462 | BB148: 1.213164926 | BC148: 1.212644458 | BD148: 1.189482808 | BE148: 1.181093693 | BF148: 1.17840004 | BG148: 1.170462966 | BH148: 1.178829312 | BI148: 1.196950555 | BJ148: 1.204996228 | BK148: 1.199386358 | BL148: 1.182328463 | BM148: 1.179962516 | BN148: 1.181576848 | BO148: 1.17953527 | BP148: 1.174630404 | BQ148: 1.171977878 | BR148: 1.171696186 | BS148: 1.171125889 | BT148: 1.154506803 | BU148: 1.13226378 | BV148: 1.118990779 | BW148: 1.110539556 | BX148: 1.10257864 | BY148: 1.074039221 | BZ148: 1.058569789 | CA148: 1.057184219 | CB148: 1.057592154 | CC148: 1.055309296 | CD148: 1.051281929 | CE148: 1.045121312 | CF148: 1.04047966 | CG148: 1.036685109 | CH148: 1.032721162 | CI148: 1.027544737 | CJ148: 1.020242691 | CK148: 1.020292878 | CL148: 1.020592451 | CM148: 1.016853809 | CN148: 1.013980627 | CO148: 1.011296868 | CP148: 1.009719014 | CQ148: 1.008062482 | CR148: 1.006070137 | CS148: 1.003017306 | CT148: 0.9994592667 | CU148: 0.9931097031 | CV148: 0.9842373133

Sheet 2 Time Series - Life Expectancy
B2: Time Series of Period Life Expectancies for User-Specified Ages
B3: You may specify up to 100 different age-sex groups. For each group, this tool computes a time series of period life expectancies based on mortality rates computed from the trailing 12 months of data.
B7: Specify the Time Period Across Which to Produce Output
B8: 2010 | C8: 12 | D8: First year/month to output
B9: 2024 | C9: 12 | D9: Last year/month to output
C10: 1 | D10: Across this date range, produce output every N months
H16: Parameters for
H17: Expected Death Rates
H18: Base | I18: Base
F19: Exposure | G19: Life | H19: Period | I19: Period | J19: Mort | K19: Show on | L19: Graph
B20: Case | C20: Age | D20: Sex | E20: Cause | F20: Source | G20: Expectancy | H20: First Yr | I20: Last Yr | J20: Improve | K20: Graph? | L20: Label | M20: 2010-12-16 | N20: 2011-01-16 | O20: 2011-02-16 | P20: 2011-03-16 | Q20: 2011-04-16 | R20: 2011-05-16 | S20: 2011-06-16 | T20: 2011-07-16 | U20: 2011-08-16 | V20: 2011-09-16 | W20: 2011-10-16 | X20: 2011-11-16 | Y20: 2011-12-16 | Z20: 2012-01-16 | AA20: 2012-02-16 | AB20: 2012-03-16 | AC20: 2012-04-16 | AD20: 2012-05-16 | AE20: 2012-06-16 | AF20: 2012-07-16 | AG20: 2012-08-16 | AH20: 2012-09-16 | AI20: 2012-10-16 | AJ20: 2012-11-16 | AK20: 2012-12-16 | AL20: 2013-01-16 | AM20: 2013-02-16 | AN20: 2013-03-16 | AO20: 2013-04-16 | AP20: 2013-05-16 | AQ20: 2013-06-16 | AR20: 2013-07-16 | AS20: 2013-08-16 | AT20: 2013-09-16 | AU20: 2013-10-16 | AV20: 2013-11-16 | AW20: 2013-12-16 | AX20: 2014-01-16 | AY20: 2014-02-16 | AZ20: 2014-03-16 | BA20: 2014-04-16 | BB20: 2014-05-16 | BC20: 2014-06-16 | BD20: 2014-07-16 | BE20: 2014-08-16 | BF20: 2014-09-16 | BG20: 2014-10-16 | BH20: 2014-11-16 | BI20: 2014-12-16 | BJ20: 2015-01-16 | BK20: 2015-02-16 | BL20: 2015-03-16 | BM20: 2015-04-16 | BN20: 2015-05-16 | BO20: 2015-06-16 | BP20: 2015-07-16 | BQ20: 2015-08-16 | BR20: 2015-09-16 | BS20: 2015-10-16 | BT20: 2015-11-16 | BU20: 2015-12-16 | BV20: 2016-01-16 | BW20: 2016-02-16 | BX20: 2016-03-16 | BY20: 2016-04-16 | BZ20: 2016-05-16 | CA20: 2016-06-16 | CB20: 2016-07-16 | CC20: 2016-08-16 | CD20: 2016-09-16 | CE20: 2016-10-16 | CF20: 2016-11-16 | CG20: 2016-12-16 | CH20: 2017-01-16 | CI20: 2017-02-16 | CJ20: 2017-03-16 | CK20: 2017-04-16 | CL20: 2017-05-16 | CM20: 2017-06-16 | CN20: 2017-07-16 | CO20: 2017-08-16 | CP20: 2017-09-16 | CQ20: 2017-10-16 | CR20: 2017-11-16 | CS20: 2017-12-16 | CT20: 2018-01-16 | CU20: 2018-02-16 | CV20: 2018-03-16 | CW20: 2018-04-16 | CX20: 2018-05-16 | CY20: 2018-06-16 | CZ20: 2018-07-16 | DA20: 2018-08-16 | DB20: 2018-09-16 | DC20: 2018-10-16 | DD20: 2018-11-16 | DE20: 2018-12-16 | DF20: 2019-01-16 | DG20: 2019-02-16 | DH20: 2019-03-16 | DI20: 2019-04-16 | DJ20: 2019-05-16 | DK20: 2019-06-16 | DL20: 2019-07-16 | DM20: 2019-08-16 | DN20: 2019-09-16 | DO20: 2019-10-16 | DP20: 2019-11-16 | DQ20: 2019-12-16 | DR20: 2020-01-16 | DS20: 2020-02-16 | DT20: 2020-03-16 | DU20: 2020-04-16 | DV20: 2020-05-16 | DW20: 2020-06-16 | DX20: 2020-07-16 | DY20: 2020-08-16 | DZ20: 2020-09-16 | EA20: 2020-10-16 | EB20: 2020-11-16 | EC20: 2020-12-16 | ED20: 2021-01-16 | EE20: 2021-02-16 | EF20: 2021-03-16 | EG20: 2021-04-16 | EH20: 2021-05-16 | EI20: 2021-06-16 | EJ20: 2021-07-16 | EK20: 2021-08-16 | EL20: 2021-09-16 | EM20: 2021-10-16 | EN20: 2021-11-16 | EO20: 2021-12-16 | EP20: 2022-01-16 | EQ20: 2022-02-16 | ER20: 2022-03-16 | ES20: 2022-04-16 | ET20: 2022-05-16 | EU20: 2022-06-16 | EV20: 2022-07-16 | EW20: 2022-08-16 | EX20: 2022-09-16 | EY20: 2022-10-16 | EZ20: 2022-11-16 | FA20: 2022-12-16 | FB20: 2023-01-16 | FC20: 2023-02-16 | FD20: 2023-03-16 | FE20: 2023-04-16 | FF20: 2023-05-16 | FG20: 2023-06-16 | FH20: 2023-07-16 | FI20: 2023-08-16 | FJ20: 2023-09-16 | FK20: 2023-10-16 | FL20: 2023-11-16 | FM20: 2023-12-16 | FN20: 2024-01-16 | FO20: 2024-02-16 | FP20: 2024-03-16 | FQ20: 2024-04-16 | FR20: 2024-05-16 | FS20: 2024-06-16 | FT20: 2024-07-16 | FU20: 2024-08-16 | FV20: 2024-09-16 | FW20: 2024-10-16 | FX20: 2024-11-16 | FY20: 2024-12-16
B22: 1 | C22: 65 | D22: F | E22: Total | F22: HMD | G22: Actual | H22: 2019 | I22: 2019 | J22: None | K22: Y | L22: F | M22: 19.979496 | N22: 19.960886 | O22: 19.94097328 | P22: 19.93777084 | Q22: 19.93341064 | R22: 19.93212128 | S22: 19.92624664 | T22: 19.93243599 | U22: 19.93359184 | V22: 19.94188881 | W22: 19.95405769 | X22: 19.96832466 | Y22: 20.00071335 | Z22: 20.0351696 | AA22: 20.05627823 | AB22: 20.08336639 | AC22: 20.09703255 | AD22: 20.11310005 | AE22: 20.12461472 | AF22: 20.12801933 | AG22: 20.13135147 | AH22: 20.12761497 | AI22: 20.12059402 | AJ22: 20.10700226 | AK22: 20.07079124 | AL22: 19.97148705 | AM22: 19.9543438 | AN22: 19.9328022 | AO22: 19.93040276 | AP22: 19.93889427 | AQ22: 19.95454788 | AR22: 19.96810532 | AS22: 19.9812603 | AT22: 19.99850464 | AU22: 20.0199604 | AV22: 20.0491848 | AW22: 20.08860588 | AX22: 20.1798687 | AY22: 20.22627068 | AZ22: 20.2583847 | BA22: 20.27078438 | BB22: 20.26167679 | BC22: 20.2603817 | BD22: 20.26093292 | BE22: 20.26907158 | BF22: 20.26715469 | BG22: 20.26782608 | BH22: 20.25705528 | BI22: 20.22322464 | BJ22: 20.15818214 | BK22: 20.1188755 | BL22: 20.09030151 | BM22: 20.07797813 | BN22: 20.08442688 | BO22: 20.08597183 | BP22: 20.08158684 | BQ22: 20.08260155 | BR22: 20.09259224 | BS22: 20.09143257 | BT22: 20.10928154 | BU22: 20.15947723 | BV22: 20.24290466 | BW22: 20.25873184 | BX22: 20.28009415 | BY22: 20.29281616 | BZ22: 20.30652809 | CA22: 20.31781578 | CB22: 20.3294735 | CC22: 20.3310051 | CD22: 20.3308773 | CE22: 20.34043884 | CF22: 20.33992577 | CG22: 20.31188393 | CH22: 20.27427292 | CI22: 20.27664375 | CJ22: 20.26548195 | CK22: 20.26730537 | CL22: 20.26953125 | CM22: 20.27291298 | CN22: 20.28323936 | CO22: 20.2941246 | CP22: 20.29780197 | CQ22: 20.30315781 | CR22: 20.30873108 | CS22: 20.29573631 | CT22: 20.24449921 | CU22: 20.24872208 | CV22: 20.27804947 | CW22: 20.28870964 | CX22: 20.30762863 | CY22: 20.31735802 | CZ22: 20.32787323 | DA22: 20.33620262 | DB22: 20.35181427 | DC22: 20.35405922 | DD22: 20.35504341 | DE22: 20.39545631 | DF22: 20.49317551 | DG22: 20.52569199 | DH22: 20.52101707 | DI22: 20.53071404 | DJ22: 20.52138901 | DK22: 20.52084923 | DL22: 20.52336311 | DM22: 20.52846146 | DN22: 20.53254128 | DO22: 20.53849411 | DP22: 20.54343224 | DQ22: 20.5372982 | DR22: 20.53286552 | DS22: 20.51202965 | DT22: 20.492239 | DU22: 20.28976822 | DV22: 20.19766045 | DW22: 20.15887451 | DX22: 20.06095695 | DY22: 19.95555878 | DZ22: 19.88529778 | EA22: 19.81202888 | EB22: 19.6754837 | EC22: 19.44015121 | ED22: 19.21990585 | EE22: 19.15966415 | EF22: 19.16798782 | EG22: 19.32398605 | EH22: 19.38429642 | EI22: 19.40164948 | EJ22: 19.44611549 | EK22: 19.41431427 | EL22: 19.32632065 | EM22: 19.28859901 | EN22: 19.33283997 | EO22: 19.45329475 | EP22: 19.47420692 | EQ22: 19.45639038 | ER22: 19.46268845 | ES22: 19.48048592 | ET22: 19.48869133 | EU22: 19.48073196 | EV22: 19.47954559 | EW22: 19.55618477 | EX22: 19.67085648 | EY22: 19.73999977 | EZ22: 19.78161621 | FA22: 19.81769943 | FB22: 19.99422455 | FC22: 20.09718895 | FD22: 20.10330963 | FE22: 20.09836006 | FF22: 20.11441803 | FG22: 20.14043427 | FH22: 20.187397 | FI22: 20.22294235 | FJ22: 20.24861145 | FK22: 20.27370644 | FL22: 20.30674553 | FM22: 20.3530674 | FN22: 20.3439579 | FO22: 20.33205605 | FP22: 20.35070992 | FQ22: 20.36300087 | FR22: 20.37111092 | FS22: 20.3770771 | FT22: 20.37329292 | FU22: 20.37883377 | FV22: 20.38957405 | FW22: 20.40435982 | FX22: 20.44355774 | FY22: 20.50024605
B23: 2 | C23: 65 | D23: M | E23: Total | F23: HMD | G23: Actual | H23: 2019 | I23: 2019 | J23: None | K23: Y | L23: M | M23: 17.35064888 | N23: 17.34358025 | O23: 17.33223152 | P23: 17.33662796 | Q23: 17.33452034 | R23: 17.34454727 | S23: 17.35523796 | T23: 17.36221313 | U23: 17.36838913 | V23: 17.37598801 | W23: 17.38657951 | X23: 17.4013443 | Y23: 17.43800545 | Z23: 17.47623634 | AA23: 17.49715424 | AB23: 17.51393509 | AC23: 17.52807045 | AD23: 17.54015541 | AE23: 17.54847908 | AF23: 17.56211472 | AG23: 17.56337738 | AH23: 17.56060982 | AI23: 17.55834007 | AJ23: 17.55033493 | AK23: 17.51605988 | AL23: 17.42668533 | AM23: 17.4186058 | AN23: 17.40501976 | AO23: 17.39755249 | AP23: 17.39958763 | AQ23: 17.40890121 | AR23: 17.41935539 | AS23: 17.43511963 | AT23: 17.45927429 | AU23: 17.4774704 | AV23: 17.49602127 | AW23: 17.52314568 | AX23: 17.58664894 | AY23: 17.6123085 | AZ23: 17.63672066 | BA23: 17.64955902 | BB23: 17.65203667 | BC23: 17.65522194 | BD23: 17.65453911 | BE23: 17.66130829 | BF23: 17.65939331 | BG23: 17.65907669 | BH23: 17.64891052 | BI23: 17.629776 | BJ23: 17.58779907 | BK23: 17.56549263 | BL23: 17.54782867 | BM23: 17.54109001 | BN23: 17.53870964 | BO23: 17.54051399 | BP23: 17.54141045 | BQ23: 17.54152489 | BR23: 17.54445076 | BS23: 17.54686737 | BT23: 17.56725883 | BU23: 17.60685921 | BV23: 17.66802406 | BW23: 17.67558098 | BX23: 17.68736076 | BY23: 17.69927788 | BZ23: 17.71648026 | CA23: 17.7276535 | CB23: 17.74055862 | CC23: 17.74024963 | CD23: 17.75099754 | CE23: 17.75360298 | CF23: 17.75470161 | CG23: 17.7341423 | CH23: 17.70973778 | CI23: 17.71766663 | CJ23: 17.71185684 | CK23: 17.7185154 | CL23: 17.71821785 | CM23: 17.71767044 | CN23: 17.72375488 | CO23: 17.73545074 | CP23: 17.73084068 | CQ23: 17.73804855 | CR23: 17.73630142 | CS23: 17.72254562 | CT23: 17.66785622 | CU23: 17.6711731 | CV23: 17.68833542 | CW23: 17.69099236 | CX23: 17.70330048 | CY23: 17.7144146 | CZ23: 17.71599388 | DA23: 17.72164536 | DB23: 17.73718452 | DC23: 17.74360085 | DD23: 17.7532177 | DE23: 17.78893852 | DF23: 17.87862206 | DG23: 17.89810753 | DH23: 17.89277077 | DI23: 17.90317345 | DJ23: 17.89424896 | DK23: 17.89234924 | DL23: 17.89634514 | DM23: 17.90170288 | DN23: 17.90718079 | DO23: 17.91002083 | DP23: 17.90726852 | DQ23: 17.91025925 | DR23: 17.90792274 | DS23: 17.8980217 | DT23: 17.86768913 | DU23: 17.63472748 | DV23: 17.55337524 | DW23: 17.51530838 | DX23: 17.40673447 | DY23: 17.29998779 | DZ23: 17.23205376 | EA23: 17.15675735 | EB23: 16.99685478 | EC23: 16.70604324 | ED23: 16.43290901 | EE23: 16.33653641 | EF23: 16.3482666 | EG23: 16.51640701 | EH23: 16.57389641 | EI23: 16.59488297 | EJ23: 16.66195488 | EK23: 16.62638855 | EL23: 16.52932739 | EM23: 16.49511719 | EN23: 16.55415535 | EO23: 16.70691681 | EP23: 16.74458313 | EQ23: 16.73927498 | ER23: 16.75526237 | ES23: 16.79088402 | ET23: 16.8042469 | EU23: 16.80701065 | EV23: 16.80618668 | EW23: 16.90499878 | EX23: 17.04040527 | EY23: 17.1226635 | EZ23: 17.18747902 | FA23: 17.24568367 | FB23: 17.47450066 | FC23: 17.60905838 | FD23: 17.61987495 | FE23: 17.61945152 | FF23: 17.63608742 | FG23: 17.66313744 | FH23: 17.70680046 | FI23: 17.74305534 | FJ23: 17.76488686 | FK23: 17.78738022 | FL23: 17.81899071 | FM23: 17.86977386 | FN23: 17.86102295 | FO23: 17.85723305 | FP23: 17.8823452 | FQ23: 17.89730072 | FR23: 17.91259193 | FS23: 17.91802979 | FT23: 17.92053223 | FU23: 17.92274284 | FV23: 17.94193649 | FW23: 17.96516609 | FX23: 18.00988197 | FY23: 18.06435394
B24: 3
B25: 4
B26: 5
B27: 6
B28: 7
B29: 8
B30: 9
B31: 10
B32: 11
B33: 12
B34: 13
B35: 14
B36: 15
B37: 16
B38: 17
B39: 18
B40: 19
B41: 20
B42: 21
B43: 22
B44: 23
B45: 24
B46: 25
B47: 26
B48: 27
B49: 28
B50: 29
B51: 30
B52: 31
B53: 32
B54: 33
B55: 34
B56: 35
B57: 36
B58: 37
B59: 38
B60: 39
B61: 40
B62: 41
B63: 42
B64: 43
B65: 44
B66: 45
B67: 46
B68: 47
B69: 48
B70: 49
B71: 50
B72: 51
B73: 52
B74: 53
B75: 54
B76: 55
B77: 56
B78: 57
B79: 58
B80: 59
B81: 60
B82: 61
B83: 62
B84: 63
B85: 64
B86: 65
B87: 66
B88: 67
B89: 68
B90: 69
B91: 70
B92: 71
B93: 72
B94: 73
B95: 74
B96: 75
B97: 76
B98: 77
B99: 78
B100: 79
B101: 80
B102: 81
B103: 82
B104: 83
B105: 84
B106: 85
B107: 86
B108: 87
B109: 88
B110: 89
B111: 90
B112: 91
B113: 92
B114: 93
B115: 94
B116: 95
B117: 96
B118: 97
B119: 98
B120: 99
B121: 100
M124: This graph is redrawn each time you press the RUN button
X126: Manually Set Range of Y-Axis
X127: 16 | Y127: Min | Z127: Leave one or both of these cells blank if you want
Y128: Max | Z128: Excel to automatically set the Y-axis range.
M148: 2010-12-16 | N148: 2011-01-16 | O148: 2011-02-16 | P148: 2011-03-16 | Q148: 2011-04-16 | R148: 2011-05-16 | S148: 2011-06-16 | T148: 2011-07-16 | U148: 2011-08-16 | V148: 2011-09-16 | W148: 2011-10-16 | X148: 2011-11-16 | Y148: 2011-12-16 | Z148: 2012-01-16 | AA148: 2012-02-16 | AB148: 2012-03-16 | AC148: 2012-04-16 | AD148: 2012-05-16 | AE148: 2012-06-16 | AF148: 2012-07-16 | AG148: 2012-08-16 | AH148: 2012-09-16 | AI148: 2012-10-16 | AJ148: 2012-11-16 | AK148: 2012-12-16 | AL148: 2013-01-16 | AM148: 2013-02-16 | AN148: 2013-03-16 | AO148: 2013-04-16 | AP148: 2013-05-16 | AQ148: 2013-06-16 | AR148: 2013-07-16 | AS148: 2013-08-16 | AT148: 2013-09-16 | AU148: 2013-10-16 | AV148: 2013-11-16 | AW148: 2013-12-16 | AX148: 2014-01-16 | AY148: 2014-02-16 | AZ148: 2014-03-16 | BA148: 2014-04-16 | BB148: 2014-05-16 | BC148: 2014-06-16 | BD148: 2014-07-16 | BE148: 2014-08-16 | BF148: 2014-09-16 | BG148: 2014-10-16 | BH148: 2014-11-16 | BI148: 2014-12-16 | BJ148: 2015-01-16 | BK148: 2015-02-16 | BL148: 2015-03-16 | BM148: 2015-04-16 | BN148: 2015-05-16 | BO148: 2015-06-16 | BP148: 2015-07-16 | BQ148: 2015-08-16 | BR148: 2015-09-16 | BS148: 2015-10-16 | BT148: 2015-11-16 | BU148: 2015-12-16 | BV148: 2016-01-16 | BW148: 2016-02-16 | BX148: 2016-03-16 | BY148: 2016-04-16 | BZ148: 2016-05-16 | CA148: 2016-06-16 | CB148: 2016-07-16 | CC148: 2016-08-16 | CD148: 2016-09-16 | CE148: 2016-10-16 | CF148: 2016-11-16 | CG148: 2016-12-16 | CH148: 2017-01-16 | CI148: 2017-02-16 | CJ148: 2017-03-16 | CK148: 2017-04-16 | CL148: 2017-05-16 | CM148: 2017-06-16 | CN148: 2017-07-16 | CO148: 2017-08-16 | CP148: 2017-09-16 | CQ148: 2017-10-16 | CR148: 2017-11-16 | CS148: 2017-12-16 | CT148: 2018-01-16 | CU148: 2018-02-16 | CV148: 2018-03-16 | CW148: 2018-04-16 | CX148: 2018-05-16 | CY148: 2018-06-16 | CZ148: 2018-07-16 | DA148: 2018-08-16 | DB148: 2018-09-16 | DC148: 2018-10-16 | DD148: 2018-11-16 | DE148: 2018-12-16 | DF148: 2019-01-16 | DG148: 2019-02-16 | DH148: 2019-03-16 | DI148: 2019-04-16 | DJ148: 2019-05-16 | DK148: 2019-06-16 | DL148: 2019-07-16 | DM148: 2019-08-16 | DN148: 2019-09-16 | DO148: 2019-10-16 | DP148: 2019-11-16 | DQ148: 2019-12-16 | DR148: 2020-01-16 | DS148: 2020-02-16 | DT148: 2020-03-16 | DU148: 2020-04-16 | DV148: 2020-05-16 | DW148: 2020-06-16 | DX148: 2020-07-16 | DY148: 2020-08-16 | DZ148: 2020-09-16 | EA148: 2020-10-16 | EB148: 2020-11-16 | EC148: 2020-12-16 | ED148: 2021-01-16 | EE148: 2021-02-16 | EF148: 2021-03-16 | EG148: 2021-04-16 | EH148: 2021-05-16 | EI148: 2021-06-16 | EJ148: 2021-07-16 | EK148: 2021-08-16 | EL148: 2021-09-16 | EM148: 2021-10-16 | EN148: 2021-11-16 | EO148: 2021-12-16 | EP148: 2022-01-16 | EQ148: 2022-02-16 | ER148: 2022-03-16 | ES148: 2022-04-16 | ET148: 2022-05-16 | EU148: 2022-06-16 | EV148: 2022-07-16 | EW148: 2022-08-16 | EX148: 2022-09-16 | EY148: 2022-10-16 | EZ148: 2022-11-16 | FA148: 2022-12-16 | FB148: 2023-01-16 | FC148: 2023-02-16 | FD148: 2023-03-16 | FE148: 2023-04-16 | FF148: 2023-05-16 | FG148: 2023-06-16 | FH148: 2023-07-16 | FI148: 2023-08-16 | FJ148: 2023-09-16 | FK148: 2023-10-16 | FL148: 2023-11-16 | FM148: 2023-12-16 | FN148: 2024-01-16 | FO148: 2024-02-16 | FP148: 2024-03-16 | FQ148: 2024-04-16 | FR148: 2024-05-16 | FS148: 2024-06-16 | FT148: 2024-07-16 | FU148: 2024-08-16 | FV148: 2024-09-16 | FW148: 2024-10-16 | FX148: 2024-11-16 | FY148: 2024-12-16
L149: F | M149: 19.979496 | N149: 19.960886 | O149: 19.94097328 | P149: 19.93777084 | Q149: 19.93341064 | R149: 19.93212128 | S149: 19.92624664 | T149: 19.93243599 | U149: 19.93359184 | V149: 19.94188881 | W149: 19.95405769 | X149: 19.96832466 | Y149: 20.00071335 | Z149: 20.0351696 | AA149: 20.05627823 | AB149: 20.08336639 | AC149: 20.09703255 | AD149: 20.11310005 | AE149: 20.12461472 | AF149: 20.12801933 | AG149: 20.13135147 | AH149: 20.12761497 | AI149: 20.12059402 | AJ149: 20.10700226 | AK149: 20.07079124 | AL149: 19.97148705 | AM149: 19.9543438 | AN149: 19.9328022 | AO149: 19.93040276 | AP149: 19.93889427 | AQ149: 19.95454788 | AR149: 19.96810532 | AS149: 19.9812603 | AT149: 19.99850464 | AU149: 20.0199604 | AV149: 20.0491848 | AW149: 20.08860588 | AX149: 20.1798687 | AY149: 20.22627068 | AZ149: 20.2583847 | BA149: 20.27078438 | BB149: 20.26167679 | BC149: 20.2603817 | BD149: 20.26093292 | BE149: 20.26907158 | BF149: 20.26715469 | BG149: 20.26782608 | BH149: 20.25705528 | BI149: 20.22322464 | BJ149: 20.15818214 | BK149: 20.1188755 | BL149: 20.09030151 | BM149: 20.07797813 | BN149: 20.08442688 | BO149: 20.08597183 | BP149: 20.08158684 | BQ149: 20.08260155 | BR149: 20.09259224 | BS149: 20.09143257 | BT149: 20.10928154 | BU149: 20.15947723 | BV149: 20.24290466 | BW149: 20.25873184 | BX149: 20.28009415 | BY149: 20.29281616 | BZ149: 20.30652809 | CA149: 20.31781578 | CB149: 20.3294735 | CC149: 20.3310051 | CD149: 20.3308773 | CE149: 20.34043884 | CF149: 20.33992577 | CG149: 20.31188393 | CH149: 20.27427292 | CI149: 20.27664375 | CJ149: 20.26548195 | CK149: 20.26730537 | CL149: 20.26953125 | CM149: 20.27291298 | CN149: 20.28323936 | CO149: 20.2941246 | CP149: 20.29780197 | CQ149: 20.30315781 | CR149: 20.30873108 | CS149: 20.29573631 | CT149: 20.24449921 | CU149: 20.24872208 | CV149: 20.27804947 | CW149: 20.28870964 | CX149: 20.30762863 | CY149: 20.31735802 | CZ149: 20.32787323 | DA149: 20.33620262 | DB149: 20.35181427 | DC149: 20.35405922 | DD149: 20.35504341 | DE149: 20.39545631 | DF149: 20.49317551 | DG149: 20.52569199 | DH149: 20.52101707 | DI149: 20.53071404 | DJ149: 20.52138901 | DK149: 20.52084923 | DL149: 20.52336311 | DM149: 20.52846146 | DN149: 20.53254128 | DO149: 20.53849411 | DP149: 20.54343224 | DQ149: 20.5372982 | DR149: 20.53286552 | DS149: 20.51202965 | DT149: 20.492239 | DU149: 20.28976822 | DV149: 20.19766045 | DW149: 20.15887451 | DX149: 20.06095695 | DY149: 19.95555878 | DZ149: 19.88529778 | EA149: 19.81202888 | EB149: 19.6754837 | EC149: 19.44015121 | ED149: 19.21990585 | EE149: 19.15966415 | EF149: 19.16798782 | EG149: 19.32398605 | EH149: 19.38429642 | EI149: 19.40164948 | EJ149: 19.44611549 | EK149: 19.41431427 | EL149: 19.32632065 | EM149: 19.28859901 | EN149: 19.33283997 | EO149: 19.45329475 | EP149: 19.47420692 | EQ149: 19.45639038 | ER149: 19.46268845 | ES149: 19.48048592 | ET149: 19.48869133 | EU149: 19.48073196 | EV149: 19.47954559 | EW149: 19.55618477 | EX149: 19.67085648 | EY149: 19.73999977 | EZ149: 19.78161621 | FA149: 19.81769943 | FB149: 19.99422455 | FC149: 20.09718895 | FD149: 20.10330963 | FE149: 20.09836006 | FF149: 20.11441803 | FG149: 20.14043427 | FH149: 20.187397 | FI149: 20.22294235 | FJ149: 20.24861145 | FK149: 20.27370644 | FL149: 20.30674553 | FM149: 20.3530674 | FN149: 20.3439579 | FO149: 20.33205605 | FP149: 20.35070992 | FQ149: 20.36300087 | FR149: 20.37111092 | FS149: 20.3770771 | FT149: 20.37329292 | FU149: 20.37883377 | FV149: 20.38957405 | FW149: 20.40435982 | FX149: 20.44355774 | FY149: 20.50024605
L150: M | M150: 17.35064888 | N150: 17.34358025 | O150: 17.33223152 | P150: 17.33662796 | Q150: 17.33452034 | R150: 17.34454727 | S150: 17.35523796 | T150: 17.36221313 | U150: 17.36838913 | V150: 17.37598801 | W150: 17.38657951 | X150: 17.4013443 | Y150: 17.43800545 | Z150: 17.47623634 | AA150: 17.49715424 | AB150: 17.51393509 | AC150: 17.52807045 | AD150: 17.54015541 | AE150: 17.54847908 | AF150: 17.56211472 | AG150: 17.56337738 | AH150: 17.56060982 | AI150: 17.55834007 | AJ150: 17.55033493 | AK150: 17.51605988 | AL150: 17.42668533 | AM150: 17.4186058 | AN150: 17.40501976 | AO150: 17.39755249 | AP150: 17.39958763 | AQ150: 17.40890121 | AR150: 17.41935539 | AS150: 17.43511963 | AT150: 17.45927429 | AU150: 17.4774704 | AV150: 17.49602127 | AW150: 17.52314568 | AX150: 17.58664894 | AY150: 17.6123085 | AZ150: 17.63672066 | BA150: 17.64955902 | BB150: 17.65203667 | BC150: 17.65522194 | BD150: 17.65453911 | BE150: 17.66130829 | BF150: 17.65939331 | BG150: 17.65907669 | BH150: 17.64891052 | BI150: 17.629776 | BJ150: 17.58779907 | BK150: 17.56549263 | BL150: 17.54782867 | BM150: 17.54109001 | BN150: 17.53870964 | BO150: 17.54051399 | BP150: 17.54141045 | BQ150: 17.54152489 | BR150: 17.54445076 | BS150: 17.54686737 | BT150: 17.56725883 | BU150: 17.60685921 | BV150: 17.66802406 | BW150: 17.67558098 | BX150: 17.68736076 | BY150: 17.69927788 | BZ150: 17.71648026 | CA150: 17.7276535 | CB150: 17.74055862 | CC150: 17.74024963 | CD150: 17.75099754 | CE150: 17.75360298 | CF150: 17.75470161 | CG150: 17.7341423 | CH150: 17.70973778 | CI150: 17.71766663 | CJ150: 17.71185684 | CK150: 17.7185154 | CL150: 17.71821785 | CM150: 17.71767044 | CN150: 17.72375488 | CO150: 17.73545074 | CP150: 17.73084068 | CQ150: 17.73804855 | CR150: 17.73630142 | CS150: 17.72254562 | CT150: 17.66785622 | CU150: 17.6711731 | CV150: 17.68833542 | CW150: 17.69099236 | CX150: 17.70330048 | CY150: 17.7144146 | CZ150: 17.71599388 | DA150: 17.72164536 | DB150: 17.73718452 | DC150: 17.74360085 | DD150: 17.7532177 | DE150: 17.78893852 | DF150: 17.87862206 | DG150: 17.89810753 | DH150: 17.89277077 | DI150: 17.90317345 | DJ150: 17.89424896 | DK150: 17.89234924 | DL150: 17.89634514 | DM150: 17.90170288 | DN150: 17.90718079 | DO150: 17.91002083 | DP150: 17.90726852 | DQ150: 17.91025925 | DR150: 17.90792274 | DS150: 17.8980217 | DT150: 17.86768913 | DU150: 17.63472748 | DV150: 17.55337524 | DW150: 17.51530838 | DX150: 17.40673447 | DY150: 17.29998779 | DZ150: 17.23205376 | EA150: 17.15675735 | EB150: 16.99685478 | EC150: 16.70604324 | ED150: 16.43290901 | EE150: 16.33653641 | EF150: 16.3482666 | EG150: 16.51640701 | EH150: 16.57389641 | EI150: 16.59488297 | EJ150: 16.66195488 | EK150: 16.62638855 | EL150: 16.52932739 | EM150: 16.49511719 | EN150: 16.55415535 | EO150: 16.70691681 | EP150: 16.74458313 | EQ150: 16.73927498 | ER150: 16.75526237 | ES150: 16.79088402 | ET150: 16.8042469 | EU150: 16.80701065 | EV150: 16.80618668 | EW150: 16.90499878 | EX150: 17.04040527 | EY150: 17.1226635 | EZ150: 17.18747902 | FA150: 17.24568367 | FB150: 17.47450066 | FC150: 17.60905838 | FD150: 17.61987495 | FE150: 17.61945152 | FF150: 17.63608742 | FG150: 17.66313744 | FH150: 17.70680046 | FI150: 17.74305534 | FJ150: 17.76488686 | FK150: 17.78738022 | FL150: 17.81899071 | FM150: 17.86977386 | FN150: 17.86102295 | FO150: 17.85723305 | FP150: 17.8823452 | FQ150: 17.89730072 | FR150: 17.91259193 | FS150: 17.91802979 | FT150: 17.92053223 | FU150: 17.92274284 | FV150: 17.94193649 | FW150: 17.96516609 | FX150: 18.00988197 | FY150: 18.06435394

Sheet 3 Time Series - Counts
B2: Time Series of Deaths and Exposure Counts
B3: You may specify up to 100 different age-sex groups. Note that the CDC supresses specific death counts below 10. In these cases, we impute assign a value of "4" to the supressed data cell.
B7: Specify the Time Period Across Which to Produce Output
B8: 2005 | C8: 1 | D8: First year/month to output
B9: 2024 | C9: 12 | D9: Last year/month to output
C10: 1 | D10: Across this date range, produce output every N months
I14: Trailing
C15: Age | D15: Age | F15: Cause of | G15: Exposure | H15: Data to | I15: Period | J15: Show on | K15: Graph
B16: Case | C16: Min | D16: Max | E16: Sex | F16: Death | G16: Source | H16: Output | I16: (Months) | J16: Graph? | K16: Label | L16: 2005-01-15 | M16: 2005-02-15 | N16: 2005-03-15 | O16: 2005-04-15 | P16: 2005-05-15 | Q16: 2005-06-15 | R16: 2005-07-15 | S16: 2005-08-15 | T16: 2005-09-15 | U16: 2005-10-15 | V16: 2005-11-15 | W16: 2005-12-15 | X16: 2006-01-15 | Y16: 2006-02-15 | Z16: 2006-03-15 | AA16: 2006-04-15 | AB16: 2006-05-15 | AC16: 2006-06-15 | AD16: 2006-07-15 | AE16: 2006-08-15 | AF16: 2006-09-15 | AG16: 2006-10-15 | AH16: 2006-11-15 | AI16: 2006-12-15 | AJ16: 2007-01-15 | AK16: 2007-02-15 | AL16: 2007-03-15 | AM16: 2007-04-15 | AN16: 2007-05-15 | AO16: 2007-06-15 | AP16: 2007-07-15 | AQ16: 2007-08-15 | AR16: 2007-09-15 | AS16: 2007-10-15 | AT16: 2007-11-15 | AU16: 2007-12-15 | AV16: 2008-01-15 | AW16: 2008-02-15 | AX16: 2008-03-15 | AY16: 2008-04-15 | AZ16: 2008-05-15 | BA16: 2008-06-15 | BB16: 2008-07-15 | BC16: 2008-08-15 | BD16: 2008-09-15 | BE16: 2008-10-15 | BF16: 2008-11-15 | BG16: 2008-12-15 | BH16: 2009-01-15 | BI16: 2009-02-15 | BJ16: 2009-03-15 | BK16: 2009-04-15 | BL16: 2009-05-15 | BM16: 2009-06-15 | BN16: 2009-07-15 | BO16: 2009-08-15 | BP16: 2009-09-15 | BQ16: 2009-10-15 | BR16: 2009-11-15 | BS16: 2009-12-15 | BT16: 2010-01-15 | BU16: 2010-02-15 | BV16: 2010-03-15 | BW16: 2010-04-15 | BX16: 2010-05-15 | BY16: 2010-06-15 | BZ16: 2010-07-15 | CA16: 2010-08-15 | CB16: 2010-09-15 | CC16: 2010-10-15 | CD16: 2010-11-15 | CE16: 2010-12-15 | CF16: 2011-01-15 | CG16: 2011-02-15 | CH16: 2011-03-15 | CI16: 2011-04-15 | CJ16: 2011-05-15 | CK16: 2011-06-15 | CL16: 2011-07-15 | CM16: 2011-08-15 | CN16: 2011-09-15 | CO16: 2011-10-15 | CP16: 2011-11-15 | CQ16: 2011-12-15 | CR16: 2012-01-15 | CS16: 2012-02-15 | CT16: 2012-03-15 | CU16: 2012-04-15 | CV16: 2012-05-15 | CW16: 2012-06-15 | CX16: 2012-07-15 | CY16: 2012-08-15 | CZ16: 2012-09-15 | DA16: 2012-10-15 | DB16: 2012-11-15 | DC16: 2012-12-15 | DD16: 2013-01-15 | DE16: 2013-02-15 | DF16: 2013-03-15 | DG16: 2013-04-15 | DH16: 2013-05-15 | DI16: 2013-06-15 | DJ16: 2013-07-15 | DK16: 2013-08-15 | DL16: 2013-09-15 | DM16: 2013-10-15 | DN16: 2013-11-15 | DO16: 2013-12-15 | DP16: 2014-01-15 | DQ16: 2014-02-15 | DR16: 2014-03-15 | DS16: 2014-04-15 | DT16: 2014-05-15 | DU16: 2014-06-15 | DV16: 2014-07-15 | DW16: 2014-08-15 | DX16: 2014-09-15 | DY16: 2014-10-15 | DZ16: 2014-11-15 | EA16: 2014-12-15 | EB16: 2015-01-15 | EC16: 2015-02-15 | ED16: 2015-03-15 | EE16: 2015-04-15 | EF16: 2015-05-15 | EG16: 2015-06-15 | EH16: 2015-07-15 | EI16: 2015-08-15 | EJ16: 2015-09-15 | EK16: 2015-10-15 | EL16: 2015-11-15 | EM16: 2015-12-15 | EN16: 2016-01-15 | EO16: 2016-02-15 | EP16: 2016-03-15 | EQ16: 2016-04-15 | ER16: 2016-05-15 | ES16: 2016-06-15 | ET16: 2016-07-15 | EU16: 2016-08-15 | EV16: 2016-09-15 | EW16: 2016-10-15 | EX16: 2016-11-15 | EY16: 2016-12-15 | EZ16: 2017-01-15 | FA16: 2017-02-15 | FB16: 2017-03-15 | FC16: 2017-04-15 | FD16: 2017-05-15 | FE16: 2017-06-15 | FF16: 2017-07-15 | FG16: 2017-08-15 | FH16: 2017-09-15 | FI16: 2017-10-15 | FJ16: 2017-11-15 | FK16: 2017-12-15 | FL16: 2018-01-15 | FM16: 2018-02-15 | FN16: 2018-03-15 | FO16: 2018-04-15 | FP16: 2018-05-15 | FQ16: 2018-06-15 | FR16: 2018-07-15 | FS16: 2018-08-15 | FT16: 2018-09-15 | FU16: 2018-10-15 | FV16: 2018-11-15 | FW16: 2018-12-15 | FX16: 2019-01-15 | FY16: 2019-02-15 | FZ16: 2019-03-15 | GA16: 2019-04-15 | GB16: 2019-05-15 | GC16: 2019-06-15 | GD16: 2019-07-15 | GE16: 2019-08-15 | GF16: 2019-09-15 | GG16: 2019-10-15 | GH16: 2019-11-15 | GI16: 2019-12-15 | GJ16: 2020-01-15 | GK16: 2020-02-15 | GL16: 2020-03-15 | GM16: 2020-04-15 | GN16: 2020-05-15 | GO16: 2020-06-15 | GP16: 2020-07-15 | GQ16: 2020-08-15 | GR16: 2020-09-15 | GS16: 2020-10-15 | GT16: 2020-11-15 | GU16: 2020-12-15 | GV16: 2021-01-15 | GW16: 2021-02-15 | GX16: 2021-03-15 | GY16: 2021-04-15 | GZ16: 2021-05-15 | HA16: 2021-06-15 | HB16: 2021-07-15 | HC16: 2021-08-15 | HD16: 2021-09-15 | HE16: 2021-10-15 | HF16: 2021-11-15 | HG16: 2021-12-15 | HH16: 2022-01-15 | HI16: 2022-02-15 | HJ16: 2022-03-15 | HK16: 2022-04-15 | HL16: 2022-05-15 | HM16: 2022-06-15 | HN16: 2022-07-15 | HO16: 2022-08-15 | HP16: 2022-09-15 | HQ16: 2022-10-15 | HR16: 2022-11-15 | HS16: 2022-12-15 | HT16: 2023-01-15 | HU16: 2023-02-15 | HV16: 2023-03-15 | HW16: 2023-04-15 | HX16: 2023-05-15 | HY16: 2023-06-15 | HZ16: 2023-07-15 | IA16: 2023-08-15 | IB16: 2023-09-15 | IC16: 2023-10-15 | ID16: 2023-11-15 | IE16: 2023-12-15 | IF16: 2024-01-15 | IG16: 2024-02-15 | IH16: 2024-03-15 | II16: 2024-04-15 | IJ16: 2024-05-15 | IK16: 2024-06-15 | IL16: 2024-07-15 | IM16: 2024-08-15 | IN16: 2024-09-15 | IO16: 2024-10-15 | IP16: 2024-11-15 | IQ16: 2024-12-15
B18: 1 | C18: 65 | D18: 99 | E18: T | F18: Total | G18: HMD | H18: Exposure | I18: 1 | J18: Y | K18: Monthly | L18: 35742296 | M18: 35776856 | N18: 35811400 | O18: 35845956 | P18: 35880520 | Q18: 35915060 | R18: 35949624 | S18: 35987112 | T18: 36024592 | U18: 36062072 | V18: 36099564 | W18: 36137052 | X18: 36174540 | Y18: 36212024 | Z18: 36249504 | AA18: 36286996 | AB18: 36324464 | AC18: 36361936 | AD18: 36399440 | AE18: 36447168 | AF18: 36494896 | AG18: 36542640 | AH18: 36590376 | AI18: 36638096 | AJ18: 36685832 | AK18: 36733576 | AL18: 36781296 | AM18: 36829040 | AN18: 36876760 | AO18: 36924512 | AP18: 36972244 | AQ18: 37040092 | AR18: 37107936 | AS18: 37175784 | AT18: 37243624 | AU18: 37311464 | AV18: 37379320 | AW18: 37447164 | AX18: 37515004 | AY18: 37582860 | AZ18: 37650696 | BA18: 37718544 | BB18: 37786384 | BC18: 37859708 | BD18: 37933004 | BE18: 38006324 | BF18: 38079636 | BG18: 38152952 | BH18: 38226252 | BI18: 38299564 | BJ18: 38372872 | BK18: 38446180 | BL18: 38519492 | BM18: 38592812 | BN18: 38666108 | BO18: 38735772 | BP18: 38805412 | BQ18: 38875056 | BR18: 38944700 | BS18: 39014348 | BT18: 39084004 | BU18: 39153656 | BV18: 39223300 | BW18: 39292960 | BX18: 39362608 | BY18: 39432256 | BZ18: 39501904 | CA18: 39573060 | CB18: 39644216 | CC18: 39715376 | CD18: 39786528 | CE18: 39857684 | CF18: 39928848 | CG18: 40000000 | CH18: 40071164 | CI18: 40142316 | CJ18: 40213476 | CK18: 40284628 | CL18: 40355780 | CM18: 40462116 | CN18: 40568460 | CO18: 40674788 | CP18: 40781128 | CQ18: 40887456 | CR18: 40993780 | CS18: 41100132 | CT18: 41206456 | CU18: 41312788 | CV18: 41419124 | CW18: 41525464 | CX18: 41631776 | CY18: 41767036 | CZ18: 41902300 | DA18: 42037548 | DB18: 42172804 | DC18: 42308052 | DD18: 42443296 | DE18: 42578564 | DF18: 42713828 | DG18: 42849076 | DH18: 42984328 | DI18: 43119592 | DJ18: 43254852 | DK18: 43381292 | DL18: 43507764 | DM18: 43634220 | DN18: 43760684 | DO18: 43887132 | DP18: 44013600 | DQ18: 44140072 | DR18: 44266524 | DS18: 44392996 | DT18: 44519452 | DU18: 44645920 | DV18: 44772380 | DW18: 44899700 | DX18: 45027028 | DY18: 45154364 | DZ18: 45281672 | EA18: 45409008 | EB18: 45536332 | EC18: 45663660 | ED18: 45790980 | EE18: 45918312 | EF18: 46045640 | EG18: 46172972 | EH18: 46300296 | EI18: 46427152 | EJ18: 46554016 | EK18: 46680896 | EL18: 46807748 | EM18: 46934640 | EN18: 47061504 | EO18: 47188368 | EP18: 47315236 | EQ18: 47442100 | ER18: 47568972 | ES18: 47695844 | ET18: 47822696 | EU18: 47953240 | EV18: 48083784 | EW18: 48214316 | EX18: 48344848 | EY18: 48475380 | EZ18: 48605932 | FA18: 48736460 | FB18: 48867012 | FC18: 48997552 | FD18: 49128076 | FE18: 49258616 | FF18: 49389156 | FG18: 49521332 | FH18: 49653480 | FI18: 49785648 | FJ18: 49917800 | FK18: 50049960 | FL18: 50182120 | FM18: 50314280 | FN18: 50446436 | FO18: 50578592 | FP18: 50710744 | FQ18: 50842908 | FR18: 50975072 | FS18: 51112948 | FT18: 51250780 | FU18: 51388620 | FV18: 51526468 | FW18: 51664316 | FX18: 51802168 | FY18: 51940012 | FZ18: 52077856 | GA18: 52215724 | GB18: 52353568 | GC18: 52491420 | GD18: 52629256 | GE18: 52741072 | GF18: 52852868 | GG18: 52964668 | GH18: 53076492 | GI18: 53188296 | GJ18: 53300104 | GK18: 53411920 | GL18: 53523724 | GM18: 53635520 | GN18: 53747348 | GO18: 53859140 | GP18: 53970948 | GQ18: 54064172 | GR18: 54157388 | GS18: 54250592 | GT18: 54343816 | GU18: 54437044 | GV18: 54530256 | GW18: 54623480 | GX18: 54716696 | GY18: 54809920 | GZ18: 54903140 | HA18: 54996348 | HB18: 55089576 | HC18: 55216648 | HD18: 55343712 | HE18: 55470776 | HF18: 55597856 | HG18: 55724932 | HH18: 55851992 | HI18: 55979080 | HJ18: 56106140 | HK18: 56233208 | HL18: 56360284 | HM18: 56487356 | HN18: 56614408 | HO18: 56753464 | HP18: 56892500 | HQ18: 57031532 | HR18: 57170580 | HS18: 57309600 | HT18: 57448648 | HU18: 57587684 | HV18: 57726716 | HW18: 57865740 | HX18: 58004780 | HY18: 58143816 | HZ18: 58282868 | IA18: 58430124 | IB18: 58577404 | IC18: 58724656 | ID18: 58871940 | IE18: 59019196 | IF18: 59166472 | IG18: 59313756 | IH18: 59460996 | II18: 59608276 | IJ18: 59755536 | IK18: 59902816 | IL18: 60050092 | IM18: 60199720 | IN18: 60349344 | IO18: 60498988 | IP18: 60648604 | IQ18: 60798244
B19: 2
B20: 3
B21: 4
B22: 5
B23: 6
B24: 7
B25: 8
B26: 9
B27: 10
B28: 11
B29: 12
B30: 13
B31: 14
B32: 15
B33: 16
B34: 17
B35: 18
B36: 19
B37: 20
B38: 21
B39: 22
B40: 23
B41: 24
B42: 25
B43: 26
B44: 27
B45: 28
B46: 29
B47: 30
B48: 31
B49: 32
B50: 33
B51: 34
B52: 35
B53: 36
B54: 37
B55: 38
B56: 39
B57: 40
B58: 41
B59: 42
B60: 43
B61: 44
B62: 45
B63: 46
B64: 47
B65: 48
B66: 49
B67: 50
B68: 51
B69: 52
B70: 53
B71: 54
B72: 55
B73: 56
B74: 57
B75: 58
B76: 59
B77: 60
B78: 61
B79: 62
B80: 63
B81: 64
B82: 65
B83: 66
B84: 67
B85: 68
B86: 69
B87: 70
B88: 71
B89: 72
B90: 73
B91: 74
B92: 75
B93: 76
B94: 77
B95: 78
B96: 79
B97: 80
B98: 81
B99: 82
B100: 83
B101: 84
B102: 85
B103: 86
B104: 87
B105: 88
B106: 89
B107: 90
B108: 91
B109: 92
B110: 93
B111: 94
B112: 95
B113: 96
B114: 97
B115: 98
B116: 99
B117: 100
L123: This graph is redrawn each time you press the RUN button
W125: Manually Set Range of Y-Axis
X126: Min | Y126: Leave one or both of these cells blank if you want
X127: Max | Y127: Excel to automatically set the Y-axis range.
L147: 2005-01-15 | M147: 2005-02-15 | N147: 2005-03-15 | O147: 2005-04-15 | P147: 2005-05-15 | Q147: 2005-06-15 | R147: 2005-07-15 | S147: 2005-08-15 | T147: 2005-09-15 | U147: 2005-10-15 | V147: 2005-11-15 | W147: 2005-12-15 | X147: 2006-01-15 | Y147: 2006-02-15 | Z147: 2006-03-15 | AA147: 2006-04-15 | AB147: 2006-05-15 | AC147: 2006-06-15 | AD147: 2006-07-15 | AE147: 2006-08-15 | AF147: 2006-09-15 | AG147: 2006-10-15 | AH147: 2006-11-15 | AI147: 2006-12-15 | AJ147: 2007-01-15 | AK147: 2007-02-15 | AL147: 2007-03-15 | AM147: 2007-04-15 | AN147: 2007-05-15 | AO147: 2007-06-15 | AP147: 2007-07-15 | AQ147: 2007-08-15 | AR147: 2007-09-15 | AS147: 2007-10-15 | AT147: 2007-11-15 | AU147: 2007-12-15 | AV147: 2008-01-15 | AW147: 2008-02-15 | AX147: 2008-03-15 | AY147: 2008-04-15 | AZ147: 2008-05-15 | BA147: 2008-06-15 | BB147: 2008-07-15 | BC147: 2008-08-15 | BD147: 2008-09-15 | BE147: 2008-10-15 | BF147: 2008-11-15 | BG147: 2008-12-15 | BH147: 2009-01-15 | BI147: 2009-02-15 | BJ147: 2009-03-15 | BK147: 2009-04-15 | BL147: 2009-05-15 | BM147: 2009-06-15 | BN147: 2009-07-15 | BO147: 2009-08-15 | BP147: 2009-09-15 | BQ147: 2009-10-15 | BR147: 2009-11-15 | BS147: 2009-12-15 | BT147: 2010-01-15 | BU147: 2010-02-15 | BV147: 2010-03-15 | BW147: 2010-04-15 | BX147: 2010-05-15 | BY147: 2010-06-15 | BZ147: 2010-07-15 | CA147: 2010-08-15 | CB147: 2010-09-15 | CC147: 2010-10-15 | CD147: 2010-11-15 | CE147: 2010-12-15 | CF147: 2011-01-15 | CG147: 2011-02-15 | CH147: 2011-03-15 | CI147: 2011-04-15 | CJ147: 2011-05-15 | CK147: 2011-06-15 | CL147: 2011-07-15 | CM147: 2011-08-15 | CN147: 2011-09-15 | CO147: 2011-10-15 | CP147: 2011-11-15 | CQ147: 2011-12-15 | CR147: 2012-01-15 | CS147: 2012-02-15 | CT147: 2012-03-15 | CU147: 2012-04-15 | CV147: 2012-05-15 | CW147: 2012-06-15 | CX147: 2012-07-15 | CY147: 2012-08-15 | CZ147: 2012-09-15 | DA147: 2012-10-15 | DB147: 2012-11-15 | DC147: 2012-12-15 | DD147: 2013-01-15 | DE147: 2013-02-15 | DF147: 2013-03-15 | DG147: 2013-04-15 | DH147: 2013-05-15 | DI147: 2013-06-15 | DJ147: 2013-07-15 | DK147: 2013-08-15 | DL147: 2013-09-15 | DM147: 2013-10-15 | DN147: 2013-11-15 | DO147: 2013-12-15 | DP147: 2014-01-15 | DQ147: 2014-02-15 | DR147: 2014-03-15 | DS147: 2014-04-15 | DT147: 2014-05-15 | DU147: 2014-06-15 | DV147: 2014-07-15 | DW147: 2014-08-15 | DX147: 2014-09-15 | DY147: 2014-10-15 | DZ147: 2014-11-15 | EA147: 2014-12-15 | EB147: 2015-01-15 | EC147: 2015-02-15 | ED147: 2015-03-15 | EE147: 2015-04-15 | EF147: 2015-05-15 | EG147: 2015-06-15 | EH147: 2015-07-15 | EI147: 2015-08-15 | EJ147: 2015-09-15 | EK147: 2015-10-15 | EL147: 2015-11-15 | EM147: 2015-12-15 | EN147: 2016-01-15 | EO147: 2016-02-15 | EP147: 2016-03-15 | EQ147: 2016-04-15 | ER147: 2016-05-15 | ES147: 2016-06-15 | ET147: 2016-07-15 | EU147: 2016-08-15 | EV147: 2016-09-15 | EW147: 2016-10-15 | EX147: 2016-11-15 | EY147: 2016-12-15 | EZ147: 2017-01-15 | FA147: 2017-02-15 | FB147: 2017-03-15 | FC147: 2017-04-15 | FD147: 2017-05-15 | FE147: 2017-06-15 | FF147: 2017-07-15 | FG147: 2017-08-15 | FH147: 2017-09-15 | FI147: 2017-10-15 | FJ147: 2017-11-15 | FK147: 2017-12-15 | FL147: 2018-01-15 | FM147: 2018-02-15 | FN147: 2018-03-15 | FO147: 2018-04-15 | FP147: 2018-05-15 | FQ147: 2018-06-15 | FR147: 2018-07-15 | FS147: 2018-08-15 | FT147: 2018-09-15 | FU147: 2018-10-15 | FV147: 2018-11-15 | FW147: 2018-12-15 | FX147: 2019-01-15 | FY147: 2019-02-15 | FZ147: 2019-03-15 | GA147: 2019-04-15 | GB147: 2019-05-15 | GC147: 2019-06-15 | GD147: 2019-07-15 | GE147: 2019-08-15 | GF147: 2019-09-15 | GG147: 2019-10-15 | GH147: 2019-11-15 | GI147: 2019-12-15 | GJ147: 2020-01-15 | GK147: 2020-02-15 | GL147: 2020-03-15 | GM147: 2020-04-15 | GN147: 2020-05-15 | GO147: 2020-06-15 | GP147: 2020-07-15 | GQ147: 2020-08-15 | GR147: 2020-09-15 | GS147: 2020-10-15 | GT147: 2020-11-15 | GU147: 2020-12-15 | GV147: 2021-01-15 | GW147: 2021-02-15 | GX147: 2021-03-15 | GY147: 2021-04-15 | GZ147: 2021-05-15 | HA147: 2021-06-15 | HB147: 2021-07-15 | HC147: 2021-08-15 | HD147: 2021-09-15 | HE147: 2021-10-15 | HF147: 2021-11-15 | HG147: 2021-12-15 | HH147: 2022-01-15 | HI147: 2022-02-15 | HJ147: 2022-03-15 | HK147: 2022-04-15 | HL147: 2022-05-15 | HM147: 2022-06-15 | HN147: 2022-07-15 | HO147: 2022-08-15 | HP147: 2022-09-15 | HQ147: 2022-10-15 | HR147: 2022-11-15 | HS147: 2022-12-15 | HT147: 2023-01-15 | HU147: 2023-02-15 | HV147: 2023-03-15 | HW147: 2023-04-15 | HX147: 2023-05-15 | HY147: 2023-06-15 | HZ147: 2023-07-15 | IA147: 2023-08-15 | IB147: 2023-09-15 | IC147: 2023-10-15 | ID147: 2023-11-15 | IE147: 2023-12-15 | IF147: 2024-01-15 | IG147: 2024-02-15 | IH147: 2024-03-15 | II147: 2024-04-15 | IJ147: 2024-05-15 | IK147: 2024-06-15 | IL147: 2024-07-15 | IM147: 2024-08-15 | IN147: 2024-09-15 | IO147: 2024-10-15 | IP147: 2024-11-15 | IQ147: 2024-12-15
K148: Monthly | L148: 35742296 | M148: 35776856 | N148: 35811400 | O148: 35845956 | P148: 35880520 | Q148: 35915060 | R148: 35949624 | S148: 35987112 | T148: 36024592 | U148: 36062072 | V148: 36099564 | W148: 36137052 | X148: 36174540 | Y148: 36212024 | Z148: 36249504 | AA148: 36286996 | AB148: 36324464 | AC148: 36361936 | AD148: 36399440 | AE148: 36447168 | AF148: 36494896 | AG148: 36542640 | AH148: 36590376 | AI148: 36638096 | AJ148: 36685832 | AK148: 36733576 | AL148: 36781296 | AM148: 36829040 | AN148: 36876760 | AO148: 36924512 | AP148: 36972244 | AQ148: 37040092 | AR148: 37107936 | AS148: 37175784 | AT148: 37243624 | AU148: 37311464 | AV148: 37379320 | AW148: 37447164 | AX148: 37515004 | AY148: 37582860 | AZ148: 37650696 | BA148: 37718544 | BB148: 37786384 | BC148: 37859708 | BD148: 37933004 | BE148: 38006324 | BF148: 38079636 | BG148: 38152952 | BH148: 38226252 | BI148: 38299564 | BJ148: 38372872 | BK148: 38446180 | BL148: 38519492 | BM148: 38592812 | BN148: 38666108 | BO148: 38735772 | BP148: 38805412 | BQ148: 38875056 | BR148: 38944700 | BS148: 39014348 | BT148: 39084004 | BU148: 39153656 | BV148: 39223300 | BW148: 39292960 | BX148: 39362608 | BY148: 39432256 | BZ148: 39501904 | CA148: 39573060 | CB148: 39644216 | CC148: 39715376 | CD148: 39786528 | CE148: 39857684 | CF148: 39928848 | CG148: 40000000 | CH148: 40071164 | CI148: 40142316 | CJ148: 40213476 | CK148: 40284628 | CL148: 40355780 | CM148: 40462116 | CN148: 40568460 | CO148: 40674788 | CP148: 40781128 | CQ148: 40887456 | CR148: 40993780 | CS148: 41100132 | CT148: 41206456 | CU148: 41312788 | CV148: 41419124 | CW148: 41525464 | CX148: 41631776 | CY148: 41767036 | CZ148: 41902300 | DA148: 42037548 | DB148: 42172804 | DC148: 42308052 | DD148: 42443296 | DE148: 42578564 | DF148: 42713828 | DG148: 42849076 | DH148: 42984328 | DI148: 43119592 | DJ148: 43254852 | DK148: 43381292 | DL148: 43507764 | DM148: 43634220 | DN148: 43760684 | DO148: 43887132 | DP148: 44013600 | DQ148: 44140072 | DR148: 44266524 | DS148: 44392996 | DT148: 44519452 | DU148: 44645920 | DV148: 44772380 | DW148: 44899700 | DX148: 45027028 | DY148: 45154364 | DZ148: 45281672 | EA148: 45409008 | EB148: 45536332 | EC148: 45663660 | ED148: 45790980 | EE148: 45918312 | EF148: 46045640 | EG148: 46172972 | EH148: 46300296 | EI148: 46427152 | EJ148: 46554016 | EK148: 46680896 | EL148: 46807748 | EM148: 46934640 | EN148: 47061504 | EO148: 47188368 | EP148: 47315236 | EQ148: 47442100 | ER148: 47568972 | ES148: 47695844 | ET148: 47822696 | EU148: 47953240 | EV148: 48083784 | EW148: 48214316 | EX148: 48344848 | EY148: 48475380 | EZ148: 48605932 | FA148: 48736460 | FB148: 48867012 | FC148: 48997552 | FD148: 49128076 | FE148: 49258616 | FF148: 49389156 | FG148: 49521332 | FH148: 49653480 | FI148: 49785648 | FJ148: 49917800 | FK148: 50049960 | FL148: 50182120 | FM148: 50314280 | FN148: 50446436 | FO148: 50578592 | FP148: 50710744 | FQ148: 50842908 | FR148: 50975072 | FS148: 51112948 | FT148: 51250780 | FU148: 51388620 | FV148: 51526468 | FW148: 51664316 | FX148: 51802168 | FY148: 51940012 | FZ148: 52077856 | GA148: 52215724 | GB148: 52353568 | GC148: 52491420 | GD148: 52629256 | GE148: 52741072 | GF148: 52852868 | GG148: 52964668 | GH148: 53076492 | GI148: 53188296 | GJ148: 53300104 | GK148: 53411920 | GL148: 53523724 | GM148: 53635520 | GN148: 53747348 | GO148: 53859140 | GP148: 53970948 | GQ148: 54064172 | GR148: 54157388 | GS148: 54250592 | GT148: 54343816 | GU148: 54437044 | GV148: 54530256 | GW148: 54623480 | GX148: 54716696 | GY148: 54809920 | GZ148: 54903140 | HA148: 54996348 | HB148: 55089576 | HC148: 55216648 | HD148: 55343712 | HE148: 55470776 | HF148: 55597856 | HG148: 55724932 | HH148: 55851992 | HI148: 55979080 | HJ148: 56106140 | HK148: 56233208 | HL148: 56360284 | HM148: 56487356 | HN148: 56614408 | HO148: 56753464 | HP148: 56892500 | HQ148: 57031532 | HR148: 57170580 | HS148: 57309600 | HT148: 57448648 | HU148: 57587684 | HV148: 57726716 | HW148: 57865740 | HX148: 58004780 | HY148: 58143816 | HZ148: 58282868 | IA148: 58430124 | IB148: 58577404 | IC148: 58724656 | ID148: 58871940 | IE148: 59019196 | IF148: 59166472 | IG148: 59313756 | IH148: 59460996 | II148: 59608276 | IJ148: 59755536 | IK148: 59902816 | IL148: 60050092 | IM148: 60199720 | IN148: 60349344 | IO148: 60498988 | IP148: 60648604 | IQ148: 60798244

Sheet 4 Age Series -- Death Rates
B2: Death Rates Across a Series of Ages, for a User-Specified Year
B3: You may specify up to 100 different age-sex groups. For each group, this tool computes death rates by single age or age groups, for a user-specified year.
B7: Specify the Age Range Across Which to Produce Outputs | J7: List of Available Metrics
B8: 20 | C8: First age to output | J8: Actual | L8: actual death rate
B9: 99 | C9: Last age to output | J9: Expected | L9: expected death rate, using data from specified base year
B10: 5 | C10: Produce output every Nth age | J10: A / E | L10: actual divided by expected death rate
B11: Yes | C11: Use age groups? "No" = single ages; "Yes" = use groupings of N-ages. | J11: % of Total | L11: actual death rate as % of actual death rate for all causes
B12: Yes | C12: If using age groups, also use age-standardization?
J16: Parameters for
J17: Expected Death Rates | O17: The age labels below are the lower boundaries of each age group
E18: Trailing | J18: Base | K18: Base
E19: Period | G19: Causes of | H19: Exposure | I19: Mortality | J19: Period | K19: Period | L19: Mort | M19: Show on | N19: Graph
B20: Case | C20: Year | D20: Month | E20: (Months) | F20: Sex | G20: Death | H20: Source | I20: Metric | J20: First Yr | K20: Last Yr | L20: Improve | M20: Graph? | N20: Label | O20: 20 | P20: 25 | Q20: 30 | R20: 35 | S20: 40 | T20: 45 | U20: 50 | V20: 55 | W20: 60 | X20: 65 | Y20: 70 | Z20: 75 | AA20: 80 | AB20: 85 | AC20: 90 | AD20: 95
B22: 1 | C22: 2024 | D22: 1 | E22: 12 | F22: T | G22: Total | H22: HMD | I22: A / E | J22: 2019 | K22: 2019 | L22: None | M22: Y | N22: Jan 2024 | O22: 1.065892816 | P22: 1.078137636 | Q22: 1.163086534 | R22: 1.164390683 | S22: 1.195419669 | T22: 1.096554995 | U22: 1.024903655 | V22: 0.9768947363 | W22: 1.006362319 | X22: 1.034145236 | Y22: 0.9914146662 | Z22: 1.007334709 | AA22: 1.04960382 | AB22: 1.022540331 | AC22: 0.9821663499 | AD22: 0.967397213
B23: 2 | C23: 2024 | D23: 7 | E23: 12 | F23: T | G23: Total | H23: HMD | I23: A / E | J23: 2019 | K23: 2019 | L23: None | M23: Y | N23: July 2024 | O23: 0.9933294058 | P23: 0.99678123 | Q23: 1.087664843 | R23: 1.114637494 | S23: 1.144515872 | T23: 1.070102453 | U23: 0.9993671775 | V23: 0.9478814006 | W23: 0.9895436764 | X23: 1.024256587 | Y23: 0.9868487716 | Z23: 0.9967559576 | AA23: 1.043519258 | AB23: 1.023113608 | AC23: 0.9808135033 | AD23: 0.9589357972
B24: 3 | C24: 2024 | D24: 12 | E24: 12 | F24: T | G24: Total | H24: HMD | I24: A / E | J24: 2019 | K24: 2019 | L24: None | M24: Y | N24: Dec 2024 | O24: 0.9283668995 | P24: 0.916476965 | Q24: 0.9918503761 | R24: 1.044774175 | S24: 1.08483994 | T24: 1.02559495 | U24: 0.9612717032 | V24: 0.9172099829 | W24: 0.9624698758 | X24: 1.000352383 | Y24: 0.9699441195 | Z24: 0.9802311063 | AA24: 1.022998452 | AB24: 1.006431818 | AC24: 0.9699661136 | AD24: 0.9427784681
B25: 4
B26: 5
B27: 6
B28: 7
B29: 8
B30: 9
B31: 10
B32: 11
B33: 12
B34: 13
B35: 14
B36: 15
B37: 16
B38: 17
B39: 18
B40: 19
B41: 20
B42: 21
B43: 22
B44: 23
B45: 24
B46: 25
B47: 26
B48: 27
B49: 28
B50: 29
B51: 30
B52: 31
B53: 32
B54: 33
B55: 34
B56: 35
B57: 36
B58: 37
B59: 38
B60: 39
B61: 40
B62: 41
B63: 42
B64: 43
B65: 44
B66: 45
B67: 46
B68: 47
B69: 48
B70: 49
B71: 50
B72: 51
B73: 52
B74: 53
B75: 54
B76: 55
B77: 56
B78: 57
B79: 58
B80: 59
B81: 60
B82: 61
B83: 62
B84: 63
B85: 64
B86: 65
B87: 66
B88: 67
B89: 68
B90: 69
B91: 70
B92: 71
B93: 72
B94: 73
B95: 74
B96: 75
B97: 76
B98: 77
B99: 78
B100: 79
B101: 80
B102: 81
B103: 82
B104: 83
B105: 84
B106: 85
B107: 86
B108: 87
B109: 88
B110: 89
B111: 90
B112: 91
B113: 92
B114: 93
B115: 94
B116: 95
B117: 96
B118: 97
B119: 98
B120: 99
B121: 100
B122: 100
O125: This graph is redrawn each time you press the RUN button
Z127: Manually Set Range of Y-Axis
Z128: 0.7 | AA128: Min | AB128: Leave one or both of these cells blank if you want
AA129: Max | AB129: Excel to automatically set the Y-axis range.
O148: 20 | P148: 25 | Q148: 30 | R148: 35 | S148: 40 | T148: 45 | U148: 50 | V148: 55 | W148: 60 | X148: 65 | Y148: 70 | Z148: 75 | AA148: 80 | AB148: 85 | AC148: 90 | AD148: 95
N149: Jan 2024 | O149: 1.065892816 | P149: 1.078137636 | Q149: 1.163086534 | R149: 1.164390683 | S149: 1.195419669 | T149: 1.096554995 | U149: 1.024903655 | V149: 0.9768947363 | W149: 1.006362319 | X149: 1.034145236 | Y149: 0.9914146662 | Z149: 1.007334709 | AA149: 1.04960382 | AB149: 1.022540331 | AC149: 0.9821663499 | AD149: 0.967397213
N150: July 2024 | O150: 0.9933294058 | P150: 0.99678123 | Q150: 1.087664843 | R150: 1.114637494 | S150: 1.144515872 | T150: 1.070102453 | U150: 0.9993671775 | V150: 0.9478814006 | W150: 0.9895436764 | X150: 1.024256587 | Y150: 0.9868487716 | Z150: 0.9967559576 | AA150: 1.043519258 | AB150: 1.023113608 | AC150: 0.9808135033 | AD150: 0.9589357972
N151: Dec 2024 | O151: 0.9283668995 | P151: 0.916476965 | Q151: 0.9918503761 | R151: 1.044774175 | S151: 1.08483994 | T151: 1.02559495 | U151: 0.9612717032 | V151: 0.9172099829 | W151: 0.9624698758 | X151: 1.000352383 | Y151: 0.9699441195 | Z151: 0.9802311063 | AA151: 1.022998452 | AB151: 1.006431818 | AC151: 0.9699661136 | AD151: 0.9427784681

Sheet 5 Improvement Rates
B2: Calculate Rates of Mortality Improvement Using Regression Analysis
B3: This tool estimates annualized rates of mortality improvement, by age and sex, across a user-specified time period.
B4: Linear regression is applied to logged death rates. The slope of the regression line is the rate of geometric rate of mortality improvement multiplied by negative 1 (a slope of negative 1% indicates an improvement rate of positive 1%).
B5: Prior to running the regression, crude death rates can be smoothed using the "smoothing radius" parameter.
B6: For example, a smoothing radius of "2" means that the death rate for age 50 will be computed as the average rate across ages 48 to 52.
V9: Data Plotted on Graph
V10: F | W10: M
N11: HMD | O11: Exposure Dataset | U11: 20 | V11: -0.0055999998 | W11: -0.01180000044
N12: 2010 | O12: First year in time period | U12: 21 | V12: -0.006699999794 | W12: -0.01300000027
N13: 2019 | O13: Final year in time period | U13: 22 | V13: -0.009200000204 | W13: -0.01360000018
N14: 20 | O14: Age range: lower boundary | U14: 23 | V14: -0.01169999968 | W14: -0.01530000009
N15: 90 | O15: Age range: upper boundary | U15: 24 | V15: -0.01530000009 | W15: -0.01860000007
N16: 3 | O16: Age Radius | U16: 25 | V16: -0.01930000074 | W16: -0.02150000073
N17: 1 | O17: Select a Metric to Plot | U17: 26 | V17: -0.02339999937 | W17: -0.02390000038
O18: 1 = improvement rates, method 1 | U18: 27 | V18: -0.02730000019 | W18: -0.02569999918
O19: 2 = improvement rates, method 2 | U19: 28 | V19: -0.03009999916 | W19: -0.02810000069
O20: 3 = mort rates in final year as % of initial year | U20: 29 | V20: -0.03220000118 | W20: -0.02960000001
U21: 30 | V21: -0.03409999982 | W21: -0.03189999983
O22: Under method 1, the annualized rate of mortality improvement is | U22: 31 | V22: -0.03550000116 | W22: -0.03109999932
O23: estimated using linear regression applied to the full time series | U23: 32 | V23: -0.03660000116 | W23: -0.03079999983
O24: of data from the first to the final year of the specified period. | U24: 33 | V24: -0.03770000115 | W24: -0.03040000051
U25: 34 | V25: -0.03819999844 | W25: -0.0298999995
O26: Under method 2, only the first and final years of data are used. | U26: 35 | V26: -0.03920000046 | W26: -0.02910000086
U27: 36 | V27: -0.0390000008 | W27: -0.02859999985
U28: 37 | V28: -0.03840000182 | W28: -0.02600000054
U29: 38 | V29: -0.03559999913 | W29: -0.02329999954
U30: 39 | V30: -0.03150000051 | W30: -0.01960000023
U31: 40 | V31: -0.0270000007 | W31: -0.01600000076
U32: 41 | V32: -0.0223999992 | W32: -0.01150000002
U33: 42 | V33: -0.0175999999 | W33: -0.007899999619
U34: 43 | V34: -0.01279999968 | W34: -0.003500000108
U35: 44 | V35: -0.007699999958 | W35: -9.999999747e-05
U36: 45 | V36: -0.003899999894 | W36: 0.002099999925
U37: 46 | V37: -0.001099999994 | W37: 0.003700000001
U38: 47 | V38: 0.001500000013 | W38: 0.005200000014
U39: 48 | V39: 0.003500000108 | W39: 0.005900000222
U40: 49 | V40: 0.005200000014 | W40: 0.007000000216
U41: 50 | V41: 0.006500000134 | W41: 0.006699999794
U42: 51 | V42: 0.006200000178 | W42: 0.006000000052
U43: 52 | V43: 0.005700000096 | W43: 0.004699999932
U44: 53 | V44: 0.005299999844 | W44: 0.002899999963
U45: 54 | V45: 0.00419999985 | W45: 0.001000000047
U46: 55 | V46: 0.003299999982 | W46: -0.0008999999845
U47: 56 | V47: 0.001799999969 | W47: -0.003100000089
U48: 57 | V48: 0.0003999999899 | W48: -0.004900000058
U49: 58 | V49: -0.00139999995 | W49: -0.006200000178
U50: 59 | V50: -0.003299999982 | W50: -0.00680000009
U51: 60 | V51: -0.004499999806 | W51: -0.00549999997
U52: 61 | V52: -0.004699999932 | W52: -0.003599999938
U53: 62 | V53: -0.005299999844 | W53: -0.001500000013
U54: 63 | V54: -0.005299999844 | W54: 0.000699999975
U55: 64 | V55: -0.004499999806 | W55: 0.003400000045
U56: 65 | V56: -0.002099999925 | W56: 0.006200000178
U57: 66 | V57: 0.0003999999899 | W57: 0.008600000292
U58: 67 | V58: 0.002499999944 | W58: 0.009499999695
U59: 68 | V59: 0.003400000045 | W59: 0.009499999695
U60: 69 | V60: 0.00410000002 | W60: 0.0083999997
U61: 70 | V61: 0.005299999844 | W61: 0.00800000038
U62: 71 | V62: 0.005700000096 | W62: 0.007499999832
U63: 72 | V63: 0.0055999998 | W63: 0.006699999794
U64: 73 | V64: 0.005100000184 | W64: 0.005799999926
U65: 74 | V65: 0.004800000228 | W65: 0.00540000014
U66: 75 | V66: 0.005299999844 | W66: 0.00549999997
U67: 76 | V67: 0.005700000096 | W67: 0.005700000096
U68: 77 | V68: 0.007000000216 | W68: 0.00689999992
U69: 78 | V69: 0.0083999997 | W69: 0.007799999788
U70: 79 | V70: 0.009800000116 | W70: 0.008600000292
U71: 80 | V71: 0.01140000019 | W71: 0.009399999864
U72: 81 | V72: 0.01260000002 | W72: 0.009800000116
U73: 82 | V73: 0.01350000035 | W73: 0.0103000002
U74: 83 | V74: 0.01389999967 | W74: 0.0103000002
U75: 84 | V75: 0.01350000035 | W75: 0.009499999695
U76: 85 | V76: 0.01260000002 | W76: 0.008799999952
U77: 86 | V77: 0.01150000002 | W77: 0.00829999987
U78: 87 | V78: 0.01169999968 | W78: 0.008700000122
U79: 88 | V79: 0.01109999977 | W79: 0.00829999987
U80: 89 | V80: 0.01049999986 | W80: 0.007899999619
U81: 90 | V81: 0.01009999961 | W81: 0.007699999958

Sheet 6 Population Graph
B2: A Graph that Depicts Changes in the Population Across Time
B3: Each time you change the graph's parameters, you must press "Load Data", after which you may use the plus/minus buttons to go forwards or backwards in time. Population counts are in 1000s.
W6: Data Plotted on Graph
W7: SSA | X7: HMD
V8: 0 | W8: 3903 | X8: 3855
A9: 2019 | P9: 0 | Q9: First age to include | V9: 1 | W9: 3965 | X9: 3940
P10: 99 | Q10: Last age to include | V10: 2 | W10: 4062 | X10: 4009
F11: 2018 | P11: 1 | Q11: Size of age groups (1 = single age) | V11: 3 | W11: 4095 | X11: 4022
P12: T | Q12: Sex | V12: 4 | W12: 4077 | X12: 4011
P13: Y | Q13: Show SSA | V13: 5 | W13: 4067 | X13: 4010
P14: Y | Q14: Show HMD | V14: 6 | W14: 4076 | X14: 4036
P15: Line | Q15: Chart Type | V15: 7 | W15: 4139 | X15: 4056
P16: 1 | Q16: Metric (1 = counts; 2 = counts as % of 2019 levels) | V16: 8 | W16: 4209 | X16: 4053
P17: MOY | Q17: Beginning, middle or end-of-year data | V17: 9 | W17: 4345 | X17: 4116
V18: 10 | W18: 4494 | X18: 4190
V19: 11 | W19: 4492 | X19: 4183
V20: 12 | W20: 4388 | X20: 4159
V21: 13 | W21: 4362 | X21: 4157
V22: 14 | W22: 4376 | X22: 4147
V23: 15 | W23: 4346 | X23: 4127
V24: 16 | W24: 4328 | X24: 4173
V25: 17 | W25: 4401 | X25: 4265
B26: Population counts are in 1000s | V26: 18 | W26: 4407 | X26: 4275
V27: 19 | W27: 4361 | X27: 4252
V28: 20 | W28: 4348 | X28: 4264
V29: 21 | W29: 4352 | X29: 4294
V30: 22 | W30: 4375 | X30: 4366
V31: 23 | W31: 4446 | X31: 4467
V32: 24 | W32: 4514 | X32: 4553
V33: 25 | W33: 4610 | X33: 4652
V34: 26 | W34: 4724 | X34: 4758
V35: 27 | W35: 4783 | X35: 4798
V36: 28 | W36: 4810 | X36: 4698
V37: 29 | W37: 4678 | X37: 4549
V38: 30 | W38: 4582 | X38: 4454
V39: 31 | W39: 4537 | X39: 4421
V40: 32 | W40: 4549 | X40: 4442
V41: 33 | W41: 4544 | X41: 4385
V42: 34 | W42: 4428 | X42: 4344
V43: 35 | W43: 4529 | X43: 4369
V44: 36 | W44: 4515 | X44: 4337
V45: 37 | W45: 4477 | X45: 4348
V46: 38 | W46: 4433 | X46: 4249
V47: 39 | W47: 4276 | X47: 4068
V48: 40 | W48: 4154 | X48: 4003
V49: 41 | W49: 4137 | X49: 3921
V50: 42 | W50: 3977 | X50: 3918
V51: 43 | W51: 4038 | X51: 3912
V52: 44 | W52: 3928 | X52: 3875
V53: 45 | W53: 4024 | X53: 3988
V54: 46 | W54: 4188 | X54: 4186
V55: 47 | W55: 4490 | X55: 4325
V56: 48 | W56: 4388 | X56: 4234
V57: 49 | W57: 4249 | X57: 4073
V58: 50 | W58: 4136 | X58: 4028
V59: 51 | W59: 4175 | X59: 4062
V60: 52 | W60: 4248 | X60: 4218
V61: 53 | W61: 4415 | X61: 4376
V62: 54 | W62: 4527 | X62: 4408
V63: 55 | W63: 4549 | X63: 4394
V64: 56 | W64: 4535 | X64: 4410
V65: 57 | W65: 4591 | X65: 4450
V66: 58 | W66: 4467 | X66: 4387
V67: 59 | W67: 4410 | X67: 4290
V68: 60 | W68: 4377 | X68: 4245
V69: 61 | W69: 4319 | X69: 4138
V70: 62 | W70: 4140 | X70: 4038
V71: 63 | W71: 4051 | X71: 3930
V72: 64 | W72: 3910 | X72: 3765
V73: 65 | W73: 3766 | X73: 3611
V74: 66 | W74: 3614 | X74: 3476
V75: 67 | W75: 3492 | X75: 3374
V76: 68 | W76: 3317 | X76: 3274
V77: 69 | W77: 3250 | X77: 3194
V78: 70 | W78: 3179 | X78: 3230
V79: 71 | W79: 3377 | X79: 2848
V80: 72 | W80: 2390 | X80: 2389
V81: 73 | W81: 2333 | X81: 2326
V82: 74 | W82: 2263 | X82: 2304
V83: 75 | W83: 2320 | X83: 2162
V84: 76 | W84: 1975 | X84: 1908
V85: 77 | W85: 1794 | X85: 1754
V86: 78 | W86: 1650 | X86: 1634
V87: 79 | W87: 1546 | X87: 1529
V88: 80 | W88: 1448 | X88: 1414
V89: 81 | W89: 1302 | X89: 1302
V90: 82 | W90: 1215 | X90: 1219
V91: 83 | W91: 1122 | X91: 1105
V92: 84 | W92: 973 | X92: 1001
V93: 85 | W93: 907 | X93: 897
V94: 86 | W94: 833 | X94: 810
V95: 87 | W95: 765 | X95: 748
V96: 88 | W96: 676 | X96: 647
V97: 89 | W97: 586 | X97: 574
V98: 90 | W98: 513 | X98: 500
V99: 91 | W99: 433 | X99: 416
V100: 92 | W100: 359 | X100: 343
V101: 93 | W101: 296 | X101: 282
V102: 94 | W102: 236 | X102: 219
V103: 95 | W103: 182 | X103: 168
V104: 96 | W104: 137 | X104: 128
V105: 97 | W105: 100 | X105: 90
V106: 98 | W106: 69 | X106: 58
V107: 99 | W107: 47 | X107: 40
C199: 0
C200: 0
C201: 0
C202: 0
C203: 0
C204: 0
C205: 0
C206: 0
C207: 0
C208: 0
C209: 0
C210: 0
C211: 0
C212: 0
C213: 0
C214: 0
C215: 0
C216: 0
C217: 0
C218: 0
C219: 0
C220: 0
C221: 0
C222: 0
C223: 0
C224: 0
C225: 0
C226: 0
C227: 0
C228: 0
C229: 0
C230: 0
C231: 0
C232: 0
C233: 0
C234: 0
C235: 0
C236: 0
C237: 0
C238: 0
C239: 0
C240: 0
C241: 0
C242: 0
C243: 0
C244: 0
C245: 0
C246: 0
C247: 0
C248: 0
C249: 0
C250: 0
C251: 0
C252: 0
C253: 0
C254: 0
C255: 0
C256: 0
C257: 0
C258: 0
C259: 0
C260: 0
C261: 0
C262: 0
C263: 0
C264: 0
C265: 0
C266: 0
C267: 0
C268: 0
C269: 0
C270: 0
C271: 0
C272: 0
C273: 0
C274: 0
C275: 0
C276: 0
C277: 0
C278: 0
C279: 0
C280: 0
C281: 0
C282: 0
C283: 0
C284: 0
C285: 0
C286: 0
C287: 0
C288: 0
C289: 0
C290: 0
C291: 0
C292: 0
C293: 0
C294: 0
... 4206 more rows

Sheet 7 Exposure Counts
B2: Population Counts by Sex, Age and Year
B4: SSA | C4: Counts from the Social Security Administration's 2024 Trustees Report. Unlike HMD and the Census, these counts include Puerto Rico and Guam.
B5: HMD | C5: Counts from the Human Mortality Database. The data for 2024 and 2025 is imputed (see the cell formulas below on rows 90, 91, 117 and 118).
B10: Source | C10: Sex | D10: Year | E10: Total | F10: 0 | G10: 1 | H10: 2 | I10: 3 | J10: 4 | K10: 5 | L10: 6 | M10: 7 | N10: 8 | O10: 9 | P10: 10 | Q10: 11 | R10: 12 | S10: 13 | T10: 14 | U10: 15 | V10: 16 | W10: 17 | X10: 18 | Y10: 19 | Z10: 20 | AA10: 21 | AB10: 22 | AC10: 23 | AD10: 24 | AE10: 25 | AF10: 26 | AG10: 27 | AH10: 28 | AI10: 29 | AJ10: 30 | AK10: 31 | AL10: 32 | AM10: 33 | AN10: 34 | AO10: 35 | AP10: 36 | AQ10: 37 | AR10: 38 | AS10: 39 | AT10: 40 | AU10: 41 | AV10: 42 | AW10: 43 | AX10: 44 | AY10: 45 | AZ10: 46 | BA10: 47 | BB10: 48 | BC10: 49 | BD10: 50 | BE10: 51 | BF10: 52 | BG10: 53 | BH10: 54 | BI10: 55 | BJ10: 56 | BK10: 57 | BL10: 58 | BM10: 59 | BN10: 60 | BO10: 61 | BP10: 62 | BQ10: 63 | BR10: 64 | BS10: 65 | BT10: 66 | BU10: 67 | BV10: 68 | BW10: 69 | BX10: 70 | BY10: 71 | BZ10: 72 | CA10: 73 | CB10: 74 | CC10: 75 | CD10: 76 | CE10: 77 | CF10: 78 | CG10: 79 | CH10: 80 | CI10: 81 | CJ10: 82 | CK10: 83 | CL10: 84 | CM10: 85 | CN10: 86 | CO10: 87 | CP10: 88 | CQ10: 89 | CR10: 90 | CS10: 91 | CT10: 92 | CU10: 93 | CV10: 94 | CW10: 95 | CX10: 96 | CY10: 97 | CZ10: 98 | DA10: 99 | DB10: 100+
B12: SSA | C12: F | D12: 2000 | E12: =SUM(F12:DB12) -> 145467724 | F12: 1976921 | G12: 1947220 | H12: 1941614 | I12: 1947367 | J12: 1955962 | K12: 1991114 | L12: 2018018 | M12: 2047331 | N12: 2095388 | O12: 2116413 | P12: 2124101 | Q12: 2058668 | R12: 2006518 | S12: 1981881 | T12: 1980757 | U12: 1971701 | V12: 1923029 | W12: 1971739 | X12: 1972983 | Y12: 1960388 | Z12: 1963070 | AA12: 1911392 | AB12: 1868218 | AC12: 1865088 | AD12: 1799470 | AE12: 1842226 | AF12: 1817930 | AG12: 1874160 | AH12: 1976187 | AI12: 2138850 | AJ12: 2095217 | AK12: 2053822 | AL12: 2015171 | AM12: 2050538 | AN12: 2093169 | AO12: 2203147 | AP12: 2288813 | AQ12: 2319550 | AR12: 2331614 | AS12: 2361267 | AT12: 2321070 | AU12: 2328979 | AV12: 2313842 | AW12: 2299008 | AX12: 2221396 | AY12: 2184290 | AZ12: 2141227 | BA12: 2079739 | BB12: 2016579 | BC12: 1964260 | BD12: 1890414 | BE12: 1893071 | BF12: 1866491 | BG12: 1995672 | BH12: 1446816 | BI12: 1472194 | BJ12: 1479408 | BK12: 1541361 | BL12: 1345710 | BM12: 1266116 | BN12: 1209031 | BO12: 1191056 | BP12: 1169074 | BQ12: 1102514 | BR12: 1084889 | BS12: 1079132 | BT12: 1017663 | BU12: 1016902 | BV12: 1023273 | BW12: 1035773 | BX12: 1017056 | BY12: 1010118 | BZ12: 1001839 | CA12: 980460 | CB12: 962245 | CC12: 945940 | CD12: 918605 | CE12: 883365 | CF12: 849269 | CG12: 801574 | CH12: 736125 | CI12: 675959 | CJ12: 622630 | CK12: 570841 | CL12: 526979 | CM12: 487189 | CN12: 442943 | CO12: 392342 | CP12: 339224 | CQ12: 290161 | CR12: 248245 | CS12: 207971 | CT12: 169894 | CU12: 136014 | CV12: 107099 | CW12: 82639 | CX12: 61538 | CY12: 45012 | CZ12: 32565 | DA12: 23591 | DB12: 43330
B13: SSA | C13: F | D13: 2001 | E13: 146807281 | F13: 1992143 | G13: 1984274 | H13: 1959111 | I13: 1951955 | J13: 1956129 | K13: 1964321 | L13: 1998357 | M13: 2024547 | N13: 2054366 | O13: 2102222 | P13: 2124257 | Q13: 2133277 | R13: 2068027 | S13: 2017061 | T13: 1992859 | U13: 1992003 | V13: 1984397 | W13: 1936171 | X13: 1986058 | Y13: 1990009 | Z13: 1979217 | AA13: 1981080 | AB13: 1928468 | AC13: 1885564 | AD13: 1884899 | AE13: 1820337 | AF13: 1862610 | AG13: 1836273 | AH13: 1892868 | AI13: 1992813 | AJ13: 2153968 | AK13: 2109721 | AL13: 2065685 | AM13: 2025497 | AN13: 2059899 | AO13: 2102499 | AP13: 2211070 | AQ13: 2293790 | AR13: 2323533 | AS13: 2333955 | AT13: 2365100 | AU13: 2323934 | AV13: 2328323 | AW13: 2313471 | AX13: 2298409 | AY13: 2220681 | AZ13: 2183362 | BA13: 2138315 | BB13: 2076607 | BC13: 2012623 | BD13: 1961828 | BE13: 1887340 | BF13: 1886408 | BG13: 1860145 | BH13: 1989812 | BI13: 1442628 | BJ13: 1466645 | BK13: 1471895 | BL13: 1534143 | BM13: 1339369 | BN13: 1259766 | BO13: 1202388 | BP13: 1182396 | BQ13: 1159672 | BR13: 1092730 | BS13: 1074054 | BT13: 1066437 | BU13: 1003110 | BV13: 1001915 | BW13: 1006210 | BX13: 1016879 | BY13: 997077 | BZ13: 987092 | CA13: 977980 | CB13: 955030 | CC13: 935060 | CD13: 917402 | CE13: 888171 | CF13: 850847 | CG13: 814489 | CH13: 765017 | CI13: 698654 | CJ13: 637475 | CK13: 583001 | CL13: 530192 | CM13: 485007 | CN13: 443835 | CO13: 398993 | CP13: 349020 | CQ13: 297616 | CR13: 250641 | CS13: 210748 | CT13: 173235 | CU13: 138613 | CV13: 108583 | CW13: 83568 | CX13: 63002 | CY13: 45801 | CZ13: 32700 | DA13: 23071 | DB13: 43476
B14: SSA | C14: F | D14: 2002 | E14: 148154376 | F14: 1973427 | G14: 1998055 | H14: 1993813 | I14: 1970702 | J14: 1962657 | K14: 1965596 | L14: 1973232 | M14: 2005742 | N14: 2031216 | O14: 2061872 | P14: 2109811 | Q14: 2132983 | R14: 2143258 | S14: 2077868 | T14: 2027811 | U14: 2004292 | V14: 2004172 | W14: 1998377 | X14: 1951016 | Y14: 2002889 | Z14: 2009869 | AA14: 1999971 | AB14: 2000401 | AC14: 1947437 | AD14: 1904958 | AE14: 1906098 | AF14: 1842265 | AG14: 1884110 | AH14: 1855111 | AI14: 1911550 | AJ14: 2009337 | AK14: 2168881 | AL14: 2123978 | AM14: 2077246 | AN14: 2035514 | AO14: 2068997 | AP14: 2111597 | AQ14: 2218724 | AR14: 2298445 | AS14: 2327147 | AT14: 2335902 | AU14: 2368517 | AV14: 2326315 | AW14: 2327117 | AX14: 2312507 | AY14: 2297198 | AZ14: 2219372 | BA14: 2181832 | BB14: 2134811 | BC14: 2072927 | BD14: 2008197 | BE14: 1958957 | BF14: 1883820 | BG14: 1879277 | BH14: 1853286 | BI14: 1983385 | BJ14: 1438059 | BK14: 1460699 | BL14: 1463933 | BM14: 1526407 | BN14: 1332559 | BO14: 1252964 | BP14: 1195289 | BQ14: 1173257 | BR14: 1149715 | BS14: 1082356 | BT14: 1062608 | BU14: 1053121 | BV14: 987955 | BW14: 986228 | BX14: 988344 | BY14: 997007 | BZ14: 975978 | CA14: 962843 | CB14: 952711 | CC14: 928083 | CD14: 906240 | CE14: 887067 | CF14: 855826 | CG14: 816341 | CH14: 777639 | CI14: 726371 | CJ14: 659179 | CK14: 597131 | CL14: 541717 | CM14: 488181 | CN14: 442033 | CO14: 399911 | CP14: 354964 | CQ14: 306163 | CR14: 257052 | CS14: 212763 | CT14: 175515 | CU14: 141331 | CV14: 110603 | CW14: 84658 | CX14: 63601 | CY14: 46797 | CZ14: 33189 | DA14: 23104 | DB14: 43039
B15: SSA | C15: F | D15: 2003 | E15: 149465614 | F15: 1995296 | G15: 1980049 | H15: 2005935 | I15: 2002628 | J15: 1982149 | K15: 1973486 | L15: 1974933 | M15: 1981598 | N15: 2012517 | O15: 2037500 | P15: 2069188 | Q15: 2117269 | R15: 2141421 | S15: 2152665 | T15: 2086862 | U15: 2037657 | V15: 2015063 | W15: 2015993 | X15: 2012304 | Y15: 1966309 | Z15: 2020580 | AA15: 2030110 | AB15: 2020442 | AC15: 2019573 | AD15: 1966078 | AE15: 1923233 | AF15: 1925412 | AG15: 1861949 | AH15: 1903257 | AI15: 1871428 | AJ15: 1927498 | AK15: 2023133 | AL15: 2181043 | AM15: 2135625 | AN15: 2086279 | AO15: 2043119 | AP15: 2075761 | AQ15: 2118486 | AR15: 2224255 | AS15: 2301090 | AT15: 2328891 | AU15: 2336098 | AV15: 2370227 | AW15: 2327051 | AX15: 2324303 | AY15: 2310003 | AZ15: 2294473 | BA15: 2216603 | BB15: 2178924 | BC15: 2130024 | BD15: 2068044 | BE15: 2002634 | BF15: 1954960 | BG15: 1879220 | BH15: 1871095 | BI15: 1845399 | BJ15: 1975824 | BK15: 1432591 | BL15: 1453780 | BM15: 1454971 | BN15: 1517569 | BO15: 1324709 | BP15: 1245096 | BQ15: 1187089 | BR15: 1162984 | BS15: 1138651 | BT15: 1070966 | BU15: 1050158 | BV15: 1038766 | BW15: 971794 | BX15: 969434 | BY15: 969304 | BZ15: 975830 | CA15: 953458 | CB15: 937123 | CC15: 925818 | CD15: 899414 | CE15: 875583 | CF15: 854767 | CG15: 821498 | CH15: 779857 | CI15: 738785 | CJ15: 685745 | CK15: 617859 | CL15: 555166 | CM15: 499120 | CN15: 445229 | CO15: 398538 | CP15: 355971 | CQ15: 311518 | CR15: 264499 | CS15: 218230 | CT15: 177145 | CU15: 143086 | CV15: 112700 | CW15: 86173 | CX15: 64408 | CY15: 47212 | CZ15: 33899 | DA15: 23436 | DB15: 42739
B16: SSA | C16: F | D16: 2004 | E16: 150801878 | F16: 2027389 | G16: 2001803 | H16: 1988651 | I16: 2012982 | J16: 2011350 | K16: 1993897 | L16: 1984419 | M16: 1983944 | N16: 1989542 | O16: 2019074 | P16: 2043720 | Q16: 2076583 | R16: 2124754 | S16: 2149633 | T16: 2161767 | U16: 2095714 | V16: 2047513 | W16: 2025933 | X16: 2028121 | Y16: 2026902 | Z16: 1982440 | AA16: 2038519 | AB16: 2050337 | AC16: 2041037 | AD16: 2038562 | AE16: 1984005 | AF16: 1940295 | AG16: 1943246 | AH16: 1880054 | AI16: 1920684 | AJ16: 1886303 | AK16: 1942266 | AL16: 2035709 | AM16: 2191949 | AN16: 2146068 | AO16: 2094144 | AP16: 2049647 | AQ16: 2081501 | AR16: 2124382 | AS16: 2228814 | AT16: 2302802 | AU16: 2329741 | AV16: 2335421 | AW16: 2371045 | AX16: 2326915 | AY16: 2320636 | AZ16: 2306661 | BA16: 2290940 | BB16: 2213063 | BC16: 2175262 | BD16: 2124520 | BE16: 2062455 | BF16: 1996359 | BG16: 1950231 | BH16: 1873883 | BI16: 1862165 | BJ16: 1836744 | BK16: 1967359 | BL16: 1426374 | BM16: 1446042 | BN16: 1445153 | BO16: 1507754 | BP16: 1315921 | BQ16: 1236232 | BR16: 1177827 | BS16: 1151655 | BT16: 1126565 | BU16: 1058601 | BV16: 1036733 | BW16: 1023440 | BX16: 954715 | BY16: 951613 | BZ16: 949174 | CA16: 953444 | CB16: 929674 | CC16: 910190 | CD16: 897652 | CE16: 869473 | CF16: 843638 | CG16: 821090 | CH16: 785743 | CI16: 741938 | CJ16: 698567 | CK16: 643946 | CL16: 575665 | CM16: 512669 | CN16: 456357 | CO16: 402537 | CP16: 355826 | CQ16: 313438 | CR16: 270119 | CS16: 225460 | CT16: 182530 | CU16: 145137 | CV16: 114709 | CW16: 88351 | CX16: 66001 | CY16: 48178 | CZ16: 34473 | DA16: 24153 | DB16: 43266
B17: SSA | C17: F | D17: 2005 | E17: 152302976 | F17: 2034752 | G17: 2034619 | H17: 2011017 | I17: 1997497 | J17: 2021448 | K17: 2022277 | L17: 2007842 | M17: 1997287 | N17: 1994933 | O17: 1999709 | P17: 2028104 | Q17: 2052675 | R17: 2086894 | S17: 2135114 | T17: 2160727 | U17: 2174058 | V17: 2107957 | W17: 2060881 | X17: 2040544 | Y17: 2044411 | Z17: 2046034 | AA17: 2002761 | AB17: 2060325 | AC17: 2074900 | AD17: 2066373 | AE17: 2061974 | AF17: 2005846 | AG17: 1960874 | AH17: 1964442 | AI17: 1901262 | AJ17: 1940972 | AK17: 1903764 | AL17: 1959561 | AM17: 2050700 | AN17: 2205191 | AO17: 2158652 | AP17: 2104016 | AQ17: 2058129 | AR17: 2089245 | AS17: 2132249 | AT17: 2235243 | AU17: 2306244 | AV17: 2332182 | AW17: 2336163 | AX17: 2373123 | AY17: 2327904 | AZ17: 2318027 | BA17: 2304305 | BB17: 2288312 | BC17: 2210338 | BD17: 2172384 | BE17: 2119796 | BF17: 2057647 | BG17: 1990895 | BH17: 1946325 | BI17: 1869285 | BJ17: 1853864 | BK17: 1828553 | BL17: 1959297 | BM17: 1420515 | BN17: 1438671 | BO17: 1435577 | BP17: 1498037 | BQ17: 1307143 | BR17: 1227291 | BS17: 1168441 | BT17: 1140192 | BU17: 1114245 | BV17: 1045906 | BW17: 1022878 | BX17: 1007607 | BY17: 937128 | BZ17: 933156 | CA17: 928302 | CB17: 930176 | CC17: 904923 | CD17: 882232 | CE17: 868244 | CF17: 838165 | CG17: 810236 | CH17: 785839 | CI17: 748371 | CJ17: 702439 | CK17: 656849 | CL17: 600809 | CM17: 532406 | CN17: 469460 | CO17: 413291 | CP17: 360014 | CQ17: 313829 | CR17: 272241 | CS17: 230711 | CT17: 189036 | CU17: 149990 | CV17: 116723 | CW17: 90218 | CX17: 67924 | CY17: 49567 | CZ17: 35343 | DA17: 24680 | DB17: 44268
B18: SSA | C18: F | D18: 2006 | E18: 153912250 | F18: 2068296 | G18: 2042270 | H18: 2044870 | I18: 2020768 | J18: 2007959 | K18: 2032368 | L18: 2035691 | M18: 2023963 | N18: 2012305 | O18: 2008331 | P18: 2012523 | Q18: 2039998 | R18: 2064633 | S18: 2100104 | T18: 2148293 | U18: 2174847 | V18: 2189647 | W18: 2123553 | X18: 2077678 | Y18: 2058903 | Z18: 2064781 | AA18: 2069019 | AB18: 2026451 | AC18: 2085274 | AD18: 2101923 | AE18: 2093561 | AF18: 2086977 | AG18: 2029074 | AH18: 1982737 | AI18: 1986907 | AJ18: 1922772 | AK18: 1959717 | AL18: 1918907 | AM18: 1974672 | AN18: 2063669 | AO18: 2216567 | AP18: 2169647 | AQ18: 2112471 | AR18: 2065374 | AS18: 2095953 | AT18: 2139298 | AU18: 2241016 | AV18: 2309161 | AW18: 2334170 | AX18: 2336498 | AY18: 2374879 | AZ18: 2328668 | BA18: 2315269 | BB18: 2301830 | BC18: 2285578 | BD18: 2207562 | BE18: 2169516 | BF18: 2115139 | BG18: 2052932 | BH18: 1985542 | BI18: 1942572 | BJ18: 1864862 | BK18: 1845699 | BL18: 1820390 | BM18: 1951215 | BN18: 1414713 | BO18: 1431398 | BP18: 1426029 | BQ18: 1488228 | BR18: 1298176 | BS18: 1218112 | BT18: 1158790 | BU18: 1128392 | BV18: 1101505 | BW18: 1032724 | BX18: 1008418 | BY18: 991089 | BZ18: 918850 | CA18: 913853 | CB18: 906499 | CC18: 905849 | CD18: 878982 | CE18: 852990 | CF18: 837342 | CG18: 805261 | CH18: 775132 | CI18: 748753 | CJ18: 709178 | CK18: 661240 | CL18: 613595 | CM18: 556377 | CN18: 488180 | CO18: 425660 | CP18: 370056 | CQ18: 317812 | CR18: 272716 | CS18: 232540 | CT18: 193427 | CU18: 155336 | CV18: 120654 | CW18: 91815 | CX18: 69348 | CY18: 51003 | CZ18: 36344 | DA18: 25294 | DB18: 45341
B19: SSA | C19: F | D19: 2007 | E19: 155367974 | F19: 2134595 | G19: 2075013 | H19: 2052598 | I19: 2055143 | J19: 2031233 | K19: 2019613 | L19: 2044144 | M19: 2049276 | N19: 2040021 | O19: 2027337 | P19: 2021762 | Q19: 2025398 | R19: 2051870 | S19: 2076285 | T19: 2112781 | U19: 2160946 | V19: 2188503 | W19: 2204733 | X19: 2138616 | Y19: 2094079 | Z19: 2077004 | AA19: 2084500 | AB19: 2090284 | AC19: 2047527 | AD19: 2106890 | AE19: 2124498 | AF19: 2114715 | AG19: 2104188 | AH19: 2042857 | AI19: 1993656 | AJ19: 1996637 | AK19: 1931098 | AL19: 1965280 | AM19: 1921494 | AN19: 1977705 | AO19: 2065325 | AP19: 2217237 | AQ19: 2171110 | AR19: 2112173 | AS19: 2064525 | AT19: 2094899 | AU19: 2139115 | AV19: 2240141 | AW19: 2306031 | AX19: 2330663 | AY19: 2331849 | AZ19: 2372095 | BA19: 2325413 | BB19: 2308810 | BC19: 2295977 | BD19: 2279768 | BE19: 2202017 | BF19: 2164051 | BG19: 2108004 | BH19: 2045846 | BI19: 1977939 | BJ19: 1936677 | BK19: 1858494 | BL19: 1835736 | BM19: 1810568 | BN19: 1941403 | BO19: 1407612 | BP19: 1422805 | BQ19: 1415228 | BR19: 1477068 | BS19: 1287977 | BT19: 1207756 | BU19: 1147957 | BV19: 1115379 | BW19: 1087518 | BX19: 1018308 | BY19: 992690 | BZ19: 973247 | CA19: 899284 | CB19: 893128 | CC19: 883222 | CD19: 879940 | CE19: 851422 | CF19: 822233 | CG19: 804930 | CH19: 770906 | CI19: 738543 | CJ19: 710104 | CK19: 668484 | CL19: 618703 | CM19: 569261 | CN19: 511267 | CO19: 443777 | CP19: 382213 | CQ19: 327752 | CR19: 277168 | CS19: 233835 | CT19: 195754 | CU19: 159635 | CV19: 125518 | CW19: 95373 | CX19: 70936 | CY19: 52348 | CZ19: 37621 | DA19: 26177 | DB19: 46750
B20: SSA | C20: F | D20: 2008 | E20: 156462102 | F20: 2135645 | G20: 2140891 | H20: 2084131 | I20: 2062542 | J20: 2065279 | K20: 2041617 | L20: 2030589 | M20: 2054234 | N20: 2060631 | O20: 2053735 | P20: 2039801 | Q20: 2032310 | R20: 2034972 | S20: 2059841 | T20: 2083492 | U20: 2120635 | V20: 2168443 | W20: 2196607 | X20: 2213783 | Y20: 2147508 | Z20: 2103841 | AA20: 2086911 | AB20: 2093958 | AC20: 2099705 | AD20: 2055708 | AE20: 2114358 | AF20: 2132304 | AG20: 2121021 | AH20: 2106722 | AI20: 2042167 | AJ20: 1990438 | AK20: 1992157 | AL20: 1926460 | AM20: 1959566 | AN20: 1914162 | AO20: 1971291 | AP20: 2058213 | AQ20: 2209608 | AR20: 2165159 | AS20: 2105046 | AT20: 2057290 | AU20: 2087583 | AV20: 2132955 | AW20: 2233647 | AX20: 2297696 | AY20: 2322409 | AZ20: 2322867 | BA20: 2365300 | BB20: 2318555 | BC20: 2298983 | BD20: 2287002 | BE20: 2271050 | BF20: 2193760 | BG20: 2155998 | BH20: 2098387 | BI20: 2036370 | BJ20: 1968069 | BK20: 1928590 | BL20: 1850066 | BM20: 1823803 | BN20: 1798888 | BO20: 1929585 | BP20: 1398873 | BQ20: 1412414 | BR20: 1402621 | BS20: 1464006 | BT20: 1276085 | BU20: 1195706 | BV20: 1135393 | BW20: 1100621 | BX20: 1071756 | BY20: 1002123 | BZ20: 975107 | CA20: 953476 | CB20: 877878 | CC20: 870452 | CD20: 857960 | CE20: 851972 | CF20: 821812 | CG20: 789524 | CH20: 770473 | CI20: 734451 | CJ20: 699782 | CK20: 669212 | CL20: 625646 | CM20: 574233 | CN20: 523294 | CO20: 464934 | CP20: 398663 | CQ20: 338641 | CR20: 285975 | CS20: 237740 | CT20: 196867 | CU20: 161539 | CV20: 128941 | CW20: 99110 | CX20: 73562 | CY20: 53415 | CZ20: 38483 | DA20: 27000 | DB20: 48028
B21: SSA | C21: F | D21: 2009 | E21: 157494448 | F21: 2068667 | G21: 2145083 | H21: 2150706 | I21: 2094228 | J21: 2073897 | K21: 2077213 | L21: 2053532 | M21: 2042320 | N21: 2064736 | O21: 2072563 | P21: 2068084 | Q21: 2052820 | R21: 2043153 | S21: 2044381 | T21: 2067234 | U21: 2089888 | V21: 2127550 | W21: 2174930 | X21: 2203548 | Y21: 2221340 | Z21: 2154523 | AA21: 2110766 | AB21: 2092524 | AC21: 2098026 | AD21: 2103412 | AE21: 2058134 | AF21: 2115625 | AG21: 2133714 | AH21: 2121890 | AI21: 2105638 | AJ21: 2039699 | AK21: 1987262 | AL21: 1989559 | AM21: 1924546 | AN21: 1956615 | AO21: 1909517 | AP21: 1967545 | AQ21: 2053627 | AR21: 2204335 | AS21: 2161290 | AT21: 2099807 | AU21: 2051749 | AV21: 2081840 | AW21: 2128204 | AX21: 2228345 | AY21: 2290333 | AZ21: 2314915 | BA21: 2314465 | BB21: 2358952 | BC21: 2312002 | BD21: 2289342 | BE21: 2278090 | BF21: 2262278 | BG21: 2185374 | BH21: 2147780 | BI21: 2088610 | BJ21: 2026710 | BK21: 1957947 | BL21: 1920140 | BM21: 1841161 | BN21: 1811312 | BO21: 1786568 | BP21: 1916925 | BQ21: 1389377 | BR21: 1401137 | BS21: 1389099 | BT21: 1449926 | BU21: 1263179 | BV21: 1182573 | BW21: 1121728 | BX21: 1084755 | BY21: 1054805 | BZ21: 984682 | CA21: 956152 | CB21: 932262 | CC21: 855115 | CD21: 846344 | CE21: 831286 | CF21: 822549 | CG21: 790747 | CH21: 755428 | CI21: 734484 | CJ21: 696437 | CK21: 659497 | CL21: 626816 | CM21: 581459 | CN21: 528724 | CO21: 476746 | CP21: 418616 | CQ21: 354224 | CR21: 296417 | CS21: 246181 | CT21: 200880 | CU21: 163033 | CV21: 130978 | CW21: 102254 | CX21: 76807 | CY21: 55682 | CZ21: 39482 | DA21: 27767 | DB21: 49851
B22: SSA | C22: F | D22: 2010 | E22: 158706104 | F22: 1996004 | G22: 2076282 | H22: 2152908 | I22: 2157190 | J22: 2101383 | K22: 2082273 | L22: 2086159 | M22: 2062681 | N22: 2051453 | O22: 2074259 | P22: 2082584 | Q22: 2078469 | R22: 2063223 | S22: 2053231 | T22: 2054163 | U22: 2076703 | V22: 2099410 | W22: 2137711 | X22: 2185653 | Y22: 2214939 | Z22: 2233630 | AA22: 2167264 | AB22: 2123275 | AC22: 2104590 | AD22: 2110424 | AE22: 2116005 | AF22: 2069645 | AG22: 2126185 | AH22: 2143228 | AI22: 2130938 | AJ22: 2113431 | AK22: 2046270 | AL22: 1993283 | AM22: 1995327 | AN22: 1929998 | AO22: 1961371 | AP22: 1913007 | AQ22: 1970954 | AR22: 2056152 | AS22: 2206127 | AT22: 2163233 | AU22: 2100733 | AV22: 2052090 | AW22: 2081827 | AX22: 2128176 | AY22: 2227699 | AZ22: 2288343 | BA22: 2312394 | BB22: 2311350 | BC22: 2356103 | BD22: 2308341 | BE22: 2284396 | BF22: 2273420 | BG22: 2257367 | BH22: 2180397 | BI22: 2142837 | BJ22: 2082852 | BK22: 2020682 | BL22: 1951462 | BM22: 1913623 | BN22: 1833946 | BO22: 1802443 | BP22: 1777105 | BQ22: 1906310 | BR22: 1380564 | BS22: 1389741 | BT22: 1375637 | BU22: 1435048 | BV22: 1249007 | BW22: 1167723 | BX22: 1106028 | BY22: 1067339 | BZ22: 1035809 | CA22: 965030 | CB22: 935117 | CC22: 909150 | CD22: 831053 | CE22: 820389 | CF22: 802933 | CG22: 791439 | CH22: 757838 | CI22: 719980 | CJ22: 696573 | CK22: 656402 | CL22: 617162 | CM22: 582186 | CN22: 535337 | CO22: 481836 | CP22: 429440 | CQ22: 372249 | CR22: 310508 | CS22: 255703 | CT22: 208650 | CU22: 166978 | CV22: 132764 | CW22: 104441 | CX22: 79806 | CY22: 58648 | CZ22: 41592 | DA22: 28851 | DB22: 52242
B23: SSA | C23: F | D23: 2011 | E23: 159886545 | F23: 1951019 | G23: 1998178 | H23: 2079362 | I23: 2155955 | J23: 2159375 | K23: 2104456 | L23: 2085935 | M23: 2089885 | N23: 2067059 | O23: 2056253 | P23: 2080764 | Q23: 2088369 | R23: 2082351 | S23: 2068169 | T23: 2059582 | U23: 2061431 | V23: 2085377 | W23: 2109099 | X23: 2147853 | Y23: 2197195 | Z23: 2227393 | AA23: 2246942 | AB23: 2181970 | AC23: 2138157 | AD23: 2119880 | AE23: 2126846 | AF23: 2132146 | AG23: 2084617 | AH23: 2140184 | AI23: 2154782 | AJ23: 2142008 | AK23: 2123899 | AL23: 2055686 | AM23: 2002446 | AN23: 2003412 | AO23: 1936968 | AP23: 1967972 | AQ23: 1918998 | AR23: 1976073 | AS23: 2060713 | AT23: 2210182 | AU23: 2166664 | AV23: 2103786 | AW23: 2054500 | AX23: 2083801 | AY23: 2129342 | AZ23: 2228476 | BA23: 2288810 | BB23: 2312208 | BC23: 2311113 | BD23: 2354567 | BE23: 2305674 | BF23: 2282425 | BG23: 2271444 | BH23: 2254931 | BI23: 2177573 | BJ23: 2139936 | BK23: 2079916 | BL23: 2017159 | BM23: 1947566 | BN23: 1908091 | BO23: 1827547 | BP23: 1796305 | BQ23: 1769602 | BR23: 1896746 | BS23: 1371716 | BT23: 1377525 | BU23: 1361521 | BV23: 1418675 | BW23: 1233001 | BX23: 1150624 | BY23: 1087768 | BZ23: 1047822 | CA23: 1014227 | CB23: 942636 | CC23: 911436 | CD23: 883552 | CE23: 805081 | CF23: 791960 | CG23: 772192 | CH23: 757823 | CI23: 722192 | CJ23: 682253 | CK23: 655923 | CL23: 613643 | CM23: 572151 | CN23: 534743 | CO23: 486670 | CP23: 432902 | CQ23: 380681 | CR23: 325123 | CS23: 266795 | CT23: 215778 | CU23: 172705 | CV23: 135388 | CW23: 105355 | CX23: 81076 | CY23: 60587 | CZ23: 43539 | DA23: 30202 | DB23: 54157
B24: SSA | C24: F | D24: 2012 | E24: 160996163 | F24: 1935356 | G24: 1955550 | H24: 2003751 | I24: 2083300 | J24: 2159459 | K24: 2162015 | L24: 2107805 | M24: 2089544 | N24: 2093502 | O24: 2071491 | P24: 2061164 | Q24: 2087341 | R24: 2094124 | S24: 2085889 | T24: 2072512 | U24: 2065318 | V24: 2068172 | W24: 2093575 | X24: 2118198 | Y24: 2157545 | Z24: 2208746 | AA24: 2239783 | AB24: 2259652 | AC24: 2195909 | AD24: 2152363 | AE24: 2134077 | AF24: 2141256 | AG24: 2145729 | AH24: 2097181 | AI24: 2151952 | AJ24: 2164222 | AK24: 2151073 | AL24: 2132405 | AM24: 2063174 | AN24: 2009745 | AO24: 2009634 | AP24: 1942124 | AQ24: 1972763 | AR24: 1923249 | AS24: 1979477 | AT24: 2063634 | AU24: 2212648 | AV24: 2168637 | AW24: 2105448 | AX24: 2055537 | AY24: 2084385 | AZ24: 2129156 | BA24: 2227927 | BB24: 2287995 | BC24: 2310767 | BD24: 2309654 | BE24: 2351877 | BF24: 2301961 | BG24: 2279456 | BH24: 2268467 | BI24: 2251460 | BJ24: 2173691 | BK24: 2135949 | BL24: 2075910 | BM24: 2012553 | BN24: 1942559 | BO24: 1901416 | BP24: 1819975 | BQ24: 1788907 | BR24: 1760752 | BS24: 1885622 | BT24: 1361655 | BU24: 1363982 | BV24: 1346000 | BW24: 1400793 | BX24: 1215647 | BY24: 1132223 | BZ24: 1068220 | CA24: 1026948 | CB24: 991182 | CC24: 918682 | CD24: 886055 | CE24: 856179 | CF24: 777380 | CG24: 761700 | CH24: 739535 | CI24: 722180 | CJ24: 684504 | CK24: 642556 | CL24: 613411 | CM24: 569236 | CN24: 525769 | CO24: 486215 | CP24: 437258 | CQ24: 383726 | CR24: 332427 | CS24: 279372 | CT24: 225218 | CU24: 178603 | CV24: 139999 | CW24: 107367 | CX24: 81676 | CY24: 61431 | CZ24: 44875 | DA24: 31531 | DB24: 56160
B25: SSA | C25: F | D25: 2013 | E25: 162119829 | F25: 1939478 | G25: 1939977 | H25: 1963614 | I25: 2010394 | J25: 2087892 | K25: 2163633 | L25: 2165266 | M25: 2111537 | N25: 2093565 | O25: 2097812 | P25: 2076751 | Q25: 2066933 | R25: 2094784 | S25: 2100574 | T25: 2089871 | U25: 2077289 | V25: 2071690 | W25: 2075671 | X25: 2102505 | Y25: 2128101 | Z25: 2168432 | AA25: 2221598 | AB25: 2252981 | AC25: 2273022 | AD25: 2210689 | AE25: 2167182 | AF25: 2148396 | AG25: 2155423 | AH25: 2159060 | AI25: 2109686 | AJ25: 2163776 | AK25: 2173772 | AL25: 2160266 | AM25: 2141031 | AN25: 2070773 | AO25: 2017123 | AP25: 2015885 | AQ25: 1947299 | AR25: 1977568 | AS25: 1927465 | AT25: 1982757 | AU25: 2066370 | AV25: 2214921 | AW25: 2170405 | AX25: 2106864 | AY25: 2056322 | AZ25: 2084692 | BA25: 2128609 | BB25: 2226888 | BC25: 2286581 | BD25: 2308692 | BE25: 2307568 | BF25: 2348535 | BG25: 2297567 | BH25: 2275744 | BI25: 2264666 | BJ25: 2247078 | BK25: 2168839 | BL25: 2130953 | BM25: 2070864 | BN25: 2006850 | BO25: 1936397 | BP25: 1893504 | BQ25: 1811086 | BR25: 1780075 | BS25: 1750436 | BT25: 1872878 | BU25: 1350298 | BV25: 1349012 | BW25: 1328981 | BX25: 1381276 | BY25: 1196811 | BZ25: 1112350 | CA25: 1047146 | CB25: 1004449 | CC25: 966460 | CD25: 893039 | CE25: 858886 | CF25: 826953 | CG25: 747886 | CH25: 729579 | CI25: 704978 | CJ25: 684587 | CK25: 644880 | CL25: 600982 | CM25: 569130 | CN25: 523327 | CO25: 478245 | CP25: 437032 | CQ25: 387856 | CR25: 335356 | CS25: 285830 | CT25: 236032 | CU25: 186628 | CV25: 144864 | CW25: 111023 | CX25: 83184 | CY25: 61803 | CZ25: 45411 | DA25: 32425 | DB25: 58225
B26: SSA | C26: F | D26: 2014 | E26: 163467241 | F26: 1952595 | G26: 1945315 | H26: 1948448 | I26: 1973259 | J26: 2018349 | K26: 2094001 | L26: 2169523 | M26: 2170221 | N26: 2117219 | O26: 2100106 | P26: 2105103 | Q26: 2085424 | R26: 2076383 | S26: 2105975 | T26: 2110871 | U26: 2098088 | V26: 2086881 | W26: 2083320 | X26: 2088725 | Y26: 2117548 | Z26: 2145053 | AA26: 2186916 | AB26: 2242298 | AC26: 2274290 | AD26: 2294653 | AE26: 2233463 | AF26: 2189733 | AG26: 2170502 | AH26: 2177725 | AI26: 2180119 | AJ26: 2128534 | AK26: 2180791 | AL26: 2187179 | AM26: 2172534 | AN26: 2152587 | AO26: 2081222 | AP26: 2027326 | AQ26: 2025010 | AR26: 1955292 | AS26: 1985191 | AT26: 1934357 | AU26: 1988610 | AV26: 2071535 | AW26: 2219482 | AX26: 2174159 | AY26: 2110089 | AZ26: 2058815 | BA26: 2086676 | BB26: 2129607 | BC26: 2227177 | BD26: 2286239 | BE26: 2307483 | BF26: 2306186 | BG26: 2345678 | BH26: 2293418 | BI26: 2272099 | BJ26: 2260768 | BK26: 2242488 | BL26: 2163688 | BM26: 2125554 | BN26: 2065345 | BO26: 2000603 | BP26: 1929606 | BQ26: 1884837 | BR26: 1801321 | BS26: 1770253 | BT26: 1738989 | BU26: 1858727 | BV26: 1337873 | BW26: 1332960 | BX26: 1310788 | BY26: 1360351 | BZ26: 1176596 | CA26: 1091046 | CB26: 1024533 | CC26: 980304 | CD26: 940090 | CE26: 865797 | CF26: 830036 | CG26: 795970 | CH26: 716691 | CI26: 695721 | CJ26: 668695 | CK26: 645277 | CL26: 603641 | CM26: 558000 | CN26: 523725 | CO26: 476732 | CP26: 430599 | CQ26: 388344 | CR26: 339598 | CS26: 288824 | CT26: 241783 | CU26: 195874 | CV26: 151722 | CW26: 115203 | CX26: 86312 | CY26: 63188 | CZ26: 45868 | DA26: 32943 | DB26: 60596
B27: SSA | C27: F | D27: 2015 | E27: 164969273 | F27: 1976353 | G27: 1958942 | H27: 1954917 | I27: 1958510 | J27: 1984160 | K27: 2027592 | L27: 2101404 | M27: 2176595 | N27: 2176434 | O27: 2124466 | P27: 2108474 | Q27: 2114468 | R27: 2096373 | S27: 2088018 | T27: 2119235 | U27: 2123333 | V27: 2108783 | W27: 2099277 | X27: 2097876 | Y27: 2104947 | Z27: 2136253 | AA27: 2165934 | AB27: 2209291 | AC27: 2267155 | AD27: 2300020 | AE27: 2320326 | AF27: 2259685 | AG27: 2215414 | AH27: 2195610 | AI27: 2203132 | AJ27: 2204408 | AK27: 2150564 | AL27: 2201008 | AM27: 2203696 | AN27: 2187749 | AO27: 2166971 | AP27: 2094437 | AQ27: 2040202 | AR27: 2036787 | AS27: 1965803 | AT27: 1995299 | AU27: 1943629 | AV27: 1996747 | AW27: 2078799 | AX27: 2225939 | AY27: 2179518 | AZ27: 2114743 | BA27: 2062601 | BB27: 2089911 | BC27: 2131740 | BD27: 2228424 | BE27: 2286698 | BF27: 2306909 | BG27: 2305264 | BH27: 2343089 | BI27: 2289361 | BJ27: 2268417 | BK27: 2256710 | BL27: 2237617 | BM27: 2158205 | BN27: 2119771 | BO27: 2059331 | BP27: 1993731 | BQ27: 1922057 | BR27: 1875312 | BS27: 1790699 | BT27: 1759516 | BU27: 1726443 | BV27: 1843170 | BW27: 1324349 | BX27: 1315731 | BY27: 1291253 | BZ27: 1337809 | CA27: 1154809 | CB27: 1068120 | CC27: 1000229 | CD27: 954360 | CE27: 911864 | CF27: 836718 | CG27: 799272 | CH27: 763023 | CI27: 683595 | CJ27: 659857 | CK27: 630364 | CL27: 603972 | CM27: 560613 | CN27: 513522 | CO27: 477131 | CP27: 429365 | CQ27: 382719 | CR27: 340070 | CS27: 292483 | CT27: 244234 | CU27: 200506 | CV27: 159213 | CW27: 120795 | CX27: 89765 | CY27: 65803 | CZ27: 47127 | DA27: 33470 | DB27: 62880
B28: SSA | C28: F | D28: 2016 | E28: 166292583 | F28: 1972062 | G28: 1982392 | H28: 1968699 | I28: 1965644 | J28: 1969243 | K28: 1995594 | L28: 2037090 | M28: 2108657 | N28: 2183250 | O28: 2182194 | P28: 2131233 | Q28: 2116258 | R28: 2123132 | S28: 2106299 | T28: 2098346 | U28: 2131102 | V28: 2134375 | W28: 2117980 | X28: 2109971 | Y28: 2110722 | Z28: 2119565 | AA28: 2152904 | AB28: 2183902 | AC28: 2228458 | AD28: 2288781 | AE28: 2322223 | AF28: 2342057 | AG28: 2280794 | AH28: 2234197 | AI28: 2212060 | AJ28: 2218145 | AK28: 2218259 | AL28: 2163797 | AM28: 2213720 | AN28: 2214150 | AO28: 2197790 | AP28: 2176439 | AQ28: 2102938 | AR28: 2048543 | AS28: 2044045 | AT28: 1972019 | AU28: 2001228 | AV28: 1948974 | AW28: 2001134 | AX28: 2082547 | AY28: 2229006 | AZ28: 2181814 | BA28: 2116555 | BB28: 2063701 | BC28: 2090462 | BD28: 2131283 | BE28: 2227254 | BF28: 2284950 | BG28: 2304296 | BH28: 2302405 | BI28: 2338664 | BJ28: 2283622 | BK28: 2263136 | BL28: 2251109 | BM28: 2231240 | BN28: 2151254 | BO28: 2112461 | BP28: 2051716 | BQ28: 1985202 | BR28: 1912812 | BS28: 1864112 | BT28: 1778436 | BU28: 1747000 | BV28: 1712063 | BW28: 1825560 | BX28: 1309214 | BY28: 1296760 | BZ28: 1269841 | CA28: 1313120 | CB28: 1130979 | CC28: 1043154 | CD28: 973925 | CE28: 926382 | CF28: 881563 | CG28: 805581 | CH28: 766397 | CI28: 727966 | CJ28: 648557 | CK28: 622093 | CL28: 590200 | CM28: 560937 | CN28: 516104 | CO28: 467881 | CP28: 429738 | CQ28: 381681 | CR28: 335130 | CS28: 292878 | CT28: 247393 | CU28: 202567 | CV28: 162866 | CW28: 126595 | CX28: 93970 | CY28: 68279 | CZ28: 48950 | DA28: 34289 | DB28: 64568
B29: SSA | C29: F | D29: 2017 | E29: 167483879 | F29: 1932776 | G29: 1977425 | H29: 1991861 | I29: 1979549 | J29: 1976930 | K29: 1980336 | L29: 2007151 | M29: 2046392 | N29: 2115626 | O29: 2189698 | P29: 2187736 | Q29: 2137801 | R29: 2123860 | S29: 2131459 | T29: 2115706 | U29: 2108169 | V29: 2142567 | W29: 2145028 | X29: 2126678 | Y29: 2120212 | Z29: 2123240 | AA29: 2133452 | AB29: 2168090 | AC29: 2200118 | AD29: 2246074 | AE29: 2308733 | AF29: 2342317 | AG29: 2360484 | AH29: 2297641 | AI29: 2248746 | AJ29: 2224409 | AK29: 2229199 | AL29: 2228258 | AM29: 2173335 | AN29: 2222778 | AO29: 2221124 | AP29: 2204590 | AQ29: 2182820 | AR29: 2108506 | AS29: 2054145 | AT29: 2048657 | AU29: 1975745 | AV29: 2004734 | AW29: 1952096 | AX29: 2003424 | AY29: 2084297 | AZ29: 2230119 | BA29: 2182336 | BB29: 2116734 | BC29: 2063241 | BD29: 2089447 | BE29: 2129306 | BF29: 2224643 | BG29: 2281821 | BH29: 2300309 | BI29: 2298153 | BJ29: 2332801 | BK29: 2276472 | BL29: 2256423 | BM29: 2244047 | BN29: 2223364 | BO29: 2142773 | BP29: 2103529 | BQ29: 2042401 | BR29: 1974953 | BS29: 1901908 | BT29: 1851252 | BU29: 1764374 | BV29: 1732512 | BW29: 1695671 | BX29: 1805688 | BY29: 1292306 | BZ29: 1275898 | CA29: 1246451 | CB29: 1286225 | CC29: 1105080 | CD29: 1016148 | CE29: 945579 | CF29: 896310 | CG29: 849182 | CH29: 772431 | CI29: 731453 | CJ29: 690833 | CK29: 611607 | CL29: 582536 | CM29: 548447 | CN29: 516549 | CO29: 470586 | CP29: 421692 | CQ29: 382332 | CR29: 334605 | CS29: 288907 | CT29: 247947 | CU29: 205441 | CV29: 164782 | CW29: 129642 | CX29: 98558 | CY29: 71521 | CZ29: 50797 | DA29: 35616 | DB29: 66169
B30: SSA | C30: F | D30: 2018 | E30: 168583998 | F30: 1907986 | G30: 1936995 | H30: 1985725 | I30: 2001953 | J30: 1990443 | K30: 1988049 | L30: 1991034 | M30: 2018009 | N30: 2054951 | O30: 2121889 | P30: 2195377 | Q30: 2192511 | R30: 2143563 | S30: 2130422 | T30: 2138458 | U30: 2123622 | V30: 2116407 | W30: 2152309 | X30: 2153728 | Y30: 2133319 | Z30: 2128338 | AA30: 2133046 | AB30: 2143769 | AC30: 2179231 | AD30: 2212360 | AE30: 2259496 | AF30: 2323691 | AG30: 2356762 | AH30: 2372803 | AI30: 2309186 | AJ30: 2259699 | AK30: 2234870 | AL30: 2240072 | AM30: 2238890 | AN30: 2183493 | AO30: 2232519 | AP30: 2228905 | AQ30: 2212240 | AR30: 2190016 | AS30: 2114886 | AT30: 2060568 | AU30: 2054122 | AV30: 1980276 | AW30: 2008978 | AX30: 1955864 | AY30: 2006242 | AZ30: 2086416 | BA30: 2231457 | BB30: 2182934 | BC30: 2116865 | BD30: 2062658 | BE30: 2088276 | BF30: 2127097 | BG30: 2221645 | BH30: 2278125 | BI30: 2295594 | BJ30: 2293053 | BK30: 2325959 | BL30: 2268225 | BM30: 2248492 | BN30: 2235668 | BO30: 2214050 | BP30: 2132756 | BQ30: 2092967 | BR30: 2031442 | BS30: 1963119 | BT30: 1889439 | BU30: 1836684 | BV30: 1748503 | BW30: 1716118 | BX30: 1677281 | BY30: 1783451 | BZ30: 1273502 | CA30: 1252984 | CB30: 1220898 | CC30: 1256946 | CD30: 1076998 | CE30: 986997 | CF30: 915094 | CG30: 864055 | CH30: 814614 | CI30: 737150 | CJ30: 694361 | CK30: 651593 | CL30: 572741 | CM30: 541140 | CN30: 505028 | CO30: 470742 | CP30: 423987 | CQ30: 374923 | CR30: 334991 | CS30: 288397 | CT30: 244451 | CU30: 205679 | CV30: 166893 | CW30: 130957 | CX30: 100730 | CY30: 74863 | CZ30: 53103 | DA30: 36876 | DB30: 67959
B31: SSA | C31: F | D31: 2019 | E31: 169472116 | F31: 1867019 | G31: 1910272 | H31: 1943277 | I31: 1993724 | J31: 2011114 | K31: 2000157 | L31: 1997703 | M31: 1999945 | N31: 2026994 | O31: 2061660 | P31: 2126166 | Q31: 2198931 | R31: 2195088 | S31: 2146967 | T31: 2134419 | U31: 2142723 | V31: 2128633 | W31: 2121560 | X31: 2158711 | Y31: 2158889 | Z31: 2136282 | AA31: 2132293 | AB31: 2138008 | AC31: 2148935 | AD31: 2185194 | AE31: 2219373 | AF31: 2267171 | AG31: 2332259 | AH31: 2364590 | AI31: 2379340 | AJ31: 2316053 | AK31: 2266221 | AL31: 2241024 | AM31: 2246717 | AN31: 2245435 | AO31: 2189853 | AP31: 2238622 | AQ31: 2233198 | AR31: 2216577 | AS31: 2194109 | AT31: 2118395 | AU31: 2064348 | AV31: 2057046 | AW31: 1982414 | AX31: 2010862 | AY31: 1957367 | AZ31: 2006819 | BA31: 2086374 | BB31: 2230663 | BC31: 2181505 | BD31: 2115027 | BE31: 2060199 | BF31: 2085249 | BG31: 2123044 | BH31: 2216761 | BI31: 2272543 | BJ31: 2289029 | BK31: 2286127 | BL31: 2317266 | BM31: 2258149 | BN31: 2238690 | BO31: 2225387 | BP31: 2202797 | BQ31: 2120788 | BR31: 2080482 | BS31: 2018719 | BT31: 1949631 | BU31: 1875215 | BV31: 1820230 | BW31: 1730714 | BX31: 1697693 | BY31: 1656743 | BZ31: 1758677 | CA31: 1252719 | CB31: 1228074 | CC31: 1193346 | CD31: 1225486 | CE31: 1046908 | CF31: 955865 | CG31: 882649 | CH31: 829824 | CI31: 778096 | CJ31: 700013 | CK31: 655468 | CL31: 610735 | CM31: 532571 | CN31: 498661 | CO31: 460800 | CP31: 424504 | CQ31: 377453 | CR31: 328846 | CS31: 289142 | CT31: 244553 | CU31: 203230 | CV31: 167415 | CW31: 132862 | CX31: 101887 | CY31: 76570 | CZ31: 55623 | DA31: 38582 | DB31: 70075
B32: SSA | C32: F | D32: 2020 | E32: 170247148 | F32: 1844766 | G32: 1867768 | H32: 1914386 | I32: 1949235 | J32: 2000868 | K32: 2019209 | L32: 2008608 | M32: 2005887 | N32: 2007407 | O32: 2034703 | P32: 2067107 | Q32: 2129209 | R32: 2201502 | S32: 2196875 | T32: 2149702 | U32: 2137942 | V32: 2146718 | W32: 2133504 | X32: 2126565 | Y32: 2164984 | Z32: 2164002 | AA32: 2139081 | AB32: 2135910 | AC32: 2142786 | AD32: 2154227 | AE32: 2191539 | AF32: 2226852 | AG32: 2275341 | AH32: 2341551 | AI32: 2372622 | AJ32: 2385605 | AK32: 2322906 | AL32: 2272892 | AM32: 2247420 | AN32: 2253696 | AO32: 2252417 | AP32: 2196777 | AQ32: 2245407 | AR32: 2238248 | AS32: 2221691 | AT32: 2198977 | AU32: 2122694 | AV32: 2068927 | AW32: 2060823 | AX32: 1985408 | AY32: 2013619 | AZ32: 1959708 | BA32: 2008115 | BB32: 2086899 | BC32: 2230291 | BD32: 2180329 | BE32: 2113375 | BF32: 2057864 | BG32: 2082236 | BH32: 2118796 | BI32: 2211372 | BJ32: 2266162 | BK32: 2281426 | BL32: 2277926 | BM32: 2306978 | BN32: 2246212 | BO32: 2226774 | BP32: 2212749 | BQ32: 2188950 | BR32: 2106138 | BS32: 2065262 | BT32: 2003204 | BU32: 1933171 | BV32: 1857850 | BW32: 1800462 | BX32: 1709420 | BY32: 1675389 | BZ32: 1631988 | CA32: 1728922 | CB32: 1228062 | CC32: 1199142 | CD32: 1161597 | CE32: 1189292 | CF32: 1012324 | CG32: 920170 | CH32: 845550 | CI32: 790815 | CJ32: 736818 | CK32: 658297 | CL32: 611935 | CM32: 565251 | CN32: 488168 | CO32: 452120 | CP32: 412828 | CQ32: 375000 | CR32: 328397 | CS32: 281179 | CT32: 242665 | CU32: 201110 | CV32: 163476 | CW32: 131601 | CX32: 101992 | CY32: 76343 | CZ32: 56004 | DA32: 39733 | DB32: 70948
B33: SSA | C33: F | D33: 2021 | E33: 170942447 | F33: 1767777 | G33: 1842631 | H33: 1870806 | I33: 1918889 | J33: 1955243 | K33: 2007981 | L33: 2027226 | M33: 2016950 | N33: 2014107 | O33: 2015182 | P33: 2042926 | Q33: 2073239 | R33: 2133449 | S33: 2205806 | T33: 2200603 | U33: 2154483 | V33: 2143637 | W33: 2152984 | X33: 2140574 | Y33: 2133845 | Z33: 2173817 | AA33: 2171786 | AB33: 2144644 | AC33: 2142683 | AD33: 2151197 | AE33: 2163485 | AF33: 2202055 | AG33: 2238476 | AH33: 2287619 | AI33: 2354910 | AJ33: 2384537 | AK33: 2395605 | AL33: 2333238 | AM33: 2282814 | AN33: 2256900 | AO33: 2263583 | AP33: 2262125 | AQ33: 2206199 | AR33: 2254551 | AS33: 2245468 | AT33: 2228782 | AU33: 2205642 | AV33: 2128581 | AW33: 2074833 | AX33: 2065715 | AY33: 1989311 | AZ33: 2017108 | BA33: 1962538 | BB33: 2009622 | BC33: 2087315 | BD33: 2229477 | BE33: 2178502 | BF33: 2110927 | BG33: 2054586 | BH33: 2078089 | BI33: 2113166 | BJ33: 2204259 | BK33: 2257721 | BL33: 2271460 | BM33: 2267090 | BN33: 2293750 | BO33: 2231132 | BP33: 2211447 | BQ33: 2196452 | BR33: 2171283 | BS33: 2087696 | BT33: 2046151 | BU33: 1983572 | BV33: 1912403 | BW33: 1836083 | BX33: 1776190 | BY33: 1683576 | BZ33: 1648279 | CA33: 1602189 | CB33: 1693360 | CC33: 1198930 | CD33: 1165503 | CE33: 1124928 | CF33: 1147678 | CG33: 972805 | CH33: 879715 | CI33: 803876 | CJ33: 747371 | CK33: 691360 | CL33: 612798 | CM33: 564799 | CN33: 516446 | CO33: 441039 | CP33: 403347 | CQ33: 363248 | CR33: 324661 | CS33: 279405 | CT33: 234522 | CU33: 198127 | CV33: 160486 | CW33: 127330 | CX33: 100010 | CY33: 75597 | CZ33: 55178 | DA33: 39480 | DB33: 71491
B34: SSA | C34: F | D34: 2022 | E34: 171753419 | F34: 1814797 | G34: 1761477 | H34: 1847978 | I34: 1877706 | J34: 1926065 | K34: 1963248 | L34: 2016759 | M34: 2036467 | N34: 2026460 | O34: 2023767 | P34: 2024859 | Q34: 2053175 | R34: 2082760 | S34: 2142400 | T34: 2215175 | U34: 2209876 | V34: 2164530 | W34: 2154505 | X34: 2164210 | Y34: 2152287 | Z34: 2146450 | AA34: 2188015 | AB34: 2185770 | AC34: 2157815 | AD34: 2156833 | AE34: 2166351 | AF34: 2178881 | AG34: 2217722 | AH34: 2253963 | AI34: 2302502 | AJ34: 2369321 | AK34: 2397579 | AL34: 2407329 | AM34: 2344400 | AN34: 2293108 | AO34: 2266263 | AP34: 2272442 | AQ34: 2270353 | AR34: 2213804 | AS34: 2261555 | AT34: 2250986 | AU34: 2233810 | AV34: 2210126 | AW34: 2132340 | AX34: 2078164 | AY34: 2068082 | AZ34: 1990756 | BA34: 2017912 | BB34: 1962685 | BC34: 2008733 | BD34: 2085398 | BE34: 2226372 | BF34: 2174616 | BG34: 2106407 | BH34: 2049209 | BI34: 2071685 | BJ34: 2105359 | BK34: 2194808 | BL34: 2246715 | BM34: 2258848 | BN34: 2253270 | BO34: 2277836 | BP34: 2213706 | BQ34: 2193099 | BR34: 2176822 | BS34: 2150268 | BT34: 2065967 | BU34: 2023426 | BV34: 1959963 | BW34: 1887596 | BX34: 1810160 | BY34: 1748202 | BZ34: 1654151 | CA34: 1616854 | CB34: 1568059 | CC34: 1652988 | CD34: 1166557 | CE34: 1129452 | CF34: 1086067 | CG34: 1103760 | CH34: 931435 | CI34: 837900 | CJ34: 761230 | CK34: 703128 | CL34: 645536 | CM34: 567284 | CN34: 517928 | CO34: 468429 | CP34: 395178 | CQ34: 356499 | CR34: 316350 | CS34: 277936 | CT34: 234848 | CU34: 193083 | CV34: 159600 | CW34: 126342 | CX34: 97858 | CY34: 75026 | CZ34: 55364 | DA34: 39443 | DB34: 72851
B35: SSA | C35: F | D35: 2023 | E35: 172737115 | F35: 1825931 | G35: 1821002 | H35: 1772244 | I35: 1860148 | J35: 1889011 | K35: 1937183 | L35: 1974597 | M35: 2028306 | N35: 2048056 | O35: 2038248 | P35: 2035921 | Q35: 2037485 | R35: 2066470 | S35: 2096573 | T35: 2156689 | U35: 2230123 | V35: 2225404 | W35: 2180724 | X35: 2171502 | Y35: 2181737 | Z35: 2170686 | AA35: 2166094 | AB35: 2208412 | AC35: 2206489 | AD35: 2178894 | AE35: 2178231 | AF35: 2187628 | AG35: 2199393 | AH35: 2237200 | AI35: 2271915 | AJ35: 2318746 | AK35: 2383896 | AL35: 2410535 | AM35: 2419141 | AN35: 2355027 | AO35: 2302630 | AP35: 2274727 | AQ35: 2279921 | AR35: 2277061 | AS35: 2219745 | AT35: 2266835 | AU35: 2255480 | AV35: 2237579 | AW35: 2213310 | AX35: 2134925 | AY35: 2079983 | AZ35: 2069143 | BA35: 1991091 | BB35: 2017574 | BC35: 1961798 | BD35: 2007209 | BE35: 2083023 | BF35: 2222945 | BG35: 2170538 | BH35: 2101659 | BI35: 2043572 | BJ35: 2064844 | BK35: 2097123 | BL35: 2184783 | BM35: 2235016 | BN35: 2245648 | BO35: 2238701 | BP35: 2261616 | BQ35: 2196407 | BR35: 2174465 | BS35: 2156817 | BT35: 2128886 | BU35: 2043665 | BV35: 1999622 | BW35: 1934747 | BX35: 1860865 | BY35: 1781895 | BZ35: 1717988 | CA35: 1622358 | CB35: 1582268 | CC35: 1530771 | CD35: 1609272 | CE35: 1132236 | CF35: 1092367 | CG35: 1046270 | CH35: 1058611 | CI35: 888893 | CJ35: 795049 | CK35: 717648 | CL35: 658062 | CM35: 599443 | CN35: 521935 | CO35: 471481 | CP35: 421305 | CQ35: 350623 | CR35: 311476 | CS35: 271852 | CT35: 234348 | CU35: 194112 | CV35: 156129 | CW35: 126193 | CX35: 97615 | CY35: 73835 | CZ35: 55295 | DA35: 39859 | DB35: 74332
B36: SSA | C36: F | D36: 2024 | E36: 173869466 | F36: 1840153 | G36: 1833287 | H36: 1833544 | I36: 1785923 | J36: 1873461 | K36: 1901805 | L36: 1950381 | M36: 1987804 | N36: 2041529 | O36: 2061444 | P36: 2051992 | Q36: 2050223 | R36: 2052401 | S36: 2082054 | T36: 2112703 | U36: 2173516 | V36: 2247863 | W36: 2243974 | X36: 2199993 | Y36: 2191635 | Z36: 2203072 | AA36: 2193060 | AB36: 2188706 | AC36: 2231031 | AD36: 2229299 | AE36: 2201876 | AF36: 2201101 | AG36: 2209822 | AH36: 2220284 | AI36: 2256700 | AJ36: 2289709 | AK36: 2334727 | AL36: 2398270 | AM36: 2423423 | AN36: 2430930 | AO36: 2365636 | AP36: 2312257 | AQ36: 2283544 | AR36: 2287964 | AS36: 2284432 | AT36: 2226415 | AU36: 2272929 | AV36: 2260817 | AW36: 2242194 | AX36: 2217302 | AY36: 2138246 | AZ36: 2082479 | BA36: 2070916 | BB36: 1992205 | BC36: 2018077 | BD36: 1961726 | BE36: 2006470 | BF36: 2081366 | BG36: 2220091 | BH36: 2166819 | BI36: 2097151 | BJ36: 2038109 | BK36: 2058053 | BL36: 2088837 | BM36: 2174704 | BN36: 2223366 | BO36: 2232680 | BP36: 2224468 | BQ36: 2245822 | BR36: 2179680 | BS36: 2156532 | BT36: 2137549 | BU36: 2108157 | BV36: 2021817 | BW36: 1976002 | BX36: 1909393 | BY36: 1833639 | BZ36: 1752758 | CA36: 1686546 | CB36: 1589179 | CC36: 1546274 | CD36: 1492133 | CE36: 1564221 | CF36: 1097069 | CG36: 1054444 | CH36: 1005496 | CI36: 1012264 | CJ36: 845203 | CK36: 751087 | CL36: 673132 | CM36: 612411 | CN36: 553177 | CO36: 476872 | CP36: 425846 | CQ36: 375612 | CR36: 308070 | CS36: 269173 | CT36: 230769 | CU36: 194964 | CV36: 158192 | CW36: 124438 | CX36: 98354 | CY36: 74378 | CZ36: 54988 | DA36: 40260 | DB36: 76617
B37: SSA | C37: F | D37: 2025 | E37: 175025418 | F37: 1883915 | G37: 1846732 | H37: 1844939 | I37: 1846743 | J37: 1798267 | K37: 1885782 | L37: 1914275 | M37: 1963053 | N37: 2000312 | O37: 2054240 | P37: 2074490 | Q37: 2065513 | R37: 2064347 | S37: 2067060 | T37: 2097312 | U37: 2128555 | V37: 2190121 | W37: 2265427 | X37: 2262282 | Y37: 2218867 | Z37: 2211569 | AA37: 2224037 | AB37: 2213988 | AC37: 2209208 | AD37: 2251685 | AE37: 2250277 | AF37: 2222773 | AG37: 2221476 | AH37: 2229234 | AI37: 2238319 | AJ37: 2273420 | AK37: 2304876 | AL37: 2348308 | AM37: 2410483 | AN37: 2434300 | AO37: 2440828 | AP37: 2374643 | AQ37: 2320578 | AR37: 2291229 | AS37: 2295006 | AT37: 2290925 | AU37: 2232259 | AV37: 2278179 | AW37: 2265375 | AX37: 2246090 | AY37: 2220548 | AZ37: 2140812 | BA37: 2084334 | BB37: 2072225 | BC37: 1992999 | BD37: 2018308 | BE37: 1961422 | BF37: 2005492 | BG37: 2079390 | BH37: 2216786 | BI37: 2162568 | BJ37: 2092094 | BK37: 2032103 | BL37: 2050727 | BM37: 2080085 | BN37: 2164255 | BO37: 2211425 | BP37: 2219437 | BQ37: 2209940 | BR37: 2229741 | BS37: 2162708 | BT37: 2138261 | BU37: 2117708 | BV37: 2086630 | BW37: 1999001 | BX37: 1951202 | BY37: 1882644 | BZ37: 1804833 | CA37: 1721932 | CB37: 1653421 | CC37: 1554431 | CD37: 1508740 | CE37: 1451913 | CF37: 1517306 | CG37: 1060399 | CH37: 1014902 | CI37: 963077 | CJ37: 964222 | CK37: 800147 | CL37: 706059 | CM37: 627906 | CN37: 566309 | CO37: 506637 | CP37: 431878 | CQ37: 380804 | CR37: 331133 | CS37: 267323 | CT37: 229450 | CU37: 193035 | CV37: 159727 | CW37: 126927 | CX37: 97661 | CY37: 75515 | CZ37: 55879 | DA37: 40414 | DB37: 79296
B39: SSA | C39: M | D39: 2000 | E39: =SUM(F39:DB39) -> 142150753 | F39: 2070685 | G39: 2036805 | H39: 2028711 | I39: 2030947 | J39: 2043376 | K39: 2082938 | L39: 2114203 | M39: 2148033 | N39: 2190562 | O39: 2217789 | P39: 2227596 | Q39: 2157363 | R39: 2100798 | S39: 2073333 | T39: 2073133 | U39: 2067397 | V39: 2024949 | W39: 2091480 | X39: 2108011 | Y39: 2102992 | Z39: 2100756 | AA39: 2042756 | AB39: 1990170 | AC39: 1983485 | AD39: 1900263 | AE39: 1941545 | AF39: 1906689 | AG39: 1954455 | AH39: 2053062 | AI39: 2226220 | AJ39: 2176534 | AK39: 2131387 | AL39: 2091056 | AM39: 2118889 | AN39: 2163795 | AO39: 2262149 | AP39: 2358693 | AQ39: 2375896 | AR39: 2377189 | AS39: 2404032 | AT39: 2353498 | AU39: 2346471 | AV39: 2331174 | AW39: 2312180 | AX39: 2221170 | AY39: 2179551 | AZ39: 2127969 | BA39: 2061503 | BB39: 1992242 | BC39: 1929610 | BD39: 1856148 | BE39: 1853160 | BF39: 1829085 | BG39: 1951334 | BH39: 1399462 | BI39: 1417151 | BJ39: 1422407 | BK39: 1480409 | BL39: 1282885 | BM39: 1197269 | BN39: 1137300 | BO39: 1112933 | BP39: 1085836 | BQ39: 1015655 | BR39: 990015 | BS39: 971346 | BT39: 904535 | BU39: 890855 | BV39: 881193 | BW39: 883364 | BX39: 851862 | BY39: 826199 | BZ39: 801517 | CA39: 766412 | CB39: 731522 | CC39: 698545 | CD39: 661188 | CE39: 620463 | CF39: 580404 | CG39: 530736 | CH39: 469455 | CI39: 414190 | CJ39: 367316 | CK39: 322682 | CL39: 282215 | CM39: 248604 | CN39: 215089 | CO39: 178737 | CP39: 145000 | CQ39: 115526 | CR39: 92012 | CS39: 72115 | CT39: 54866 | CU39: 40903 | CV39: 29909 | CW39: 21533 | CX39: 15037 | CY39: 10232 | CZ39: 6868 | DA39: 4634 | DB39: 7150
B40: SSA | C40: M | D40: 2001 | E40: 143614670 | F40: 2080226 | G40: 2075223 | H40: 2047008 | I40: 2038386 | J40: 2039050 | K40: 2050716 | L40: 2089012 | M40: 2119399 | N40: 2154442 | O40: 2197782 | P40: 2225854 | Q40: 2236126 | R40: 2165320 | S40: 2109499 | T40: 2082825 | U40: 2083697 | V40: 2080543 | W40: 2040847 | X40: 2111176 | Y40: 2130359 | Z40: 2125735 | AA40: 2122448 | AB40: 2062224 | AC40: 2007852 | AD40: 2002212 | AE40: 1919431 | AF40: 1960971 | AG40: 1923926 | AH40: 1971698 | AI40: 2068204 | AJ40: 2239837 | AK40: 2189821 | AL40: 2141463 | AM40: 2099393 | AN40: 2126574 | AO40: 2171454 | AP40: 2268036 | AQ40: 2360565 | AR40: 2377164 | AS40: 2377062 | AT40: 2404935 | AU40: 2353511 | AV40: 2342302 | AW40: 2327260 | AX40: 2307644 | AY40: 2216652 | AZ40: 2174940 | BA40: 2120101 | BB40: 2053321 | BC40: 1983626 | BD40: 1922052 | BE40: 1847929 | BF40: 1841352 | BG40: 1817562 | BH40: 1939567 | BI40: 1390625 | BJ40: 1406415 | BK40: 1409226 | BL40: 1467118 | BM40: 1271261 | BN40: 1185543 | BO40: 1125189 | BP40: 1099079 | BQ40: 1071224 | BR40: 1000497 | BS40: 973255 | BT40: 951962 | BU40: 883511 | BV40: 869274 | BW40: 857483 | BX40: 857187 | BY40: 824244 | BZ40: 796101 | CA40: 770616 | CB40: 734330 | CC40: 698248 | CD40: 665018 | CE40: 627265 | CF40: 585483 | CG40: 544408 | CH40: 494480 | CI40: 434033 | CJ40: 379630 | CK40: 333487 | CL40: 289886 | CM40: 250551 | CN40: 217811 | CO40: 185776 | CP40: 151983 | CQ40: 121249 | CR40: 94875 | CS40: 74089 | CT40: 56844 | CU40: 42237 | CV40: 30707 | CW40: 21875 | CX40: 15336 | CY40: 10427 | CZ40: 6912 | DA40: 4517 | DB40: 7089
B41: SSA | C41: M | D41: 2002 | E41: 145037516 | F41: 2061658 | G41: 2083649 | H41: 2083517 | I41: 2058026 | J41: 2049008 | K41: 2048261 | L41: 2058868 | M41: 2095480 | N41: 2125392 | O41: 2162191 | P41: 2206060 | Q41: 2234171 | R41: 2244479 | S41: 2173299 | T41: 2118638 | U41: 2093444 | V41: 2096607 | W41: 2097193 | X41: 2059046 | Y41: 2130515 | Z41: 2149966 | AA41: 2143787 | AB41: 2139217 | AC41: 2078320 | AD41: 2023323 | AE41: 2019100 | AF41: 1937060 | AG41: 1978931 | AH41: 1939856 | AI41: 1987670 | AJ41: 2081892 | AK41: 2251725 | AL41: 2201291 | AM41: 2149689 | AN41: 2105993 | AO41: 2132649 | AP41: 2177623 | AQ41: 2272453 | AR41: 2360939 | AS41: 2376953 | AT41: 2375516 | AU41: 2404452 | AV41: 2352235 | AW41: 2336950 | AX41: 2322219 | AY41: 2302027 | AZ41: 2211150 | BA41: 2169430 | BB41: 2111434 | BC41: 2044420 | BD41: 1974347 | BE41: 1913832 | BF41: 1839034 | BG41: 1828850 | BH41: 1805291 | BI41: 1926922 | BJ41: 1381150 | BK41: 1395061 | BL41: 1395406 | BM41: 1453071 | BN41: 1258930 | BO41: 1173085 | BP41: 1112287 | BQ41: 1084410 | BR41: 1055801 | BS41: 984615 | BT41: 955840 | BU41: 931960 | BV41: 861909 | BW41: 847019 | BX41: 833090 | BY41: 830303 | BZ41: 795968 | CA41: 765428 | CB41: 739070 | CC41: 701574 | CD41: 664277 | CE41: 630727 | CF41: 592599 | CG41: 549899 | CH41: 507950 | CI41: 457921 | CJ41: 398515 | CK41: 345222 | CL41: 300068 | CM41: 257768 | CN41: 219878 | CO41: 188375 | CP41: 158158 | CQ41: 127175 | CR41: 99595 | CS41: 76374 | CT41: 58343 | CU41: 43729 | CV41: 31693 | CW41: 22456 | CX41: 15578 | CY41: 10635 | CZ41: 7041 | DA41: 4545 | DB41: 6970
B42: SSA | C42: M | D42: 2003 | E42: 146420531 | F42: 2089699 | G42: 2065876 | H42: 2090588 | I42: 2092303 | J42: 2069527 | K42: 2060125 | L42: 2057579 | M42: 2066680 | N42: 2101939 | O42: 2131902 | P42: 2170280 | Q42: 2214148 | R42: 2241991 | S42: 2252345 | T42: 2181005 | U42: 2127886 | V42: 2104761 | W42: 2110961 | X42: 2115225 | Y42: 2076881 | Z42: 2147636 | AA42: 2166257 | AB42: 2158443 | AC42: 2153693 | AD42: 2092819 | AE42: 2037230 | AF42: 2034402 | AG42: 1953104 | AH42: 1994244 | AI42: 1952266 | AJ42: 2000097 | AK42: 2092110 | AL42: 2260188 | AM42: 2209550 | AN42: 2154845 | AO42: 2109701 | AP42: 2135959 | AQ42: 2181184 | AR42: 2274394 | AS42: 2358954 | AT42: 2374515 | AU42: 2371875 | AV42: 2401933 | AW42: 2349028 | AX42: 2329750 | AY42: 2315386 | AZ42: 2294649 | BA42: 2203937 | BB42: 2162226 | BC42: 2101135 | BD42: 2033933 | BE42: 1963553 | BF42: 1904126 | BG42: 1828666 | BH42: 1814862 | BI42: 1791519 | BJ42: 1912648 | BK42: 1370481 | BL42: 1382473 | BM42: 1380334 | BN42: 1437638 | BO42: 1245304 | BP42: 1159351 | BQ42: 1098137 | BR42: 1068498 | BS42: 1039150 | BT42: 967608 | BU42: 937334 | BV42: 910900 | BW42: 839364 | BX42: 823806 | BY42: 807780 | BZ42: 802484 | CA42: 766784 | CB42: 733932 | CC42: 706661 | CD42: 667993 | CE42: 629548 | CF42: 595652 | CG42: 557179 | CH42: 513710 | CI42: 471076 | CJ42: 421214 | CK42: 363166 | CL42: 311285 | CM42: 267406 | CN42: 226694 | CO42: 190542 | CP42: 160600 | CQ42: 132501 | CR42: 104526 | CS42: 80194 | CT42: 60144 | CU42: 44865 | CV42: 32820 | CW42: 23201 | CX42: 16031 | CY42: 10834 | CZ42: 7210 | DA42: 4649 | DB42: 6954
B43: SSA | C43: M | D43: 2004 | E43: 147876973 | F43: 2121891 | G43: 2093852 | H43: 2073660 | I43: 2098088 | J43: 2101723 | K43: 2081738 | L43: 2071627 | M43: 2066822 | N43: 2074732 | O43: 2109278 | P43: 2139251 | Q43: 2178857 | R43: 2222696 | S43: 2250423 | T43: 2261071 | U43: 2190023 | V43: 2139068 | W43: 2118755 | X43: 2127993 | Y43: 2134646 | Z43: 2096056 | AA43: 2166535 | AB43: 2184135 | AC43: 2175437 | AD43: 2171116 | AE43: 2110214 | AF43: 2053834 | AG43: 2052269 | AH43: 1970308 | AI43: 2009207 | AJ43: 1963940 | AK43: 2011686 | AL43: 2101520 | AM43: 2267860 | AN43: 2217064 | AO43: 2159276 | AP43: 2112717 | AQ43: 2138552 | AR43: 2184025 | AS43: 2275641 | AT43: 2356288 | AU43: 2371419 | AV43: 2367582 | AW43: 2398748 | AX43: 2345150 | AY43: 2321835 | AZ43: 2307794 | BA43: 2286483 | BB43: 2195916 | BC43: 2154166 | BD43: 2089951 | BE43: 2022501 | BF43: 1951790 | BG43: 1893446 | BH43: 1817393 | BI43: 1800008 | BJ43: 1776847 | BK43: 1897347 | BL43: 1358997 | BM43: 1369007 | BN43: 1364374 | BO43: 1421186 | BP43: 1230723 | BQ43: 1144699 | BR43: 1083083 | BS43: 1051711 | BT43: 1021626 | BU43: 949749 | BV43: 917998 | BW43: 889106 | BX43: 816242 | BY43: 800022 | BZ43: 781953 | CA43: 774136 | CB43: 737080 | CC43: 702008 | CD43: 673846 | CE43: 634127 | CF43: 594647 | CG43: 560404 | CH43: 521635 | CI43: 477571 | CJ43: 434473 | CK43: 385046 | CL43: 328661 | CM43: 278525 | CN43: 236264 | CO43: 197469 | CP43: 163364 | CQ43: 135311 | CR43: 109582 | CS43: 84712 | CT43: 63590 | CU43: 46583 | CV43: 33897 | CW43: 24181 | CX43: 16661 | CY43: 11222 | CZ43: 7395 | DA43: 4795 | DB43: 7062
B44: SSA | C44: M | D44: 2005 | E44: 149547953 | F44: 2131532 | G44: 2127094 | H44: 2102421 | I44: 2083083 | J44: 2107666 | K44: 2113649 | L44: 2096372 | M44: 2085308 | N44: 2078688 | O44: 2086048 | P44: 2119907 | Q44: 2149596 | R44: 2190492 | S44: 2234489 | T44: 2262336 | U44: 2273919 | V44: 2203960 | W44: 2156230 | X44: 2139480 | Y44: 2150825 | Z44: 2158729 | AA44: 2119743 | AB44: 2189933 | AC44: 2206779 | AD44: 2197567 | AE44: 2193517 | AF44: 2132266 | AG44: 2074782 | AH44: 2074365 | AI44: 1991347 | AJ44: 2028574 | AK44: 1980464 | AL44: 2027923 | AM44: 2115059 | AN44: 2279170 | AO44: 2227720 | AP44: 2166562 | AQ44: 2118424 | AR44: 2143830 | AS44: 2189441 | AT44: 2279211 | AU44: 2355700 | AV44: 2370191 | AW44: 2364946 | AX44: 2397031 | AY44: 2342568 | AZ44: 2315145 | BA44: 2301358 | BB44: 2279397 | BC44: 2188913 | BD44: 2147121 | BE44: 2079789 | BF44: 2012063 | BG44: 1940973 | BH44: 1883664 | BI44: 1806969 | BJ44: 1785984 | BK44: 1762860 | BL44: 1882651 | BM44: 1348003 | BN44: 1356067 | BO44: 1348841 | BP44: 1405015 | BQ44: 1216308 | BR44: 1130130 | BS44: 1068082 | BT44: 1035007 | BU44: 1004139 | BV44: 931876 | BW44: 898603 | BX44: 867260 | BY44: 793091 | BZ44: 776096 | CA44: 755964 | CB44: 745611 | CC44: 707237 | CD44: 670031 | CE44: 640913 | CF44: 600159 | CG44: 559693 | CH44: 525071 | CI44: 486049 | CJ44: 441575 | CK44: 398218 | CL44: 349453 | CM44: 294981 | CN44: 246878 | CO44: 206542 | CP44: 169970 | CQ44: 138206 | CR44: 112319 | CS44: 89143 | CT44: 67406 | CU44: 49397 | CV44: 35258 | CW44: 24963 | CX44: 17323 | CY44: 11610 | CZ44: 7613 | DA44: 4882 | DB44: 7146
B45: SSA | C45: M | D45: 2006 | E45: 151337034 | F45: 2165006 | G45: 2137529 | H45: 2137128 | I45: 2112950 | J45: 2094746 | K45: 2119874 | L45: 2128136 | M45: 2113299 | N45: 2101623 | O45: 2093718 | P45: 2100448 | Q45: 2133166 | R45: 2162418 | S45: 2204736 | T45: 2248990 | U45: 2277357 | V45: 2290681 | W45: 2222613 | X45: 2178234 | Y45: 2163313 | Z45: 2174770 | AA45: 2183191 | AB45: 2143167 | AC45: 2212827 | AD45: 2229153 | AE45: 2219173 | AF45: 2214990 | AG45: 2153156 | AH45: 2094433 | AI45: 2095034 | AJ45: 2011999 | AK45: 2048578 | AL45: 1997669 | AM45: 2044841 | AN45: 2129130 | AO45: 2290863 | AP45: 2238699 | AQ45: 2174146 | AR45: 2124451 | AS45: 2149540 | AT45: 2195347 | AU45: 2283244 | AV45: 2355556 | AW45: 2369353 | AX45: 2362596 | AY45: 2395518 | AZ45: 2340144 | BA45: 2308609 | BB45: 2295026 | BC45: 2272355 | BD45: 2181933 | BE45: 2140128 | BF45: 2069765 | BG45: 2001808 | BH45: 1930375 | BI45: 1874105 | BJ45: 1796721 | BK45: 1772054 | BL45: 1748802 | BM45: 1867833 | BN45: 1337063 | BO45: 1343252 | BP45: 1333345 | BQ45: 1388700 | BR45: 1201608 | BS45: 1115197 | BT45: 1052703 | BU45: 1017917 | BV45: 986258 | BW45: 913663 | BX45: 878883 | BY45: 845100 | BZ45: 769647 | CA45: 751728 | CB45: 729478 | CC45: 716546 | CD45: 676895 | CE45: 637690 | CF45: 607597 | CG45: 565821 | CH45: 524370 | CI45: 489323 | CJ45: 450148 | CK45: 405545 | CL45: 362266 | CM45: 314481 | CN45: 262196 | CO45: 216384 | CP45: 178265 | CQ45: 144220 | CR45: 115068 | CS45: 91573 | CT45: 71067 | CU45: 52442 | CV45: 37435 | CW45: 25991 | CX45: 17889 | CY45: 12072 | CZ45: 7873 | DA45: 5023 | DB45: 7265
B46: SSA | C46: M | D46: 2007 | E46: 152928520 | F46: 2235685 | G46: 2170077 | H46: 2148126 | I46: 2148499 | J46: 2124646 | K46: 2107517 | L46: 2132657 | M46: 2142571 | N46: 2130283 | O46: 2118185 | P46: 2108535 | Q46: 2113905 | R46: 2145095 | S46: 2173882 | T46: 2217495 | U46: 2261998 | V46: 2291272 | W46: 2306804 | X46: 2240129 | Y46: 2196530 | Z46: 2180511 | AA46: 2190516 | AB46: 2198213 | AC46: 2156486 | AD46: 2225219 | AE46: 2240754 | AF46: 2229759 | AG46: 2225184 | AH46: 2162526 | AI46: 2102376 | AJ46: 2103447 | AK46: 2020574 | AL46: 2056522 | AM46: 2003458 | AN46: 2050925 | AO46: 2133513 | AP46: 2293892 | AQ46: 2242205 | AR46: 2174947 | AS46: 2124209 | AT46: 2149233 | AU46: 2195634 | AV46: 2282171 | AW46: 2350783 | AX46: 2364261 | AY46: 2356322 | AZ46: 2390367 | BA46: 2334420 | BB46: 2298892 | BC46: 2285556 | BD46: 2262253 | BE46: 2171999 | BF46: 2130164 | BG46: 2056828 | BH46: 1988686 | BI46: 1916978 | BJ46: 1861799 | BK46: 1783871 | BL46: 1755629 | BM46: 1732379 | BN46: 1850562 | BO46: 1324269 | BP46: 1328506 | BQ46: 1315975 | BR46: 1370410 | BS46: 1185210 | BT46: 1098699 | BU46: 1035775 | BV46: 999290 | BW46: 966857 | BX46: 894024 | BY46: 857799 | BZ46: 821665 | CA46: 745065 | CB46: 726178 | CC46: 701899 | CD46: 686456 | CE46: 645633 | CF46: 604603 | CG46: 573612 | CH46: 530966 | CI46: 488703 | CJ46: 453326 | CK46: 414129 | CL46: 369643 | CM46: 326764 | CN46: 280373 | CO46: 230681 | CP46: 187524 | CQ46: 151929 | CR46: 120662 | CS46: 94351 | CT46: 73456 | CU46: 55694 | CV46: 40075 | CW46: 27866 | CX46: 18832 | CY46: 12614 | CZ46: 8292 | DA46: 5267 | DB46: 7534
B47: SSA | C47: M | D47: 2008 | E47: 154100345 | F47: 2231483 | G47: 2240250 | H47: 2179032 | I47: 2159132 | J47: 2159930 | K47: 2136209 | L47: 2119501 | M47: 2143844 | N47: 2155316 | O47: 2145524 | P47: 2132297 | Q47: 2120085 | R47: 2123728 | S47: 2153402 | T47: 2181648 | U47: 2226519 | V47: 2271905 | W47: 2302478 | X47: 2318408 | Y47: 2250366 | Z47: 2205497 | AA47: 2187208 | AB47: 2194568 | AC47: 2200192 | AD47: 2156410 | AE47: 2223539 | AF47: 2237905 | AG47: 2225854 | AH47: 2220627 | AI47: 2156762 | AJ47: 2094865 | AK47: 2095606 | AL47: 2013124 | AM47: 2048569 | AN47: 1994345 | AO47: 2043031 | AP47: 2125570 | AQ47: 2286043 | AR47: 2236434 | AS47: 2167397 | AT47: 2116235 | AU47: 2141429 | AV47: 2188880 | AW47: 2274716 | AX47: 2340233 | AY47: 2353905 | AZ47: 2345202 | BA47: 2380682 | BB47: 2324519 | BC47: 2285159 | BD47: 2272208 | BE47: 2248397 | BF47: 2158401 | BG47: 2116474 | BH47: 2040143 | BI47: 1971851 | BJ47: 1899994 | BK47: 1845990 | BL47: 1767687 | BM47: 1736026 | BN47: 1712991 | BO47: 1830123 | BP47: 1308956 | BQ47: 1311074 | BR47: 1296008 | BS47: 1349530 | BT47: 1166661 | BU47: 1080183 | BV47: 1016882 | BW47: 978713 | BX47: 945463 | BY47: 872404 | BZ47: 834670 | CA47: 796208 | CB47: 718657 | CC47: 698807 | CD47: 672634 | CE47: 654760 | CF47: 612880 | CG47: 570203 | CH47: 538404 | CI47: 495148 | CJ47: 452351 | CK47: 416769 | CL47: 377681 | CM47: 333545 | CN47: 291370 | CO47: 246764 | CP47: 200084 | CQ47: 159981 | CR47: 127270 | CS47: 99064 | CT47: 75782 | CU47: 57606 | CV47: 42590 | CW47: 29845 | CX47: 20200 | CY47: 13289 | CZ47: 8669 | DA47: 5552 | DB47: 7840
B48: SSA | C48: M | D48: 2009 | E48: 155207050 | F48: 2163963 | G48: 2238743 | H48: 2249554 | I48: 2189468 | J48: 2171607 | K48: 2173044 | L48: 2149143 | M48: 2132249 | N48: 2155826 | O48: 2169035 | P48: 2161134 | Q48: 2146014 | R48: 2131042 | S48: 2133098 | T48: 2161488 | U48: 2189250 | V48: 2235483 | W48: 2282199 | X48: 2313520 | Y48: 2328278 | Z48: 2257920 | AA48: 2211978 | AB48: 2191691 | AC48: 2196666 | AD48: 2200844 | AE48: 2155421 | AF48: 2221132 | AG48: 2234569 | AH48: 2221719 | AI48: 2216016 | AJ48: 2151057 | AK48: 2087508 | AL48: 2088005 | AM48: 2005940 | AN48: 2040879 | AO48: 1985521 | AP48: 2035483 | AQ48: 2117915 | AR48: 2278332 | AS48: 2230691 | AT48: 2159820 | AU48: 2108167 | AV48: 2133475 | AW48: 2181935 | AX48: 2266996 | AY48: 2329326 | AZ48: 2343130 | BA48: 2333630 | BB48: 2370426 | BC48: 2313928 | BD48: 2270654 | BE48: 2258007 | BF48: 2233646 | BG48: 2143928 | BH48: 2101927 | BI48: 2022653 | BJ48: 1954195 | BK48: 1882175 | BL48: 1829295 | BM48: 1750582 | BN48: 1715502 | BO48: 1692601 | BP48: 1808475 | BQ48: 1292696 | BR48: 1292635 | BS48: 1275099 | BT48: 1327672 | BU48: 1147151 | BV48: 1060670 | BW48: 996983 | BX48: 957120 | BY48: 922983 | BZ48: 849680 | CA48: 810433 | CB48: 769747 | CC48: 691420 | CD48: 670535 | CE48: 642467 | CF48: 622171 | CG48: 579368 | CH48: 535269 | CI48: 502749 | CJ48: 459089 | CK48: 415983 | CL48: 380329 | CM48: 341566 | CN48: 298161 | CO48: 257101 | CP48: 214647 | CQ48: 171251 | CR48: 134446 | CS48: 104831 | CT48: 79823 | CU48: 59637 | CV48: 44213 | CW48: 31859 | CX48: 21739 | CY48: 14329 | CZ48: 9183 | DA48: 5835 | DB48: 8282
B49: SSA | C49: M | D49: 2010 | E49: 156416736 | F49: 2089079 | G49: 2170302 | H49: 2246106 | I49: 2256164 | J49: 2196927 | K49: 2180563 | L49: 2182543 | M49: 2158786 | N49: 2142101 | O49: 2166270 | P49: 2179895 | Q49: 2171842 | R49: 2156202 | S49: 2140696 | T49: 2142612 | U49: 2170890 | V49: 2198766 | W49: 2245804 | X49: 2293209 | Y49: 2324584 | Z49: 2339142 | AA49: 2268233 | AB49: 2221425 | AC49: 2200307 | AD49: 2204603 | AE49: 2207743 | AF49: 2160969 | AG49: 2225757 | AH49: 2237835 | AI49: 2224608 | AJ49: 2218219 | AK49: 2152149 | AL49: 2087943 | AM49: 2088060 | AN49: 2005943 | AO49: 2040483 | AP49: 1984271 | AQ49: 2034444 | AR49: 2116567 | AS49: 2276525 | AT49: 2229168 | AU49: 2157126 | AV49: 2104781 | AW49: 2129464 | AX49: 2177584 | AY49: 2261531 | AZ49: 2321891 | BA49: 2335255 | BB49: 2325297 | BC49: 2362001 | BD49: 2304762 | BE49: 2260038 | BF49: 2247166 | BG49: 2221957 | BH49: 2131888 | BI49: 2089558 | BJ49: 2008960 | BK49: 1939999 | BL49: 1867500 | BM49: 1814124 | BN49: 1734781 | BO49: 1698280 | BP49: 1674973 | BQ49: 1789270 | BR49: 1277343 | BS49: 1274173 | BT49: 1254434 | BU49: 1304965 | BV49: 1126153 | BW49: 1039308 | BX49: 974860 | BY49: 933426 | BZ49: 897935 | CA49: 824685 | CB49: 784445 | CC49: 742097 | CD49: 663618 | CE49: 641256 | CF49: 611476 | CG49: 588948 | CH49: 545346 | CI49: 500263 | CJ49: 466785 | CK49: 422848 | CL49: 379636 | CM49: 343831 | CN49: 305529 | CO49: 263329 | CP49: 223868 | CQ49: 184006 | CR49: 144254 | CS49: 111044 | CT49: 84735 | CU49: 63020 | CV49: 45944 | CW49: 33229 | CX49: 23363 | CY49: 15552 | CZ49: 10006 | DA49: 6263 | DB49: 8842
B50: SSA | C50: M | D50: 2011 | E50: 157534936 | F50: 2046821 | G50: 2090810 | H50: 2173602 | I50: 2249926 | J50: 2259122 | K50: 2200538 | L50: 2184677 | M50: 2186744 | N50: 2163839 | O50: 2148011 | P50: 2174018 | Q50: 2186898 | R50: 2176996 | S50: 2162397 | T50: 2148629 | U50: 2151917 | V50: 2181313 | W50: 2210004 | X50: 2257328 | Y50: 2305222 | Z50: 2336990 | AA50: 2351986 | AB50: 2281549 | AC50: 2234530 | AD50: 2213760 | AE50: 2218713 | AF50: 2220971 | AG50: 2172901 | AH50: 2237062 | AI50: 2246059 | AJ50: 2230537 | AK50: 2220865 | AL50: 2151342 | AM50: 2085281 | AN50: 2082403 | AO50: 1999268 | AP50: 2033888 | AQ50: 1978120 | AR50: 2028349 | AS50: 2111535 | AT50: 2272067 | AU50: 2224809 | AV50: 2153145 | AW50: 2100426 | AX50: 2123931 | AY50: 2170778 | AZ50: 2253950 | BA50: 2314187 | BB50: 2326988 | BC50: 2317216 | BD50: 2352703 | BE50: 2294648 | BF50: 2251092 | BG50: 2237638 | BH50: 2211364 | BI50: 2120349 | BJ50: 2077394 | BK50: 1997069 | BL50: 1927375 | BM50: 1854247 | BN50: 1798923 | BO50: 1718862 | BP50: 1682961 | BQ50: 1658818 | BR50: 1771231 | BS50: 1262057 | BT50: 1254848 | BU50: 1233045 | BV50: 1280392 | BW50: 1102813 | BX50: 1015291 | BY50: 949736 | BZ50: 906851 | CA50: 869613 | CB50: 796790 | CC50: 756049 | CD50: 712547 | CE50: 634561 | CF50: 610363 | CG50: 579073 | CH50: 554425 | CI50: 510038 | CJ50: 464351 | CK50: 429779 | CL50: 385820 | CM50: 342833 | CN50: 306946 | CO50: 269346 | CP50: 228848 | CQ50: 191425 | CR50: 154535 | CS50: 118762 | CT50: 89456 | CU50: 66706 | CV50: 48398 | CW50: 34387 | CX50: 24229 | CY50: 16607 | CZ50: 10782 | DA50: 6772 | DB50: 9370
B51: SSA | C51: M | D51: 2012 | E51: 158588184 | F51: 2026431 | G51: 2051331 | H51: 2096749 | I51: 2178104 | J51: 2254462 | K51: 2262735 | L51: 2204563 | M51: 2188849 | N51: 2190994 | O51: 2169154 | P51: 2154288 | Q51: 2182137 | R51: 2194138 | S51: 2182040 | T51: 2168280 | U51: 2156343 | V51: 2161126 | W51: 2191684 | X51: 2221048 | Y51: 2268805 | Z51: 2317555 | AA51: 2349412 | AB51: 2364099 | AC51: 2293887 | AD51: 2246839 | AE51: 2226120 | AF51: 2231390 | AG51: 2232736 | AH51: 2183310 | AI51: 2246728 | AJ51: 2252577 | AK51: 2234727 | AL51: 2221698 | AM51: 2148681 | AN51: 2080792 | AO51: 2074918 | AP51: 1990853 | AQ51: 2025545 | AR51: 1970282 | AS51: 2020616 | AT51: 2105019 | AU51: 2266248 | AV51: 2219217 | AW51: 2147987 | AX51: 2094893 | AY51: 2117152 | AZ51: 2162726 | BA51: 2245161 | BB51: 2305280 | BC51: 2317487 | BD51: 2307832 | BE51: 2342045 | BF51: 2283187 | BG51: 2240791 | BH51: 2226702 | BI51: 2199286 | BJ51: 2107306 | BK51: 2063699 | BL51: 1983660 | BM51: 1913271 | BN51: 1839551 | BO51: 1782260 | BP51: 1701419 | BQ51: 1666006 | BR51: 1640954 | BS51: 1751327 | BT51: 1245446 | BU51: 1234138 | BV51: 1210205 | BW51: 1254260 | BX51: 1078083 | BY51: 989973 | BZ51: 923350 | CA51: 879019 | CB51: 840072 | CC51: 767693 | CD51: 726415 | CE51: 681802 | CF51: 604422 | CG51: 578411 | CH51: 545655 | CI51: 518944 | CJ51: 473905 | CK51: 427813 | CL51: 392401 | CM51: 348752 | CN51: 306378 | CO51: 270825 | CP51: 234343 | CQ51: 195973 | CR51: 161011 | CS51: 127435 | CT51: 95820 | CU51: 70481 | CV51: 51279 | CW51: 36263 | CX51: 25094 | CY51: 17221 | CZ51: 11510 | DA51: 7293 | DB51: 10007
B52: SSA | C52: M | D52: 2013 | E52: 159648138 | F52: 2029458 | G52: 2030584 | H52: 2060138 | I52: 2104082 | J52: 2183474 | K52: 2259785 | L52: 2266991 | M52: 2208917 | N52: 2193333 | O52: 2195804 | P52: 2175094 | Q52: 2161059 | R52: 2190408 | S52: 2201030 | T52: 2186423 | U52: 2173460 | V52: 2163388 | W52: 2169676 | X52: 2201212 | Y52: 2231298 | Z52: 2279829 | AA52: 2329048 | AB52: 2360021 | AC52: 2373567 | AD52: 2303185 | AE52: 2255825 | AF52: 2234608 | AG52: 2239535 | AH52: 2239471 | AI52: 2188471 | AJ52: 2250745 | AK52: 2254287 | AL52: 2236091 | AM52: 2221662 | AN52: 2147146 | AO52: 2079457 | AP52: 2072745 | AQ52: 1988411 | AR52: 2022870 | AS52: 1967559 | AT52: 2017480 | AU52: 2102317 | AV52: 2263532 | AW52: 2216022 | AX52: 2144789 | AY52: 2091015 | AZ52: 2111828 | BA52: 2155850 | BB52: 2237194 | BC52: 2296860 | BD52: 2308180 | BE52: 2298424 | BF52: 2331190 | BG52: 2271380 | BH52: 2229971 | BI52: 2215074 | BJ52: 2186398 | BK52: 2093411 | BL52: 2049109 | BM52: 1969290 | BN52: 1898119 | BO52: 1823712 | BP52: 1764356 | BQ52: 1682616 | BR52: 1647515 | BS52: 1621499 | BT52: 1729606 | BU52: 1227382 | BV52: 1211908 | BW52: 1185836 | BX52: 1226495 | BY52: 1051908 | BZ52: 963291 | CA52: 895637 | CB52: 849860 | CC52: 809211 | CD52: 737248 | CE52: 695365 | CF52: 649691 | CG52: 573038 | CH52: 545227 | CI52: 511098 | CJ52: 482510 | CK52: 437102 | CL52: 390902 | CM52: 354917 | CN52: 311873 | CO52: 270461 | CP52: 235659 | CQ52: 200737 | CR52: 164940 | CS52: 132866 | CT52: 102918 | CU52: 75601 | CV52: 54230 | CW52: 38458 | CX52: 26501 | CY52: 17868 | CZ52: 11956 | DA52: 7802 | DB52: 10758
B53: SSA | C53: M | D53: 2014 | E53: 160980367 | F53: 2048566 | G53: 2034755 | H53: 2039410 | I53: 2070849 | J53: 2112951 | K53: 2190491 | L53: 2266874 | M53: 2272957 | N53: 2215202 | O53: 2200309 | P53: 2203540 | Q53: 2184244 | R53: 2171106 | S53: 2201888 | T53: 2211162 | U53: 2194327 | V53: 2182559 | W53: 2174696 | X53: 2182701 | Y53: 2215617 | Z53: 2247260 | AA53: 2296814 | AB53: 2346252 | AC53: 2376321 | AD53: 2388952 | AE53: 2318787 | AF53: 2271464 | AG53: 2250206 | AH53: 2255439 | AI53: 2254492 | AJ53: 2202028 | AK53: 2263373 | AL53: 2264424 | AM53: 2245504 | AN53: 2229472 | AO53: 2153317 | AP53: 2085651 | AQ53: 2078148 | AR53: 1993191 | AS53: 2027213 | AT53: 1971293 | AU53: 2020295 | AV53: 2104746 | AW53: 2265169 | AX53: 2216378 | AY53: 2144676 | AZ53: 2089925 | BA53: 2109130 | BB53: 2151288 | BC53: 2231086 | BD53: 2289875 | BE53: 2299979 | BF53: 2289883 | BG53: 2320930 | BH53: 2259852 | BI53: 2219193 | BJ53: 2203308 | BK53: 2173266 | BL53: 2079259 | BM53: 2034226 | BN53: 1954562 | BO53: 1882522 | BP53: 1807346 | BQ53: 1745858 | BR53: 1663123 | BS53: 1628256 | BT53: 1601170 | BU53: 1706716 | BV53: 1208470 | BW53: 1188879 | BX53: 1160537 | BY53: 1197557 | BZ53: 1024556 | CA53: 935382 | CB53: 866663 | CC53: 819407 | CD53: 777069 | CE53: 705568 | CF53: 663110 | CG53: 616465 | CH53: 540667 | CI53: 511115 | CJ53: 475733 | CK53: 445453 | CL53: 399971 | CM53: 354018 | CN53: 317791 | CO53: 275693 | CP53: 235648 | CQ53: 202077 | CR53: 169170 | CS53: 136322 | CT53: 107454 | CU53: 81310 | CV53: 58289 | CW53: 40778 | CX53: 28200 | CY53: 18949 | CZ53: 12468 | DA53: 8143 | DB53: 11633
B54: SSA | C54: M | D54: 2015 | E54: 162488808 | F54: 2068895 | G54: 2054425 | H54: 2044653 | I54: 2050159 | J54: 2083088 | K54: 2123352 | L54: 2199034 | M54: 2275392 | N54: 2280458 | O54: 2223393 | P54: 2209583 | Q54: 2213849 | R54: 2196067 | S54: 2183769 | T54: 2216094 | U54: 2224385 | V54: 2205711 | W54: 2195429 | X54: 2189903 | Y54: 2199775 | Z54: 2234679 | AA54: 2267981 | AB54: 2318342 | AC54: 2368226 | AD54: 2397625 | AE54: 2409868 | AF54: 2340323 | AG54: 2293263 | AH54: 2272380 | AI54: 2278433 | AJ54: 2277000 | AK54: 2221917 | AL54: 2280117 | AM54: 2277427 | AN54: 2257673 | AO54: 2239986 | AP54: 2162141 | AQ54: 2094429 | AR54: 2086140 | AS54: 2000437 | AT54: 2033947 | AU54: 1977247 | AV54: 2025160 | AW54: 2108899 | AX54: 2268213 | AY54: 2217834 | AZ54: 2145489 | BA54: 2089647 | BB54: 2107169 | BC54: 2147280 | BD54: 2225264 | BE54: 2282943 | BF54: 2291676 | BG54: 2281088 | BH54: 2310214 | BI54: 2247724 | BJ54: 2207757 | BK54: 2190845 | BL54: 2159388 | BM54: 2064357 | BN54: 2018562 | BO54: 1938982 | BP54: 1865974 | BQ54: 1789932 | BR54: 1726240 | BS54: 1642559 | BT54: 1607907 | BU54: 1579585 | BV54: 1682287 | BW54: 1188447 | BX54: 1164722 | BY54: 1133999 | BZ54: 1167191 | CA54: 995855 | CB54: 906112 | CC54: 836322 | CD54: 787575 | CE54: 743586 | CF54: 672607 | CG54: 629570 | CH54: 581961 | CI54: 507144 | CJ54: 476020 | CK54: 439630 | CL54: 407925 | CM54: 362652 | CN54: 317261 | CO54: 281172 | CP54: 240479 | CQ54: 202293 | CR54: 170415 | CS54: 139915 | CT54: 110322 | CU54: 84919 | CV54: 62699 | CW54: 43843 | CX54: 29904 | CY54: 20172 | CZ54: 13230 | DA54: 8500 | DB54: 12396
B55: SSA | C55: M | D55: 2016 | E55: 163741318 | F55: 2062749 | G55: 2074098 | H55: 2064390 | I55: 2055834 | J55: 2061662 | K55: 2095902 | L55: 2133963 | M55: 2207364 | N55: 2283465 | O55: 2287442 | P55: 2230988 | Q55: 2218067 | R55: 2223003 | S55: 2206192 | T55: 2194370 | U55: 2228090 | V55: 2235324 | W55: 2214691 | X55: 2205581 | Y55: 2202079 | Z55: 2213531 | AA55: 2249605 | AB55: 2283598 | AC55: 2334080 | AD55: 2383721 | AE55: 2412112 | AF55: 2423821 | AG55: 2354687 | AH55: 2307696 | AI55: 2286996 | AJ55: 2293561 | AK55: 2291299 | AL55: 2233536 | AM55: 2288358 | AN55: 2282037 | AO55: 2261705 | AP55: 2242522 | AQ55: 2163167 | AR55: 2095645 | AS55: 2086566 | AT55: 2000468 | AU55: 2033636 | AV55: 1976671 | AW55: 2023884 | AX55: 2107547 | AY55: 2266291 | AZ55: 2214969 | BA55: 2142301 | BB55: 2085590 | BC55: 2101512 | BD55: 2139723 | BE55: 2216110 | BF55: 2272889 | BG55: 2280430 | BH55: 2269448 | BI55: 2296748 | BJ55: 2233060 | BK55: 2193857 | BL55: 2175963 | BM55: 2143117 | BN55: 2047076 | BO55: 2000447 | BP55: 1920945 | BQ55: 1846981 | BR55: 1770054 | BS55: 1704269 | BT55: 1619780 | BU55: 1585226 | BV55: 1555592 | BW55: 1655143 | BX55: 1166334 | BY55: 1138414 | BZ55: 1105285 | CA55: 1134509 | CB55: 965069 | CC55: 874875 | CD55: 804166 | CE55: 754055 | CF55: 708529 | CG55: 638145 | CH55: 594526 | CI55: 546105 | CJ55: 472544 | CK55: 440057 | CL55: 402916 | CM55: 370082 | CN55: 325355 | CO55: 280891 | CP55: 245350 | CQ55: 206498 | CR55: 170627 | CS55: 140942 | CT55: 113285 | CU55: 87258 | CV55: 65514 | CW55: 47155 | CX55: 32136 | CY55: 21359 | CZ55: 14051 | DA55: 8997 | DB55: 13065
B56: SSA | C56: M | D56: 2017 | E56: 164820126 | F56: 2024481 | G56: 2067601 | H56: 2083392 | I56: 2075573 | J56: 2067615 | K56: 2073550 | L56: 2108799 | M56: 2144280 | N56: 2215314 | O56: 2291174 | P56: 2293944 | Q56: 2237958 | R56: 2225644 | S56: 2230821 | T56: 2214687 | U56: 2203184 | V56: 2238248 | W56: 2244391 | X56: 2221544 | Y56: 2213326 | Z56: 2211397 | AA56: 2223571 | AB56: 2259979 | AC56: 2294158 | AD56: 2344195 | AE56: 2393301 | AF56: 2420758 | AG56: 2431734 | AH56: 2362959 | AI56: 2316068 | AJ56: 2295495 | AK56: 2302380 | AL56: 2299024 | AM56: 2239729 | AN56: 2293430 | AO56: 2284678 | AP56: 2263825 | AQ56: 2243216 | AR56: 2162451 | AS56: 2095185 | AT56: 2085328 | AU56: 1998975 | AV56: 2031870 | AW56: 1974686 | AX56: 2021154 | AY56: 2104714 | AZ56: 2262821 | BA56: 2210578 | BB56: 2137616 | BC56: 2080086 | BD56: 2094399 | BE56: 2130694 | BF56: 2205462 | BG56: 2261298 | BH56: 2267601 | BI56: 2256192 | BJ56: 2281630 | BK56: 2216754 | BL56: 2178253 | BM56: 2159315 | BN56: 2125046 | BO56: 2027983 | BP56: 1980427 | BQ56: 1900961 | BR56: 1826052 | BS56: 1748381 | BT56: 1680637 | BU56: 1595244 | BV56: 1560594 | BW56: 1529535 | BX56: 1625554 | BY56: 1142373 | BZ56: 1110233 | CA56: 1074659 | CB56: 1099768 | CC56: 932434 | CD56: 841888 | CE56: 770341 | CF56: 718900 | CG56: 671904 | CH56: 602202 | CI56: 558082 | CJ56: 509057 | CK56: 437039 | CL56: 403403 | CM56: 365762 | CN56: 332122 | CO56: 288318 | CP56: 245267 | CQ56: 210819 | CR56: 174294 | CS56: 141175 | CT56: 114136 | CU56: 89720 | CV56: 67506 | CW56: 49464 | CX56: 34739 | CY56: 23101 | CZ56: 14985 | DA56: 9629 | DB56: 13907
B57: SSA | C57: M | D57: 2018 | E57: 165791448 | F57: 1995399 | G57: 2028497 | H57: 2075988 | I57: 2093364 | J57: 2086796 | K57: 2079250 | L57: 2085050 | M57: 2121033 | N57: 2154001 | O57: 2222787 | P57: 2298272 | Q57: 2299681 | R57: 2244015 | S57: 2231997 | T57: 2237311 | U57: 2222197 | V57: 2211523 | W57: 2248439 | X57: 2253068 | Y57: 2227403 | Z57: 2219935 | AA57: 2218872 | AB57: 2230839 | AC57: 2267179 | AD57: 2301336 | AE57: 2350924 | AF57: 2399833 | AG57: 2426574 | AH57: 2436990 | AI57: 2368782 | AJ57: 2322128 | AK57: 2301792 | AL57: 2309098 | AM57: 2304752 | AN57: 2244115 | AO57: 2296854 | AP57: 2285864 | AQ57: 2264668 | AR57: 2242773 | AS57: 2160738 | AT57: 2093888 | AU57: 2083351 | AV57: 1996837 | AW57: 2029490 | AX57: 1972116 | AY57: 2017816 | AZ57: 2101188 | BA57: 2258486 | BB57: 2205261 | BC57: 2132025 | BD57: 2073680 | BE57: 2086351 | BF57: 2120683 | BG57: 2193719 | BH57: 2248492 | BI57: 2253477 | BJ57: 2241576 | BK57: 2265045 | BL57: 2198919 | BM57: 2161070 | BN57: 2141045 | BO57: 2105238 | BP57: 2007078 | BQ57: 1958514 | BR57: 1879049 | BS57: 1803297 | BT57: 1725007 | BU57: 1655255 | BV57: 1568882 | BW57: 1534007 | BX57: 1501395 | BY57: 1593519 | BZ57: 1116553 | CA57: 1080162 | CB57: 1042084 | CC57: 1062919 | CD57: 897944 | CE57: 807221 | CF57: 734979 | CG57: 682262 | CH57: 633863 | CI57: 564927 | CJ57: 520364 | CK57: 470903 | CL57: 400679 | CM57: 366142 | CN57: 328330 | CO57: 294267 | CP57: 251816 | CQ57: 210692 | CR57: 177908 | CS57: 144234 | CT57: 114298 | CU57: 90258 | CV57: 69283 | CW57: 50883 | CX57: 36382 | CY57: 24941 | CZ57: 16196 | DA57: 10264 | DB57: 14821
B58: SSA | C58: M | D58: 2019 | E58: 166535858 | F58: 1953500 | G58: 1997197 | H58: 2035220 | I58: 2084201 | J58: 2102430 | K58: 2096813 | L58: 2089359 | M58: 2094673 | N58: 2131352 | O58: 2161885 | P58: 2228301 | Q58: 2303281 | R58: 2303218 | S58: 2247669 | T58: 2235666 | U58: 2241045 | V58: 2227111 | W58: 2217515 | X58: 2256279 | Y58: 2258797 | Z58: 2229746 | AA58: 2222489 | AB58: 2221790 | AC58: 2233524 | AD58: 2269579 | AE58: 2303569 | AF58: 2352827 | AG58: 2401525 | AH58: 2427559 | AI58: 2437374 | AJ58: 2369729 | AK58: 2323221 | AL58: 2302996 | AM58: 2310673 | AN58: 2305383 | AO58: 2243634 | AP58: 2295500 | AQ58: 2282506 | AR58: 2261268 | AS58: 2238283 | AT58: 2155185 | AU58: 2089004 | AV58: 2077889 | AW58: 1991412 | AX58: 2023899 | AY58: 1966552 | AZ58: 2011642 | BA58: 2095043 | BB58: 2251650 | BC58: 2197638 | BD58: 2124185 | BE58: 2065060 | BF58: 2076119 | BG58: 2108559 | BH58: 2179863 | BI58: 2233547 | BJ58: 2237252 | BK58: 2224864 | BL58: 2246337 | BM58: 2179012 | BN58: 2141781 | BO58: 2120586 | BP58: 2083156 | BQ58: 1983898 | BR58: 1934298 | BS58: 1854956 | BT58: 1778529 | BU58: 1699606 | BV58: 1627853 | BW58: 1540545 | BX58: 1505307 | BY58: 1471031 | BZ58: 1558906 | CA58: 1088789 | CB58: 1048190 | CC58: 1007638 | CD58: 1024090 | CE58: 861724 | CF58: 770999 | CG58: 698252 | CH58: 644419 | CI58: 594801 | CJ58: 526772 | CK58: 481898 | CL58: 432256 | CM58: 364142 | CN58: 329028 | CO58: 291423 | CP58: 257456 | CQ58: 216894 | CR58: 178221 | CS58: 147593 | CT58: 117119 | CU58: 90633 | CV58: 69791 | CW58: 52229 | CX58: 37385 | CY58: 26057 | CZ58: 17430 | DA58: 11052 | DB58: 15726
B59: SSA | C59: M | D59: 2020 | E59: 167154076 | F59: 1927702 | G59: 1953059 | H59: 2001509 | I59: 2041786 | J59: 2091654 | K59: 2110500 | L59: 2105616 | M59: 2098016 | N59: 2102852 | O59: 2140414 | P59: 2168624 | Q59: 2232816 | R59: 2307560 | S59: 2306218 | T59: 2250871 | U59: 2238919 | V59: 2244359 | W59: 2231551 | X59: 2222760 | Y59: 2262874 | Z59: 2263239 | AA59: 2230854 | AB59: 2223713 | AC59: 2223788 | AD59: 2235970 | AE59: 2272360 | AF59: 2306701 | AG59: 2356014 | AH59: 2404754 | AI59: 2430146 | AJ59: 2439284 | AK59: 2372080 | AL59: 2325625 | AM59: 2305530 | AN59: 2313765 | AO59: 2307758 | AP59: 2244960 | AQ59: 2295968 | AR59: 2280926 | AS59: 2259514 | AT59: 2235393 | AU59: 2151257 | AV59: 2085711 | AW59: 2074064 | AX59: 1987519 | AY59: 2019673 | AZ59: 1962087 | BA59: 2006150 | BB59: 2088952 | BC59: 2244283 | BD59: 2189135 | BE59: 2115286 | BF59: 2055299 | BG59: 2064687 | BH59: 2095011 | BI59: 2164169 | BJ59: 2216386 | BK59: 2218552 | BL59: 2205451 | BM59: 2224599 | BN59: 2155825 | BO59: 2118872 | BP59: 2096220 | BQ59: 2057009 | BR59: 1956697 | BS59: 1906112 | BT59: 1827009 | BU59: 1749846 | BV59: 1670177 | BW59: 1596323 | BX59: 1507922 | BY59: 1471966 | BZ59: 1435667 | CA59: 1518352 | CB59: 1056512 | CC59: 1011610 | CD59: 968392 | CE59: 979954 | CF59: 820681 | CG59: 730176 | CH59: 657136 | CI59: 602335 | CJ59: 551681 | CK59: 484804 | CL59: 439771 | CM59: 390364 | CN59: 325031 | CO59: 289827 | CP59: 252990 | CQ59: 219764 | CR59: 181792 | CS59: 146251 | CT59: 118417 | CU59: 91706 | CV59: 69132 | CW59: 51798 | CX59: 37716 | CY59: 26267 | CZ59: 17825 | DA59: 11622 | DB59: 16252
B60: SSA | C60: M | D60: 2021 | E60: 167634381 | F60: 1852458 | G60: 1924477 | H60: 1955569 | I60: 2006351 | J60: 2048439 | K60: 2099108 | L60: 2118596 | M60: 2114470 | N60: 2106877 | O60: 2111569 | P60: 2150226 | Q60: 2176576 | R60: 2239014 | S60: 2313645 | T60: 2311117 | U60: 2256019 | V60: 2244225 | W60: 2249800 | X60: 2238042 | Y60: 2230060 | Z60: 2271469 | AA60: 2269624 | AB60: 2234018 | AC60: 2227258 | AD60: 2228505 | AE60: 2241397 | AF60: 2278306 | AG60: 2313154 | AH60: 2362680 | AI60: 2411488 | AJ60: 2436058 | AK60: 2444282 | AL60: 2377222 | AM60: 2330560 | AN60: 2310393 | AO60: 2319080 | AP60: 2312312 | AQ60: 2248295 | AR60: 2298270 | AS60: 2280954 | AT60: 2259100 | AU60: 2233634 | AV60: 2148294 | AW60: 2083196 | AX60: 2070864 | AY60: 1984030 | AZ60: 2015549 | BA60: 1957403 | BB60: 2000020 | BC60: 2081666 | BD60: 2235105 | BE60: 2178480 | BF60: 2104023 | BG60: 2043003 | BH60: 2050448 | BI60: 2078315 | BJ60: 2144897 | BK60: 2195271 | BL60: 2195626 | BM60: 2181542 | BN60: 2198017 | BO60: 2127595 | BP60: 2090660 | BQ60: 2066358 | BR60: 2025287 | BS60: 1924173 | BT60: 1872712 | BU60: 1793792 | BV60: 1715808 | BW60: 1635361 | BX60: 1559356 | BY60: 1469820 | BZ60: 1432829 | CA60: 1394201 | CB60: 1470787 | CC60: 1019093 | CD60: 969972 | CE60: 924044 | CF60: 930317 | CG60: 774749 | CH60: 684842 | CI60: 611923 | CJ60: 556529 | CK60: 505243 | CL60: 439953 | CM60: 395093 | CN60: 346447 | CO60: 284583 | CP60: 249927 | CQ60: 214533 | CR60: 182739 | CS60: 147970 | CT60: 116171 | CU60: 91711 | CV60: 69188 | CW60: 50751 | CX60: 36977 | CY60: 26191 | CZ60: 17746 | DA60: 11721 | DB60: 16783
B61: SSA | C61: M | D61: 2022 | E61: 168291117 | F61: 1898702 | G61: 1846366 | H61: 1929933 | I61: 1962771 | J61: 2014237 | K61: 2057235 | L61: 2108436 | M61: 2128271 | N61: 2124925 | O61: 2117893 | P61: 2122844 | Q61: 2162177 | R61: 2187771 | S61: 2249549 | T61: 2324382 | U61: 2321874 | V61: 2267994 | W61: 2257569 | X61: 2263525 | Y61: 2251613 | Z61: 2244051 | AA61: 2286362 | AB61: 2283061 | AC61: 2245462 | AD61: 2238470 | AE61: 2239803 | AF61: 2252453 | AG61: 2289090 | AH61: 2323610 | AI61: 2372696 | AJ61: 2420988 | AK61: 2444374 | AL61: 2451397 | AM61: 2383658 | AN61: 2336086 | AO61: 2315047 | AP61: 2323154 | AQ61: 2315296 | AR61: 2250080 | AS61: 2298974 | AT61: 2280009 | AU61: 2257482 | AV61: 2230943 | AW61: 2144688 | AX61: 2079465 | AY61: 2066376 | AZ61: 1979118 | BA61: 2009892 | BB61: 1951245 | BC61: 1992752 | BD61: 2073263 | BE61: 2224853 | BF61: 2167039 | BG61: 2091793 | BH61: 2029654 | BI61: 2035220 | BJ61: 2060846 | BK61: 2124955 | BL61: 2173183 | BM61: 2171557 | BN61: 2155964 | BO61: 2169886 | BP61: 2097976 | BQ61: 2060055 | BR61: 2033824 | BS61: 1990974 | BT61: 1889319 | BU61: 1836744 | BV61: 1757433 | BW61: 1678565 | BX61: 1597321 | BY61: 1519786 | BZ61: 1429368 | CA61: 1390665 | CB61: 1349524 | CC61: 1419321 | CD61: 979376 | CE61: 927263 | CF61: 879067 | CG61: 880348 | CH61: 728799 | CI61: 639868 | CJ61: 567498 | CK61: 511868 | CL61: 460416 | CM61: 396849 | CN61: 352334 | CO61: 304836 | CP61: 246708 | CQ61: 213119 | CR61: 179669 | CS61: 149843 | CT61: 118582 | CU61: 90721 | CV61: 69761 | CW61: 51248 | CX61: 36593 | CY61: 25959 | CZ61: 17921 | DA61: 11835 | DB61: 17399
B62: SSA | C62: M | D62: 2023 | E62: 169257473 | F62: 1913257 | G62: 1905630 | H62: 1858217 | I62: 1943117 | J62: 1975239 | K62: 2026423 | L62: 2069441 | M62: 2120752 | N62: 2141007 | O62: 2138566 | P62: 2132282 | Q62: 2137537 | R62: 2177103 | S62: 2202850 | T62: 2265146 | U62: 2341252 | V62: 2340811 | W62: 2289425 | X62: 2280936 | Y62: 2286655 | Z62: 2273921 | AA62: 2266293 | AB62: 2308150 | AC62: 2303953 | AD62: 2265477 | AE62: 2257633 | AF62: 2258011 | AG62: 2269556 | AH62: 2305232 | AI62: 2338722 | AJ62: 2386764 | AK62: 2433887 | AL62: 2455780 | AM62: 2461426 | AN62: 2392268 | AO62: 2343258 | AP62: 2320806 | AQ62: 2327581 | AR62: 2318532 | AS62: 2252277 | AT62: 2300239 | AU62: 2280427 | AV62: 2257153 | AW62: 2229978 | AX62: 2143228 | AY62: 2077370 | AZ62: 2063564 | BA62: 1975731 | BB62: 2005727 | BC62: 1946578 | BD62: 1987190 | BE62: 2066384 | BF62: 2216127 | BG62: 2157251 | BH62: 2080989 | BI62: 2017651 | BJ62: 2021511 | BK62: 2045144 | BL62: 2106829 | BM62: 2152635 | BN62: 2148902 | BO62: 2131265 | BP62: 2142706 | BQ62: 2069380 | BR62: 2029648 | BS62: 2001532 | BT62: 1957146 | BU62: 1855040 | BV62: 1801151 | BW62: 1720954 | BX62: 1641042 | BY62: 1558727 | BZ62: 1479887 | CA62: 1388398 | CB62: 1347057 | CC62: 1303101 | CD62: 1365607 | CE62: 938623 | CF62: 884668 | CG62: 834521 | CH62: 831094 | CI62: 683754 | CJ62: 596054 | CK62: 524436 | CL62: 468796 | CM62: 417606 | CN62: 355851 | CO62: 311803 | CP62: 265816 | CQ62: 211622 | CR62: 179490 | CS62: 148329 | CT62: 120900 | CU62: 93374 | CV62: 69527 | CW62: 52015 | CX62: 37169 | CY62: 25815 | CZ62: 17827 | DA62: 11991 | DB62: 17970
B63: SSA | C63: M | D63: 2024 | E63: 170401348 | F63: 1927608 | G63: 1921448 | H63: 1919406 | I63: 1873026 | J63: 1957732 | K63: 1989271 | L63: 2040576 | M63: 2083480 | N63: 2135196 | O63: 2156404 | P63: 2154799 | Q63: 2148863 | R63: 2154271 | S63: 2194213 | T63: 2220497 | U63: 2284162 | V63: 2362794 | W63: 2365328 | X63: 2315791 | Y63: 2307461 | Z63: 2312519 | AA63: 2299437 | AB63: 2290766 | AC63: 2331217 | AD63: 2326081 | AE63: 2286813 | AF63: 2278199 | AG63: 2277728 | AH63: 2288259 | AI63: 2323088 | AJ63: 2355574 | AK63: 2402330 | AL63: 2447957 | AM63: 2468155 | AN63: 2472304 | AO63: 2401617 | AP63: 2351205 | AQ63: 2327438 | AR63: 2332911 | AS63: 2322703 | AT63: 2255462 | AU63: 2302606 | AV63: 2282074 | AW63: 2258154 | AX63: 2230402 | AY63: 2143156 | AZ63: 2076601 | BA63: 2062059 | BB63: 1973612 | BC63: 2002854 | BD63: 1943065 | BE63: 1982604 | BF63: 2060293 | BG63: 2208006 | BH63: 2147869 | BI63: 2070462 | BJ63: 2005842 | BK63: 2007929 | BL63: 2029497 | BM63: 2088715 | BN63: 2132106 | BO63: 2126277 | BP63: 2106562 | BQ63: 2115488 | BR63: 2040805 | BS63: 1999473 | BT63: 1969745 | BU63: 1924044 | BV63: 1821606 | BW63: 1766417 | BX63: 1685231 | BY63: 1604041 | BZ63: 1520314 | CA63: 1439797 | CB63: 1346922 | CC63: 1302729 | CD63: 1255903 | CE63: 1311220 | CF63: 897612 | CG63: 842018 | CH63: 790055 | CI63: 782100 | CJ63: 639142 | CK63: 552823 | CL63: 482141 | CM63: 426780 | CN63: 376160 | CO63: 316539 | CP63: 273416 | CQ63: 229407 | CR63: 179430 | CS63: 149193 | CT63: 120685 | CU63: 96054 | CV63: 72415 | CW63: 52551 | CX63: 38331 | CY63: 26711 | CZ63: 18106 | DA63: 12204 | DB63: 18906
B64: SSA | C64: M | D64: 2025 | E64: 171551862 | F64: 1973383 | G64: 1934891 | H64: 1934294 | I64: 1933642 | J64: 1886592 | K64: 1971226 | L64: 2002653 | M64: 2054012 | N64: 2097117 | O64: 2149739 | P64: 2171723 | Q64: 2170459 | R64: 2164663 | S64: 2170293 | T64: 2210857 | U64: 2238273 | V64: 2304090 | W64: 2385592 | X64: 2390074 | Y64: 2340282 | Z64: 2331206 | AA64: 2335817 | AB64: 2321466 | AC64: 2310973 | AD64: 2350363 | AE64: 2344660 | AF64: 2304789 | AG64: 2295584 | AH64: 2294519 | AI64: 2304382 | AJ64: 2338604 | AK64: 2370046 | AL64: 2415395 | AM64: 2459535 | AN64: 2478107 | AO64: 2480861 | AP64: 2408884 | AQ64: 2357343 | AR64: 2332481 | AS64: 2336814 | AT64: 2325624 | AU64: 2257578 | AV64: 2304023 | AW64: 2282859 | AX64: 2258336 | AY64: 2229997 | AZ64: 2142219 | BA64: 2075007 | BB64: 2059806 | BC64: 1970854 | BD64: 1999324 | BE64: 1938804 | BF64: 1977179 | BG64: 2053280 | BH64: 2198824 | BI64: 2137413 | BJ64: 2058928 | BK64: 1993100 | BL64: 1993441 | BM64: 2013018 | BN64: 2069838 | BO64: 2110802 | BP64: 2102870 | BQ64: 2081141 | BR64: 2087673 | BS64: 2011833 | BT64: 1969034 | BU64: 1937715 | BV64: 1890704 | BW64: 1787870 | BX64: 1731184 | BY64: 1648746 | BZ64: 1566019 | CA64: 1480701 | CB64: 1398465 | CC64: 1304303 | CD64: 1257352 | CE64: 1207753 | CF64: 1255892 | CG64: 855990 | CH64: 798859 | CI64: 745215 | CJ64: 732875 | CK64: 594497 | CL64: 509787 | CM64: 440333 | CN64: 385521 | CO64: 335695 | CP64: 278557 | CQ64: 236907 | CR64: 195387 | CS64: 149941 | CT64: 122060 | CU64: 96551 | CV64: 75005 | CW64: 55207 | CX64: 39073 | CY64: 27817 | CZ64: 18938 | DA64: 12542 | DB64: 19912
B66: HMD | C66: F | D66: 2000 | E66: 142713632 | F66: 1867013.125 | G66: 1852381.125 | H66: 1852960.875 | I66: 1868837.875 | J66: 1915542.5 | K66: 1941707.625 | L66: 1962829.75 | M66: 2015108.5 | N66: 2036636.75 | O66: 2062180.5 | P66: 2062304.75 | Q66: 1997410.75 | R66: 1974689.375 | S66: 1960706.875 | T66: 1964531.375 | U66: 1944088 | V66: 1940094.25 | W66: 1952222.375 | X66: 1960549.875 | Y66: 2011423.875 | Z66: 1959912.5 | AA66: 1869404.5 | AB66: 1825107 | AC66: 1783475 | AD66: 1786659.625 | AE66: 1819604.875 | AF66: 1805794.125 | AG66: 1903046.375 | AH66: 2008905 | AI66: 2076595.5 | AJ66: 2092777.625 | AK66: 1985595.375 | AL66: 2001470.625 | AM66: 2020654.5 | AN66: 2121586 | AO66: 2253876.5 | AP66: 2274790 | AQ66: 2285759.25 | AR66: 2280039.25 | AS66: 2321328 | AT66: 2346702 | AU66: 2262689 | AV66: 2275088.5 | AW66: 2221378.25 | AX66: 2167859.25 | AY66: 2166851.75 | AZ66: 2071176.5 | BA66: 2024849 | BB66: 1935974.5 | BC66: 1928463.75 | BD66: 1923904 | BE66: 1855103.625 | BF66: 1915893.25 | BG66: 1689781 | BH66: 1476225.625 | BI66: 1466186.875 | BJ66: 1481855.5 | BK66: 1416578.375 | BL66: 1295151.25 | BM66: 1227383.125 | BN66: 1211422.5 | BO66: 1150757.5 | BP66: 1119074.125 | BQ66: 1086700.875 | BR66: 1087125.375 | BS66: 1051163.75 | BT66: 1011441.875 | BU66: 1025057.25 | BV66: 1024789.438 | BW66: 1021234.938 | BX66: 1035357.75 | BY66: 1001516.062 | BZ66: 989831.625 | CA66: 973659.6875 | CB66: 966253.9375 | CC66: 950266.1875 | CD66: 908444.8125 | CE66: 874389.1875 | CF66: 841135.3125 | CG66: 782312.6875 | CH66: 673733.5 | CI66: 650171.75 | CJ66: 590857.5625 | CK66: 541603.5 | CL66: 501353.375 | CM66: 465952.6562 | CN66: 409433.9062 | CO66: 368689.7812 | CP66: 308950.5 | CQ66: 275707.375 | CR66: 226637.8594 | CS66: 193818.25 | CT66: 156554.7344 | CU66: 123547.4375 | CV66: 97053.74219 | CW66: 73088.32031 | CX66: 54887.91016 | CY66: 40610.78125 | CZ66: 26289.71094 | DA66: 20476.92969 | DB66: 33536.31641
B67: HMD | C67: F | D67: 2001 | E67: 144132560 | F67: 1922474.625 | G67: 1869378.875 | H67: 1856606.125 | I67: 1862912 | J67: 1888273.375 | K67: 1922267.125 | L67: 1945943 | M67: 1976138.625 | N67: 2016128.25 | O67: 2053727.375 | P67: 2095784.375 | Q67: 2071269.5 | R67: 2016824.5 | S67: 1987511 | T67: 1976102.875 | U67: 1981705.25 | V67: 1961779.875 | W67: 1951300.625 | X67: 1978261.75 | Y67: 2008941 | Z67: 2020047.875 | AA67: 1963060.875 | AB67: 1879676.25 | AC67: 1841194.375 | AD67: 1809850.625 | AE67: 1821000.75 | AF67: 1827722.125 | AG67: 1834774.375 | AH67: 1911351.625 | AI67: 2022580 | AJ67: 2109537 | AK67: 2071464.25 | AL67: 2007465.625 | AM67: 2001343.5 | AN67: 2039845.25 | AO67: 2145983.5 | AP67: 2246727.75 | AQ67: 2273212.75 | AR67: 2280298 | AS67: 2303112.25 | AT67: 2338066.75 | AU67: 2316497.75 | AV67: 2277699.75 | AW67: 2272273 | AX67: 2221905 | AY67: 2184204 | AZ67: 2148933.5 | BA67: 2078519.5 | BB67: 2014035 | BC67: 1960677.875 | BD67: 1935463.75 | BE67: 1902031.75 | BF67: 1862479.5 | BG67: 1901681.25 | BH67: 1707577.875 | BI67: 1464907.625 | BJ67: 1457760.125 | BK67: 1476198.375 | BL67: 1419420 | BM67: 1290991.5 | BN67: 1229906.625 | BO67: 1188244 | BP67: 1152523.125 | BQ67: 1115668.25 | BR67: 1079034.875 | BS67: 1076952.125 | BT67: 1039495.188 | BU67: 1003437.5 | BV67: 1006072.188 | BW67: 1004080.562 | BX67: 1015104.938 | BY67: 1003501.188 | BZ67: 981792.5 | CA67: 975355.5 | CB67: 953390.1875 | CC67: 939847.375 | CD67: 920901.8125 | CE67: 875665.6875 | CF67: 838733.6875 | CG67: 804794.5 | CH67: 730211.375 | CI67: 636786.25 | CJ67: 611265.5 | CK67: 551243.9375 | CL67: 501286.3438 | CM67: 460069.2188 | CN67: 422504.625 | CO67: 367380.6562 | CP67: 326622.3438 | CQ67: 270148.1562 | CR67: 236697.5 | CS67: 191463.5625 | CT67: 160146.8438 | CU67: 126907.1406 | CV67: 97820.96094 | CW67: 75063.5625 | CX67: 55166.39062 | CY67: 40309.10938 | CZ67: 29042.55078 | DA67: 18330.96094 | DB67: 34730.14062
B68: HMD | C68: F | D68: 2002 | E68: 145490848 | F68: 1947881 | G68: 1921504.25 | H68: 1870221.125 | I68: 1858443.75 | J68: 1866586.125 | K68: 1892761.5 | L68: 1924447.125 | M68: 1950504.5 | N68: 1980050.5 | O68: 2024054.75 | P68: 2079811.875 | Q68: 2106596.75 | R68: 2088003.875 | S68: 2029715.125 | T68: 1997509.625 | U68: 1991858.625 | V68: 1998603.25 | W68: 1977367.5 | X68: 1974706 | Y68: 2002952.625 | Z68: 2026482.375 | AA68: 2038730.25 | AB68: 1976973.625 | AC68: 1896121.5 | AD68: 1858617.5 | AE68: 1831375.25 | AF68: 1835584.75 | AG68: 1846010 | AH68: 1846130.5 | AI68: 1916674.125 | AJ68: 2038930.75 | AK68: 2113080.75 | AL68: 2086669.625 | AM68: 2017637 | AN68: 2010751.875 | AO68: 2050250.375 | AP68: 2154353.5 | AQ68: 2252394 | AR68: 2279366.75 | AS68: 2285787.25 | AT68: 2306623.25 | AU68: 2342454.75 | AV68: 2318467.25 | AW68: 2280644.5 | AX68: 2270322.25 | AY68: 2220321.25 | AZ68: 2184582 | BA68: 2149825.75 | BB68: 2077107.75 | BC68: 2014416.75 | BD68: 1957709.625 | BE68: 1936739.5 | BF68: 1899316.75 | BG68: 1861600.5 | BH68: 1901147.625 | BI68: 1702946.75 | BJ68: 1463834.5 | BK68: 1453768.5 | BL68: 1472189.5 | BM68: 1413765.625 | BN68: 1282520.25 | BO68: 1226172.5 | BP68: 1182233.625 | BQ68: 1146095.75 | BR68: 1106194.875 | BS68: 1070876.625 | BT68: 1066593.875 | BU68: 1028663.75 | BV68: 991229.6875 | BW68: 991892 | BX68: 986914.25 | BY68: 998826.25 | BZ68: 983468.9375 | CA68: 960633.75 | CB68: 950756.625 | CC68: 925261.0625 | CD68: 912149.8125 | CE68: 889164.3125 | CF68: 843083.625 | CG68: 803753.6875 | CH68: 755084.6875 | CI68: 691325 | CJ68: 598736.3125 | CK68: 570698.875 | CL68: 510425.5 | CM68: 459616.7812 | CN68: 417903.2188 | CO68: 379455.9375 | CP68: 325198.625 | CQ68: 285152.125 | CR68: 232346.5312 | CS68: 199973.1719 | CT68: 158851.2812 | CU68: 129964.5781 | CV68: 100730.25 | CW68: 75449.28125 | CX68: 56411.17969 | CY68: 40557.37109 | CZ68: 28697.26953 | DA68: 20345.11914 | DB68: 34092.49219
B69: HMD | C69: F | D69: 2003 | E69: 146781200 | F69: 1937799.75 | G69: 1943411.125 | H69: 1921354.75 | I69: 1872625.5 | J69: 1863409.125 | K69: 1872030 | L69: 1894021.5 | M69: 1929899.125 | N69: 1954366.125 | O69: 1990011.875 | P69: 2061119 | Q69: 2086742.875 | R69: 2124615.5 | S69: 2099065.75 | T69: 2036706.125 | U69: 2014354.5 | V69: 2008462.75 | W69: 2011401.375 | X69: 2001928.875 | Y69: 1998219 | Z69: 2014618.625 | AA69: 2041816.375 | AB69: 2047151.5 | AC69: 1990227.625 | AD69: 1911413 | AE69: 1880563.5 | AF69: 1841736.625 | AG69: 1854289 | AH69: 1853721.875 | AI69: 1847614 | AJ69: 1938146.5 | AK69: 2038513.25 | AL69: 2133184.75 | AM69: 2095931.25 | AN69: 2026125 | AO69: 2021663.25 | AP69: 2057796.125 | AQ69: 2158776 | AR69: 2258406.5 | AS69: 2284798.5 | AT69: 2288439.75 | AU69: 2311346 | AV69: 2343398 | AW69: 2321843 | AX69: 2276293 | AY69: 2268004.75 | AZ69: 2221636.25 | BA69: 2186396.25 | BB69: 2147537 | BC69: 2078270.75 | BD69: 2010022.125 | BE69: 1960924.625 | BF69: 1933024.75 | BG69: 1899706.125 | BH69: 1862312.625 | BI69: 1894224.5 | BJ69: 1703143.375 | BK69: 1459174.875 | BL69: 1450143.875 | BM69: 1465752.125 | BN69: 1402523.125 | BO69: 1280904.25 | BP69: 1220118.25 | BQ69: 1176112.375 | BR69: 1135353.75 | BS69: 1098647.75 | BT69: 1060421.625 | BU69: 1056014.5 | BV69: 1016435 | BW69: 977364.1875 | BX69: 974067.0625 | BY69: 972185.125 | BZ69: 978573.4375 | CA69: 962725.8125 | CB69: 936038.625 | CC69: 921904.75 | CD69: 899501.4375 | CE69: 880654.5 | CF69: 856882.6875 | CG69: 808389.875 | CH69: 735657.625 | CI69: 714919.125 | CJ69: 650289.5 | CK69: 558525.3125 | CL69: 528608.1875 | CM69: 468323 | CN69: 417556.3438 | CO69: 375303.8438 | CP69: 336166.2188 | CQ69: 283863.7812 | CR69: 245192.6719 | CS69: 196468.6094 | CT69: 165310.4375 | CU69: 128619.5938 | CV69: 102733.9219 | CW69: 77778.92969 | CX69: 56863.19922 | CY69: 41228.28125 | CZ69: 28735.08984 | DA69: 19841.74023 | DB69: 34790.08984
B70: HMD | C70: F | D70: 2004 | E70: 148060752 | F70: 1952451.875 | G70: 1929815 | H70: 1942271 | I70: 1924118.375 | J70: 1878834.5 | K70: 1869730.625 | L70: 1872307.375 | M70: 1900300.375 | N70: 1933564 | O70: 1966229.875 | P70: 2037841.75 | Q70: 2064191.375 | R70: 2105708.25 | S70: 2133712.25 | T70: 2102835.25 | U70: 2054616.375 | V70: 2030613.75 | W70: 2018356.125 | X70: 2037015.5 | Y70: 2024292.25 | Z70: 2004764.375 | AA70: 2027946.625 | AB70: 2046467.75 | AC70: 2058720.375 | AD70: 2004415.625 | AE70: 1934677 | AF70: 1887280.75 | AG70: 1861396.5 | AH70: 1858668 | AI70: 1851305.25 | AJ70: 1873969 | AK70: 1934449.125 | AL70: 2063277 | AM70: 2141833 | AN70: 2103744.25 | AO70: 2037843 | AP70: 2028618.75 | AQ70: 2061130.75 | AR70: 2164833.5 | AS70: 2264001.25 | AT70: 2286804.5 | AU70: 2293994 | AV70: 2311428.75 | AW70: 2347216 | AX70: 2315086.5 | AY70: 2273419.75 | AZ70: 2270300.25 | BA70: 2224464.25 | BB70: 2183317.75 | BC70: 2149612.75 | BD70: 2072435.875 | BE70: 2015382 | BF70: 1955965.875 | BG70: 1934465.75 | BH70: 1901717.625 | BI70: 1853897.625 | BJ70: 1895807.125 | BK70: 1696711.125 | BL70: 1455731.5 | BM70: 1443361.25 | BN70: 1452180.125 | BO70: 1403101.75 | BP70: 1274525 | BQ70: 1214116.375 | BR70: 1164063.75 | BS70: 1128348.75 | BT70: 1087708.5 | BU70: 1050239.625 | BV70: 1043596.688 | BW70: 1002328.375 | BX70: 958847.3125 | BY70: 960529.375 | BZ70: 951992.1875 | CA70: 958188 | CB70: 937588.875 | CC70: 906634 | CD70: 897648 | CE70: 868229.875 | CF70: 849194.875 | CG70: 821882.625 | CH70: 737481.5 | CI70: 697275.5 | CJ70: 673233.5 | CK70: 607984 | CL70: 517929.875 | CM70: 485551.9062 | CN70: 425806.6875 | CO70: 375071.9062 | CP70: 333233.0312 | CQ70: 293677.0938 | CR70: 244336.1719 | CS70: 207391.9375 | CT70: 162678.7344 | CU70: 133799.9375 | CV70: 102018.2969 | CW70: 79279.99219 | CX70: 58418.87109 | CY70: 41536.32031 | CZ70: 29232.55078 | DA70: 19815.19922 | DB70: 34777.23828
B71: HMD | C71: F | D71: 2005 | E71: 149396224 | F71: 1959441.375 | G71: 1941718.125 | H71: 1928840.125 | I71: 1946297.25 | J71: 1932392 | K71: 1886665.75 | L71: 1869620.75 | M71: 1880013.5 | N71: 1904354.5 | O71: 1947870.875 | P71: 2025306.375 | Q71: 2037746.75 | R71: 2084641.5 | S71: 2113352 | T71: 2134866.75 | U71: 2122766.25 | V71: 2071433.5 | W71: 2038546 | X71: 2046243.25 | Y71: 2060065 | Z71: 2027292.5 | AA71: 2017650.25 | AB71: 2030266.375 | AC71: 2058019.375 | AD71: 2073539.125 | AE71: 2030729.875 | AF71: 1939057.5 | AG71: 1909302.25 | AH71: 1863374 | AI71: 1853668.125 | AJ71: 1883972 | AK71: 1867756 | AL71: 1964083.625 | AM71: 2072193.5 | AN71: 2149862 | AO71: 2117153 | AP71: 2044968.875 | AQ71: 2031464.375 | AR71: 2067739 | AS71: 2171087.5 | AT71: 2265975 | AU71: 2293575.5 | AV71: 2293791.75 | AW71: 2316135.75 | AX71: 2338441.5 | AY71: 2312097 | AZ71: 2277212.75 | BA71: 2274449 | BB71: 2220642.75 | BC71: 2186632 | BD71: 2142482.5 | BE71: 2080445.25 | BF71: 2009333.75 | BG71: 1958672.875 | BH71: 1937950.75 | BI71: 1891614 | BJ71: 1857351.125 | BK71: 1887945.5 | BL71: 1693009.375 | BM71: 1448614.125 | BN71: 1428383.875 | BO71: 1455486.625 | BP71: 1396220.125 | BQ71: 1268590.125 | BR71: 1200799 | BS71: 1158062.5 | BT71: 1116978.375 | BU71: 1077772.125 | BV71: 1038084.125 | BW71: 1029197.562 | BX71: 982521.25 | BY71: 946566.875 | BZ71: 940178.4375 | CA71: 932458.4375 | CB71: 932767.125 | CC71: 907231 | CD71: 884163.125 | CE71: 866345.5 | CF71: 837809.875 | CG71: 814707.875 | CH71: 756928.875 | CI71: 700359.4375 | CJ71: 658059.3125 | CK71: 631062.8125 | CL71: 565399 | CM71: 477213.625 | CN71: 443392.4062 | CO71: 384432.25 | CP71: 334410.625 | CQ71: 292895.0938 | CR71: 254645.8125 | CS71: 207921.5625 | CT71: 173536.9375 | CU71: 133147.0625 | CV71: 106963.2812 | CW71: 79936.07812 | CX71: 60472.32812 | CY71: 43349.98047 | CZ71: 29991.61914 | DA71: 20478.32031 | DB71: 35569.63672
B72: HMD | C72: F | D72: 2006 | E72: 150755440 | F72: 1966326.875 | G72: 1946506.625 | H72: 1941403.25 | I72: 1934933.375 | J72: 1957250.5 | K72: 1942333.625 | L72: 1886614.75 | M72: 1879230.875 | N72: 1884966.75 | O72: 1921501.875 | P72: 2018448.375 | Q72: 2022572.625 | R72: 2060099.75 | S72: 2091361.25 | T72: 2112562.5 | U72: 2157391.5 | V72: 2141018 | W72: 2078091.25 | X72: 2069655.25 | Y72: 2070107.5 | Z72: 2059333.875 | AA72: 2039353 | AB72: 2017191.375 | AC72: 2041450.25 | AD72: 2073488.375 | AE72: 2103138.75 | AF72: 2032399 | AG72: 1963743.25 | AH72: 1908834.125 | AI72: 1855781.375 | AJ72: 1892640.125 | AK72: 1874599.875 | AL72: 1902115.875 | AM72: 1973304.5 | AN72: 2080569.875 | AO72: 2165204.25 | AP72: 2124608.5 | AQ72: 2047402.125 | AR72: 2038819 | AS72: 2074606.75 | AT72: 2173281 | AU72: 2273945.5 | AV72: 2293137.5 | AW72: 2299596.25 | AX72: 2305687.75 | AY72: 2335451.5 | AZ72: 2317711.5 | BA72: 2282914.75 | BB72: 2270074.5 | BC72: 2225322.5 | BD72: 2178391.75 | BE72: 2153458.75 | BF72: 2073369.75 | BG72: 2013427 | BH72: 1963474 | BI72: 1926126.75 | BJ72: 1897230 | BK72: 1849095.25 | BL72: 1884393.125 | BM72: 1684254.125 | BN72: 1432091.875 | BO72: 1434921.375 | BP72: 1448863.875 | BQ72: 1390323.125 | BR72: 1253841.625 | BS72: 1195817.5 | BT72: 1146568.5 | BU72: 1107537.5 | BV72: 1065745.5 | BW72: 1023873.25 | BX72: 1008183.875 | BY72: 971425.875 | BZ72: 926413.875 | CA72: 921611.875 | CB72: 907633.9375 | CC72: 902083.125 | CD72: 886702.125 | CE72: 853608.1875 | CF72: 837177.4375 | CG72: 804583.8125 | CH72: 744007.5 | CI72: 718952.75 | CJ72: 661049.8125 | CK72: 617063.6875 | CL72: 586991.3125 | CM72: 521015.0938 | CN72: 435011.0312 | CO72: 400053.9688 | CP72: 342259.5312 | CQ72: 293373.9062 | CR72: 253070.4531 | CS72: 215923.125 | CT72: 173223.6875 | CU72: 141348.9844 | CV72: 106124.4766 | CW72: 83062.21875 | CX72: 60453.80859 | CY72: 44391.64062 | CZ72: 31088.44922 | DA72: 20855.24023 | DB72: 35899.14062
B73: HMD | C73: F | D73: 2007 | E73: 152169248 | F73: 2001620.25 | G73: 1950339.75 | H73: 1946353.375 | I73: 1949183.625 | J73: 1948265.25 | K73: 1968945.75 | L73: 1941826.375 | M73: 1897919.25 | N73: 1884742.125 | O73: 1904611.75 | P73: 2002652.375 | Q73: 2012777.5 | R73: 2046493.875 | S73: 2065581.125 | T73: 2088382.25 | U73: 2137035 | V73: 2176572.5 | W73: 2145769.5 | X73: 2111880.5 | Y73: 2093235.75 | Z73: 2065173.125 | AA73: 2069999.125 | AB73: 2035153.625 | AC73: 2027312.125 | AD73: 2056878.5 | AE73: 2105284.25 | AF73: 2101269.5 | AG73: 2059202.625 | AH73: 1959344.125 | AI73: 1897034.25 | AJ73: 1900178.625 | AK73: 1879335.5 | AL73: 1913706 | AM73: 1910853.75 | AN73: 1981480 | AO73: 2097098.125 | AP73: 2172365.5 | AQ73: 2125866.5 | AR73: 2055039.75 | AS73: 2045792.125 | AT73: 2076471 | AU73: 2181778 | AV73: 2273068.75 | AW73: 2299812.75 | AX73: 2287205 | AY73: 2302500.25 | AZ73: 2342431.75 | BA73: 2324965.5 | BB73: 2277948.75 | BC73: 2276038 | BD73: 2215813.5 | BE73: 2192101 | BF73: 2145189 | BG73: 2078704.875 | BH73: 2019523 | BI73: 1949568.75 | BJ73: 1933602.875 | BK73: 1888043.75 | BL73: 1846106.125 | BM73: 1873997.25 | BN73: 1662717.25 | BO73: 1441437.625 | BP73: 1428965.75 | BQ73: 1443527.5 | BR73: 1373240.125 | BS73: 1249529.375 | BT73: 1183737.375 | BU73: 1137473.75 | BV73: 1095398.375 | BW73: 1051159.875 | BX73: 1002068.75 | BY73: 998133.5625 | BZ73: 950579.5 | CA73: 908625.625 | CB73: 896849.5 | CC73: 877070.25 | CD73: 883378 | CE73: 856212.75 | CF73: 825780.4375 | CG73: 804678.4375 | CH73: 735748 | CI73: 707601.125 | CJ73: 679586.0625 | CK73: 621010.25 | CL73: 575542.625 | CM73: 542786.5 | CN73: 477033.3438 | CO73: 393149 | CP73: 357969.6875 | CQ73: 302050.5312 | CR73: 254087.3281 | CS73: 216146.5469 | CT73: 180706.1562 | CU73: 141858.0156 | CV73: 113481.7969 | CW73: 83194.67188 | CX73: 63410.39844 | CY73: 45097.73828 | CZ73: 32146.65039 | DA73: 21732.03906 | DB73: 36931.23438
B74: HMD | C74: F | D74: 2008 | E74: 153609520 | F74: 2025029.125 | G74: 1981914.125 | H74: 1950114.875 | I74: 1955616.125 | J74: 1964653.125 | K74: 1961588 | L74: 1967760.625 | M74: 1954770.75 | N74: 1903791.5 | O74: 1906822.25 | P74: 1996202.375 | Q74: 1993989.5 | R74: 2038130.75 | S74: 2050579.75 | T74: 2060291.25 | U74: 2114471.5 | V74: 2156699.25 | W74: 2179279.75 | X74: 2182877 | Y74: 2135010.75 | Z74: 2083626.375 | AA74: 2074001.875 | AB74: 2061592.5 | AC74: 2043572.75 | AD74: 2042166.125 | AE74: 2089953.25 | AF74: 2099732 | AG74: 2129734.5 | AH74: 2049577.875 | AI74: 1942623 | AJ74: 1947168.625 | AK74: 1882597.5 | AL74: 1922832.875 | AM74: 1921680 | AN74: 1918418.5 | AO74: 1998622.5 | AP74: 2103794 | AQ74: 2172331.75 | AR74: 2133500 | AS74: 2061986.5 | AT74: 2047051.75 | AU74: 2085037.75 | AV74: 2180510 | AW74: 2280390.5 | AX74: 2285223 | AY74: 2283777.75 | AZ74: 2310588 | BA74: 2351042.25 | BB74: 2319129.25 | BC74: 2285080.75 | BD74: 2265172.5 | BE74: 2232255.25 | BF74: 2182639.5 | BG74: 2151946.75 | BH74: 2086472.5 | BI74: 2003265.75 | BJ74: 1958760.375 | BK74: 1923338.125 | BL74: 1885457.5 | BM74: 1835297.75 | BN74: 1847713.125 | BO74: 1677179.5 | BP74: 1435858.625 | BQ74: 1424484.125 | BR74: 1424592.25 | BS74: 1369712.5 | BT74: 1236649.875 | BU74: 1174819.625 | BV74: 1125225.125 | BW74: 1080391.875 | BX74: 1027835.688 | BY74: 993210.875 | BZ74: 976332.375 | CA74: 932700.5 | CB74: 883704 | CC74: 865687.0625 | CD74: 860225.5 | CE74: 852871.8125 | CF74: 829023.3125 | CG74: 793988.8125 | CH74: 744490.375 | CI74: 700682.25 | CJ74: 669794.25 | CK74: 638781.5 | CL74: 580113.9375 | CM74: 532945.1875 | CN74: 497925.2812 | CO74: 432594.3125 | CP74: 352128.125 | CQ74: 316589.1562 | CR74: 263132.7188 | CS74: 217492.5312 | CT74: 181462.8281 | CU74: 148904.0156 | CV74: 114507.0625 | CW74: 89101.45312 | CX74: 64020.96094 | CY74: 47461.33984 | CZ74: 32722.31055 | DA74: 22695.31055 | DB74: 38242.10156
B75: HMD | C75: F | D75: 2009 | E75: 154993904 | F75: 1990941.75 | G75: 2001750 | H75: 1981638.875 | I75: 1960911.25 | J75: 1973048 | K75: 1979876.625 | L75: 1960147.875 | M75: 1982128.125 | N75: 1960978 | O75: 1928658.5 | P75: 2009534.125 | Q75: 1984519 | R75: 2020695 | S75: 2040836.125 | T75: 2042991.75 | U75: 2087930.75 | V75: 2134643 | W75: 2157626 | X75: 2219403 | Y75: 2205256 | Z75: 2120827 | AA75: 2090936.5 | AB75: 2061691.25 | AC75: 2068445.125 | AD75: 2057753.75 | AE75: 2076721.5 | AF75: 2081159.625 | AG75: 2129594.25 | AH75: 2115336.5 | AI75: 2027489.875 | AJ75: 1999071.375 | AK75: 1924858.875 | AL75: 1930673.75 | AM75: 1930149.125 | AN75: 1928705.25 | AO75: 1936111.5 | AP75: 2004954 | AQ75: 2103008.5 | AR75: 2180188 | AS75: 2140527.25 | AT75: 2062635.25 | AU75: 2055757.375 | AV75: 2083172.5 | AW75: 2188154.5 | AX75: 2263677.25 | AY75: 2281501.5 | AZ75: 2293096 | BA75: 2320292 | BB75: 2344351.75 | BC75: 2327564.25 | BD75: 2272878.75 | BE75: 2284463.5 | BF75: 2221520.25 | BG75: 2190822 | BH75: 2161479.5 | BI75: 2067670.75 | BJ75: 2014438.625 | BK75: 1947416.625 | BL75: 1921171 | BM75: 1873864.625 | BN75: 1806927.25 | BO75: 1867322.5 | BP75: 1671453.625 | BQ75: 1431969 | BR75: 1404305.375 | BS75: 1422108.75 | BT75: 1355711 | BU75: 1227896.125 | BV75: 1162582.75 | BW75: 1109950.375 | BX75: 1055475.75 | BY75: 1020048 | BZ75: 971136.3125 | CA75: 958507 | CB75: 906792.4375 | CC75: 852072.6875 | CD75: 850547.4375 | CE75: 830371.9375 | CF75: 826535.125 | CG75: 797552.75 | CH75: 731878.5625 | CI75: 708797.625 | CJ75: 663536.9375 | CK75: 629771.3125 | CL75: 596082.9375 | CM75: 536971.375 | CN75: 488740.5938 | CO75: 451616.5625 | CP75: 387420.1562 | CQ75: 310666.1875 | CR75: 275139.125 | CS75: 224889.3281 | CT75: 181980.7656 | CU75: 148889.6562 | CV75: 119538.4375 | CW75: 89554.67969 | CX75: 67821.67188 | CY75: 47331.37109 | CZ75: 34082.32812 | DA75: 22981.96094 | DB75: 39290.17188
B76: HMD | C76: F | D76: 2010 | E76: 156309552 | F76: 1946038.125 | G76: 1967668.875 | H76: 2003709.25 | I76: 1990069 | J76: 1981977.875 | K76: 1989823.75 | L76: 1980159.875 | M76: 1974235.125 | N76: 1986594.125 | O76: 1982262.75 | P76: 2032278.25 | Q76: 1998457.625 | R76: 2009891.75 | S76: 2023943.625 | T76: 2031116.75 | U76: 2067605.125 | V76: 2109819.5 | W76: 2135579.75 | X76: 2196781.5 | Y76: 2244157.5 | Z76: 2189159.5 | AA76: 2126599.25 | AB76: 2079784.125 | AC76: 2067216.5 | AD76: 2082099.125 | AE76: 2090401.75 | AF76: 2066384.375 | AG76: 2109995 | AH76: 2118355.25 | AI76: 2089619.75 | AJ76: 2085009.875 | AK76: 1978145.5 | AL76: 1970786.875 | AM76: 1938859.375 | AN76: 1936257.875 | AO76: 1944697.625 | AP76: 1942528.25 | AQ76: 2004101.375 | AR76: 2109715.25 | AS76: 2187504.5 | AT76: 2139653 | AU76: 2071011.75 | AV76: 2053644.375 | AW76: 2089998.25 | AX76: 2172317.5 | AY76: 2259229.25 | AZ76: 2290703 | BA76: 2301500 | BB76: 2313455.75 | BC76: 2353204.25 | BD76: 2313588 | BE76: 2291735 | BF76: 2273096.75 | BG76: 2228586.5 | BH76: 2199972.25 | BI76: 2141510.5 | BJ76: 2078411.75 | BK76: 2002575.875 | BL76: 1943911.125 | BM76: 1910408.625 | BN76: 1843045 | BO76: 1825857.5 | BP76: 1860686.5 | BQ76: 1665883.625 | BR76: 1412383.25 | BS76: 1400882.875 | BT76: 1407473 | BU76: 1346311 | BV76: 1214484.75 | BW76: 1147971.875 | BX76: 1083982.75 | BY76: 1047285.75 | BZ76: 997403.4375 | CA76: 953515.25 | CB76: 932950 | CC76: 874615.25 | CD76: 837574.0625 | CE76: 821318.6875 | CF76: 805153.75 | CG76: 795772.0625 | CH76: 719735.6875 | CI76: 698476.875 | CJ76: 672634.3125 | CK76: 625312.5 | CL76: 589406.25 | CM76: 553671.25 | CN76: 493901.0938 | CO76: 444907.8125 | CP76: 406427.1562 | CQ76: 344435.4062 | CR76: 272160.25 | CS76: 237151.6719 | CT76: 190575.1406 | CU76: 150970.7969 | CV76: 120746.8438 | CW76: 95136.86719 | CX76: 69465.90625 | CY76: 51309.60938 | CZ76: 34826.57031 | DA76: 24492.66016 | DB76: 41368.86719
B77: HMD | C77: F | D77: 2011 | E77: 157505600 | F77: 1933864.875 | G77: 1939398.5 | H77: 1973336.25 | I77: 2009425.75 | J77: 2004651.25 | K77: 1993251.125 | L77: 1993481.125 | M77: 1989491.125 | N77: 1978244.375 | O77: 1997433.75 | P77: 2034398.75 | Q77: 2030701.125 | R77: 2013084.375 | S77: 2015036.5 | T77: 2021670.75 | U77: 2044926.875 | V77: 2083227.125 | W77: 2115813.5 | X77: 2160436 | Y77: 2217534.25 | Z77: 2243307.25 | AA77: 2198619.75 | AB77: 2130122.25 | AC77: 2090299.5 | AD77: 2082184.625 | AE77: 2105411 | AF77: 2093107 | AG77: 2087199.625 | AH77: 2113771 | AI77: 2111049.5 | AJ77: 2122381.5 | AK77: 2081009.125 | AL77: 2002579.625 | AM77: 1978971.25 | AN77: 1944710.375 | AO77: 1946103.625 | AP77: 1950449 | AQ77: 1944217.875 | AR77: 2008489.875 | AS77: 2114778.25 | AT77: 2187337.25 | AU77: 2144112.75 | AV77: 2070182.75 | AW77: 2056479.75 | AX77: 2082751.875 | AY77: 2169177.75 | AZ77: 2262314.5 | BA77: 2292382 | BB77: 2296242 | BC77: 2315361 | BD77: 2342909.25 | BE77: 2319023.5 | BF77: 2282698 | BG77: 2272119 | BH77: 2228586.75 | BI77: 2185854.75 | BJ77: 2141755.75 | BK77: 2067900.625 | BL77: 1995319.125 | BM77: 1934208.875 | BN77: 1889420.625 | BO77: 1846058.25 | BP77: 1816134.625 | BQ77: 1850114.75 | BR77: 1649043.375 | BS77: 1403742 | BT77: 1386927.375 | BU77: 1395021.25 | BV77: 1330624.75 | BW77: 1199513.75 | BX77: 1126476.25 | BY77: 1070716.75 | BZ77: 1026656.812 | CA77: 978715.125 | CB77: 931254.75 | CC77: 905864.0625 | CD77: 855556.9375 | CE77: 811280.8125 | CF77: 795876.8125 | CG77: 776144.625 | CH77: 735489.875 | CI77: 686744.1875 | CJ77: 662841.75 | CK77: 634350.5625 | CL77: 585689.875 | CM77: 546799.875 | CN77: 508809.75 | CO77: 450003.75 | CP77: 400478.9062 | CQ77: 361053.6562 | CR77: 301024.0938 | CS77: 234349.0938 | CT77: 200169.4375 | CU77: 158274.0938 | CV77: 122328.4297 | CW77: 95502.54688 | CX77: 73460.67969 | CY77: 52245.85156 | CZ77: 37723.21094 | DA77: 24693.65039 | DB77: 43517.43359
B78: HMD | C78: F | D78: 2012 | E78: 158588592 | F78: 1926803.75 | G78: 1941935 | H78: 1946421.75 | I78: 1979378.625 | J78: 2014820.25 | K78: 2009743.625 | L78: 1998381.25 | M78: 1998797 | N78: 1994836.625 | O78: 1983689.375 | P78: 2003012.375 | Q78: 2040141.5 | R78: 2036542.25 | S78: 2018734.625 | T78: 2020897.5 | U78: 2028226.25 | V78: 2052590.375 | W78: 2093116.75 | X78: 2128023 | Y78: 2173747.25 | Z78: 2230939.75 | AA78: 2257132.25 | AB78: 2213452.5 | AC78: 2145865.25 | AD78: 2106523.75 | AE78: 2098589.75 | AF78: 2120835.25 | AG78: 2107570.75 | AH78: 2100488.75 | AI78: 2125487.25 | AJ78: 2121344 | AK78: 2131390 | AL78: 2088793.75 | AM78: 2009468.75 | AN78: 1985196.625 | AO78: 1950213.625 | AP78: 1950831.375 | AQ78: 1954478.875 | AR78: 1947624.25 | AS78: 2011154.25 | AT78: 2116548.75 | AU78: 2188284.75 | AV78: 2144398.25 | AW78: 2070006 | AX78: 2055981.625 | AY78: 2081446.375 | AZ78: 2166907.5 | BA78: 2259223.25 | BB78: 2288586 | BC78: 2291677 | BD78: 2309956 | BE78: 2336827.5 | BF78: 2312151 | BG78: 2275339.5 | BH78: 2264163.25 | BI78: 2220035.25 | BJ78: 2177022.5 | BK78: 2132458.75 | BL78: 2058270.375 | BM78: 1985342.625 | BN78: 1923774.375 | BO78: 1878370.375 | BP78: 1833958.625 | BQ78: 1802700 | BR78: 1835094.5 | BS78: 1634734 | BT78: 1390452.75 | BU78: 1372454.25 | BV78: 1378736.375 | BW78: 1313531.875 | BX78: 1182552.75 | BY78: 1109130.5 | BZ78: 1052523.375 | CA78: 1007383.062 | CB78: 958397.4375 | CC78: 909967.125 | CD78: 882918.25 | CE78: 831473.75 | CF78: 785971.5625 | CG78: 768329.5 | CH78: 711850 | CI78: 701735.5 | CJ78: 651372.25 | CK78: 625195.25 | CL78: 594041.4375 | CM78: 543745.75 | CN78: 503198.6562 | CO78: 463313.5312 | CP78: 404442 | CQ78: 355665.7188 | CR78: 315235.375 | CS78: 258714.9062 | CT78: 197616.6406 | CU78: 165465.5156 | CV78: 128143.7812 | CW78: 96449.74219 | CX78: 73414.95312 | CY78: 55093.69141 | CZ78: 38108.96875 | DA78: 26710.35938 | DB78: 44757.51562
B79: HMD | C79: F | D79: 2013 | E79: 159664304 | F79: 1920266.75 | G79: 1934962.5 | H79: 1949141.125 | I79: 1952749.125 | J79: 1985075.5 | K79: 2020091.375 | L79: 2014882 | M79: 2003752.625 | N79: 2004380.625 | O79: 2000484.625 | P79: 1989297.375 | Q79: 2008732.5 | R79: 2045927.25 | S79: 2042136.375 | T79: 2024570.5 | U79: 2027383.375 | V79: 2035913.25 | W79: 2062398 | X79: 2105159.5 | Y79: 2140835.25 | Z79: 2186394.75 | AA79: 2244528 | AB79: 2272084.5 | AC79: 2229148.75 | AD79: 2161891.75 | AE79: 2122571 | AF79: 2113932.25 | AG79: 2135328 | AH79: 2120714 | AI79: 2112328.5 | AJ79: 2136117.5 | AK79: 2130373 | AL79: 2139189.5 | AM79: 2095696.125 | AN79: 2015577.5 | AO79: 1990568.125 | AP79: 1954995.625 | AQ79: 1955018.5 | AR79: 1957990.875 | AS79: 1950421.625 | AT79: 2013079.75 | AU79: 2117644 | AV79: 2188662 | AW79: 2144206 | AX79: 2069487.625 | AY79: 2054661.625 | AZ79: 2079240.5 | BA79: 2164101.5 | BB79: 2255657.5 | BC79: 2284175 | BD79: 2286476.5 | BE79: 2303849.75 | BF79: 2329746.5 | BG79: 2304641.25 | BH79: 2267297.25 | BI79: 2255424.5 | BJ79: 2210710.5 | BK79: 2167328 | BL79: 2122350.75 | BM79: 2047894.75 | BN79: 1974374.125 | BO79: 1912257.5 | BP79: 1866196.75 | BQ79: 1820771.375 | BR79: 1788199.625 | BS79: 1819040 | BT79: 1619193.625 | BU79: 1376124.875 | BV79: 1356629.25 | BW79: 1360962.875 | BX79: 1295015.625 | BY79: 1164532.125 | BZ79: 1090549.25 | CA79: 1032991 | CB79: 986657.125 | CC79: 936637.3125 | CD79: 887062.625 | CE79: 858259.3125 | CF79: 805662.125 | CG79: 758834.0625 | CH79: 716220.3125 | CI79: 679626.875 | CJ79: 665927.125 | CK79: 614800.375 | CL79: 585695.25 | CM79: 552348.375 | CN79: 500738.6562 | CO79: 458425 | CP79: 417014.8125 | CQ79: 359184.3438 | CR79: 310946.5625 | CS79: 271367.25 | CT79: 218765.9531 | CU79: 164191.9062 | CV79: 134129.7969 | CW79: 101263.2969 | CX79: 74543.46094 | CY79: 55142.25 | CZ79: 40213.64062 | DA79: 27223.09961 | DB79: 47004.96484
B80: HMD | C80: F | D80: 2014 | E80: 160772448 | F80: 1926007 | G80: 1929018.625 | H80: 1942838.125 | I80: 1956209.875 | J80: 1959167.25 | K80: 1990986.625 | L80: 2025725.375 | M80: 2020638.625 | N80: 2009750 | O80: 2010390.625 | P80: 2006411.5 | Q80: 1995146.5 | R80: 2014521.375 | S80: 2051801.875 | T80: 2048372.625 | U80: 2031632.75 | V80: 2035749.25 | W80: 2046294.25 | X80: 2075111.75 | Y80: 2118513.5 | Z80: 2153527 | AA80: 2200099 | AB80: 2260015.25 | AC80: 2288585.75 | AD80: 2245928.25 | AE80: 2178436 | AF80: 2138480.75 | AG80: 2129121.25 | AH80: 2149110.25 | AI80: 2133342.75 | AJ80: 2124079.5 | AK80: 2145859 | AL80: 2138620.25 | AM80: 2146543.75 | AN80: 2102187 | AO80: 2021130 | AP80: 1995554.75 | AQ80: 1959456.75 | AR80: 1958929.125 | AS80: 1961144.875 | AT80: 1952621 | AU80: 2014512.75 | AV80: 2118345.25 | AW80: 2188500.25 | AX80: 2143630.25 | AY80: 2068281 | AZ80: 2052757.75 | BA80: 2076847.25 | BB80: 2160844.5 | BC80: 2251457 | BD80: 2279007.5 | BE80: 2280307.25 | BF80: 2296824.75 | BG80: 2322188.75 | BH80: 2296556.25 | BI80: 2258497 | BJ80: 2245802.75 | BK80: 2200635.5 | BL80: 2156868 | BM80: 2111528.5 | BN80: 2036519.125 | BO80: 1962475.5 | BP80: 1899921.125 | BQ80: 1853114.75 | BR80: 1806604.125 | BS80: 1772622.5 | BT80: 1801686.875 | BU80: 1602408.875 | BV80: 1360556 | BW80: 1339478 | BX80: 1342043 | BY80: 1275589.875 | BZ80: 1145397.375 | CA80: 1070661.25 | CB80: 1012026.812 | CC80: 964530.25 | CD80: 913400.9375 | CE80: 862547.375 | CF80: 831907.4375 | CG80: 778126.5625 | CH80: 729913.375 | CI80: 683742.375 | CJ80: 645602.875 | CK80: 628234.5 | CL80: 576396.8125 | CM80: 544208.5625 | CN80: 508684.5938 | CO80: 456468.4062 | CP80: 412505.625 | CQ80: 370606 | CR80: 314511.5625 | CS80: 267899.8438 | CT80: 229455.0156 | CU80: 181360.375 | CV80: 133038.0156 | CW80: 106273 | CX80: 78128.61719 | CY80: 56049.94141 | CZ80: 40052.82031 | DA80: 28410.30078 | DB80: 48805.33984
B81: HMD | C81: F | D81: 2015 | E81: 161928624 | F81: 1938414.5 | G81: 1935269.875 | H81: 1937577.375 | I81: 1950631.875 | J81: 1963389.75 | K81: 1965841.75 | L81: 1997270.875 | M81: 2031938.875 | N81: 2026906.375 | O81: 2016054.875 | P81: 2016811.125 | Q81: 2012558.125 | R81: 2001164.875 | S81: 2020891.5 | T81: 2058584.125 | U81: 2056210.5 | V81: 2040695.25 | W81: 2046830.25 | X81: 2059830.75 | Y81: 2089171.5 | Z81: 2131848.25 | AA81: 2167782.5 | AB81: 2216285.5 | AC81: 2277459.5 | AD81: 2306538.5 | AE81: 2263726 | AF81: 2195703 | AG81: 2155239 | AH81: 2144471.5 | AI81: 2163081.5 | AJ81: 2146435.75 | AK81: 2135247 | AL81: 2155312 | AM81: 2147189.25 | AN81: 2154364 | AO81: 2108781.75 | AP81: 2026845.375 | AQ81: 2000668.875 | AR81: 1964106.125 | AS81: 1962859.75 | AT81: 1964017.875 | AU81: 1954844.125 | AV81: 2015994.125 | AW81: 2118761.5 | AX81: 2188299.75 | AY81: 2142705.5 | AZ81: 2066766.375 | BA81: 2050709 | BB81: 2073934.5 | BC81: 2157070.75 | BD81: 2246463 | BE81: 2273041 | BF81: 2273624.5 | BG81: 2289506.25 | BH81: 2314225.5 | BI81: 2287850.25 | BJ81: 2248987 | BK81: 2235605.5 | BL81: 2189896.75 | BM81: 2145850.25 | BN81: 2099941 | BO81: 2024357.5 | BP81: 1949870.125 | BQ81: 1886617.5 | BR81: 1839034.75 | BS81: 1791269 | BT81: 1755967 | BU81: 1783148.375 | BV81: 1584574 | BW81: 1343902.125 | BX81: 1321174.625 | BY81: 1321977.5 | BZ81: 1254697.375 | CA81: 1124591.375 | CB81: 1049048.125 | CC81: 989445.4375 | CD81: 940701.5 | CE81: 888280 | CF81: 836202.8125 | CG81: 803671.625 | CH81: 748639.1875 | CI81: 699149.375 | CJ81: 649449.75 | CK81: 610108.9375 | CL81: 589152.375 | CM81: 536334.125 | CN81: 502244.0625 | CO81: 464683.6562 | CP81: 412563.875 | CQ81: 367700.25 | CR81: 325630.75 | CS81: 271652.75 | CT81: 227396.1875 | CU81: 190891.3125 | CV81: 147539.4219 | CW81: 106038.9609 | CX81: 82560.88281 | CY81: 59308.48828 | CZ81: 41126.30078 | DA81: 28682.58008 | DB81: 51119.57422
B82: HMD | C82: F | D82: 2016 | E82: 163075968 | F82: 1941793.375 | G82: 1948076.125 | H82: 1944374.75 | I82: 1945925.625 | J82: 1958391.125 | K82: 1970714.625 | L82: 1972706.625 | M82: 2003890 | N82: 2038341 | O82: 2033296.75 | P82: 2022738.625 | Q82: 2023224.125 | R82: 2018919.75 | S82: 2008007 | T82: 2028184.25 | U82: 2066912.5 | V82: 2065578.25 | W82: 2052125.25 | X82: 2060734.75 | Y82: 2073979.75 | Z82: 2102623.75 | AA82: 2145963.5 | AB82: 2183848.5 | AC82: 2233741.75 | AD82: 2295554.5 | AE82: 2324923 | AF82: 2281723.5 | AG82: 2213280.5 | AH82: 2171579 | AI82: 2159164.25 | AJ82: 2176625.25 | AK82: 2158335.25 | AL82: 2145672.25 | AM82: 2165001.5 | AN82: 2156188.25 | AO82: 2161943.5 | AP82: 2114994.75 | AQ82: 2032177.875 | AR82: 2005584.75 | AS82: 1968477.75 | AT82: 1966235.5 | AU82: 1966871.5 | AV82: 1956892.25 | AW82: 2016880.75 | AX82: 2118993.75 | AY82: 2187590.75 | AZ82: 2141299 | BA82: 2064870.5 | BB82: 2047985.75 | BC82: 2070429.625 | BD82: 2152462.75 | BE82: 2240832 | BF82: 2266710 | BG82: 2266561.75 | BH82: 2281669.75 | BI82: 2305394.5 | BJ82: 2278268 | BK82: 2238731 | BL82: 2224611.25 | BM82: 2178411.25 | BN82: 2133891.25 | BO82: 2087358.5 | BP82: 2011109.625 | BQ82: 1936025.875 | BR82: 1872059.75 | BS82: 1823561 | BT82: 1774818.5 | BU82: 1738046.75 | BV82: 1763306.25 | BW82: 1565211.5 | BX82: 1325612.125 | BY82: 1301490.625 | BZ82: 1300326.375 | CA82: 1231989.625 | CB82: 1102020.875 | CC82: 1025720.5 | CD82: 965012 | CE82: 914919.125 | CF82: 861363.5 | CG82: 807977.6875 | CH82: 773383.25 | CI82: 717145.25 | CJ82: 666190.1875 | CK82: 612603.3125 | CL82: 572069 | CM82: 547818.25 | CN82: 494408.5938 | CO82: 457788.625 | CP82: 418772.125 | CQ82: 367169.875 | CR82: 321927.375 | CS82: 280043.2812 | CT82: 229799.4062 | CU82: 188443.9219 | CV82: 154546.1094 | CW82: 116896.4688 | CX82: 81844.17969 | CY82: 62003.62109 | CZ82: 43007.57031 | DA82: 29243.91992 | DB82: 52023.29297
B83: HMD | C83: F | D83: 2017 | E83: 164175328 | F83: 1916944.625 | G83: 1951451.75 | H83: 1957208 | I83: 1952801.25 | J83: 1953776.25 | K83: 1965909.375 | L83: 1977836.5 | M83: 1979460.375 | N83: 2010181 | O83: 2044586.25 | P83: 2039886.875 | Q83: 2029205.25 | R83: 2029644.25 | S83: 2025668.875 | T83: 2015225.125 | U83: 2036294.625 | V83: 2075885.25 | W83: 2076633.25 | X83: 2065667.75 | Y83: 2074394.875 | Z83: 2086615.25 | AA83: 2115640.5 | AB83: 2160844 | AC83: 2200212.25 | AD83: 2250695.75 | AE83: 2312718.25 | AF83: 2341859 | AG83: 2298561 | AH83: 2229022.25 | AI83: 2185621.5 | AJ83: 2171907.25 | AK83: 2187947 | AL83: 2168396.75 | AM83: 2155221.25 | AN83: 2173898.25 | AO83: 2163550.25 | AP83: 2167768.5 | AQ83: 2119840 | AR83: 2036616.25 | AS83: 2009406.625 | AT83: 1971412.75 | AU83: 1968746 | AV83: 1968728.875 | AW83: 1957763.5 | AX83: 2017136 | AY83: 2118144.25 | AZ83: 2185765.25 | BA83: 2139003.75 | BB83: 2061889.625 | BC83: 2044293.625 | BD83: 2065855 | BE83: 2146959.25 | BF83: 2234620.25 | BG83: 2259616.25 | BH83: 2258521.75 | BI83: 2272507.75 | BJ83: 2295604.25 | BK83: 2267778.25 | BL83: 2227454.75 | BM83: 2212452.25 | BN83: 2165684.75 | BO83: 2120581.75 | BP83: 2073296.25 | BQ83: 1996384.5 | BR83: 1920559.625 | BS83: 1856035 | BT83: 1806692.25 | BU83: 1756712.375 | BV83: 1718516.75 | BW83: 1741467.375 | BX83: 1543892.25 | BY83: 1306022.375 | BZ83: 1280430.875 | CA83: 1277050.625 | CB83: 1207611.75 | CC83: 1077802.125 | CD83: 1000726.875 | CE83: 938969.6875 | CF83: 887641.125 | CG83: 832832.3125 | CH83: 777995.8125 | CI83: 741300.625 | CJ83: 683784.8125 | CK83: 631423.6875 | CL83: 575254.625 | CM83: 532701.4375 | CN83: 505728.6562 | CO83: 451749.0312 | CP83: 413696.25 | CQ83: 373485.875 | CR83: 323000.5625 | CS83: 278015.0938 | CT83: 237780.9531 | CU83: 191537.3438 | CV83: 153747.625 | CW83: 123316.7812 | CX83: 90913.35938 | CY83: 61850.57812 | CZ83: 45563.07031 | DA83: 30603.25977 | DB83: 53664.41016
B84: HMD | C84: F | D84: 2018 | E84: 165130336 | F84: 1883931.875 | G84: 1925574.5 | H84: 1959627.75 | I84: 1964809.125 | J84: 1959889 | K84: 1960631.625 | L84: 1972433.75 | M84: 1983986.5 | N84: 1985129.125 | O84: 2015898.375 | P84: 2050573 | Q84: 2045794.625 | R84: 2035049.125 | S84: 2035641.5 | T84: 2032108.625 | U84: 2022419.625 | V84: 2044137.375 | W84: 2085583 | X84: 2088566.875 | Y84: 2077546.25 | Z84: 2084970.75 | AA84: 2097526.75 | AB84: 2128258 | AC84: 2174788.25 | AD84: 2214514 | AE84: 2264863.25 | AF84: 2326834 | AG84: 2356048.25 | AH84: 2311609.25 | AI84: 2240508.25 | AJ84: 2195963.5 | AK84: 2181098.5 | AL84: 2196012.25 | AM84: 2175994.25 | AN84: 2162372.75 | AO84: 2179756.75 | AP84: 2167971 | AQ84: 2171322.25 | AR84: 2122948 | AS84: 2039020.5 | AT84: 2011043 | AU84: 1972758.5 | AV84: 1969668.625 | AW84: 1968790.375 | AX84: 1957290.875 | AY84: 2015633.75 | AZ84: 2115567.75 | BA84: 2182577 | BB84: 2135240 | BC84: 2057581.125 | BD84: 2039201.75 | BE84: 2060096 | BF84: 2140627 | BG84: 2227337 | BH84: 2251216.25 | BI84: 2248996.5 | BJ84: 2262378.75 | BK84: 2284511.25 | BL84: 2255813.75 | BM84: 2214608.25 | BN84: 2198642.75 | BO84: 2151108.75 | BP84: 2105527.75 | BQ84: 2057405.125 | BR84: 1979803.75 | BS84: 1903508 | BT84: 1838159.375 | BU84: 1787844 | BV84: 1736741.5 | BW84: 1696860.5 | BX84: 1717372.5 | BY84: 1520796.375 | BZ84: 1284544 | CA84: 1257282.5 | CB84: 1251528.875 | CC84: 1180842.5 | CD84: 1051340.125 | CE84: 973569.125 | CF84: 910811.75 | CG84: 858113.5625 | CH84: 801849.375 | CI84: 745547 | CJ84: 706705.125 | CK84: 647977.4375 | CL84: 594232.0625 | CM84: 535503.5 | CN84: 491645.7188 | CO84: 461699.0312 | CP84: 408022.8438 | CQ84: 368962.7188 | CR84: 328058.9062 | CS84: 279035.375 | CT84: 235362.9062 | CU84: 197428.8438 | CV84: 155615.3438 | CW84: 122186.75 | CX84: 95248 | CY84: 68301.74219 | CZ84: 45192.12109 | DA84: 32205.69922 | DB84: 55024.86328
B85: HMD | C85: F | D85: 2019 | E85: 165954096 | F85: 1856137 | G85: 1891787.875 | H85: 1932848.5 | I85: 1966252.875 | J85: 1970842 | K85: 1965607 | L85: 1965965.375 | M85: 1977428.625 | N85: 1988605.875 | O85: 1989722.625 | P85: 2020676.75 | Q85: 2055314 | R85: 2050501.75 | S85: 2039913.125 | T85: 2040941.625 | U85: 2038130.375 | V85: 2028994.375 | W85: 2052412.75 | X85: 2095802.75 | Y85: 2098484.5 | Z85: 2086174.625 | AA85: 2093923.375 | AB85: 2108055.5 | AC85: 2139980 | AD85: 2186763.5 | AE85: 2226195.25 | AF85: 2276284 | AG85: 2338161 | AH85: 2366245.75 | AI85: 2320358.25 | AJ85: 2248130 | AK85: 2202591.25 | AL85: 2186867.25 | AM85: 2201315 | AN85: 2180948.25 | AO85: 2166073.75 | AP85: 2182146.5 | AQ85: 2169729.25 | AR85: 2172754.5 | AS85: 2123708.75 | AT85: 2039091.25 | AU85: 2010809.375 | AV85: 1972286.625 | AW85: 1968567.5 | AX85: 1967262.125 | AY85: 1954850.5 | AZ85: 2012286.125 | BA85: 2111636.5 | BB85: 2177923.5 | BC85: 2130040.75 | BD85: 2051870.25 | BE85: 2032995.125 | BF85: 2053459.875 | BG85: 2133210 | BH85: 2218649.5 | BI85: 2241319 | BJ85: 2238378.75 | BK85: 2250830.5 | BL85: 2272073 | BM85: 2242302 | BN85: 2200210.5 | BO85: 2183297.75 | BP85: 2135087.5 | BQ85: 2088773.5 | BR85: 2039982.125 | BS85: 1961795.125 | BT85: 1884669 | BU85: 1818580.625 | BV85: 1767338.75 | BW85: 1714883.75 | BX85: 1673381.625 | BY85: 1691887.25 | BZ85: 1495829.75 | CA85: 1261301 | CB85: 1232328.375 | CC85: 1224064.625 | CD85: 1152081.125 | CE85: 1022977.125 | CF85: 944655.9375 | CG85: 880775.4375 | CH85: 826494.25 | CI85: 768775.0625 | CJ85: 711101.875 | CK85: 670188.5625 | CL85: 610204 | CM85: 555300.6875 | CN85: 494243.4688 | CO85: 449639.625 | CP85: 417221.9062 | CQ85: 363730.6875 | CR85: 324049.5938 | CS85: 283713.7812 | CT85: 236943.2969 | CU85: 196066.9062 | CV85: 160879.9219 | CW85: 123727.5391 | CX85: 94575.04688 | CY85: 71719.39844 | CZ85: 50022.26953 | DA85: 32113.78906 | DB85: 56918.80469
B86: HMD | C86: F | D86: 2020 | E86: 166847504 | F86: 1825421.375 | G86: 1860313.5 | H86: 1897625 | I86: 1940361.75 | J86: 1975991.75 | K86: 1981143 | L86: 1974593.125 | M86: 1974765.5 | N86: 1984959.625 | O86: 1994659.875 | P86: 2017468 | Q86: 2070768.75 | R86: 2113950.75 | S86: 2102925.5 | T86: 2083480.125 | U86: 2075940.5 | V86: 2075939 | W86: 2063814.125 | X86: 2086236 | Y86: 2121832.5 | Z86: 2107777 | AA86: 2093593.125 | AB86: 2098549 | AC86: 2110545.5 | AD86: 2140505 | AE86: 2183624 | AF86: 2223269.25 | AG86: 2276270.25 | AH86: 2333478.75 | AI86: 2353724.5 | AJ86: 2312662.25 | AK86: 2252780.75 | AL86: 2213896.25 | AM86: 2203514.5 | AN86: 2215882.5 | AO86: 2185451.75 | AP86: 2180625.75 | AQ86: 2197634.75 | AR86: 2185181.75 | AS86: 2185167.25 | AT86: 2116995.5 | AU86: 2055720.5 | AV86: 2024822.875 | AW86: 1984350.75 | AX86: 1976450.375 | AY86: 1959621.75 | AZ86: 1957724.125 | BA86: 2013460.875 | BB86: 2117479.25 | BC86: 2185243.5 | BD86: 2112525.75 | BE86: 2052191.25 | BF86: 2034807.875 | BG86: 2060073.25 | BH86: 2138827 | BI86: 2208020 | BJ86: 2235337.25 | BK86: 2236910.25 | BL86: 2257720 | BM86: 2264417.5 | BN86: 2210535 | BO86: 2188138.5 | BP86: 2170741 | BQ86: 2117967.75 | BR86: 2067493 | BS86: 2007280.5 | BT86: 1937812.625 | BU86: 1861921 | BV86: 1801527.375 | BW86: 1738735.75 | BX86: 1672211.75 | BY86: 1638822 | BZ86: 1651402.5 | CA86: 1465519.375 | CB86: 1219608 | CC86: 1178210.25 | CD86: 1174016.375 | CE86: 1099916.625 | CF86: 972329.375 | CG86: 893146.625 | CH86: 824560.5625 | CI86: 774270.25 | CJ86: 715453.0625 | CK86: 656225.3125 | CL86: 612783.8125 | CM86: 551127.8125 | CN86: 498177.9062 | CO86: 452486.3438 | CP86: 407286.3125 | CQ86: 372852.3438 | CR86: 320561.4688 | CS86: 280738.1875 | CT86: 241892.4531 | CU86: 197992.0625 | CV86: 160383.7656 | CW86: 128272.8828 | CX86: 96484.67188 | CY86: 71823.32812 | CZ86: 52906.80078 | DA86: 35979.82812 | DB86: 58915.62109
B87: HMD | C87: F | D87: 2021 | E87: 167456560 | F87: 1777142.5 | G87: 1827087 | H87: 1864208 | I87: 1903544.875 | J87: 1948759.375 | K87: 1985091 | L87: 1989097.625 | M87: 1982473.625 | N87: 1981512.375 | O87: 1990284.25 | P87: 2021459.25 | Q87: 2066476.875 | R87: 2128217 | S87: 2165067.5 | T87: 2145052.75 | U87: 2116826 | V87: 2111922 | W87: 2108384.75 | X87: 2094636.5 | Y87: 2109441.75 | Z87: 2128736 | AA87: 2112653 | AB87: 2095343.125 | AC87: 2097812.5 | AD87: 2107919 | AE87: 2134477.75 | AF87: 2178084 | AG87: 2220650.25 | AH87: 2269308.25 | AI87: 2319154.25 | AJ87: 2344597.5 | AK87: 2315952.25 | AL87: 2262864.5 | AM87: 2229220.5 | AN87: 2216673 | AO87: 2219442 | AP87: 2199427 | AQ87: 2195549.25 | AR87: 2212412.75 | AS87: 2197065.25 | AT87: 2178143 | AU87: 2133044 | AV87: 2068986.125 | AW87: 2036337.5 | AX87: 1991758.125 | AY87: 1968669.25 | AZ87: 1962394 | BA87: 1958835.75 | BB87: 2019357.875 | BC87: 2124750.25 | BD87: 2167393.75 | BE87: 2112412.75 | BF87: 2053595 | BG87: 2040984 | BH87: 2065471.875 | BI87: 2128142.25 | BJ87: 2201627.5 | BK87: 2233190.25 | BL87: 2242839.25 | BM87: 2249075.5 | BN87: 2231360.5 | BO87: 2196955 | BP87: 2174058.25 | BQ87: 2151689.25 | BR87: 2094398.5 | BS87: 2032674.125 | BT87: 1980991.125 | BU87: 1912607.375 | BV87: 1842426.25 | BW87: 1770543.75 | BX87: 1694001.75 | BY87: 1635425 | BZ87: 1596870.125 | CA87: 1615722.125 | CB87: 1416933.375 | CC87: 1163306.75 | CD87: 1126883.25 | CE87: 1118626.625 | CF87: 1043881.312 | CG87: 916839.5 | CH87: 833453.125 | CI87: 769289.4375 | CJ87: 717439.875 | CK87: 656907.875 | CL87: 596155.4375 | CM87: 549960.5 | CN87: 490491.75 | CO87: 437055.75 | CP87: 403347.75 | CQ87: 357548 | CR87: 321929.1875 | CS87: 271967.375 | CT87: 233440.125 | CU87: 196740.4219 | CV87: 156988.125 | CW87: 124297.9375 | CX87: 96196.78906 | CY87: 70306.42188 | CZ87: 50758.83984 | DA87: 35967.33984 | DB87: 59060.70312
B88: HMD | C88: F | D88: 2022 | E88: 167974112 | F88: 1770531.875 | G88: 1783256 | H88: 1833379.5 | I88: 1870397.375 | J88: 1909404.75 | K88: 1954228.125 | L88: 1990281.75 | M88: 1994027 | N88: 1987225.75 | O88: 1986117.25 | P88: 1994717.375 | Q88: 2025765.125 | R88: 2070606.5 | S88: 2132233.25 | T88: 2169126.25 | U88: 2149459.25 | V88: 2121825 | W88: 2118082 | X88: 2115929.25 | Y88: 2102398.75 | Z88: 2116363 | AA88: 2136029.25 | AB88: 2121109.75 | AC88: 2104523.75 | AD88: 2107460 | AE88: 2118261 | AF88: 2145177.75 | AG88: 2188471 | AH88: 2230374 | AI88: 2278297.25 | AJ88: 2327440 | AK88: 2352039 | AL88: 2322557.25 | AM88: 2268649.5 | AN88: 2233967.25 | AO88: 2220454.75 | AP88: 2222682.5 | AQ88: 2202038 | AR88: 2197380.25 | AS88: 2213658.25 | AT88: 2197503 | AU88: 2177757 | AV88: 2131978.75 | AW88: 2067551.5 | AX88: 2034505.125 | AY88: 1989387.125 | AZ88: 1965794.125 | BA88: 1958839.5 | BB88: 1954765.875 | BC88: 2014472 | BD88: 2118575.5 | BE88: 2160342.75 | BF88: 2105052 | BG88: 2045830 | BH88: 2032413.5 | BI88: 2055724.125 | BJ88: 2117026.75 | BK88: 2189085 | BL88: 2219113.75 | BM88: 2227185 | BN88: 2231891.75 | BO88: 2213001.5 | BP88: 2177271.5 | BQ88: 2152941.25 | BR88: 2129122.75 | BS88: 2071075.5 | BT88: 2008468.75 | BU88: 1955980.5 | BV88: 1886574.625 | BW88: 1815190.625 | BX88: 1742537.75 | BY88: 1665192.875 | BZ88: 1604749.375 | CA88: 1563658.875 | CB88: 1578684.375 | CC88: 1381132.5 | CD88: 1130609.375 | CE88: 1091899.875 | CF88: 1079985.75 | CG88: 1003727.312 | CH88: 877390.125 | CI88: 793456.75 | CJ88: 728015.0625 | CK88: 674219.6875 | CL88: 612413 | CM88: 550677.9375 | CN88: 502957.5 | CO88: 443558.9062 | CP88: 390389.875 | CQ88: 357690.0938 | CR88: 312274.3438 | CS88: 276264.5312 | CT88: 229549.7656 | CU88: 192832.5469 | CV88: 158962.875 | CW88: 123992.6484 | CX88: 95332.53125 | CY88: 72201.45312 | CZ88: 51295.14844 | DA88: 35986.64062 | DB88: 62124.59375
B89: HMD | C89: F | D89: 2023 | E89: 168737920 | F89: 1790138 | G89: 1780528.125 | H89: 1793237.125 | I89: 1843156 | J89: 1879648.25 | K89: 1918061.75 | L89: 1962383 | M89: 1998003 | N89: 2001417.125 | O89: 1994352.75 | P89: 1992996.875 | Q89: 2001374 | R89: 2032177.625 | S89: 2076854.875 | T89: 2138539.75 | U89: 2175936.5 | V89: 2157256 | W89: 2131420 | X89: 2129893.75 | Y89: 2128089 | Z89: 2113582 | AA89: 2128540.5 | AB89: 2149809.5 | AC89: 2135916.75 | AD89: 2119911.5 | AE89: 2123957 | AF89: 2135487.5 | AG89: 2162045.5 | AH89: 2204437.5 | AI89: 2245434.5 | AJ89: 2292327.75 | AK89: 2340426.75 | AL89: 2363861 | AM89: 2333117 | AN89: 2277712.25 | AO89: 2241640.25 | AP89: 2227495.25 | AQ89: 2228838 | AR89: 2207142.75 | AS89: 2201780.75 | AT89: 2216857.75 | AU89: 2199489 | AV89: 2178844.25 | AW89: 2132398.5 | AX89: 2067441.5 | AY89: 2033882.5 | AZ89: 1988317.25 | BA89: 1963931.125 | BB89: 1956384.75 | BC89: 1951720.875 | BD89: 2010101.625 | BE89: 2113039.75 | BF89: 2154299.25 | BG89: 2098653 | BH89: 2038872 | BI89: 2024324.75 | BJ89: 2046578 | BK89: 2106480.25 | BL89: 2176814.5 | BM89: 2205161.75 | BN89: 2211753.25 | BO89: 2215223.75 | BP89: 2194830.75 | BQ89: 2157673.75 | BR89: 2132077.75 | BS89: 2107185.25 | BT89: 2048101.75 | BU89: 1984765.5 | BV89: 1931198.625 | BW89: 1860515 | BX89: 1788252.125 | BY89: 1714826.125 | BZ89: 1636006.125 | CA89: 1573477.5 | CB89: 1529743.625 | CC89: 1540859.125 | CD89: 1344680.125 | CE89: 1097303.25 | CF89: 1056207.375 | CG89: 1040455.938 | CH89: 962674.8125 | CI89: 837288.25 | CJ89: 752960.75 | CK89: 686246.75 | CL89: 630680.125 | CM89: 567954.75 | CN89: 505751.125 | CO89: 457070.1875 | CP89: 398360.3125 | CQ89: 346068.5 | CR89: 312827.875 | CS89: 268377.0312 | CT89: 233610.0156 | CU89: 189589.9531 | CV89: 156151.0312 | CW89: 125374.25 | CX89: 95307.25 | CY89: 71297.86719 | CZ89: 52608.30859 | DA89: 36147.80078 | DB89: 63921.81641
B90: HMD | C90: F | D90: 2024 | E90: =SUM(F90:DB90) -> 169874078.9 | F90: =F89*F36/F35 -> 1804081.212 | G90: =F89*G36/F35 -> 1797349.803 | H90: 1792791.365 | I90: 1807078.16 | J90: 1856347.389 | K90: 1892378.837 | L90: 1931129.477 | M90: 1975508.307 | N90: 2011028.448 | O90: 2014500.25 | P90: 2007800.762 | Q90: 2006997.34 | R90: 2016025.639 | S90: 2047503.014 | T90: 2092833.173 | U90: 2155225.145 | V90: 2193245.462 | W90: 2175257.335 | X90: 2150253.347 | Y90: 2149640.981 | Z90: 2148899.381 | AA90: 2135367.41 | AB90: 2150760.477 | AC90: 2171828.281 | AD90: 2157997.196 | AE90: 2142271.379 | AF90: 2146257.159 | AG90: 2157152.522 | AH90: 2182581.754 | AI90: 2223651.934 | AJ90: 2263021.101 | AK90: 2308126.673 | AL90: 2354538.647 | AM90: =AL89*AM36/AL35 -> 2376499.456 | AN90: 2344486.786 | AO90: 2287972.96 | AP90: 2251012.26 | AQ90: 2236129.176 | AR90: 2236700.792 | AS90: 2214287.42 | AT90: 2208396.77 | AU90: 2222817.395 | AV90: 2204693.512 | AW90: 2183338.11 | AX90: 2136244.565 | AY90: 2070657.525 | AZ90: 2036323.179 | BA90: 1990020.992 | BB90: 1965029.929 | BC90: 1956872.495 | BD90: 1951649.245 | BE90: 2009361.56 | BF90: 2111358.872 | BG90: 2151533.383 | BH90: 2095057.168 | BI90: 2034498.676 | BJ90: 2018913.203 | BK90: 2039847.074 | BL90: 2098157.278 | BM90: 2166772.261 | BN90: 2193667.365 | BO90: 2198980.983 | BP90: 2201140.011 | BQ90: 2179503.145 | BR90: 2141241.728 | BS90: =BR89*BS36/BR35 -> 2114494.321 | BT90: 2088360.637 | BU90: 2028159.348 | BV90: 1963547.171 | BW90: 1908386.858 | BX90: 1836133.777 | BY90: 1762088.512 | BZ90: 1686785.815 | CA90: 1606064.528 | CB90: 1541298.16 | CC90: 1494944.468 | CD90: 1501966.492 | CE90: 1307036.281 | CF90: 1063221.253 | CG90: 1019539.705 | CH90: 999908.5163 | CI90: 920527.9904 | CJ90: 796134.6762 | CK90: 711326.0074 | CL90: 643678.5824 | CM90: 586928.6572 | CN90: 524119.0651 | CO90: 462085.4139 | CP90: 412830.0209 | CQ90: 355155.7985 | CR90: 304068.2522 | CS90: 270341.2706 | CT90: 227819.1778 | CU90: 194350.0396 | CV90: 154506.748 | CW90: 124455.5594 | CX90: 97715.8716 | CY90: 72619.60396 | CZ90: 53098.49151 | DA90: 38303.83405 | DB90: 69483.33005
B91: HMD | C91: F | D91: 2025 | E91: =SUM(F91:DB91) -> 171032084.4 | F91: =F90*F37/F36 -> 1846985.363 | G91: =F90*G37/F36 -> 1810531.246 | H91: 1808773.394 | I91: 1805697.002 | J91: 1819568.381 | K91: 1868555.84 | L91: 1904787.031 | M91: 1943676.396 | N91: 1987938.938 | O91: 2023549.545 | P91: 2027249.163 | Q91: 2021030.577 | R91: 2020823.558 | S91: 2030424.833 | T91: 2062507.812 | U91: 2108536.086 | V91: 2171690.409 | W91: 2210382.7 | X91: 2193004.694 | Y91: 2168700.625 | Z91: 2169193.024 | AA91: 2169348.861 | AB91: 2155744.859 | AC91: 2170907.034 | AD91: 2191934.206 | AE91: 2178304.236 | AF91: 2162602.699 | AG91: 2166124.484 | AH91: 2176101.852 | AI91: 2200310.505 | AJ91: 2240127.079 | AK91: 2278011.32 | AL91: 2321552.94 | AM91: =AL90*AM37/AL36 -> 2366528.948 | AN91: 2387165.85 | AO91: 2354032.816 | AP91: 2296684.263 | AQ91: 2259112.861 | AR91: 2243654.607 | AS91: 2243585.012 | AT91: 2220581.049 | AU91: 2214193.475 | AV91: 2227951.647 | AW91: 2209138.362 | AX91: 2187131.843 | AY91: 2139371.902 | AZ91: 2073142.416 | BA91: 2038137.065 | BB91: 1991278.86 | BC91: 1965813.099 | BD91: 1957096.489 | BE91: 1951346.806 | BF91: 2008382.151 | BG91: 2109354.398 | BH91: 2148330.443 | BI91: 2090946.955 | BJ91: 2029592.754 | BK91: 2012963.77 | BL91: 2032585.882 | BM91: 2089366.227 | BN91: 2156361.371 | BO91: 2181885.867 | BP91: 2185937.866 | BQ91: 2186764.367 | BR91: 2163897.015 | BS91: =BR90*BS37/BR36 -> 2124569.026 | BT91: 2096579.481 | BU91: 2068976.21 | BV91: 2007449.227 | BW91: 1941388.74 | BX91: 1884435.468 | BY91: 1810411.078 | BZ91: 1734406.552 | CA91: 1657120.077 | CB91: 1574520.243 | CC91: 1507597.093 | CD91: 1458656.433 | CE91: 1461481.433 | CF91: 1267834.91 | CG91: 1027682.629 | CH91: 981306.628 | CI91: 957725.2362 | CJ91: 876839.7769 | CK91: 753694.4057 | CL91: 668681.6966 | CM91: 600431.4815 | CN91: 542744.9555 | CO91: 480023.7732 | CP91: 418486.5632 | CQ91: 369164.7292 | CR91: 313099.1689 | CS91: 263850.545 | CT91: 230445.8639 | CU91: 190567.5155 | CV91: 159224.0043 | CW91: 123970.0996 | CX91: 97674.78087 | CY91: 75025.05281 | CZ91: 54557.94522 | DA91: 39025.28617 | DB91: 75443.14022
B93: HMD | C93: M | D93: 2000 | E93: 137431184 | F93: 1958928.25 | G93: 1938985 | H93: 1938981.125 | I93: 1954964.25 | J93: 2008382.875 | K93: 2039969.375 | L93: 2061756.625 | M93: 2113452.5 | N93: 2135226.5 | O93: 2166092.5 | P93: 2169673 | Q93: 2096923.625 | R93: 2073341.375 | S93: 2058964.625 | T93: 2067565.375 | U93: 2055801 | V93: 2062429.375 | W93: 2089179.25 | X93: 2074529.375 | Y93: 2099749.25 | Z93: 2051016.625 | AA93: 1959171.375 | AB93: 1908566.5 | AC93: 1858931 | AD93: 1852523.375 | AE93: 1880550.75 | AF93: 1849276.5 | AG93: 1940307.625 | AH93: 2039719.75 | AI93: 2103455.5 | AJ93: 2144463 | AK93: 2013773.375 | AL93: 2020657.625 | AM93: 2029199.625 | AN93: 2133505.5 | AO93: 2269771 | AP93: 2261611.75 | AQ93: 2268451 | AR93: 2259104.5 | AS93: 2291651.5 | AT93: 2333266.5 | AU93: 2225141 | AV93: 2240168.25 | AW93: 2165942.25 | AX93: 2118268.25 | AY93: 2122547.25 | AZ93: 2004898.375 | BA93: 1956752.625 | BB93: 1869090 | BC93: 1857037.75 | BD93: 1855809.375 | BE93: 1778375.75 | BF93: 1841227.25 | BG93: 1612133.625 | BH93: 1404248.25 | BI93: 1388332.875 | BJ93: 1395327.5 | BK93: 1321837.125 | BL93: 1202014.125 | BM93: 1131371.25 | BN93: 1112605.125 | BO93: 1054234.75 | BP93: 1014629.5 | BQ93: 975974.1875 | BR93: 965875.75 | BS93: 923689.375 | BT93: 875559.0625 | BU93: 875284.8125 | BV93: 868336.375 | BW93: 856122.5 | BX93: 841382.5 | BY93: 808538.75 | BZ93: 777255.6875 | CA93: 751710.3125 | CB93: 723189.375 | CC93: 692157.3125 | CD93: 645771.3125 | CE93: 611787.375 | CF93: 572011.125 | CG93: 512468.6875 | CH93: 422147.0312 | CI93: 391968.9375 | CJ93: 343219.25 | CK93: 298178.6875 | CL93: 262957.2188 | CM93: 230411.4062 | CN93: 191350.2031 | CO93: 161728.3438 | CP93: 127803.6328 | CQ93: 105130.7969 | CR93: 81627.53906 | CS93: 64646.33984 | CT93: 49598.76172 | CU93: 35655.23828 | CV93: 26383.81055 | CW93: 18645.75977 | CX93: 12948.45996 | CY93: 8942.530273 | CZ93: 5450.689941 | DA93: 3993.949951 | DB93: 5426.02002
B94: HMD | C94: M | D94: 2001 | E94: 138978256 | F94: 2012047.125 | G94: 1957747.875 | H94: 1943513.875 | I94: 1948976.75 | J94: 1976488.75 | K94: 2016587.25 | L94: 2042434.875 | M94: 2075510.5 | N94: 2115988.75 | O94: 2153483.25 | P94: 2202053.5 | Q94: 2177427.75 | R94: 2117655 | S94: 2086501.125 | T94: 2077524.375 | U94: 2092599 | V94: 2084188.875 | W94: 2087230 | X94: 2112998.5 | Y94: 2116835.5 | Z94: 2109033.5 | AA94: 2050849.125 | AB94: 1965779.625 | AC94: 1919412.875 | AD94: 1878948.75 | AE94: 1882607.25 | AF94: 1878542.375 | AG94: 1873284 | AH94: 1945136.125 | AI94: 2052175 | AJ94: 2148355 | AK94: 2111587.5 | AL94: 2033734 | AM94: 2015665.25 | AN94: 2049382.375 | AO94: 2157474 | AP94: 2246505.5 | AQ94: 2255932 | AR94: 2257959.5 | AS94: 2275611.5 | AT94: 2313263.5 | AU94: 2290643.25 | AV94: 2240734.25 | AW94: 2227935.25 | AX94: 2168302.25 | AY94: 2134363.5 | AZ94: 2094687.125 | BA94: 2010493.5 | BB94: 1944788.125 | BC94: 1889209.75 | BD94: 1862633.375 | BE94: 1828368.625 | BF94: 1783705.125 | BG94: 1821640.125 | BH94: 1629028.25 | BI94: 1387830.375 | BJ94: 1374364.25 | BK94: 1383201.875 | BL94: 1321325.5 | BM94: 1192008.75 | BN94: 1129252.5 | BO94: 1088846.5 | BP94: 1049322.75 | BQ94: 1005208.75 | BR94: 962091.3125 | BS94: 948814.25 | BT94: 905804.5625 | BU94: 863206.625 | BV94: 854185.3125 | BW94: 841075.25 | BX94: 835882.5625 | BY94: 813072.5 | BZ94: 781006.25 | CA94: 759146.0625 | CB94: 722683.125 | CC94: 690398.9375 | CD94: 657906.4375 | CE94: 612292.375 | CF94: 573051.75 | CG94: 533446.375 | CH94: 462441.9375 | CI94: 388474.625 | CJ94: 357563.375 | CK94: 310083.1875 | CL94: 266472.4688 | CM94: 232376.3281 | CN94: 200593.5625 | CO94: 164117.0938 | CP94: 136823.1562 | CQ94: 106065.4297 | CR94: 85632.96875 | CS94: 65424.66016 | CT94: 50543.37891 | CU94: 37807.35938 | CV94: 26520.57031 | CW94: 19028.91016 | CX94: 13181.54004 | CY94: 8940.480469 | CZ94: 5929.790039 | DA94: 3536.540039 | DB94: 5681.75
B95: HMD | C95: M | D95: 2002 | E95: 140385824 | F95: 2034094.75 | G95: 2008740.625 | H95: 1957960.625 | I95: 1945081.5 | J95: 1953370.25 | K95: 1980748.625 | L95: 2018252.375 | M95: 2046659.375 | N95: 2080097.875 | O95: 2124900.5 | P95: 2180674.75 | Q95: 2213652.5 | R95: 2194418.25 | S95: 2131524.25 | T95: 2098530 | U95: 2099037.5 | V95: 2119054.75 | W95: 2111459.75 | X95: 2118852 | Y95: 2139646 | Z95: 2131331 | AA95: 2119331.75 | AB95: 2055862.625 | AC95: 1971808.5 | AD95: 1925932.625 | AE95: 1888232.375 | AF95: 1883314.125 | AG95: 1884365 | AH95: 1877819.25 | AI95: 1945662.625 | AJ95: 2066974.25 | AK95: 2143594.5 | AL95: 2120609.75 | AM95: 2037695 | AN95: 2019305.5 | AO95: 2055262.75 | AP95: 2158288.25 | AQ95: 2244521.5 | AR95: 2254734.75 | AS95: 2257945 | AT95: 2272558.25 | AU95: 2313081 | AV95: 2288601.5 | AW95: 2238822 | AX95: 2221158.5 | AY95: 2161564.25 | AZ95: 2131717.75 | BA95: 2091646.25 | BB95: 2004188.125 | BC95: 1941023.625 | BD95: 1880984.125 | BE95: 1860350.25 | BF95: 1820658.875 | BG95: 1779137.5 | BH95: 1816022.625 | BI95: 1617938.375 | BJ95: 1382940.25 | BK95: 1365787.625 | BL95: 1374145.5 | BM95: 1310312.625 | BN95: 1178217 | BO95: 1120923.875 | BP95: 1077606.625 | BQ95: 1037873.875 | BR95: 991034.875 | BS95: 947965.875 | BT95: 933360.25 | BU95: 890028.0625 | BV95: 845693.9375 | BW95: 834157.3125 | BX95: 818360.875 | BY95: 814479.5 | BZ95: 787461.8125 | CA95: 754856.75 | CB95: 730142.875 | CC95: 690604.5 | CD95: 659591.75 | CE95: 623856.25 | CF95: 578016.8125 | CG95: 537475.6875 | CH95: 483883.0938 | CI95: 426514.4062 | CJ95: 354784.625 | CK95: 323400.125 | CL95: 277933.8125 | CM95: 235926.5469 | CN95: 202954.1875 | CO95: 172724.3125 | CP95: 139066.6875 | CQ95: 113947.1719 | CR95: 86721.64062 | CS95: 68735.3125 | CT95: 51382.76953 | CU95: 38741.62891 | CV95: 28121.17969 | CW95: 19317.57031 | CX95: 13387.32031 | CY95: 9057.870117 | CZ95: 5955.209961 | DA95: 3928.179932 | DB95: 5625.370605
B96: HMD | C96: M | D96: 2003 | E96: 141645600 | F96: 2025899.625 | G96: 2026901.5 | H96: 2008321.25 | I96: 1959983.25 | J96: 1951336.625 | K96: 1958328.75 | L96: 1981282.875 | M96: 2023292.25 | N96: 2051615.5 | O96: 2091441.375 | P96: 2163257 | Q96: 2188083.5 | R96: 2231988.75 | S96: 2206406.75 | T96: 2140612.75 | U96: 2121013 | V96: 2124604.75 | W96: 2143066.25 | X96: 2141307.75 | Y96: 2139665.75 | Z96: 2143265.25 | AA96: 2133279 | AB96: 2113404 | AC96: 2052413.25 | AD96: 1970614.75 | AE96: 1930341.625 | AF96: 1879215.25 | AG96: 1885749.25 | AH96: 1884852.125 | AI96: 1873489 | AJ96: 1965456 | AK96: 2053481.375 | AL96: 2154719.5 | AM96: 2120815 | AN96: 2038630.375 | AO96: 2024746.5 | AP96: 2052224.375 | AQ96: 2153018.75 | AR96: 2241938 | AS96: 2253653.5 | AT96: 2252179.75 | AU96: 2272425 | AV96: 2309305.25 | AW96: 2285864 | AX96: 2228645.75 | AY96: 2212723 | AZ96: 2160348.75 | BA96: 2128859.75 | BB96: 2083336.625 | BC96: 2001013.125 | BD96: 1930049.75 | BE96: 1880868.75 | BF96: 1850569.375 | BG96: 1817375.5 | BH96: 1774228 | BI96: 1800421.125 | BJ96: 1614332.875 | BK96: 1373434.375 | BL96: 1357115.5 | BM96: 1361989.25 | BN96: 1292971.125 | BO96: 1171979.75 | BP96: 1109088.125 | BQ96: 1066512 | BR96: 1022632.375 | BS96: 977160.5 | BT96: 932825.25 | BU96: 917789.25 | BV96: 872315.6875 | BW96: 825928.1875 | BX96: 810959.8125 | BY96: 798984.5 | BZ96: 788490.6875 | CA96: 761867.875 | CB96: 726084.0625 | CC96: 697150.4375 | CD96: 661568.5625 | CE96: 625640.1875 | CF96: 589735.8125 | CG96: 542760.75 | CH96: 474438 | CI96: 446705.125 | CJ96: 390326.3125 | CK96: 321533.5625 | CL96: 289985.1562 | CM96: 246301.375 | CN96: 205987.0469 | CO96: 174784.5781 | CP96: 146235.0469 | CQ96: 115618.1875 | CR96: 93040.72656 | CS96: 69472.10938 | CT96: 53586.60938 | CU96: 39104.01953 | CV96: 28611.75977 | CW96: 20434.83008 | CX96: 13574.75977 | CY96: 9108.790039 | CZ96: 5932.120117 | DA96: 3834.26001 | DB96: 5787.650391
B97: HMD | C97: M | D97: 2004 | E97: 142941200 | F97: 2042665.25 | G97: 2014809.25 | H97: 2025919.875 | I97: 2010557.25 | J97: 1967988.375 | K97: 1956865.125 | L97: 1957596.125 | M97: 1987012.875 | N97: 2028474.75 | O97: 2065234.625 | P97: 2140582 | Q97: 2166629.25 | R97: 2207506.25 | S97: 2242013.75 | T97: 2212491.5 | U97: 2164268.5 | V97: 2145940 | W97: 2145464 | X97: 2170949.25 | Y97: 2158761.75 | Z97: 2139525.25 | AA97: 2145943.25 | AB97: 2127714.75 | AC97: 2111566.75 | AD97: 2051907.25 | AE97: 1977506.875 | AF97: 1917777.875 | AG97: 1883919.25 | AH97: 1887365.125 | AI97: 1879882.625 | AJ97: 1901665.5 | AK97: 1947655.625 | AL97: 2070847.5 | AM97: 2155404 | AN97: 2122582.25 | AO97: 2047125.625 | AP97: 2021647.625 | AQ97: 2047162.75 | AR97: 2152810.75 | AS97: 2243696.25 | AT97: 2248370.25 | AU97: 2254593.5 | AV97: 2269242.75 | AW97: 2307415.75 | AX97: 2273733.25 | AY97: 2219830.5 | AZ97: 2214006.5 | BA97: 2158601 | BB97: 2119353 | BC97: 2081532.75 | BD97: 1987689.625 | BE97: 1932890.75 | BF97: 1869250.625 | BG97: 1848664.5 | BH97: 1813150.5 | BI97: 1755970.625 | BJ97: 1798705.75 | BK97: 1602214.75 | BL97: 1364947 | BM97: 1344605.375 | BN97: 1341902.125 | BO97: 1289108.375 | BP97: 1159442.625 | BQ97: 1098295.25 | BR97: 1050212.625 | BS97: 1008878.562 | BT97: 961709.75 | BU97: 917898.5 | BV97: 899787.375 | BW97: 851948.875 | BX97: 802227.75 | BY97: 793272.375 | BZ97: 773048.9375 | CA97: 763490.25 | CB97: 732822.25 | CC97: 692530.9375 | CD97: 669541.8125 | CE97: 627614.6875 | CF97: 592100.75 | CG97: 554193.0625 | CH97: 481881.8125 | CI97: 438713.0938 | CJ97: 409717.6562 | CK97: 355036.4375 | CL97: 288763.875 | CM97: 257555.2344 | CN97: 216329.7656 | CO97: 178036.7812 | CP97: 148554.7188 | CQ97: 122122.1172 | CR97: 94727.57031 | CS97: 74516.49219 | CT97: 54557.82812 | CU97: 41044.71875 | CV97: 29221.94922 | CW97: 20814.96094 | CX97: 14328.51953 | CY97: 9298.269531 | CZ97: 6108.560059 | DA97: 3853.449951 | DB97: 5755.330566
B98: HMD | C98: M | D98: 2005 | E98: 144332240 | F98: 2049870.625 | G98: 2028375.875 | H98: 2014369.25 | I98: 2029331.125 | J98: 2021186.75 | K98: 1974788.75 | L98: 1955508.625 | M98: 1964713.375 | N98: 1993066.75 | O98: 2044959.875 | P98: 2125727.75 | Q98: 2140647.75 | R98: 2187656.5 | S98: 2216116.25 | T98: 2245795.25 | U98: 2238413 | V98: 2189649.25 | W98: 2164961.5 | X98: 2173365.5 | Y98: 2189465.5 | Z98: 2159341.25 | AA98: 2147733.75 | AB98: 2144324.25 | AC98: 2130133.25 | AD98: 2114613.75 | AE98: 2063385.25 | AF98: 1963592 | AG98: 1926649.375 | AH98: 1888284.5 | AI98: 1883425.5 | AJ98: 1918464.75 | AK98: 1880416 | AL98: 1971588.5 | AM98: 2073721.375 | AN98: 2159064.25 | AO98: 2135246 | AP98: 2044683.875 | AQ98: 2016937.625 | AR98: 2049423.125 | AS98: 2157843.5 | AT98: 2239584.5 | AU98: 2253615.25 | AV98: 2252332.5 | AW98: 2268719 | AX98: 2293785.25 | AY98: 2264799.75 | AZ98: 2224210.5 | BA98: 2214060.25 | BB98: 2148252.75 | BC98: 2119341.75 | BD98: 2065982.25 | BE98: 1994058.75 | BF98: 1919458.375 | BG98: 1868838 | BH98: 1845182.125 | BI98: 1791688.5 | BJ98: 1757226.125 | BK98: 1784660.625 | BL98: 1592470.625 | BM98: 1351845.5 | BN98: 1322983.75 | BO98: 1341242.25 | BP98: 1275417.375 | BQ98: 1148816 | BR98: 1080866.5 | BS98: 1036708.562 | BT98: 993248.25 | BU98: 947225.1875 | BV98: 899998.6875 | BW98: 879033.625 | BX98: 826969.75 | BY98: 786250.4375 | BZ98: 767180.5 | CA98: 749235.125 | CB98: 734471.4375 | CC98: 698277.6875 | CD98: 666849.875 | CE98: 635408.75 | CF98: 594787.5 | CG98: 556925.9375 | CH98: 495299.5625 | CI98: 447131.2812 | CJ98: 404148.2188 | CK98: 373589.6875 | CL98: 320603.5 | CM98: 257959.4375 | CN98: 227158.6406 | CO98: 188306.3125 | CP98: 152324.375 | CQ98: 124971.8203 | CR98: 100881.1797 | CS98: 76643.42188 | CT98: 59160.92188 | CU98: 42257.03125 | CV98: 30873.85938 | CW98: 21340.61914 | CX98: 14799.12012 | CY98: 9850.429688 | CZ98: 6273.970215 | DA98: 4039.98999 | DB98: 5798.67041
B99: HMD | C99: M | D99: 2006 | E99: 145730256 | F99: 2056789.75 | G99: 2033051 | H99: 2029020.875 | I99: 2019716.375 | J99: 2043172.375 | K99: 2029737.125 | L99: 1973212.75 | M99: 1964581.75 | N99: 1972091.125 | O99: 2012820.125 | P99: 2117125.25 | Q99: 2123016.5 | R99: 2163847 | S99: 2195370.25 | T99: 2218209.25 | U99: 2274281.25 | V99: 2264820 | W99: 2207535.75 | X99: 2193536.75 | Y99: 2190964.5 | Z99: 2185321.5 | AA99: 2165519 | AB99: 2141575.25 | AC99: 2143595 | AD99: 2131321.5 | AE99: 2127297.25 | AF99: 2044425.25 | AG99: 1973710 | AH99: 1931099.875 | AI99: 1882719.75 | AJ99: 1930056 | AK99: 1890492.25 | AL99: 1908068.75 | AM99: 1974061 | AN99: 2078043.375 | AO99: 2174524.25 | AP99: 2131235.5 | AQ99: 2038462.625 | AR99: 2019822.625 | AS99: 2055452.625 | AT99: 2153816 | AU99: 2247043 | AV99: 2251662.25 | AW99: 2252618.25 | AX99: 2253385.5 | AY99: 2284561 | AZ99: 2272017 | BA99: 2225996 | BB99: 2202588.75 | BC99: 2149999.25 | BD99: 2101692.5 | BE99: 2076183 | BF99: 1978763.125 | BG99: 1920743.625 | BH99: 1865973.625 | BI99: 1820498.25 | BJ99: 1796025.375 | BK99: 1742922.625 | BL99: 1774020.25 | BM99: 1576698.375 | BN99: 1328249.75 | BO99: 1326126.125 | BP99: 1327354.625 | BQ99: 1264610.5 | BR99: 1129923.25 | BS99: 1067677.375 | BT99: 1021303 | BU99: 979157.875 | BV99: 929152.0625 | BW99: 879457.5 | BX99: 852922.625 | BY99: 812410 | BZ99: 760248.5625 | CA99: 744550.5625 | CB99: 721110.9375 | CC99: 699474.25 | CD99: 674561.625 | CE99: 633337.125 | CF99: 603383.5625 | CG99: 560387.4375 | CH99: 492438.875 | CI99: 459717.2812 | CJ99: 411774.5938 | CK99: 369041.1562 | CL99: 337864.2812 | CM99: 286448.4375 | CN99: 227633.625 | CO99: 197406.8125 | CP99: 161283.9375 | CQ99: 128144.5 | CR99: 103098.2969 | CS99: 81245.96875 | CT99: 60540.32812 | CU99: 45472.67969 | CV99: 31547.32031 | CW99: 22355.43945 | CX99: 15251.19043 | CY99: 10129.86035 | CZ99: 6498.370117 | DA99: 4122.160156 | DB99: 5939.008789
B100: HMD | C100: M | D100: 2007 | E100: 147159712 | F100: 2093392.875 | G100: 2036870.875 | H100: 2034425.5 | I100: 2035885 | J100: 2036342.25 | K100: 2053011.625 | L100: 2027251.625 | M100: 1983921.625 | N100: 1972949.75 | O100: 1994702.625 | P100: 2095697 | Q100: 2111404.75 | R100: 2147940.5 | S100: 2170369.75 | T100: 2195527.75 | U100: 2248412.25 | V100: 2300981.5 | W100: 2280759.25 | X100: 2236091.75 | Y100: 2207380.75 | Z100: 2180068.5 | AA100: 2188079.5 | AB100: 2153763.25 | AC100: 2137813.25 | AD100: 2142883.25 | AE100: 2144810.75 | AF100: 2103368 | AG100: 2055545.125 | AH100: 1977804.5 | AI100: 1923284 | AJ100: 1936768.5 | AK100: 1894966.5 | AL100: 1922468.375 | AM100: 1909583.75 | AN100: 1978468.75 | AO100: 2095770.625 | AP100: 2169067.75 | AQ100: 2123020.75 | AR100: 2041908.75 | AS100: 2026663.25 | AT100: 2051341.375 | AU100: 2163055 | AV100: 2245695.75 | AW100: 2252832.25 | AX100: 2235549.5 | AY100: 2244095 | AZ100: 2294482.75 | BA100: 2275461 | BB100: 2213538.25 | BC100: 2206177.75 | BD100: 2130099.25 | BE100: 2115427 | BF100: 2058792.5 | BG100: 1982008.25 | BH100: 1918647.125 | BI100: 1837903.75 | BJ100: 1827539.25 | BK100: 1780566.25 | BL100: 1732727.75 | BM100: 1755839.5 | BN100: 1546791.875 | BO100: 1334896.5 | BP100: 1312862.875 | BQ100: 1317100.625 | BR100: 1243479.625 | BS100: 1116571.375 | BT100: 1052033.75 | BU100: 1007661.562 | BV100: 960804.25 | BW100: 907919.375 | BX100: 852583.875 | BY100: 839701.5625 | BZ100: 785292.8125 | CA100: 738619.25 | CB100: 716812.3125 | CC100: 686203.3125 | CD100: 677676.5625 | CE100: 640970.625 | CF100: 602410.3125 | CG100: 569253.875 | CH100: 498630.875 | CI100: 458001.4688 | CJ100: 424311.1875 | CK100: 376935.125 | CL100: 334936.3125 | CM100: 303289.25 | CN100: 253977.2969 | CO100: 199062.7031 | CP100: 169841.875 | CQ100: 136680.9375 | CR100: 106378.3828 | CS100: 83809.5625 | CT100: 64696.12109 | CU100: 47015.92969 | CV100: 34202.03906 | CW100: 23183.66016 | CX100: 16041.49023 | CY100: 10607.58008 | CZ100: 6852.870117 | DA100: 4254.470215 | DB100: 6118.729492
B101: HMD | C101: M | D101: 2008 | E101: 148584928 | F101: 2115316 | G101: 2069706.375 | H101: 2038739.625 | I101: 2042533.375 | J101: 2055120.625 | K101: 2047347.25 | L101: 2049419 | M101: 2039463.375 | N101: 1993117.375 | O101: 1998320.75 | P101: 2088521.25 | Q101: 2086880.5 | R101: 2137564.25 | S101: 2153081.25 | T101: 2168423.5 | U101: 2227204.5 | V101: 2274957.5 | W101: 2314698.75 | X101: 2308768.5 | Y101: 2245576.25 | Z101: 2189152.75 | AA101: 2180651.25 | AB101: 2172820.5 | AC101: 2147241.25 | AD101: 2134620.75 | AE101: 2155938.75 | AF101: 2114962.25 | AG101: 2115101.5 | AH101: 2058427.25 | AI101: 1967126 | AJ101: 1985294 | AK101: 1893897.25 | AL101: 1930653.5 | AM101: 1922583 | AN101: 1912843.25 | AO101: 1997023.75 | AP101: 2089104.75 | AQ101: 2158663.25 | AR101: 2126410 | AS101: 2049039.875 | AT101: 2021466.125 | AU101: 2060984.125 | AV101: 2161545.75 | AW101: 2247381.5 | AX101: 2233464 | AY101: 2225715.5 | AZ101: 2256051 | BA101: 2298996.5 | BB101: 2261428.5 | BC101: 2218586.25 | BD101: 2183692.25 | BE101: 2147446 | BF101: 2095931.625 | BG101: 2064195.875 | BH101: 1980758 | BI101: 1886510.875 | BJ101: 1847406 | BK101: 1810701.5 | BL101: 1770415.375 | BM101: 1714009.5 | BN101: 1720035.75 | BO101: 1559474.125 | BP101: 1321762 | BQ101: 1303655.875 | BR101: 1294239.125 | BS101: 1229541.375 | BT101: 1100406 | BU101: 1038739.125 | BV101: 988960.25 | BW101: 938700.0625 | BX101: 879313.1875 | BY101: 840981.375 | BZ101: 811345.8125 | CA101: 763656.625 | CB101: 711082 | CC101: 681358.4375 | CD101: 666526.8125 | CE101: 644014.3125 | CF101: 610493.1875 | CG101: 568788.875 | CH101: 512859.0625 | CI101: 464801.6562 | CJ101: 423673.2188 | CK101: 389548.375 | CL101: 342677.8438 | CM101: 301216.1562 | CN101: 269423.5 | CO101: 222707.7969 | CP101: 171993.4844 | CQ101: 144464.2031 | CR101: 114044.0703 | CS101: 87092.52344 | CT101: 66925.45312 | CU101: 50558.35156 | CV101: 35760.01953 | CW101: 25149.93945 | CX101: 16644.83984 | CY101: 11276.82031 | CZ101: 7222.22998 | DA101: 4519.97998 | DB101: 6291.300293
B102: HMD | C102: M | D102: 2009 | E102: 149952816 | F102: 2077042.375 | G102: 2087996.5 | H102: 2072070.5 | I102: 2048131.875 | J102: 2064255 | K102: 2067467.375 | L102: 2043051.875 | M102: 2062952.375 | N102: 2049485.375 | O102: 2021651 | P102: 2103905 | Q102: 2076492.875 | R102: 2114264.5 | S102: 2141329.5 | T102: 2148978.5 | U102: 2201433 | V102: 2253551.25 | W102: 2286512 | X102: 2341902.25 | Y102: 2313563.25 | Z102: 2222591.5 | AA102: 2188821.5 | AB102: 2163517.5 | AC102: 2165318.25 | AD102: 2142743.25 | AE102: 2148627.5 | AF102: 2121081 | AG102: 2127974.5 | AH102: 2117827.75 | AI102: 2044875.875 | AJ102: 2038274.125 | AK102: 1934373.25 | AL102: 1934002.875 | AM102: 1929848.75 | AN102: 1925468.5 | AO102: 1932517.25 | AP102: 1989518.875 | AQ102: 2078116.375 | AR102: 2162786.5 | AS102: 2134476.75 | AT102: 2042920 | AU102: 2031914 | AV102: 2059327.875 | AW102: 2163679.25 | AX102: 2225740 | AY102: 2222770.25 | AZ102: 2239419.5 | BA102: 2261370.75 | BB102: 2283329.5 | BC102: 2267970 | BD102: 2193769 | BE102: 2205025.5 | BF102: 2125618.75 | BG102: 2103280.25 | BH102: 2063801.375 | BI102: 1944271.375 | BJ102: 1899016.375 | BK102: 1829230 | BL102: 1800650.25 | BM102: 1750494.25 | BN102: 1676013.75 | BO102: 1738722 | BP102: 1545030.5 | BQ102: 1313321.75 | BR102: 1279752.375 | BS102: 1280385.25 | BT102: 1212435.125 | BU102: 1087343.75 | BV102: 1019604.25 | BW102: 966026.6875 | BX102: 908254.6875 | BY102: 869015.75 | BZ102: 812181.875 | CA102: 789738.125 | CB102: 735191.3125 | CC102: 675053.3125 | CD102: 663604.625 | CE102: 633480.75 | CF102: 614212.625 | CG102: 576902.75 | CH102: 512919.7812 | CI102: 478483.1562 | CJ102: 430586.3125 | CK102: 389044.3438 | CL102: 354019.4375 | CM102: 308289.9688 | CN102: 267787.4062 | CO102: 236323.7031 | CP102: 192452.2656 | CQ102: 145876.3125 | CR102: 120298.7031 | CS102: 93180.84375 | CT102: 69482.54688 | CU102: 52276.23828 | CV102: 38258.32031 | CW102: 26333.24023 | CX102: 18129.85938 | CY102: 11614.90039 | CZ102: 7598.5 | DA102: 4742.540039 | DB102: 6487.950195
B103: HMD | C103: M | D103: 2010 | E103: 151241504 | F103: 2031431.5 | G103: 2050516 | H103: 2093174.5 | I103: 2078821.125 | J103: 2073566.5 | K103: 2077627.5 | L103: 2065530.625 | M103: 2055862.5 | N103: 2071102.75 | O103: 2074165.25 | P103: 2127878.25 | Q103: 2092665.375 | R103: 2102048.5 | S103: 2118009.5 | T103: 2134532.5 | U103: 2177765.75 | V103: 2229329 | W103: 2263126 | X103: 2315792.75 | Y103: 2347094 | Z103: 2286980.75 | AA103: 2221024.25 | AB103: 2172433.75 | AC103: 2156216.25 | AD103: 2162206.75 | AE103: 2156574 | AF103: 2112781.5 | AG103: 2133398.5 | AH103: 2130591.25 | AI103: 2103004.25 | AJ103: 2119295.25 | AK103: 1988289.875 | AL103: 1973540.125 | AM103: 1934379.75 | AN103: 1932747.875 | AO103: 1944115.625 | AP103: 1925044.75 | AQ103: 1979373 | AR103: 2081810.5 | AS103: 2173104.25 | AT103: 2126692.75 | AU103: 2053205.625 | AV103: 2030388.625 | AW103: 2061109 | AX103: 2143523.25 | AY103: 2214301 | AZ103: 2235696.75 | BA103: 2244636 | BB103: 2244896 | BC103: 2290667.25 | BD103: 2240600.25 | BE103: 2214931.75 | BF103: 2181673.5 | BG103: 2131873.75 | BH103: 2102589 | BI103: 2025029.25 | BJ103: 1956078 | BK103: 1880633.25 | BL103: 1817884.75 | BM103: 1781433.875 | BN103: 1710006.625 | BO103: 1692891.125 | BP103: 1723079.875 | BQ103: 1534212.25 | BR103: 1290208.375 | BS103: 1264992.375 | BT103: 1262723.375 | BU103: 1198079.875 | BV103: 1067698.75 | BW103: 996453.25 | BX103: 934408.375 | BY103: 897632.25 | BZ103: 839654.25 | CA103: 790565.125 | CB103: 761150.5625 | CC103: 698122.625 | CD103: 658228.6875 | CE103: 631127.25 | CF103: 604694.75 | CG103: 580873.3125 | CH103: 510588.0938 | CI103: 479990 | CJ103: 444537.25 | CK103: 396547.875 | CL103: 355147.9375 | CM103: 319814.9375 | CN103: 275367.7188 | CO103: 235942.8125 | CP103: 205806.2656 | CQ103: 164581.7344 | CR103: 122523.4688 | CS103: 99122.64062 | CT103: 75100.71094 | CU103: 54491.89844 | CV103: 39997.46094 | CW103: 28607.91992 | CX103: 19053.17969 | CY103: 12753.08984 | CZ103: 7957.370117 | DA103: 5122.080078 | DB103: 6863.909668
B104: HMD | C104: M | D104: 2011 | E104: 152443744 | F104: 2023530.75 | G104: 2022949.625 | H104: 2057648.875 | I104: 2097710.25 | J104: 2095291.5 | K104: 2082992.125 | L104: 2080613.75 | M104: 2073813.625 | N104: 2061262.125 | O104: 2083077.125 | P104: 2126952.5 | Q104: 2125963.75 | R104: 2106675.25 | S104: 2106889.75 | T104: 2116698.5 | U104: 2149740 | V104: 2196731.25 | W104: 2239460.25 | X104: 2285783.5 | Y104: 2327714.25 | Z104: 2340460.5 | AA104: 2292981.75 | AB104: 2220363 | AC104: 2174885.25 | AD104: 2161067.25 | AE104: 2173527.5 | AF104: 2143644.25 | AG104: 2122210 | AH104: 2138245.75 | AI104: 2126536.25 | AJ104: 2142244.75 | AK104: 2099177.75 | AL104: 2007953.125 | AM104: 1976365.875 | AN104: 1937262.625 | AO104: 1942382.125 | AP104: 1941428.25 | AQ104: 1920938.125 | AR104: 1980760.625 | AS104: 2087693.625 | AT104: 2167763 | AU104: 2130021 | AV104: 2051067.875 | AW104: 2029366.375 | AX104: 2050419.25 | AY104: 2135132 | AZ104: 2216903 | BA104: 2234463.75 | BB104: 2232101 | BC104: 2243759.25 | BD104: 2270930.25 | BE104: 2244231.25 | BF104: 2196913 | BG104: 2176881.75 | BH104: 2123687 | BI104: 2075337.375 | BJ104: 2021486.625 | BK104: 1938628.625 | BL104: 1865399.375 | BM104: 1799896.125 | BN104: 1751401.875 | BO104: 1707223 | BP104: 1675223.75 | BQ104: 1705508.5 | BR104: 1511606.125 | BS104: 1272662.125 | BT104: 1246227.25 | BU104: 1244189.25 | BV104: 1176134.625 | BW104: 1045050.188 | BX104: 969351.9375 | BY104: 917285 | BZ104: 871141.625 | CA104: 816347.375 | CB104: 764328.0625 | CC104: 729277.9375 | CD104: 676056.5 | CE104: 628698.0625 | CF104: 602539.3125 | CG104: 573252.75 | CH104: 532528.6875 | CI104: 478123.375 | CJ104: 445997.625 | CK104: 409895.8438 | CL104: 362691.5625 | CM104: 320397.5 | CN104: 285659.0625 | CO104: 243213 | CP104: 205035.6875 | CQ104: 175906.5312 | CR104: 138239.9688 | CS104: 100722 | CT104: 79920.27344 | CU104: 58984.57812 | CV104: 41506.51172 | CW104: 29960.74023 | CX104: 20604.91016 | CY104: 13371.78027 | CZ104: 8797.80957 | DA104: 5288.120117 | DB104: 7353.730957
B105: HMD | C105: M | D105: 2012 | E105: 153585488 | F105: 2018143.625 | G105: 2030569.625 | H105: 2029408.5 | I105: 2063175.75 | J105: 2102717.5 | K105: 2100377 | L105: 2088156.375 | M105: 2085532.625 | N105: 2078651.5 | O105: 2066106.75 | P105: 2087939.75 | Q105: 2131875.25 | R105: 2130909 | S105: 2111850.25 | T105: 2112475.75 | U105: 2122978.5 | V105: 2157866.25 | W105: 2207809 | X105: 2252567.5 | Y105: 2300562.25 | Z105: 2342974.5 | AA105: 2356149.5 | AB105: 2307395.25 | AC105: 2233670.75 | AD105: 2187121.5 | AE105: 2172411.75 | AF105: 2183986 | AG105: 2153097.75 | AH105: 2130754.25 | AI105: 2146173.25 | AJ105: 2133384.25 | AK105: 2148084 | AL105: 2104117.5 | AM105: 2012124.5 | AN105: 1979882.75 | AO105: 1940276.75 | AP105: 1944369.375 | AQ105: 1942785.875 | AR105: 1921588.5 | AS105: 1980880.625 | AT105: 2086614 | AU105: 2165589.5 | AV105: 2127386 | AW105: 2047896.25 | AX105: 2025669.75 | AY105: 2045779.5 | AZ105: 2129542.5 | BA105: 2210149.75 | BB105: 2226333.25 | BC105: 2222861.5 | BD105: 2233388.25 | BE105: 2259173.25 | BF105: 2231480.5 | BG105: 2183137 | BH105: 2162160.5 | BI105: 2107934.25 | BJ105: 2058839 | BK105: 2004222 | BL105: 1920868.5 | BM105: 1847106.75 | BN105: 1781046.75 | BO105: 1732087.75 | BP105: 1687219.5 | BQ105: 1654013.125 | BR105: 1682579.25 | BS105: 1489774 | BT105: 1252822.375 | BU105: 1225013 | BV105: 1220934.375 | BW105: 1152420.75 | BX105: 1022451.375 | BY105: 946678.5 | BZ105: 893889.625 | CA105: 846771.5625 | CB105: 791330.75 | CC105: 738667.3125 | CD105: 702399.8125 | CE105: 648659.4375 | CF105: 600639 | CG105: 572920.3125 | CH105: 521998.2188 | CI105: 498969.0625 | CJ105: 444616.2812 | CK105: 411346.4062 | CL105: 374477.0312 | CM105: 328195.375 | CN105: 286407.8438 | CO105: 252323.4375 | CP105: 211452.5156 | CQ105: 175894.9219 | CR105: 147869.8281 | CS105: 113752.0625 | CT105: 80974.46875 | CU105: 62767.92188 | CV105: 45184.5 | CW105: 30969.68945 | CX105: 21714.08984 | CY105: 14366.41992 | CZ105: 9252.459961 | DA105: 5811.959961 | DB105: 7794.100098
B106: HMD | C106: M | D106: 2013 | E106: 154733232 | F106: 2008810.75 | G106: 2025768.75 | H106: 2037469.5 | I106: 2035187.375 | J106: 2068456.375 | K106: 2107943.75 | L106: 2105571.25 | M106: 2093133.25 | N106: 2090415.75 | O106: 2083620.75 | P106: 2071074.375 | Q106: 2092993.375 | R106: 2136971.75 | S106: 2136157.25 | T106: 2117531 | U106: 2118927.75 | V106: 2131188.5 | W106: 2168821.25 | X106: 2220912 | Y106: 2266948 | Z106: 2315495.75 | AA106: 2359316.25 | AB106: 2372754.5 | AC106: 2322762.25 | AD106: 2247561 | AE106: 2200046.75 | AF106: 2184581 | AG106: 2195272.25 | AH106: 2163054.25 | AI106: 2140247.25 | AJ106: 2154604 | AK106: 2140537.5 | AL106: 2154360.5 | AM106: 2109091.25 | AN106: 2016352 | AO106: 1983556 | AP106: 1942677.625 | AQ106: 1946224.625 | AR106: 1943989 | AS106: 1922202.875 | AT106: 1980603.5 | AU106: 2085521.875 | AV106: 2163448 | AW106: 2124245.5 | AX106: 2044306.125 | AY106: 2021331.375 | AZ106: 2040627.125 | BA106: 2123327.25 | BB106: 2202412.75 | BC106: 2217417 | BD106: 2212707.75 | BE106: 2221682.25 | BF106: 2246292 | BG106: 2217691.5 | BH106: 2168584.75 | BI106: 2146284.5 | BJ106: 2091002.875 | BK106: 2041195.625 | BL106: 1985863.5 | BM106: 1901918.5 | BN106: 1827652.875 | BO106: 1761024.5 | BP106: 1711361.75 | BQ106: 1665649.625 | BR106: 1631278.875 | BS106: 1658135.25 | BT106: 1466500.375 | BU106: 1231559.5 | BV106: 1202335.875 | BW106: 1196403 | BX106: 1127573.875 | BY106: 998641.6875 | BZ106: 922643.125 | CA106: 869035.375 | CB106: 820996.625 | CC106: 764935.5625 | CD106: 711641 | CE106: 674190.1875 | CF106: 619899.625 | CG106: 571295.75 | CH106: 531738.5625 | CI106: 490023.25 | CJ106: 464927.375 | CK106: 410690.625 | CL106: 376475.1562 | CM106: 339437.75 | CN106: 294052.2188 | CO106: 253349.2344 | CP106: 219871.875 | CQ106: 181354.6562 | CR106: 148146.2812 | CS106: 122013.7969 | CT106: 91967.35156 | CU106: 64072.14062 | CV106: 48007.71094 | CW106: 33653.57812 | CX106: 22363.08008 | CY106: 15195.58008 | CZ106: 9746.05957 | DA106: 6041.669922 | DB106: 8337.208984
B107: HMD | C107: M | D107: 2014 | E107: 155885104 | F107: 2017217.25 | G107: 2017443.375 | H107: 2033647.625 | I107: 2044156.25 | J107: 2041322 | K107: 2074287.625 | L107: 2113595.25 | M107: 2111125 | N107: 2098538 | O107: 2095825.75 | P107: 2088954.625 | Q107: 2076527.25 | R107: 2098494.75 | S107: 2142670 | T107: 2142496.25 | U107: 2124877 | V107: 2127881.75 | W107: 2142755.75 | X107: 2182779.5 | Y107: 2236154.75 | Z107: 2281054.25 | AA107: 2329892.75 | AB107: 2375189.25 | AC107: 2388436 | AD107: 2336780.25 | AE107: 2260219 | AF107: 2212158.25 | AG107: 2196348.75 | AH107: 2205775 | AI107: 2172974.5 | AJ107: 2149427.5 | AK107: 2162428.5 | AL107: 2147411.25 | AM107: 2159916.25 | AN107: 2113519.75 | AO107: 2020024.875 | AP107: 1986048.375 | AQ107: 1944604 | AR107: 1947617.375 | AS107: 1945042.875 | AT107: 1922380.75 | AU107: 1979965.25 | AV107: 2083913.375 | AW107: 2160579.5 | AX107: 2120672.75 | AY107: 2039868.75 | AZ107: 2016151.75 | BA107: 2034831.125 | BB107: 2116087 | BC107: 2193793.75 | BD107: 2207316.25 | BE107: 2201160 | BF107: 2209111.25 | BG107: 2232514 | BH107: 2202884 | BI107: 2152573.75 | BJ107: 2128859 | BK107: 2072868 | BL107: 2022156.25 | BM107: 1966059.25 | BN107: 1881638.5 | BO107: 1806689 | BP107: 1739373.5 | BQ107: 1688879 | BR107: 1642528.375 | BS107: 1607274.125 | BT107: 1632274.75 | BU107: 1441837.5 | BV107: 1208950.25 | BW107: 1178362.375 | BX107: 1170526.5 | BY107: 1101488.375 | BZ107: 973402.25 | CA107: 897175.6875 | CB107: 842790.5625 | CC107: 793821.1875 | CD107: 737223.5 | CE107: 683342.875 | CF107: 644624.75 | CG107: 589881 | CH107: 540686.9375 | CI107: 499092.6562 | CJ107: 456399.8125 | CK107: 429801.2812 | CL107: 376152.625 | CM107: 341455.0938 | CN107: 304193.1875 | CO107: 259976.2031 | CP107: 220686.8594 | CQ107: 188485.0781 | CR107: 152773.0625 | CS107: 122393.4062 | CT107: 98774.10938 | CU107: 72064.38281 | CV107: 49135.57031 | CW107: 35940.82812 | CX107: 24353.90039 | CY107: 15686.59961 | CZ107: 10402.23047 | DA107: 6418.759766 | DB107: 8778.540039
B108: HMD | C108: M | D108: 2015 | E108: 157087584 | F108: 2031184 | G108: 2026456.875 | H108: 2026276.625 | I108: 2041389.375 | J108: 2051228.625 | K108: 2047982.5 | L108: 2080654.125 | M108: 2119881.5 | N108: 2117279 | O108: 2104686 | P108: 2101877.25 | Q108: 2095021.875 | R108: 2082602 | S108: 2104825.5 | T108: 2149769 | U108: 2150759.25 | V108: 2134554 | W108: 2140081.75 | X108: 2157794.75 | Y108: 2199429.75 | Z108: 2251233.5 | AA108: 2296241.5 | AB108: 2346552.5 | AC108: 2392368.75 | AD108: 2404157.25 | AE108: 2351233.5 | AF108: 2274195 | AG108: 2225780.25 | AH108: 2209258.5 | AI108: 2217885.25 | AJ108: 2184109 | AK108: 2159518.75 | AL108: 2171403.5 | AM108: 2154971.5 | AN108: 2166218.75 | AO108: 2118582.75 | AP108: 2023901.75 | AQ108: 1989218.375 | AR108: 1947097.25 | AS108: 1949605.125 | AT108: 1946142.5 | AU108: 1922623.875 | AV108: 1979415.625 | AW108: 2082309.375 | AX108: 2157937.5 | AY108: 2116741 | AZ108: 2035072.5 | BA108: 2010930.25 | BB108: 2028453.125 | BC108: 2108330.5 | BD108: 2184305.25 | BE108: 2196284.25 | BF108: 2189235.25 | BG108: 2195823.5 | BH108: 2217629.75 | BI108: 2186814.5 | BJ108: 2135261.5 | BK108: 2110464.25 | BL108: 2053569.625 | BM108: 2001995.5 | BN108: 1945066.75 | BO108: 1859794.875 | BP108: 1784310.625 | BQ108: 1716297.5 | BR108: 1665359.25 | BS108: 1618464.875 | BT108: 1582136.625 | BU108: 1604864 | BV108: 1415682.125 | BW108: 1185041.5 | BX108: 1153026.875 | BY108: 1143410.75 | BZ108: 1073687.25 | CA108: 946544.9375 | CB108: 870171.4375 | CC108: 815025.375 | CD108: 765226.3125 | CE108: 708108.875 | CF108: 653563.25 | CG108: 613641.25 | CH108: 558484.6875 | CI108: 508836.5 | CJ108: 465979.9688 | CK108: 422417.1875 | CL108: 394166.375 | CM108: 341895.5625 | CN108: 306901.4375 | CO108: 269852.0938 | CP108: 227229.9688 | CQ108: 189523.3125 | CR108: 159593.2344 | CS108: 126580.1797 | CT108: 99186.46094 | CU108: 78044.52344 | CV108: 55592.64062 | CW108: 36971.57031 | CX108: 26287.07031 | CY108: 17034.53906 | CZ108: 10724.46973 | DA108: 6892.089844 | DB108: 9345.089844
B109: HMD | C109: M | D109: 2016 | E109: 158282832 | F109: 2031884 | G109: 2040671.625 | H109: 2035824 | I109: 2034717.375 | J109: 2049080.125 | K109: 2058565 | L109: 2055011.875 | M109: 2087486.375 | N109: 2126604.75 | O109: 2124016 | P109: 2111385.75 | Q109: 2108438 | R109: 2101635.25 | S109: 2089498.25 | T109: 2112302.5 | U109: 2158345.25 | V109: 2160774.25 | W109: 2147129.5 | X109: 2155577 | Y109: 2174119.25 | Z109: 2214313.75 | AA109: 2266410.75 | AB109: 2313283.5 | AC109: 2364024.5 | AD109: 2408370 | AE109: 2419538.75 | AF109: 2365856.5 | AG109: 2288432.5 | AH109: 2239417.5 | AI109: 2222294.75 | AJ109: 2229917.25 | AK109: 2195126.5 | AL109: 2169596.25 | AM109: 2180143.5 | AN109: 2162328.25 | AO109: 2172166.25 | AP109: 2123097.5 | AQ109: 2027574.25 | AR109: 1992155.375 | AS109: 1949302.125 | AT109: 1950913.5 | AU109: 1946671.125 | AV109: 1922584.875 | AW109: 1978422.875 | AX109: 2080354.375 | AY109: 2154197.5 | AZ109: 2112068.75 | BA109: 2029944.625 | BB109: 2004838.5 | BC109: 2021305.375 | BD109: 2099380.5 | BE109: 2173759.75 | BF109: 2184612 | BG109: 2176133.5 | BH109: 2181119.25 | BI109: 2201467.25 | BJ109: 2169622.75 | BK109: 2116973.75 | BL109: 2090958 | BM109: 2032982.625 | BN109: 1980473 | BO109: 1922458.75 | BP109: 1836761.5 | BQ109: 1760580.75 | BR109: 1691803.625 | BS109: 1640526.125 | BT109: 1592947.375 | BU109: 1555421.625 | BV109: 1575884.25 | BW109: 1387875.25 | BX109: 1159639.25 | BY109: 1126379.375 | BZ109: 1114652.125 | CA109: 1044247.562 | CB109: 918229.5625 | CC109: 841707.6875 | CD109: 785856.6875 | CE109: 735208 | CF109: 677486.1875 | CG109: 622372.1875 | CH109: 581284.375 | CI109: 525807.875 | CJ109: 475731.125 | CK109: 431461.8125 | CL109: 387722.7812 | CM109: 358032.2812 | CN109: 307158.7812 | CO109: 271998.0312 | CP109: 235542.2969 | CQ109: 195387.1875 | CR109: 160050.2812 | CS109: 131884.125 | CT109: 102483.1328 | CU109: 78116.53906 | CV109: 59916.30078 | CW109: 41427.66016 | CX109: 26800.85938 | CY109: 18414.51953 | CZ109: 11566.16016 | DA109: 6997.890137 | DB109: 9809.019531
B110: HMD | C110: M | D110: 2017 | E110: 159392384 | F110: 2005797.125 | G110: 2041243.5 | H110: 2049790.25 | I110: 2044254.25 | J110: 2042552.5 | K110: 2056676 | L110: 2065886 | M110: 2061951.375 | N110: 2094297.375 | O110: 2133482.5 | P110: 2130856.75 | Q110: 2117949.5 | R110: 2115067.75 | S110: 2108574 | T110: 2096854.625 | U110: 2120660 | V110: 2168082 | W110: 2173148.5 | X110: 2161931.25 | Y110: 2170119.25 | Z110: 2186499 | AA110: 2226994.25 | AB110: 2281019.75 | AC110: 2328108.5 | AD110: 2377583.75 | AE110: 2421548.75 | AF110: 2432309.5 | AG110: 2378339.75 | AH110: 2300136.25 | AI110: 2250694 | AJ110: 2232878.5 | AK110: 2239510.5 | AL110: 2203946.5 | AM110: 2177299.25 | AN110: 2186423 | AO110: 2167123.75 | AP110: 2175640.5 | AQ110: 2125804.5 | AR110: 2029615.75 | AS110: 1993436 | AT110: 1949665.625 | AU110: 1950664.75 | AV110: 1946031 | AW110: 1921142.875 | AX110: 1976225.75 | AY110: 2076512.875 | AZ110: 2149257.25 | BA110: 2106377.5 | BB110: 2023380.625 | BC110: 1997538.375 | BD110: 2012497.25 | BE110: 2089203.875 | BF110: 2162227.25 | BG110: 2171305.75 | BH110: 2161546.5 | BI110: 2164941.75 | BJ110: 2184128.75 | BK110: 2151236.5 | BL110: 2097367 | BM110: 2069743.25 | BN110: 2010708.625 | BO110: 1957252.875 | BP110: 1898540.625 | BQ110: 1812130 | BR110: 1735093 | BS110: 1665970 | BT110: 1614289.125 | BU110: 1566014.75 | BV110: 1527104.875 | BW110: 1544980.5 | BX110: 1358522.625 | BY110: 1133159.25 | BZ110: 1098501.875 | CA110: 1084544.5 | CB110: 1013549.375 | CC110: 888661.3125 | CD110: 812015 | CE110: 755483.0625 | CF110: 703908.25 | CG110: 645661.5625 | CH110: 590069.6875 | CI110: 547824.0625 | CJ110: 492075.5 | CK110: 441799.8438 | CL110: 396806.0312 | CM110: 353434.7812 | CN110: 322404.3438 | CO110: 273285.875 | CP110: 238389.6875 | CQ110: 203176.0469 | CR110: 165232.5 | CS110: 132752.9844 | CT110: 107077.4219 | CU110: 81410.67188 | CV110: 60438.30859 | CW110: 45090.94141 | CX110: 30466.24023 | CY110: 18935.32031 | CZ110: 12661.19043 | DA110: 7609.810059 | DB110: 10345.4502
B111: HMD | C111: M | D111: 2018 | E111: 160334960 | F111: 1970664.625 | G111: 2014201 | H111: 2049340.125 | I111: 2057282.875 | J111: 2051291 | K111: 2049387 | L111: 2063287.5 | M111: 2072072.875 | N111: 2068057 | O111: 2100587.5 | P111: 2139726.25 | Q111: 2136733.75 | R111: 2123807.75 | S111: 2121234.25 | T111: 2115123 | U111: 2104282.75 | V111: 2129251.75 | W111: 2179030.75 | X111: 2186238.5 | Y111: 2174230 | Z111: 2179433.75 | AA111: 2195978.75 | AB111: 2237693 | AC111: 2291763.5 | AD111: 2338109.5 | AE111: 2386820.75 | AF111: 2430972.5 | AG111: 2441513.75 | AH111: 2386791 | AI111: 2308300.75 | AJ111: 2258163.75 | AK111: 2239803.5 | AL111: 2245820 | AM111: 2209165.25 | AN111: 2181295.75 | AO111: 2188862.5 | AP111: 2168725.75 | AQ111: 2176748.25 | AR111: 2126045.5 | AS111: 2029228.5 | AT111: 1992189.5 | AU111: 1948071.25 | AV111: 1948685.75 | AW111: 1943473.5 | AX111: 1918035 | AY111: 1971904 | AZ111: 2070922.375 | BA111: 2142603.75 | BB111: 2098847.75 | BC111: 2015241.5 | BD111: 1988342.5 | BE111: 2002258.625 | BF111: 2077744.625 | BG111: 2148969.25 | BH111: 2156544.25 | BI111: 2145198 | BJ111: 2147308.25 | BK111: 2165287.5 | BL111: 2131086.5 | BM111: 2075646 | BN111: 2046617 | BO111: 1986640.375 | BP111: 1932375.375 | BQ111: 1872563 | BR111: 1785444 | BS111: 1707921.875 | BT111: 1638331.625 | BU111: 1586170.625 | BV111: 1537039.25 | BW111: 1496741.5 | BX111: 1512164.125 | BY111: 1327545.875 | BZ111: 1104902.125 | CA111: 1068753.5 | CB111: 1052560.625 | CC111: 980848.5625 | CD111: 857143.5 | CE111: 780483.4375 | CF111: 723234.125 | CG111: 670771.3125 | CH111: 612102.5625 | CI111: 556043.4375 | CJ111: 512686.5625 | CK111: 456886.875 | CL111: 406781.4062 | CM111: 361353.7812 | CN111: 318232.625 | CO111: 286397 | CP111: 239249.7344 | CQ111: 205354.5938 | CR111: 171919.9375 | CS111: 137133.875 | CT111: 107676.3984 | CU111: 84707.00781 | CV111: 62961.5 | CW111: 45421.35938 | CX111: 32782.16016 | CY111: 21408.66016 | CZ111: 13006.94043 | DA111: 8260.910156 | DB111: 10888.81055
B112: HMD | C112: M | D112: 2019 | E112: 161131968 | F112: 1938341.875 | G112: 1978222.875 | H112: 2021317.25 | I112: 2055756.5 | J112: 2063142.5 | K112: 2056929.625 | L112: 2054808.125 | M112: 2068283.875 | N112: 2076963 | O112: 2073053.375 | P112: 2105497.75 | Q112: 2144391.25 | R112: 2141378.5 | S112: 2128710.25 | T112: 2126529.75 | U112: 2121203 | V112: 2111460 | W112: 2138609.5 | X112: 2190325.75 | Y112: 2196306.75 | Z112: 2181791.25 | AA112: 2186994 | AB112: 2204482.25 | AC112: 2246426.25 | AD112: 2299703.25 | AE112: 2345048.25 | AF112: 2393654.25 | AG112: 2437604.75 | AH112: 2447400.5 | AI112: 2392372.25 | AJ112: 2312956.75 | AK112: 2262320.25 | AL112: 2243737.75 | AM112: 2248678 | AN112: 2210948.25 | AO112: 2181623.75 | AP112: 2188572.25 | AQ112: 2168060.25 | AR112: 2175204.25 | AS112: 2123828.75 | AT112: 2026336 | AU112: 1988982 | AV112: 1944698.375 | AW112: 1944941 | AX112: 1939198.625 | AY112: 1912790.375 | AZ112: 1965541.25 | BA112: 2063631.625 | BB112: 2134184.5 | BC112: 2089608 | BD112: 2005346.5 | BE112: 1977702 | BF112: 1990683.5 | BG112: 2064662.25 | BH112: 2133945.5 | BI112: 2139898.5 | BJ112: 2127217.5 | BK112: 2128124.25 | BL112: 2144578.75 | BM112: 2108807.5 | BN112: 2052211.875 | BO112: 2021787.125 | BP112: 1960764.25 | BQ112: 1905329.5 | BR112: 1844567.375 | BS112: 1757043.75 | BT112: 1678935.125 | BU112: 1608975.875 | BV112: 1556456.5 | BW112: 1506175.25 | BX112: 1464515 | BY112: 1478121.375 | BZ112: 1294758.5 | CA112: 1075092.375 | CB112: 1037511.938 | CC112: 1018964.438 | CD112: 946443.4375 | CE112: 824087.875 | CF112: 747464.75 | CG112: 689535.5625 | CH112: 636272.1875 | CI112: 577159.3125 | CJ112: 520767.0625 | CK112: 476536.0625 | CL112: 421013.9688 | CM112: 371553.4375 | CN112: 325875.125 | CO112: 283679.0625 | CP112: 251280.3906 | CQ112: 206542.2969 | CR112: 174409.2969 | CS112: 143106.7812 | CT112: 111624.9688 | CU112: 85465.74219 | CV112: 65597.59375 | CW112: 47495.33984 | CX112: 33260.44922 | CY112: 23092.43945 | CZ112: 14579.15039 | DA112: 8603.05957 | DB112: 11763.71973
B113: HMD | C113: M | D113: 2020 | E113: 162882656 | F113: 1907094 | G113: 1942807.125 | H113: 1985102.5 | I113: 2030622.75 | J113: 2065884.5 | K113: 2072199.625 | L113: 2067951.75 | M113: 2063975.125 | N113: 2079370.25 | O113: 2089995.5 | P113: 2109932 | Q113: 2165621.75 | R113: 2213733.5 | S113: 2202851 | T113: 2177660.75 | U113: 2167387.25 | V113: 2165404.5 | W113: 2152827.5 | X113: 2177604.25 | Y113: 2217920 | Z113: 2202034 | AA113: 2185009 | AB113: 2185608.5 | AC113: 2199294.5 | AD113: 2235650.5 | AE113: 2279478.75 | AF113: 2323661 | AG113: 2369634.25 | AH113: 2408505 | AI113: 2417819 | AJ113: 2370992.25 | AK113: 2308447.25 | AL113: 2267448.5 | AM113: 2258930.5 | AN113: 2265628.5 | AO113: 2222407.5 | AP113: 2208821 | AQ113: 2220002.5 | AR113: 2201450 | AS113: 2207265.25 | AT113: 2127001 | AU113: 2056041.375 | AV113: 2016866.25 | AW113: 1971495.5 | AX113: 1966871.5 | AY113: 1940950.875 | AZ113: 1930938 | BA113: 1986272.125 | BB113: 2090870.375 | BC113: 2171404.25 | BD113: 2093491.125 | BE113: 2027743.25 | BF113: 2000262.375 | BG113: 2016755.875 | BH113: 2087879.375 | BI113: 2134810 | BJ113: 2153515.75 | BK113: 2144876.25 | BL113: 2154539.25 | BM113: 2158994 | BN113: 2093937.125 | BO113: 2057219.75 | BP113: 2026980.625 | BQ113: 1961771.25 | BR113: 1898185.625 | BS113: 1824317.5 | BT113: 1746626.25 | BU113: 1667319.875 | BV113: 1600651.875 | BW113: 1533892.25 | BX113: 1466785.625 | BY113: 1432410.5 | BZ113: 1441066.5 | CA113: 1278221.125 | CB113: 1035684.188 | CC113: 986993.375 | CD113: 972655 | CE113: 898914.5 | CF113: 777977.8125 | CG113: 701930 | CH113: 638071.3125 | CI113: 587216.875 | CJ113: 528592.375 | CK113: 472463.875 | CL113: 428169.8125 | CM113: 372997 | CN113: 326316.2812 | CO113: 290732.6562 | CP113: 249652.6719 | CQ113: 217731.0469 | CR113: 176132.1562 | CS113: 145947.2969 | CT113: 117089.9609 | CU113: 89020.39062 | CV113: 66603.42188 | CW113: 49608.48047 | CX113: 34991.46875 | CY113: 23772.78906 | CZ113: 15905.94043 | DA113: 9765.490234 | DB113: 12702.58008
B114: HMD | C114: M | D114: 2021 | E114: 164323184 | F114: 1860243.75 | G114: 1909180.75 | H114: 1947840.5 | I114: 1992921.5 | J114: 2039558.5 | K114: 2073797.375 | L114: 2082118.125 | M114: 2076225.875 | N114: 2074226.75 | O114: 2091522.875 | P114: 2125870 | Q114: 2168967.75 | R114: 2233798.75 | S114: 2273906.25 | T114: 2250324 | U114: 2216742.5 | V114: 2209359.75 | W114: 2203750.75 | X114: 2187969.25 | Y114: 2201722.75 | Z114: 2220989 | AA114: 2202077 | AB114: 2179995 | AC114: 2177018.25 | AD114: 2185728.5 | AE114: 2213115.25 | AF114: 2255805 | AG114: 2297393 | AH114: 2338359.75 | AI114: 2376713.75 | AJ114: 2394588.75 | AK114: 2364480.25 | AL114: 2311541.5 | AM114: 2280696.75 | AN114: 2274359.25 | AO114: 2275937.5 | AP114: 2248418.25 | AQ114: 2239050.5 | AR114: 2252266.5 | AS114: 2232403 | AT114: 2209525.75 | AU114: 2155491.75 | AV114: 2082718.875 | AW114: 2042567.5 | AX114: 1992473.875 | AY114: 1968080.25 | AZ114: 1958539.125 | BA114: 1951126.5 | BB114: 2013029.625 | BC114: 2127350.25 | BD114: 2174120.25 | BE114: 2114492 | BF114: 2048996.375 | BG114: 2025220 | BH114: 2039307.5 | BI114: 2088142.375 | BJ114: 2147216 | BK114: 2169398.25 | BL114: 2169331.75 | BM114: 2167039.75 | BN114: 2141732 | BO114: 2096247.75 | BP114: 2059646.125 | BQ114: 2024652 | BR114: 1951127.875 | BS114: 1874459.125 | BT114: 1810105.375 | BU114: 1730995.25 | BV114: 1654625.75 | BW114: 1573980 | BX114: 1491110.875 | BY114: 1431064.25 | BZ114: 1392755.875 | CA114: 1416653.625 | CB114: 1228591.25 | CC114: 981558.625 | CD114: 938223.4375 | CE114: 920353.1875 | CF114: 845510.5 | CG114: 727048.6875 | CH114: 645965.6875 | CI114: 585106.25 | CJ114: 534105.1875 | CK114: 475748.5 | CL114: 420587.8438 | CM114: 375724 | CN114: 323753.0625 | CO114: 279061.3125 | CP114: 251373.9219 | CQ114: 211748.9844 | CR114: 181098.4062 | CS114: 143621.7344 | CT114: 115969.9297 | CU114: 90518.78125 | CV114: 67049.40625 | CW114: 48510.60938 | CX114: 34929.82812 | CY114: 23870.98047 | CZ114: 15705.42969 | DA114: 10113 | DB114: 13023.31055
B115: HMD | C115: M | D115: 2022 | E115: 164698800 | F115: 1852322.625 | G115: 1866208.75 | H115: 1915465.75 | I115: 1953951.25 | J115: 1998843.375 | K115: 2045177.875 | L115: 2079093.125 | M115: 2087161.625 | N115: 2081193.875 | O115: 2079071.375 | P115: 2096118.375 | Q115: 2130465.75 | R115: 2173452.25 | S115: 2237948.75 | T115: 2277923.75 | U115: 2254678.25 | V115: 2221770.25 | W115: 2215812.75 | X115: 2211239.5 | Y115: 2195467 | Z115: 2207978.5 | AA115: 2226775.75 | AB115: 2207977 | AC115: 2186178.25 | AD115: 2183459.75 | AE115: 2192111 | AF115: 2219086.5 | AG115: 2261020.25 | AH115: 2302138.5 | AI115: 2343111.5 | AJ115: 2380986.25 | AK115: 2398129.75 | AL115: 2367508.25 | AM115: 2313836 | AN115: 2282453.25 | AO115: 2275130.75 | AP115: 2275731.75 | AQ115: 2247518.25 | AR115: 2237470 | AS115: 2249627.75 | AT115: 2228749.25 | AU115: 2205090.5 | AV115: 2150801.5 | AW115: 2077778.875 | AX115: 2037092.5 | AY115: 1986425.625 | AZ115: 1961388.875 | BA115: 1950825.875 | BB115: 1942442.125 | BC115: 2002992.5 | BD115: 2115638.25 | BE115: 2160941 | BF115: 2100523.75 | BG115: 2033977.875 | BH115: 2009325.25 | BI115: 2021695 | BJ115: 2068383.625 | BK115: 2125125.25 | BL115: 2145097.25 | BM115: 2143174.5 | BN115: 2138850 | BO115: 2111615.75 | BP115: 2064416.75 | BQ115: 2025940.125 | BR115: 1989287.875 | BS115: 1914758.125 | BT115: 1837418.5 | BU115: 1772296.875 | BV115: 1692353.125 | BW115: 1615248.125 | BX115: 1534675.375 | BY115: 1451594.875 | BZ115: 1389698.25 | CA115: 1348724.25 | CB115: 1367981.125 | CC115: 1182485 | CD115: 940854.6875 | CE115: 895684.0625 | CF115: 874373.625 | CG115: 798953.1875 | CH115: 682692.375 | CI115: 602338.375 | CJ115: 541212.75 | CK115: 489558.375 | CL115: 431713.0625 | CM115: 377470.2812 | CN115: 333233.9688 | CO115: 283385.4688 | CP115: 240889.1562 | CQ115: 215321.5469 | CR115: 178412.7031 | CS115: 149193.2031 | CT115: 115897.6719 | CU115: 91198.99219 | CV115: 69582.97656 | CW115: 50088.76172 | CX115: 35170.10156 | CY115: 24514.42969 | CZ115: 16164.67969 | DA115: 10354.21973 | DB115: 14095.97949
B116: HMD | C116: M | D116: 2023 | E116: 165357456 | F116: 1870788.75 | G116: 1862105.625 | H116: 1876184.25 | I116: 1925140.75 | J116: 1963323.25 | K116: 2007660.875 | L116: 2053483.25 | M116: 2087000.5 | N116: 2094914.25 | O116: 2088766.125 | P116: 2086271.625 | Q116: 2103367 | R116: 2137517.75 | S116: 2179946.25 | T116: 2244297 | U116: 2284835.5 | V116: 2262773.5 | W116: 2232196.5 | X116: 2228206.25 | Y116: 2224116.5 | Z116: 2206964 | AA116: 2219649 | AB116: 2239034.75 | AC116: 2220383.75 | AD116: 2198351.5 | AE116: 2195606 | AF116: 2203815.5 | AG116: 2229688.75 | AH116: 2271252 | AI116: 2312817.75 | AJ116: 2353115 | AK116: 2390210.75 | AL116: 2406485.25 | AM116: 2374861.5 | AN116: 2320219 | AO116: 2287627 | AP116: 2279135.75 | AQ116: 2278525.75 | AR116: 2249368.25 | AS116: 2238104.75 | AT116: 2248739.5 | AU116: 2226932.25 | AV116: 2202792.75 | AW116: 2147952.25 | AX116: 2074223.125 | AY116: 2032657.125 | AZ116: 1981423.125 | BA116: 1955442 | BB116: 1943885 | BC116: 1934553.25 | BD116: 1993710.125 | BE116: 2104491.5 | BF116: 2148407.25 | BG116: 2086792.75 | BH116: 2019821.875 | BI116: 1993909.25 | BJ116: 2004583.5 | BK116: 2049050.5 | BL116: 2103318.75 | BM116: 2121342.75 | BN116: 2117578 | BO116: 2111230.75 | BP116: 2082251.625 | BQ116: 2033276.875 | BR116: 1993139.75 | BS116: 1954948.75 | BT116: 1879758.75 | BU116: 1801871.625 | BV116: 1735677.125 | BW116: 1654949.125 | BX116: 1577738.125 | BY116: 1497059.125 | BZ116: 1412822.5 | CA116: 1349069.625 | CB116: 1305534.875 | CC116: 1320126 | CD116: 1137470.125 | CE116: 901050.5625 | CF116: 854053.5625 | CG116: 829396.25 | CH116: 753602.25 | CI116: 639637.1875 | CJ116: 560151.0625 | CK116: 499059.625 | CL116: 447198.9062 | CM116: 390356.4375 | CN116: 337528.2812 | CO116: 294424.8125 | CP116: 247058.1562 | CQ116: 207023.25 | CR116: 182501.4375 | CS116: 147977.7344 | CT116: 121524.7891 | CU116: 91598.47656 | CV116: 70476.6875 | CW116: 52242.17188 | CX116: 36543.87891 | CY116: 24878.93945 | CZ116: 16891.32031 | DA116: 10732.59961 | DB116: 14928.2793
B117: HMD | C117: M | D117: 2024 | E117: =SUM(F117:DB117) -> 166500374.1 | F117: =F116*F63/F62 -> 1884821.203 | G117: =F116*G63/F62 -> 1878797.936 | H117: 1875566.983 | I117: 1891136.439 | J117: 1939620.543 | K117: 1977270.601 | L117: 2021682.836 | M117: 2067413.993 | N117: 2101214.626 | O117: 2109979.775 | P117: 2104621.114 | Q117: 2102494.84 | R117: 2119833.495 | S117: 2154316.647 | T117: 2197409.768 | U117: 2263137.972 | V117: 2305858.408 | W117: 2286473.157 | X117: 2257903.432 | Y117: 2254118.056 | Z117: 2249273.137 | AA117: 2231728.666 | AB117: 2243618.306 | AC117: 2261411.032 | AD117: 2241709.121 | AE117: 2219055.32 | AF117: 2215606.963 | AG117: 2223059.264 | AH117: 2248063.211 | AI117: 2288844.796 | AJ117: 2329483.093 | AK117: 2368461.548 | AL117: 2404028.263 | AM117: =AL116*AM63/AL62 -> 2418611.847 | AN117: 2385356.938 | AO117: 2329286.432 | AP117: 2295385.331 | AQ117: 2285648.672 | AR117: 2283743.417 | AS117: 2253414.826 | AT117: 2241269.709 | AU117: 2251053.506 | AV117: 2228540.614 | AW117: 2203769.642 | AX117: 2148360.654 | AY117: 2074153.443 | AZ117: 2031904.677 | BA117: 1979978.032 | BB117: 1953344.76 | BC117: 1941100.582 | BD117: 1931061.951 | BE117: 1989109.078 | BF117: 2098288.172 | BG117: 2140534.409 | BH117: 2077717.177 | BI117: 2009604.298 | BJ117: 1982239.207 | BK117: 1991115.231 | BL117: 2033373.612 | BM117: 2085234.93 | BN117: 2101112.174 | BO117: 2095282.799 | BP117: 2086759.962 | BQ117: 2055801.555 | BR117: 2005200.404 | BS117: =BR116*BS63/BR62 -> 1963507.522 | BT117: 1923901.554 | BU117: 1847965.632 | BV117: 1769395.896 | BW117: 1702205.745 | BX117: 1620596.233 | BY117: 1542164.454 | BZ117: 1460165.858 | CA117: 1374549.271 | CB117: 1308768.492 | CC117: 1262573.256 | CD117: 1272311.359 | CE117: 1092168.96 | CF117: 861681.2048 | CG117: 812879.4899 | CH117: 785203.3134 | CI117: 709176.4827 | CJ117: 597903.6193 | CK117: 519524.0546 | CL117: 458811.1927 | CM117: 407118.5531 | CN117: 351614.8655 | CO117: 300240.4507 | CP117: 258177.2931 | CQ117: 213218.431 | CR117: 175530.8132 | CS117: 151696.1222 | CT117: 120399.1996 | CU117: 96550.38948 | CV117: 71038.01572 | CW117: 53268.80787 | CX117: 38498.40796 | CY117: 26261.76517 | CZ117: 17449.47038 | DA117: 11563.4528 | DB117: 16921.90211
B118: HMD | C118: M | D118: 2025 | E118: =SUM(F118:DB118) -> 167649239.7 | F118: =F117*F64/F63 -> 1929580.143 | G118: =F117*G64/F63 -> 1891942.544 | H118: 1891358.795 | I118: 1889477.834 | J118: 1904833.61 | K118: 1952989.707 | L118: 1990571.873 | M118: 2034994.436 | N118: 2080945.836 | O118: 2115526.176 | P118: 2124968.979 | Q118: 2119916.446 | R118: 2117953.908 | S118: 2135599.373 | T118: 2170658.017 | U118: 2215000.946 | V118: 2282882.549 | W118: 2328107.051 | X118: 2310394.18 | Y118: 2281782.233 | Z118: 2277314.129 | AA118: 2271933.952 | AB118: 2253109.008 | AC118: 2263409.413 | AD118: 2279983.724 | AE118: 2259614.221 | AF118: 2236498.696 | AG118: 2232514.321 | AH118: 2239447.256 | AI118: 2263902.993 | AJ118: 2304132.084 | AK118: 2343794.798 | AL118: 2381342.355 | AM118: =AL117*AM64/AL63 -> 2415398.495 | AN118: 2428364.081 | AO118: 2393613.001 | AP118: 2336334.569 | AQ118: 2301377.61 | AR118: 2290601.124 | AS118: 2287564.159 | AT118: 2256248.69 | AU118: 2243372.394 | AV118: 2252438.781 | AW118: 2229307.2 | AX118: 2203947.259 | AY118: 2147970.551 | AZ118: 2073246.611 | BA118: 2030344.986 | BB118: 1977814.713 | BC118: 1950615.082 | BD118: 1937679.422 | BE118: 1926827.273 | BF118: 1983666.278 | BG118: 2091145.841 | BH118: 2131632.99 | BI118: 2067602.681 | BJ118: 1998409.32 | BK118: 1969647.142 | BL118: 1976748.549 | BM118: 2016863.135 | BN118: 2066389.382 | BO118: 2080117.865 | BP118: 2072216.997 | BQ118: 2061577.924 | BR118: 2028771.328 | BS118: =BR117*BS64/BR63 -> 1976733.86 | BT118: 1933616.043 | BU118: 1892617.014 | BV118: 1815943.924 | BW118: 1736626.823 | BX118: 1668253.505 | BY118: 1585510.566 | BZ118: 1505609.168 | CA118: 1422120.066 | CB118: 1335090.326 | CC118: 1267356.737 | CD118: 1218594.971 | CE118: 1223532.279 | CF118: 1046083.998 | CG118: 821725.305 | CH118: 771214.0316 | CI118: 740638.6735 | CJ118: 664541.254 | CK118: 556139.1803 | CL118: 479080.3009 | CM118: 419026.1955 | CN118: 367760.3255 | CO118: 313790.2815 | CP118: 264214.1386 | CQ118: 223703.1044 | CR118: 181599.1211 | CS118: 146682.6376 | CT118: 124107.8916 | CU118: 96322.35255 | CV118: 75392.61211 | CW118: 54157.22895 | CX118: 39606.70834 | CY118: 27938.4888 | CZ118: 18619.49417 | DA118: 12087.22288 | DB118: 18866.88563

Sheet 8 Death Counts
B2: Death Counts by Cause, Sex, Year, and Age
B3: Source: CDC WONDER. The data was downloaded on the February 6, 2025. Any age/sex specific death counts falling between 1 and 9 have been set equal to 4 to reflect CDC privacy rules.
B6: # | C6: Cause | D6: Sex | E6: Year | F6: Month | G6: Total | H6: 0 | I6: 1 | J6: 2 | K6: 3 | L6: 4 | M6: 5 | N6: 6 | O6: 7 | P6: 8 | Q6: 9 | R6: 10 | S6: 11 | T6: 12 | U6: 13 | V6: 14 | W6: 15 | X6: 16 | Y6: 17 | Z6: 18 | AA6: 19 | AB6: 20 | AC6: 21 | AD6: 22 | AE6: 23 | AF6: 24 | AG6: 25 | AH6: 26 | AI6: 27 | AJ6: 28 | AK6: 29 | AL6: 30 | AM6: 31 | AN6: 32 | AO6: 33 | AP6: 34 | AQ6: 35 | AR6: 36 | AS6: 37 | AT6: 38 | AU6: 39 | AV6: 40 | AW6: 41 | AX6: 42 | AY6: 43 | AZ6: 44 | BA6: 45 | BB6: 46 | BC6: 47 | BD6: 48 | BE6: 49 | BF6: 50 | BG6: 51 | BH6: 52 | BI6: 53 | BJ6: 54 | BK6: 55 | BL6: 56 | BM6: 57 | BN6: 58 | BO6: 59 | BP6: 60 | BQ6: 61 | BR6: 62 | BS6: 63 | BT6: 64 | BU6: 65 | BV6: 66 | BW6: 67 | BX6: 68 | BY6: 69 | BZ6: 70 | CA6: 71 | CB6: 72 | CC6: 73 | CD6: 74 | CE6: 75 | CF6: 76 | CG6: 77 | CH6: 78 | CI6: 79 | CJ6: 80 | CK6: 81 | CL6: 82 | CM6: 83 | CN6: 84 | CO6: 85 | CP6: 86 | CQ6: 87 | CR6: 88 | CS6: 89 | CT6: 90 | CU6: 91 | CV6: 92 | CW6: 93 | CX6: 94 | CY6: 95 | CZ6: 96 | DA6: 97 | DB6: 98 | DC6: 99 | DD6: 100+ | DE6: NS
B8: 0 | C8: Total | D8: F | E8: 2000 | F8: 1 | G8: 128543 | H8: 1065 | I8: 82 | J8: 62 | K8: 43 | L8: 44 | M8: 30 | N8: 22 | O8: 16 | P8: 32 | Q8: 20 | R8: 17 | S8: 22 | T8: 23 | U8: 31 | V8: 36 | W8: 49 | X8: 53 | Y8: 73 | Z8: 86 | AA8: 71 | AB8: 82 | AC8: 94 | AD8: 75 | AE8: 73 | AF8: 69 | AG8: 94 | AH8: 92 | AI8: 95 | AJ8: 113 | AK8: 122 | AL8: 116 | AM8: 114 | AN8: 141 | AO8: 160 | AP8: 172 | AQ8: 165 | AR8: 211 | AS8: 238 | AT8: 249 | AU8: 299 | AV8: 314 | AW8: 350 | AX8: 344 | AY8: 383 | AZ8: 411 | BA8: 450 | BB8: 434 | BC8: 480 | BD8: 474 | BE8: 537 | BF8: 570 | BG8: 623 | BH8: 698 | BI8: 708 | BJ8: 616 | BK8: 683 | BL8: 798 | BM8: 857 | BN8: 819 | BO8: 874 | BP8: 926 | BQ8: 1037 | BR8: 1094 | BS8: 1089 | BT8: 1272 | BU8: 1317 | BV8: 1397 | BW8: 1574 | BX8: 1676 | BY8: 1809 | BZ8: 1964 | CA8: 2170 | CB8: 2393 | CC8: 2536 | CD8: 2786 | CE8: 3034 | CF8: 3084 | CG8: 3460 | CH8: 3703 | CI8: 3778 | CJ8: 3876 | CK8: 3976 | CL8: 4139 | CM8: 4301 | CN8: 4387 | CO8: 4734 | CP8: 4573 | CQ8: 4788 | CR8: 4409 | CS8: 4415 | CT8: 4168 | CU8: 3929 | CV8: 3541 | CW8: 3100 | CX8: 2742 | CY8: 2286 | CZ8: 1807 | DA8: 1443 | DB8: 1067 | DC8: 858 | DD8: 1824 | DE8: 4
B9: 0 | C9: Total | D9: F | E9: 2000 | F9: 2 | G9: 104781 | H9: 949 | I9: 64 | J9: 47 | K9: 34 | L9: 30 | M9: 25 | N9: 20 | O9: 36 | P9: 17 | Q9: 23 | R9: 16 | S9: 15 | T9: 19 | U9: 23 | V9: 34 | W9: 38 | X9: 47 | Y9: 63 | Z9: 79 | AA9: 72 | AB9: 76 | AC9: 70 | AD9: 57 | AE9: 49 | AF9: 57 | AG9: 54 | AH9: 70 | AI9: 92 | AJ9: 80 | AK9: 100 | AL9: 101 | AM9: 110 | AN9: 104 | AO9: 133 | AP9: 151 | AQ9: 178 | AR9: 177 | AS9: 220 | AT9: 228 | AU9: 263 | AV9: 290 | AW9: 285 | AX9: 317 | AY9: 368 | AZ9: 329 | BA9: 356 | BB9: 400 | BC9: 374 | BD9: 414 | BE9: 482 | BF9: 489 | BG9: 487 | BH9: 619 | BI9: 607 | BJ9: 593 | BK9: 587 | BL9: 706 | BM9: 780 | BN9: 714 | BO9: 762 | BP9: 770 | BQ9: 868 | BR9: 935 | BS9: 979 | BT9: 980 | BU9: 1158 | BV9: 1144 | BW9: 1329 | BX9: 1375 | BY9: 1567 | BZ9: 1697 | CA9: 1724 | CB9: 1946 | CC9: 2085 | CD9: 2315 | CE9: 2544 | CF9: 2621 | CG9: 2693 | CH9: 3034 | CI9: 3144 | CJ9: 3216 | CK9: 3295 | CL9: 3398 | CM9: 3434 | CN9: 3631 | CO9: 3775 | CP9: 3695 | CQ9: 3760 | CR9: 3431 | CS9: 3445 | CT9: 3154 | CU9: 3074 | CV9: 2790 | CW9: 2466 | CX9: 2086 | CY9: 1794 | CZ9: 1389 | DA9: 1137 | DB9: 835 | DC9: 671 | DD9: 1410 | DE9: 4
B10: 0 | C10: Total | D10: F | E10: 2000 | F10: 3 | G10: 103062 | H10: 1080 | I10: 70 | J10: 47 | K10: 39 | L10: 26 | M10: 30 | N10: 21 | O10: 15 | P10: 26 | Q10: 24 | R10: 20 | S10: 22 | T10: 21 | U10: 29 | V10: 34 | W10: 34 | X10: 53 | Y10: 65 | Z10: 70 | AA10: 60 | AB10: 69 | AC10: 71 | AD10: 81 | AE10: 58 | AF10: 63 | AG10: 84 | AH10: 89 | AI10: 98 | AJ10: 92 | AK10: 84 | AL10: 121 | AM10: 111 | AN10: 103 | AO10: 135 | AP10: 131 | AQ10: 179 | AR10: 165 | AS10: 213 | AT10: 229 | AU10: 261 | AV10: 276 | AW10: 310 | AX10: 345 | AY10: 351 | AZ10: 365 | BA10: 382 | BB10: 387 | BC10: 421 | BD10: 444 | BE10: 429 | BF10: 545 | BG10: 559 | BH10: 577 | BI10: 631 | BJ10: 555 | BK10: 604 | BL10: 694 | BM10: 717 | BN10: 776 | BO10: 746 | BP10: 792 | BQ10: 919 | BR10: 937 | BS10: 921 | BT10: 1027 | BU10: 1149 | BV10: 1263 | BW10: 1331 | BX10: 1352 | BY10: 1516 | BZ10: 1692 | CA10: 1869 | CB10: 1995 | CC10: 2094 | CD10: 2260 | CE10: 2545 | CF10: 2690 | CG10: 2764 | CH10: 3042 | CI10: 3076 | CJ10: 3141 | CK10: 3230 | CL10: 3332 | CM10: 3354 | CN10: 3543 | CO10: 3517 | CP10: 3534 | CQ10: 3572 | CR10: 3446 | CS10: 3292 | CT10: 3044 | CU10: 2899 | CV10: 2607 | CW10: 2223 | CX10: 1928 | CY10: 1682 | CZ10: 1359 | DA10: 1114 | DB10: 750 | DC10: 644 | DD10: 1273 | DE10: 4
B11: 0 | C11: Total | D11: F | E11: 2000 | F11: 4 | G11: 96544 | H11: 1105 | I11: 59 | J11: 53 | K11: 30 | L11: 33 | M11: 16 | N11: 25 | O11: 31 | P11: 4 | Q11: 19 | R11: 23 | S11: 25 | T11: 25 | U11: 31 | V11: 32 | W11: 42 | X11: 53 | Y11: 72 | Z11: 61 | AA11: 71 | AB11: 60 | AC11: 66 | AD11: 74 | AE11: 76 | AF11: 74 | AG11: 75 | AH11: 69 | AI11: 82 | AJ11: 84 | AK11: 96 | AL11: 120 | AM11: 103 | AN11: 135 | AO11: 151 | AP11: 130 | AQ11: 175 | AR11: 199 | AS11: 192 | AT11: 235 | AU11: 244 | AV11: 261 | AW11: 285 | AX11: 318 | AY11: 323 | AZ11: 373 | BA11: 386 | BB11: 393 | BC11: 408 | BD11: 440 | BE11: 457 | BF11: 452 | BG11: 515 | BH11: 568 | BI11: 586 | BJ11: 522 | BK11: 581 | BL11: 650 | BM11: 684 | BN11: 706 | BO11: 689 | BP11: 796 | BQ11: 829 | BR11: 845 | BS11: 926 | BT11: 1053 | BU11: 1100 | BV11: 1104 | BW11: 1240 | BX11: 1410 | BY11: 1467 | BZ11: 1562 | CA11: 1712 | CB11: 1893 | CC11: 1947 | CD11: 2108 | CE11: 2268 | CF11: 2512 | CG11: 2626 | CH11: 2867 | CI11: 2844 | CJ11: 3062 | CK11: 3009 | CL11: 3064 | CM11: 3099 | CN11: 3167 | CO11: 3363 | CP11: 3358 | CQ11: 3294 | CR11: 3012 | CS11: 3069 | CT11: 2857 | CU11: 2645 | CV11: 2410 | CW11: 2140 | CX11: 1782 | CY11: 1565 | CZ11: 1244 | DA11: 1010 | DB11: 714 | DC11: 568 | DD11: 1146 | DE11: 4
B12: 0 | C12: Total | D12: F | E12: 2000 | F12: 5 | G12: 97791 | H12: 1014 | I12: 70 | J12: 55 | K12: 21 | L12: 29 | M12: 31 | N12: 22 | O12: 23 | P12: 28 | Q12: 29 | R12: 27 | S12: 28 | T12: 28 | U12: 25 | V12: 28 | W12: 50 | X12: 60 | Y12: 60 | Z12: 71 | AA12: 71 | AB12: 89 | AC12: 86 | AD12: 91 | AE12: 80 | AF12: 70 | AG12: 98 | AH12: 77 | AI12: 65 | AJ12: 94 | AK12: 100 | AL12: 95 | AM12: 106 | AN12: 136 | AO12: 130 | AP12: 157 | AQ12: 163 | AR12: 213 | AS12: 233 | AT12: 244 | AU12: 263 | AV12: 296 | AW12: 302 | AX12: 317 | AY12: 331 | AZ12: 366 | BA12: 384 | BB12: 384 | BC12: 402 | BD12: 479 | BE12: 457 | BF12: 513 | BG12: 487 | BH12: 532 | BI12: 660 | BJ12: 543 | BK12: 600 | BL12: 652 | BM12: 706 | BN12: 748 | BO12: 798 | BP12: 805 | BQ12: 935 | BR12: 918 | BS12: 919 | BT12: 1067 | BU12: 1143 | BV12: 1155 | BW12: 1267 | BX12: 1434 | BY12: 1512 | BZ12: 1627 | CA12: 1768 | CB12: 1903 | CC12: 2049 | CD12: 2244 | CE12: 2377 | CF12: 2548 | CG12: 2537 | CH12: 2684 | CI12: 2861 | CJ12: 2940 | CK12: 3051 | CL12: 3053 | CM12: 3252 | CN12: 3205 | CO12: 3391 | CP12: 3297 | CQ12: 3194 | CR12: 3008 | CS12: 3139 | CT12: 2908 | CU12: 2664 | CV12: 2450 | CW12: 2101 | CX12: 1890 | CY12: 1486 | CZ12: 1209 | DA12: 974 | DB12: 755 | DC12: 553 | DD12: 1195 | DE12: 4
B13: 0 | C13: Total | D13: F | E13: 2000 | F13: 6 | G13: 92158 | H13: 1017 | I13: 67 | J13: 38 | K13: 27 | L13: 26 | M13: 24 | N13: 24 | O13: 18 | P13: 24 | Q13: 20 | R13: 21 | S13: 28 | T13: 22 | U13: 36 | V13: 45 | W13: 43 | X13: 56 | Y13: 75 | Z13: 80 | AA13: 70 | AB13: 77 | AC13: 94 | AD13: 66 | AE13: 71 | AF13: 73 | AG13: 63 | AH13: 85 | AI13: 77 | AJ13: 83 | AK13: 113 | AL13: 113 | AM13: 105 | AN13: 108 | AO13: 127 | AP13: 149 | AQ13: 174 | AR13: 188 | AS13: 206 | AT13: 224 | AU13: 258 | AV13: 272 | AW13: 288 | AX13: 310 | AY13: 343 | AZ13: 334 | BA13: 398 | BB13: 364 | BC13: 414 | BD13: 436 | BE13: 473 | BF13: 474 | BG13: 509 | BH13: 539 | BI13: 638 | BJ13: 521 | BK13: 543 | BL13: 648 | BM13: 756 | BN13: 694 | BO13: 674 | BP13: 744 | BQ13: 843 | BR13: 813 | BS13: 889 | BT13: 1024 | BU13: 1069 | BV13: 1132 | BW13: 1140 | BX13: 1275 | BY13: 1373 | BZ13: 1523 | CA13: 1658 | CB13: 1807 | CC13: 1938 | CD13: 2022 | CE13: 2380 | CF13: 2367 | CG13: 2383 | CH13: 2681 | CI13: 2738 | CJ13: 2864 | CK13: 2837 | CL13: 2903 | CM13: 2929 | CN13: 2985 | CO13: 3167 | CP13: 3051 | CQ13: 3052 | CR13: 2900 | CS13: 2829 | CT13: 2736 | CU13: 2479 | CV13: 2389 | CW13: 1940 | CX13: 1688 | CY13: 1397 | CZ13: 1188 | DA13: 935 | DB13: 701 | DC13: 532 | DD13: 1012 | DE13: 4
B14: 0 | C14: Total | D14: F | E14: 2000 | F14: 7 | G14: 95098 | H14: 1002 | I14: 85 | J14: 56 | K14: 46 | L14: 25 | M14: 23 | N14: 33 | O14: 26 | P14: 25 | Q14: 13 | R14: 23 | S14: 30 | T14: 31 | U14: 39 | V14: 46 | W14: 68 | X14: 69 | Y14: 72 | Z14: 84 | AA14: 76 | AB14: 72 | AC14: 86 | AD14: 52 | AE14: 86 | AF14: 71 | AG14: 75 | AH14: 64 | AI14: 83 | AJ14: 84 | AK14: 94 | AL14: 103 | AM14: 113 | AN14: 113 | AO14: 134 | AP14: 166 | AQ14: 166 | AR14: 195 | AS14: 240 | AT14: 238 | AU14: 254 | AV14: 266 | AW14: 294 | AX14: 327 | AY14: 366 | AZ14: 343 | BA14: 391 | BB14: 416 | BC14: 428 | BD14: 430 | BE14: 463 | BF14: 492 | BG14: 541 | BH14: 586 | BI14: 660 | BJ14: 539 | BK14: 588 | BL14: 644 | BM14: 753 | BN14: 702 | BO14: 743 | BP14: 791 | BQ14: 821 | BR14: 891 | BS14: 936 | BT14: 976 | BU14: 1061 | BV14: 1165 | BW14: 1225 | BX14: 1311 | BY14: 1385 | BZ14: 1605 | CA14: 1666 | CB14: 1873 | CC14: 1886 | CD14: 2063 | CE14: 2338 | CF14: 2462 | CG14: 2594 | CH14: 2779 | CI14: 2797 | CJ14: 2873 | CK14: 2816 | CL14: 2960 | CM14: 3017 | CN14: 3137 | CO14: 3277 | CP14: 3270 | CQ14: 3266 | CR14: 3121 | CS14: 2881 | CT14: 2775 | CU14: 2535 | CV14: 2386 | CW14: 2084 | CX14: 1764 | CY14: 1456 | CZ14: 1181 | DA14: 943 | DB14: 751 | DC14: 500 | DD14: 1143 | DE14: 4
B15: 0 | C15: Total | D15: F | E15: 2000 | F15: 8 | G15: 95169 | H15: 1009 | I15: 76 | J15: 42 | K15: 27 | L15: 38 | M15: 31 | N15: 23 | O15: 33 | P15: 12 | Q15: 23 | R15: 23 | S15: 29 | T15: 30 | U15: 23 | V15: 30 | W15: 45 | X15: 62 | Y15: 65 | Z15: 63 | AA15: 79 | AB15: 62 | AC15: 81 | AD15: 71 | AE15: 67 | AF15: 64 | AG15: 74 | AH15: 56 | AI15: 80 | AJ15: 82 | AK15: 94 | AL15: 95 | AM15: 128 | AN15: 120 | AO15: 134 | AP15: 152 | AQ15: 174 | AR15: 174 | AS15: 191 | AT15: 232 | AU15: 283 | AV15: 268 | AW15: 325 | AX15: 298 | AY15: 341 | AZ15: 378 | BA15: 366 | BB15: 392 | BC15: 460 | BD15: 449 | BE15: 444 | BF15: 539 | BG15: 527 | BH15: 565 | BI15: 667 | BJ15: 564 | BK15: 630 | BL15: 602 | BM15: 707 | BN15: 726 | BO15: 718 | BP15: 789 | BQ15: 809 | BR15: 888 | BS15: 947 | BT15: 1009 | BU15: 1093 | BV15: 1106 | BW15: 1273 | BX15: 1290 | BY15: 1468 | BZ15: 1577 | CA15: 1612 | CB15: 1821 | CC15: 1912 | CD15: 2191 | CE15: 2360 | CF15: 2519 | CG15: 2473 | CH15: 2745 | CI15: 2755 | CJ15: 3000 | CK15: 2869 | CL15: 3057 | CM15: 3063 | CN15: 3063 | CO15: 3305 | CP15: 3339 | CQ15: 3107 | CR15: 3043 | CS15: 2954 | CT15: 2744 | CU15: 2632 | CV15: 2373 | CW15: 2036 | CX15: 1800 | CY15: 1480 | CZ15: 1250 | DA15: 920 | DB15: 702 | DC15: 508 | DD15: 1138 | DE15: 4
B16: 0 | C16: Total | D16: F | E16: 2000 | F16: 9 | G16: 94958 | H16: 1013 | I16: 76 | J16: 41 | K16: 31 | L16: 25 | M16: 29 | N16: 25 | O16: 22 | P16: 27 | Q16: 24 | R16: 13 | S16: 34 | T16: 20 | U16: 21 | V16: 38 | W16: 52 | X16: 73 | Y16: 56 | Z16: 85 | AA16: 95 | AB16: 74 | AC16: 63 | AD16: 64 | AE16: 72 | AF16: 54 | AG16: 61 | AH16: 72 | AI16: 75 | AJ16: 72 | AK16: 105 | AL16: 95 | AM16: 125 | AN16: 132 | AO16: 133 | AP16: 134 | AQ16: 166 | AR16: 185 | AS16: 194 | AT16: 234 | AU16: 241 | AV16: 276 | AW16: 305 | AX16: 317 | AY16: 337 | AZ16: 374 | BA16: 434 | BB16: 361 | BC16: 405 | BD16: 426 | BE16: 474 | BF16: 500 | BG16: 485 | BH16: 557 | BI16: 651 | BJ16: 568 | BK16: 565 | BL16: 657 | BM16: 675 | BN16: 670 | BO16: 745 | BP16: 704 | BQ16: 801 | BR16: 909 | BS16: 885 | BT16: 1016 | BU16: 1035 | BV16: 1094 | BW16: 1207 | BX16: 1304 | BY16: 1378 | BZ16: 1565 | CA16: 1582 | CB16: 1803 | CC16: 1877 | CD16: 2040 | CE16: 2300 | CF16: 2317 | CG16: 2485 | CH16: 2709 | CI16: 2805 | CJ16: 2989 | CK16: 2805 | CL16: 3022 | CM16: 3033 | CN16: 3187 | CO16: 3302 | CP16: 3189 | CQ16: 3264 | CR16: 3218 | CS16: 2979 | CT16: 2833 | CU16: 2540 | CV16: 2527 | CW16: 2134 | CX16: 1727 | CY16: 1563 | CZ16: 1272 | DA16: 1057 | DB16: 760 | DC16: 572 | DD16: 1228 | DE16: 4
B17: 0 | C17: Total | D17: F | E17: 2000 | F17: 10 | G17: 102455 | H17: 1052 | I17: 69 | J17: 30 | K17: 27 | L17: 18 | M17: 27 | N17: 18 | O17: 21 | P17: 23 | Q17: 27 | R17: 22 | S17: 22 | T17: 20 | U17: 25 | V17: 37 | W17: 32 | X17: 71 | Y17: 64 | Z17: 88 | AA17: 84 | AB17: 68 | AC17: 71 | AD17: 85 | AE17: 74 | AF17: 80 | AG17: 66 | AH17: 78 | AI17: 81 | AJ17: 103 | AK17: 94 | AL17: 99 | AM17: 123 | AN17: 118 | AO17: 117 | AP17: 160 | AQ17: 151 | AR17: 198 | AS17: 235 | AT17: 230 | AU17: 269 | AV17: 286 | AW17: 313 | AX17: 328 | AY17: 389 | AZ17: 357 | BA17: 413 | BB17: 430 | BC17: 468 | BD17: 469 | BE17: 492 | BF17: 483 | BG17: 537 | BH17: 576 | BI17: 648 | BJ17: 574 | BK17: 603 | BL17: 664 | BM17: 726 | BN17: 759 | BO17: 791 | BP17: 791 | BQ17: 828 | BR17: 924 | BS17: 1002 | BT17: 1023 | BU17: 1105 | BV17: 1153 | BW17: 1217 | BX17: 1469 | BY17: 1528 | BZ17: 1647 | CA17: 1755 | CB17: 1955 | CC17: 2191 | CD17: 2201 | CE17: 2456 | CF17: 2479 | CG17: 2666 | CH17: 2846 | CI17: 3161 | CJ17: 3264 | CK17: 3013 | CL17: 3359 | CM17: 3351 | CN17: 3361 | CO17: 3429 | CP17: 3600 | CQ17: 3442 | CR17: 3468 | CS17: 3147 | CT17: 3186 | CU17: 2887 | CV17: 2728 | CW17: 2352 | CX17: 2012 | CY17: 1673 | CZ17: 1385 | DA17: 1065 | DB17: 862 | DC17: 604 | DD17: 1284 | DE17: 4
B18: 0 | C18: Total | D18: F | E18: 2000 | F18: 11 | G18: 101686 | H18: 969 | I18: 75 | J18: 43 | K18: 19 | L18: 28 | M18: 19 | N18: 12 | O18: 22 | P18: 25 | Q18: 16 | R18: 19 | S18: 21 | T18: 20 | U18: 27 | V18: 35 | W18: 45 | X18: 66 | Y18: 52 | Z18: 88 | AA18: 74 | AB18: 83 | AC18: 78 | AD18: 69 | AE18: 68 | AF18: 66 | AG18: 79 | AH18: 71 | AI18: 78 | AJ18: 86 | AK18: 91 | AL18: 89 | AM18: 111 | AN18: 122 | AO18: 135 | AP18: 150 | AQ18: 168 | AR18: 188 | AS18: 207 | AT18: 217 | AU18: 252 | AV18: 273 | AW18: 312 | AX18: 297 | AY18: 380 | AZ18: 346 | BA18: 379 | BB18: 391 | BC18: 427 | BD18: 461 | BE18: 459 | BF18: 516 | BG18: 553 | BH18: 570 | BI18: 673 | BJ18: 593 | BK18: 637 | BL18: 618 | BM18: 749 | BN18: 718 | BO18: 753 | BP18: 812 | BQ18: 837 | BR18: 938 | BS18: 926 | BT18: 1005 | BU18: 1136 | BV18: 1171 | BW18: 1246 | BX18: 1319 | BY18: 1434 | BZ18: 1631 | CA18: 1756 | CB18: 1825 | CC18: 2092 | CD18: 2181 | CE18: 2396 | CF18: 2528 | CG18: 2791 | CH18: 2857 | CI18: 3054 | CJ18: 3244 | CK18: 3073 | CL18: 3372 | CM18: 3330 | CN18: 3478 | CO18: 3493 | CP18: 3620 | CQ18: 3539 | CR18: 3412 | CS18: 3197 | CT18: 3115 | CU18: 2857 | CV18: 2652 | CW18: 2346 | CX18: 1981 | CY18: 1681 | CZ18: 1322 | DA18: 1029 | DB18: 877 | DC18: 552 | DD18: 1388 | DE18: 4
B19: 0 | C19: Total | D19: F | E19: 2000 | F19: 12 | G19: 113528 | H19: 1042 | I19: 63 | J19: 57 | K19: 30 | L19: 32 | M19: 29 | N19: 28 | O19: 32 | P19: 12 | Q19: 23 | R19: 30 | S19: 25 | T19: 20 | U19: 29 | V19: 41 | W19: 42 | X19: 53 | Y19: 67 | Z19: 72 | AA19: 76 | AB19: 99 | AC19: 64 | AD19: 78 | AE19: 76 | AF19: 81 | AG19: 71 | AH19: 77 | AI19: 93 | AJ19: 95 | AK19: 108 | AL19: 113 | AM19: 117 | AN19: 132 | AO19: 131 | AP19: 137 | AQ19: 171 | AR19: 198 | AS19: 242 | AT19: 242 | AU19: 267 | AV19: 324 | AW19: 312 | AX19: 351 | AY19: 378 | AZ19: 395 | BA19: 396 | BB19: 459 | BC19: 461 | BD19: 434 | BE19: 494 | BF19: 527 | BG19: 555 | BH19: 652 | BI19: 719 | BJ19: 679 | BK19: 662 | BL19: 736 | BM19: 820 | BN19: 860 | BO19: 859 | BP19: 876 | BQ19: 908 | BR19: 1000 | BS19: 1088 | BT19: 1117 | BU19: 1170 | BV19: 1291 | BW19: 1335 | BX19: 1504 | BY19: 1553 | BZ19: 1814 | CA19: 1878 | CB19: 2010 | CC19: 2279 | CD19: 2422 | CE19: 2665 | CF19: 2892 | CG19: 2875 | CH19: 3062 | CI19: 3322 | CJ19: 3607 | CK19: 3487 | CL19: 3663 | CM19: 3790 | CN19: 3897 | CO19: 3805 | CP19: 4094 | CQ19: 3958 | CR19: 3955 | CS19: 3752 | CT19: 3661 | CU19: 3217 | CV19: 3146 | CW19: 2620 | CX19: 2364 | CY19: 1896 | CZ19: 1622 | DA19: 1322 | DB19: 951 | DC19: 666 | DD19: 1519 | DE19: 4
B20: 0 | C20: Total | D20: F | E20: 2001 | F20: 1 | G20: 117060 | H20: 1032 | I20: 75 | J20: 54 | K20: 47 | L20: 33 | M20: 37 | N20: 28 | O20: 28 | P20: 22 | Q20: 23 | R20: 24 | S20: 19 | T20: 29 | U20: 22 | V20: 47 | W20: 42 | X20: 63 | Y20: 78 | Z20: 77 | AA20: 77 | AB20: 63 | AC20: 85 | AD20: 63 | AE20: 91 | AF20: 76 | AG20: 87 | AH20: 89 | AI20: 85 | AJ20: 84 | AK20: 106 | AL20: 111 | AM20: 107 | AN20: 120 | AO20: 123 | AP20: 165 | AQ20: 193 | AR20: 200 | AS20: 207 | AT20: 281 | AU20: 299 | AV20: 259 | AW20: 331 | AX20: 365 | AY20: 405 | AZ20: 402 | BA20: 465 | BB20: 472 | BC20: 458 | BD20: 484 | BE20: 534 | BF20: 551 | BG20: 598 | BH20: 656 | BI20: 745 | BJ20: 704 | BK20: 668 | BL20: 754 | BM20: 831 | BN20: 913 | BO20: 829 | BP20: 919 | BQ20: 943 | BR20: 1084 | BS20: 1109 | BT20: 1118 | BU20: 1272 | BV20: 1293 | BW20: 1352 | BX20: 1605 | BY20: 1599 | BZ20: 1766 | CA20: 1856 | CB20: 2055 | CC20: 2444 | CD20: 2378 | CE20: 2708 | CF20: 2872 | CG20: 3018 | CH20: 3222 | CI20: 3532 | CJ20: 3658 | CK20: 3599 | CL20: 3909 | CM20: 3826 | CN20: 3949 | CO20: 3997 | CP20: 4142 | CQ20: 4218 | CR20: 4148 | CS20: 3814 | CT20: 3850 | CU20: 3312 | CV20: 3099 | CW20: 2758 | CX20: 2373 | CY20: 2017 | CZ20: 1622 | DA20: 1323 | DB20: 990 | DC20: 736 | DD20: 1651 | DE20: 4
B21: 0 | C21: Total | D21: F | E21: 2001 | F21: 2 | G21: 102295 | H21: 1031 | I21: 93 | J21: 36 | K21: 35 | L21: 26 | M21: 22 | N21: 29 | O21: 17 | P21: 19 | Q21: 22 | R21: 16 | S21: 18 | T21: 27 | U21: 29 | V21: 39 | W21: 36 | X21: 64 | Y21: 65 | Z21: 62 | AA21: 51 | AB21: 75 | AC21: 78 | AD21: 64 | AE21: 71 | AF21: 67 | AG21: 58 | AH21: 65 | AI21: 60 | AJ21: 97 | AK21: 93 | AL21: 105 | AM21: 105 | AN21: 118 | AO21: 109 | AP21: 136 | AQ21: 171 | AR21: 186 | AS21: 182 | AT21: 223 | AU21: 263 | AV21: 292 | AW21: 293 | AX21: 330 | AY21: 352 | AZ21: 376 | BA21: 369 | BB21: 426 | BC21: 407 | BD21: 458 | BE21: 470 | BF21: 518 | BG21: 582 | BH21: 589 | BI21: 613 | BJ21: 654 | BK21: 579 | BL21: 690 | BM21: 733 | BN21: 759 | BO21: 790 | BP21: 778 | BQ21: 871 | BR21: 866 | BS21: 923 | BT21: 1030 | BU21: 1034 | BV21: 1145 | BW21: 1200 | BX21: 1299 | BY21: 1400 | BZ21: 1631 | CA21: 1720 | CB21: 1870 | CC21: 2060 | CD21: 2127 | CE21: 2392 | CF21: 2659 | CG21: 2790 | CH21: 2722 | CI21: 3063 | CJ21: 3187 | CK21: 3087 | CL21: 3334 | CM21: 3398 | CN21: 3632 | CO21: 3543 | CP21: 3613 | CQ21: 3518 | CR21: 3512 | CS21: 3279 | CT21: 3179 | CU21: 2940 | CV21: 2645 | CW21: 2436 | CX21: 2038 | CY21: 1706 | CZ21: 1423 | DA21: 1117 | DB21: 872 | DC21: 581 | DD21: 1321 | DE21: 11
B22: 0 | C22: Total | D22: F | E22: 2001 | F22: 3 | G22: 111155 | H22: 1047 | I22: 74 | J22: 44 | K22: 36 | L22: 40 | M22: 21 | N22: 22 | O22: 29 | P22: 25 | Q22: 23 | R22: 13 | S22: 20 | T22: 23 | U22: 35 | V22: 37 | W22: 41 | X22: 62 | Y22: 79 | Z22: 68 | AA22: 63 | AB22: 64 | AC22: 64 | AD22: 75 | AE22: 83 | AF22: 59 | AG22: 81 | AH22: 66 | AI22: 85 | AJ22: 98 | AK22: 101 | AL22: 121 | AM22: 102 | AN22: 132 | AO22: 138 | AP22: 141 | AQ22: 159 | AR22: 199 | AS22: 204 | AT22: 253 | AU22: 248 | AV22: 306 | AW22: 315 | AX22: 366 | AY22: 383 | AZ22: 407 | BA22: 413 | BB22: 464 | BC22: 486 | BD22: 504 | BE22: 510 | BF22: 514 | BG22: 549 | BH22: 597 | BI22: 681 | BJ22: 755 | BK22: 639 | BL22: 747 | BM22: 723 | BN22: 854 | BO22: 792 | BP22: 829 | BQ22: 903 | BR22: 966 | BS22: 1081 | BT22: 1108 | BU22: 1134 | BV22: 1273 | BW22: 1385 | BX22: 1397 | BY22: 1615 | BZ22: 1701 | CA22: 1835 | CB22: 2063 | CC22: 2135 | CD22: 2339 | CE22: 2627 | CF22: 2855 | CG22: 2895 | CH22: 3070 | CI22: 3426 | CJ22: 3480 | CK22: 3487 | CL22: 3626 | CM22: 3616 | CN22: 3669 | CO22: 3804 | CP22: 3950 | CQ22: 3954 | CR22: 3799 | CS22: 3599 | CT22: 3317 | CU22: 3262 | CV22: 2933 | CW22: 2656 | CX22: 2263 | CY22: 1897 | CZ22: 1570 | DA22: 1197 | DB22: 998 | DC22: 680 | DD22: 1475 | DE22: 4
B23: 0 | C23: Total | D23: F | E23: 2001 | F23: 4 | G23: 104017 | H23: 1015 | I23: 83 | J23: 45 | K23: 33 | L23: 22 | M23: 31 | N23: 22 | O23: 26 | P23: 25 | Q23: 15 | R23: 22 | S23: 27 | T23: 18 | U23: 23 | V23: 35 | W23: 54 | X23: 67 | Y23: 84 | Z23: 55 | AA23: 76 | AB23: 90 | AC23: 70 | AD23: 70 | AE23: 72 | AF23: 73 | AG23: 97 | AH23: 62 | AI23: 80 | AJ23: 72 | AK23: 90 | AL23: 114 | AM23: 99 | AN23: 117 | AO23: 154 | AP23: 143 | AQ23: 165 | AR23: 215 | AS23: 197 | AT23: 239 | AU23: 296 | AV23: 304 | AW23: 285 | AX23: 323 | AY23: 337 | AZ23: 367 | BA23: 415 | BB23: 452 | BC23: 415 | BD23: 431 | BE23: 508 | BF23: 499 | BG23: 512 | BH23: 596 | BI23: 692 | BJ23: 685 | BK23: 558 | BL23: 679 | BM23: 762 | BN23: 825 | BO23: 782 | BP23: 791 | BQ23: 878 | BR23: 953 | BS23: 991 | BT23: 1049 | BU23: 1090 | BV23: 1201 | BW23: 1268 | BX23: 1332 | BY23: 1503 | BZ23: 1629 | CA23: 1759 | CB23: 1912 | CC23: 2088 | CD23: 2247 | CE23: 2414 | CF23: 2582 | CG23: 2756 | CH23: 2949 | CI23: 3197 | CJ23: 3311 | CK23: 3254 | CL23: 3405 | CM23: 3365 | CN23: 3492 | CO23: 3574 | CP23: 3614 | CQ23: 3746 | CR23: 3501 | CS23: 3422 | CT23: 3128 | CU23: 2871 | CV23: 2593 | CW23: 2360 | CX23: 2074 | CY23: 1652 | CZ23: 1449 | DA23: 1172 | DB23: 823 | DC23: 567 | DD23: 1331 | DE23: 4
B24: 0 | C24: Total | D24: F | E24: 2001 | F24: 5 | G24: 102115 | H24: 1082 | I24: 68 | J24: 37 | K24: 35 | L24: 27 | M24: 32 | N24: 30 | O24: 25 | P24: 25 | Q24: 23 | R24: 13 | S24: 17 | T24: 22 | U24: 23 | V24: 28 | W24: 49 | X24: 55 | Y24: 69 | Z24: 83 | AA24: 84 | AB24: 70 | AC24: 94 | AD24: 70 | AE24: 73 | AF24: 83 | AG24: 56 | AH24: 82 | AI24: 98 | AJ24: 84 | AK24: 92 | AL24: 127 | AM24: 117 | AN24: 138 | AO24: 142 | AP24: 163 | AQ24: 188 | AR24: 219 | AS24: 233 | AT24: 228 | AU24: 274 | AV24: 312 | AW24: 318 | AX24: 310 | AY24: 347 | AZ24: 398 | BA24: 414 | BB24: 369 | BC24: 416 | BD24: 445 | BE24: 484 | BF24: 506 | BG24: 508 | BH24: 600 | BI24: 675 | BJ24: 691 | BK24: 598 | BL24: 656 | BM24: 737 | BN24: 791 | BO24: 820 | BP24: 840 | BQ24: 836 | BR24: 911 | BS24: 1008 | BT24: 957 | BU24: 1067 | BV24: 1166 | BW24: 1269 | BX24: 1362 | BY24: 1504 | BZ24: 1617 | CA24: 1742 | CB24: 1924 | CC24: 2082 | CD24: 2194 | CE24: 2369 | CF24: 2594 | CG24: 2606 | CH24: 2796 | CI24: 3115 | CJ24: 3138 | CK24: 3304 | CL24: 3235 | CM24: 3350 | CN24: 3389 | CO24: 3499 | CP24: 3564 | CQ24: 3472 | CR24: 3483 | CS24: 3367 | CT24: 3012 | CU24: 2745 | CV24: 2636 | CW24: 2296 | CX24: 1999 | CY24: 1700 | CZ24: 1344 | DA24: 1035 | DB24: 859 | DC24: 603 | DD24: 1262 | DE24: 11
B25: 0 | C25: Total | D25: F | E25: 2001 | F25: 6 | G25: 96819 | H25: 924 | I25: 62 | J25: 46 | K25: 40 | L25: 33 | M25: 22 | N25: 22 | O25: 29 | P25: 20 | Q25: 21 | R25: 22 | S25: 22 | T25: 24 | U25: 44 | V25: 24 | W25: 42 | X25: 79 | Y25: 55 | Z25: 63 | AA25: 70 | AB25: 73 | AC25: 74 | AD25: 58 | AE25: 73 | AF25: 83 | AG25: 81 | AH25: 75 | AI25: 71 | AJ25: 100 | AK25: 104 | AL25: 100 | AM25: 98 | AN25: 106 | AO25: 137 | AP25: 150 | AQ25: 141 | AR25: 199 | AS25: 259 | AT25: 250 | AU25: 268 | AV25: 281 | AW25: 283 | AX25: 319 | AY25: 364 | AZ25: 394 | BA25: 371 | BB25: 399 | BC25: 391 | BD25: 475 | BE25: 475 | BF25: 494 | BG25: 478 | BH25: 570 | BI25: 646 | BJ25: 664 | BK25: 548 | BL25: 600 | BM25: 720 | BN25: 798 | BO25: 756 | BP25: 758 | BQ25: 812 | BR25: 834 | BS25: 884 | BT25: 984 | BU25: 1106 | BV25: 1065 | BW25: 1073 | BX25: 1329 | BY25: 1452 | BZ25: 1515 | CA25: 1689 | CB25: 1791 | CC25: 1860 | CD25: 2156 | CE25: 2218 | CF25: 2440 | CG25: 2576 | CH25: 2647 | CI25: 2940 | CJ25: 3011 | CK25: 3018 | CL25: 3053 | CM25: 3156 | CN25: 3255 | CO25: 3282 | CP25: 3434 | CQ25: 3332 | CR25: 3282 | CS25: 3091 | CT25: 3003 | CU25: 2699 | CV25: 2367 | CW25: 2255 | CX25: 1799 | CY25: 1576 | CZ25: 1285 | DA25: 1046 | DB25: 771 | DC25: 555 | DD25: 1224 | DE25: 4
B26: 0 | C26: Total | D26: F | E26: 2001 | F26: 7 | G26: 96696 | H26: 960 | I26: 92 | J26: 59 | K26: 32 | L26: 34 | M26: 23 | N26: 16 | O26: 22 | P26: 26 | Q26: 29 | R26: 29 | S26: 24 | T26: 24 | U26: 22 | V26: 39 | W26: 38 | X26: 66 | Y26: 79 | Z26: 79 | AA26: 85 | AB26: 85 | AC26: 83 | AD26: 86 | AE26: 82 | AF26: 71 | AG26: 70 | AH26: 84 | AI26: 78 | AJ26: 99 | AK26: 105 | AL26: 106 | AM26: 131 | AN26: 156 | AO26: 138 | AP26: 146 | AQ26: 145 | AR26: 191 | AS26: 229 | AT26: 255 | AU26: 218 | AV26: 289 | AW26: 308 | AX26: 304 | AY26: 367 | AZ26: 371 | BA26: 410 | BB26: 422 | BC26: 478 | BD26: 420 | BE26: 502 | BF26: 463 | BG26: 535 | BH26: 582 | BI26: 602 | BJ26: 710 | BK26: 573 | BL26: 675 | BM26: 726 | BN26: 773 | BO26: 860 | BP26: 779 | BQ26: 796 | BR26: 878 | BS26: 927 | BT26: 1034 | BU26: 1045 | BV26: 1163 | BW26: 1172 | BX26: 1222 | BY26: 1383 | BZ26: 1519 | CA26: 1687 | CB26: 1746 | CC26: 2069 | CD26: 2042 | CE26: 2199 | CF26: 2489 | CG26: 2553 | CH26: 2625 | CI26: 2859 | CJ26: 2976 | CK26: 3051 | CL26: 3078 | CM26: 3211 | CN26: 3157 | CO26: 3363 | CP26: 3296 | CQ26: 3296 | CR26: 3232 | CS26: 3038 | CT26: 2873 | CU26: 2714 | CV26: 2371 | CW26: 2166 | CX26: 1805 | CY26: 1577 | CZ26: 1230 | DA26: 935 | DB26: 742 | DC26: 532 | DD26: 1153 | DE26: 4
B27: 0 | C27: Total | D27: F | E27: 2001 | F27: 8 | G27: 96450 | H27: 1010 | I27: 70 | J27: 52 | K27: 32 | L27: 22 | M27: 15 | N27: 24 | O27: 31 | P27: 12 | Q27: 29 | R27: 18 | S27: 20 | T27: 29 | U27: 28 | V27: 28 | W27: 47 | X27: 50 | Y27: 58 | Z27: 84 | AA27: 83 | AB27: 81 | AC27: 90 | AD27: 80 | AE27: 77 | AF27: 75 | AG27: 74 | AH27: 67 | AI27: 78 | AJ27: 88 | AK27: 99 | AL27: 115 | AM27: 142 | AN27: 122 | AO27: 156 | AP27: 156 | AQ27: 159 | AR27: 176 | AS27: 216 | AT27: 261 | AU27: 284 | AV27: 311 | AW27: 329 | AX27: 321 | AY27: 360 | AZ27: 406 | BA27: 384 | BB27: 449 | BC27: 455 | BD27: 451 | BE27: 494 | BF27: 496 | BG27: 551 | BH27: 561 | BI27: 602 | BJ27: 674 | BK27: 620 | BL27: 607 | BM27: 697 | BN27: 782 | BO27: 777 | BP27: 799 | BQ27: 811 | BR27: 883 | BS27: 1021 | BT27: 988 | BU27: 1063 | BV27: 1177 | BW27: 1204 | BX27: 1270 | BY27: 1371 | BZ27: 1525 | CA27: 1734 | CB27: 1696 | CC27: 1929 | CD27: 2067 | CE27: 2178 | CF27: 2539 | CG27: 2576 | CH27: 2683 | CI27: 2762 | CJ27: 3015 | CK27: 3199 | CL27: 2975 | CM27: 3094 | CN27: 3185 | CO27: 3183 | CP27: 3275 | CQ27: 3372 | CR27: 3242 | CS27: 3083 | CT27: 2841 | CU27: 2581 | CV27: 2288 | CW27: 2145 | CX27: 1819 | CY27: 1587 | CZ27: 1246 | DA27: 945 | DB27: 745 | DC27: 503 | DD27: 1171 | DE27: 15
B28: 0 | C28: Total | D28: F | E28: 2001 | F28: 9 | G28: 95212 | H28: 980 | I28: 60 | J28: 42 | K28: 37 | L28: 19 | M28: 23 | N28: 17 | O28: 14 | P28: 19 | Q28: 30 | R28: 24 | S28: 21 | T28: 24 | U28: 19 | V28: 32 | W28: 40 | X28: 45 | Y28: 76 | Z28: 57 | AA28: 79 | AB28: 59 | AC28: 78 | AD28: 76 | AE28: 73 | AF28: 82 | AG28: 94 | AH28: 108 | AI28: 115 | AJ28: 100 | AK28: 134 | AL28: 149 | AM28: 133 | AN28: 145 | AO28: 140 | AP28: 137 | AQ28: 182 | AR28: 203 | AS28: 253 | AT28: 275 | AU28: 271 | AV28: 313 | AW28: 336 | AX28: 341 | AY28: 386 | AZ28: 402 | BA28: 402 | BB28: 444 | BC28: 461 | BD28: 455 | BE28: 486 | BF28: 516 | BG28: 577 | BH28: 581 | BI28: 637 | BJ28: 750 | BK28: 626 | BL28: 634 | BM28: 697 | BN28: 831 | BO28: 795 | BP28: 800 | BQ28: 792 | BR28: 849 | BS28: 975 | BT28: 931 | BU28: 1073 | BV28: 1074 | BW28: 1196 | BX28: 1217 | BY28: 1343 | BZ28: 1427 | CA28: 1597 | CB28: 1726 | CC28: 1897 | CD28: 2017 | CE28: 2105 | CF28: 2313 | CG28: 2450 | CH28: 2663 | CI28: 2725 | CJ28: 2997 | CK28: 3043 | CL28: 2860 | CM28: 3072 | CN28: 3115 | CO28: 3265 | CP28: 3175 | CQ28: 3291 | CR28: 3081 | CS28: 3072 | CT28: 2773 | CU28: 2639 | CV28: 2349 | CW28: 2199 | CX28: 1811 | CY28: 1477 | CZ28: 1296 | DA28: 1015 | DB28: 748 | DC28: 527 | DD28: 1099 | DE28: 4
B29: 0 | C29: Total | D29: F | E29: 2001 | F29: 10 | G29: 103256 | H29: 1006 | I29: 68 | J29: 49 | K29: 26 | L29: 20 | M29: 13 | N29: 22 | O29: 13 | P29: 17 | Q29: 20 | R29: 28 | S29: 23 | T29: 19 | U29: 27 | V29: 32 | W29: 45 | X29: 62 | Y29: 71 | Z29: 82 | AA29: 77 | AB29: 83 | AC29: 84 | AD29: 72 | AE29: 63 | AF29: 78 | AG29: 73 | AH29: 75 | AI29: 99 | AJ29: 98 | AK29: 91 | AL29: 112 | AM29: 109 | AN29: 122 | AO29: 134 | AP29: 155 | AQ29: 173 | AR29: 188 | AS29: 216 | AT29: 238 | AU29: 270 | AV29: 298 | AW29: 311 | AX29: 294 | AY29: 380 | AZ29: 391 | BA29: 414 | BB29: 394 | BC29: 483 | BD29: 444 | BE29: 551 | BF29: 517 | BG29: 550 | BH29: 595 | BI29: 646 | BJ29: 744 | BK29: 635 | BL29: 629 | BM29: 730 | BN29: 805 | BO29: 832 | BP29: 829 | BQ29: 900 | BR29: 936 | BS29: 1000 | BT29: 1057 | BU29: 1108 | BV29: 1201 | BW29: 1248 | BX29: 1294 | BY29: 1410 | BZ29: 1611 | CA29: 1764 | CB29: 1823 | CC29: 2086 | CD29: 2203 | CE29: 2326 | CF29: 2477 | CG29: 2773 | CH29: 2926 | CI29: 2974 | CJ29: 3211 | CK29: 3412 | CL29: 3182 | CM29: 3476 | CN29: 3546 | CO29: 3449 | CP29: 3699 | CQ29: 3523 | CR29: 3482 | CS29: 3393 | CT29: 3112 | CU29: 2989 | CV29: 2599 | CW29: 2467 | CX29: 2028 | CY29: 1708 | CZ29: 1370 | DA29: 1028 | DB29: 860 | DC29: 603 | DD29: 1271 | DE29: 4
B30: 0 | C30: Total | D30: F | E30: 2001 | F30: 11 | G30: 100324 | H30: 976 | I30: 76 | J30: 51 | K30: 31 | L30: 38 | M30: 23 | N30: 27 | O30: 21 | P30: 18 | Q30: 17 | R30: 14 | S30: 34 | T30: 29 | U30: 30 | V30: 41 | W30: 29 | X30: 64 | Y30: 70 | Z30: 54 | AA30: 58 | AB30: 77 | AC30: 79 | AD30: 62 | AE30: 76 | AF30: 68 | AG30: 82 | AH30: 76 | AI30: 80 | AJ30: 79 | AK30: 99 | AL30: 106 | AM30: 103 | AN30: 145 | AO30: 139 | AP30: 154 | AQ30: 159 | AR30: 179 | AS30: 206 | AT30: 234 | AU30: 253 | AV30: 282 | AW30: 320 | AX30: 359 | AY30: 347 | AZ30: 377 | BA30: 439 | BB30: 440 | BC30: 464 | BD30: 452 | BE30: 514 | BF30: 540 | BG30: 524 | BH30: 572 | BI30: 608 | BJ30: 699 | BK30: 675 | BL30: 646 | BM30: 670 | BN30: 825 | BO30: 817 | BP30: 799 | BQ30: 874 | BR30: 944 | BS30: 996 | BT30: 1019 | BU30: 1085 | BV30: 1237 | BW30: 1253 | BX30: 1302 | BY30: 1488 | BZ30: 1502 | CA30: 1774 | CB30: 1737 | CC30: 1904 | CD30: 2174 | CE30: 2224 | CF30: 2556 | CG30: 2645 | CH30: 2772 | CI30: 2938 | CJ30: 3110 | CK30: 3295 | CL30: 3013 | CM30: 3399 | CN30: 3361 | CO30: 3402 | CP30: 3416 | CQ30: 3456 | CR30: 3300 | CS30: 3215 | CT30: 2981 | CU30: 2875 | CV30: 2576 | CW30: 2316 | CX30: 1941 | CY30: 1702 | CZ30: 1316 | DA30: 1012 | DB30: 795 | DC30: 594 | DD30: 1289 | DE30: 10
B31: 0 | C31: Total | D31: F | E31: 2001 | F31: 12 | G31: 107605 | H31: 1028 | I31: 70 | J31: 41 | K31: 36 | L31: 27 | M31: 25 | N31: 23 | O31: 20 | P31: 18 | Q31: 24 | R31: 22 | S31: 27 | T31: 33 | U31: 23 | V31: 36 | W31: 36 | X31: 64 | Y31: 65 | Z31: 66 | AA31: 67 | AB31: 80 | AC31: 80 | AD31: 63 | AE31: 82 | AF31: 71 | AG31: 81 | AH31: 89 | AI31: 84 | AJ31: 99 | AK31: 108 | AL31: 108 | AM31: 126 | AN31: 135 | AO31: 129 | AP31: 134 | AQ31: 172 | AR31: 186 | AS31: 211 | AT31: 234 | AU31: 292 | AV31: 290 | AW31: 302 | AX31: 338 | AY31: 392 | AZ31: 393 | BA31: 444 | BB31: 450 | BC31: 490 | BD31: 495 | BE31: 550 | BF31: 546 | BG31: 560 | BH31: 636 | BI31: 677 | BJ31: 727 | BK31: 692 | BL31: 641 | BM31: 789 | BN31: 859 | BO31: 873 | BP31: 890 | BQ31: 914 | BR31: 978 | BS31: 989 | BT31: 1057 | BU31: 1116 | BV31: 1300 | BW31: 1351 | BX31: 1422 | BY31: 1544 | BZ31: 1632 | CA31: 1874 | CB31: 1935 | CC31: 2090 | CD31: 2285 | CE31: 2390 | CF31: 2647 | CG31: 2828 | CH31: 2934 | CI31: 3187 | CJ31: 3525 | CK31: 3418 | CL31: 3420 | CM31: 3634 | CN31: 3598 | CO31: 3688 | CP31: 3636 | CQ31: 3741 | CR31: 3702 | CS31: 3451 | CT31: 3125 | CU31: 3083 | CV31: 2761 | CW31: 2535 | CX31: 2127 | CY31: 1818 | CZ31: 1464 | DA31: 1125 | DB31: 884 | DC31: 672 | DD31: 1372 | DE31: 4
B32: 0 | C32: Total | D32: F | E32: 2002 | F32: 1 | G32: 116153 | H32: 1042 | I32: 70 | J32: 40 | K32: 32 | L32: 25 | M32: 26 | N32: 22 | O32: 27 | P32: 27 | Q32: 27 | R32: 25 | S32: 24 | T32: 19 | U32: 40 | V32: 42 | W32: 35 | X32: 73 | Y32: 58 | Z32: 69 | AA32: 75 | AB32: 61 | AC32: 90 | AD32: 87 | AE32: 58 | AF32: 74 | AG32: 70 | AH32: 84 | AI32: 68 | AJ32: 84 | AK32: 103 | AL32: 119 | AM32: 109 | AN32: 132 | AO32: 116 | AP32: 161 | AQ32: 167 | AR32: 193 | AS32: 205 | AT32: 256 | AU32: 298 | AV32: 334 | AW32: 311 | AX32: 363 | AY32: 383 | AZ32: 445 | BA32: 461 | BB32: 454 | BC32: 494 | BD32: 523 | BE32: 563 | BF32: 566 | BG32: 601 | BH32: 614 | BI32: 689 | BJ32: 780 | BK32: 747 | BL32: 690 | BM32: 822 | BN32: 848 | BO32: 942 | BP32: 960 | BQ32: 963 | BR32: 1006 | BS32: 1088 | BT32: 1094 | BU32: 1189 | BV32: 1309 | BW32: 1335 | BX32: 1458 | BY32: 1567 | BZ32: 1726 | CA32: 1897 | CB32: 2137 | CC32: 2211 | CD32: 2361 | CE32: 2612 | CF32: 2790 | CG32: 3027 | CH32: 3226 | CI32: 3237 | CJ32: 3816 | CK32: 3833 | CL32: 3782 | CM32: 3913 | CN32: 3951 | CO32: 3962 | CP32: 4093 | CQ32: 4171 | CR32: 3986 | CS32: 3869 | CT32: 3603 | CU32: 3528 | CV32: 3058 | CW32: 2776 | CX32: 2435 | CY32: 2021 | CZ32: 1595 | DA32: 1323 | DB32: 963 | DC32: 803 | DD32: 1513 | DE32: 4
B33: 0 | C33: Total | D33: F | E33: 2002 | F33: 2 | G33: 108102 | H33: 949 | I33: 88 | J33: 48 | K33: 36 | L33: 26 | M33: 31 | N33: 32 | O33: 27 | P33: 22 | Q33: 23 | R33: 18 | S33: 23 | T33: 22 | U33: 32 | V33: 31 | W33: 45 | X33: 47 | Y33: 61 | Z33: 81 | AA33: 63 | AB33: 77 | AC33: 74 | AD33: 64 | AE33: 60 | AF33: 64 | AG33: 56 | AH33: 71 | AI33: 71 | AJ33: 86 | AK33: 93 | AL33: 96 | AM33: 108 | AN33: 104 | AO33: 116 | AP33: 129 | AQ33: 151 | AR33: 174 | AS33: 222 | AT33: 211 | AU33: 255 | AV33: 283 | AW33: 331 | AX33: 324 | AY33: 383 | AZ33: 383 | BA33: 405 | BB33: 473 | BC33: 464 | BD33: 475 | BE33: 497 | BF33: 496 | BG33: 566 | BH33: 549 | BI33: 625 | BJ33: 708 | BK33: 740 | BL33: 637 | BM33: 703 | BN33: 792 | BO33: 820 | BP33: 845 | BQ33: 879 | BR33: 888 | BS33: 1044 | BT33: 1124 | BU33: 1069 | BV33: 1160 | BW33: 1292 | BX33: 1277 | BY33: 1483 | BZ33: 1575 | CA33: 1763 | CB33: 1863 | CC33: 2021 | CD33: 2170 | CE33: 2492 | CF33: 2625 | CG33: 2783 | CH33: 2983 | CI33: 3043 | CJ33: 3500 | CK33: 3654 | CL33: 3619 | CM33: 3677 | CN33: 3733 | CO33: 3777 | CP33: 3801 | CQ33: 3836 | CR33: 3771 | CS33: 3634 | CT33: 3411 | CU33: 3257 | CV33: 2931 | CW33: 2554 | CX33: 2283 | CY33: 1843 | CZ33: 1570 | DA33: 1214 | DB33: 923 | DC33: 691 | DD33: 1391 | DE33: 12
B34: 0 | C34: Total | D34: F | E34: 2002 | F34: 3 | G34: 117063 | H34: 1079 | I34: 83 | J34: 46 | K34: 35 | L34: 18 | M34: 26 | N34: 19 | O34: 23 | P34: 23 | Q34: 22 | R34: 20 | S34: 30 | T34: 27 | U34: 29 | V34: 36 | W34: 48 | X34: 61 | Y34: 76 | Z34: 93 | AA34: 97 | AB34: 83 | AC34: 101 | AD34: 63 | AE34: 70 | AF34: 80 | AG34: 63 | AH34: 70 | AI34: 89 | AJ34: 93 | AK34: 99 | AL34: 106 | AM34: 123 | AN34: 149 | AO34: 151 | AP34: 172 | AQ34: 189 | AR34: 176 | AS34: 225 | AT34: 224 | AU34: 287 | AV34: 289 | AW34: 305 | AX34: 356 | AY34: 373 | AZ34: 401 | BA34: 433 | BB34: 404 | BC34: 491 | BD34: 537 | BE34: 562 | BF34: 546 | BG34: 554 | BH34: 638 | BI34: 699 | BJ34: 692 | BK34: 758 | BL34: 718 | BM34: 772 | BN34: 892 | BO34: 967 | BP34: 890 | BQ34: 981 | BR34: 964 | BS34: 1048 | BT34: 1123 | BU34: 1253 | BV34: 1307 | BW34: 1403 | BX34: 1419 | BY34: 1625 | BZ34: 1757 | CA34: 1919 | CB34: 2100 | CC34: 2170 | CD34: 2440 | CE34: 2654 | CF34: 2871 | CG34: 3170 | CH34: 3201 | CI34: 3400 | CJ34: 3647 | CK34: 3791 | CL34: 3832 | CM34: 3927 | CN34: 4065 | CO34: 4019 | CP34: 4175 | CQ34: 4261 | CR34: 3963 | CS34: 3936 | CT34: 3699 | CU34: 3595 | CV34: 3030 | CW34: 2834 | CX34: 2452 | CY34: 2015 | CZ34: 1689 | DA34: 1316 | DB34: 967 | DC34: 738 | DD34: 1521 | DE34: 4
B35: 0 | C35: Total | D35: F | E35: 2002 | F35: 4 | G35: 102153 | H35: 1032 | I35: 58 | J35: 42 | K35: 26 | L35: 26 | M35: 16 | N35: 20 | O35: 16 | P35: 19 | Q35: 16 | R35: 10 | S35: 14 | T35: 19 | U35: 25 | V35: 28 | W35: 44 | X35: 62 | Y35: 68 | Z35: 65 | AA35: 65 | AB35: 69 | AC35: 94 | AD35: 89 | AE35: 82 | AF35: 81 | AG35: 85 | AH35: 72 | AI35: 84 | AJ35: 75 | AK35: 108 | AL35: 86 | AM35: 120 | AN35: 120 | AO35: 129 | AP35: 152 | AQ35: 155 | AR35: 192 | AS35: 203 | AT35: 235 | AU35: 265 | AV35: 291 | AW35: 308 | AX35: 327 | AY35: 376 | AZ35: 415 | BA35: 436 | BB35: 473 | BC35: 463 | BD35: 514 | BE35: 466 | BF35: 533 | BG35: 543 | BH35: 552 | BI35: 620 | BJ35: 680 | BK35: 734 | BL35: 607 | BM35: 700 | BN35: 788 | BO35: 837 | BP35: 801 | BQ35: 878 | BR35: 917 | BS35: 974 | BT35: 1015 | BU35: 1009 | BV35: 1159 | BW35: 1234 | BX35: 1279 | BY35: 1470 | BZ35: 1512 | CA35: 1696 | CB35: 1850 | CC35: 2014 | CD35: 2150 | CE35: 2328 | CF35: 2466 | CG35: 2694 | CH35: 2749 | CI35: 3038 | CJ35: 3249 | CK35: 3277 | CL35: 3219 | CM35: 3412 | CN35: 3517 | CO35: 3430 | CP35: 3518 | CQ35: 3567 | CR35: 3532 | CS35: 3349 | CT35: 3057 | CU35: 2998 | CV35: 2590 | CW35: 2393 | CX35: 2043 | CY35: 1676 | CZ35: 1364 | DA35: 1034 | DB35: 855 | DC35: 660 | DD35: 1338 | DE35: 12
